{"text_format":"1","workbook":"xlsx","n_sheets":14,"sheets":["Dt","General","Resumen","Estado_del_arte","Objetivos","Metodología","Etica","Cronograma","Crono","Integrantes","Productos","Presupuesto","Impactos","Bibliografía"],"not_rendered":{"charts":0,"images":1,"macros":1,"external_links":0,"defined_names":65,"comments":7,"pivot_tables":0},"unopened":[],"bounds":{"document_bytes":16777216,"sheet_cells":100000,"rows_first":2000,"rows_last":500,"rows_between":2000,"halvings":0,"cell_chars":16384,"cell_head_chars":4096},"cells_cut":0,"cells_raw":0,"read":"whole","date_system":"1900"}

{"sheet":"Dt","index":0,"n_rows":2006,"n_cols":644,"rows_kept":2006,"cut":false,"hidden":true,"merged":[]}
[null,"No eliminar Hoja … :)))",null,null,null,null,null,"Cronograma",null,null,"Integrante",null,null,null,null,null,null,null,null,null,null,null,null,null,null,null,"No","Campo ","1_Opcion","2_Opcion",null,"Avaya1719",null,null,null,null,null,null,null,null,null,"2018-03-16","http://scienti.colciencias.gov.co:8080/gruplac/jsp/visualiza/visualizagr.jsp?nro=",null,null,null,null,null,null,null,null,null,null,null,null,null,null,null,null,null,null,null,null,null,null,null,null,null,null,null,null,null,null,null,null,null,null,null,null,null,null,null,null,null,null,null,null,null,null,null,null,null,null,null,null,null,null,null,null,null,{"$f":"Productos!H5","v":"PAZ"}]
[null,null,null,null,null,"Tipo","Objetivo","Actividad","Mes Inicio","Duracion","CC","Nombre","Apellidos","Nivel","Mes","Horas","Rol","Vin","NBC","Cvlac","Nombre Completo",null,null,null,null,null,1,"Sedes","Bogotá",null,null,null,null,null,null,null,null,null,null,null,null,null,null,null,null,"BB",null,{"$f":"MIN(BD3:BD293)","v":4},{"$f":"MAX(BD3:BD293)","v":293},null,null,null,null,null,null,null,null,null,null,null,null,null,null,null,null,null,null,null,null,null,null,null,null,null,null,null,null,null,null,"Variables aplicadas a la Hoja de impactos",null,null,null,null,null,null,null,null,null,null,"Id","IDFinal","Clase","Subclase","Producto","Indicador","INV","IMP"]
[null,null,"Dato",null," ",{"$f":"ROW()-3","v":0},{"$f":"CLEAN(TRIM(Objetivos!C8))","v":""},"NA","NA","NA","NA","NA","NA","NA","NA","NA","NA","NA","NA","NA","NA",null,null,null,null,null,2,"Sedes","Campus Nueva Granada",null,null,null,null,null,null,null,"Hoja",null,null,"Hoja","FAC","Grupo","COD","Clas","Link","Lineas","Fila Grupo","Min","Max","FAC",null,null,"COD","Linea","Cel","Fila","E:Gp",null,null,"Hora","Agente","Agente",null,null,null,"Areas Grupos UMN",null,null,null,null,null,"No","Areas","Area1","Area2",null,null,null,null,"No","Tipo","Duración","Tipo","Alcance","Linea","SRL",null,null,null,null,{"$f":"ROW()-2","v":1},{"$f":"100+COUNTA(CO$3:CO3)","v":101},"Productos de Generación de Nuevo Conocimiento (GNC)","Artículos en Revistas Científicas no incluidas en las listas de revistas depredadoras (ejemplo Beall-list)","Artículo en Cuartil 1 (Q1) del SJR (Scopus) o del JCR (Web of Science)","Copia del sometimiento y copia del artículo enviado a la revista",60,60]
[null,null,"Titulo",{"$f":"TRIM(CLEAN(General!B9))","v":"Formato: actualizado a 06 Sep 2019"},null,{"$f":"ROW()-3","v":1},{"$f":"CLEAN(TRIM(Objetivos!C9))","v":""},{"$f":"CLEAN(TRIM(Cronograma!C8))","v":""},{"$f":"Cronograma!D8","v":0},{"$f":"Cronograma!E8","v":12},{"$f":"INDEX(Dt_Integ,2+($F4-1)*3,(COLUMN()-9))","v":0},"Luis Alexander",0,0,12,25,{"$f":"INDEX(Dt_Integ,3+($F4-1)*3,(COLUMN()-14))","v":"Investigador Principal"},{"$f":"INDEX(Dt_Integ,3+($F4-1)*3,(COLUMN()-14))","v":0},{"$f":"INDEX(Dt_Integ,3+($F4-1)*3,(COLUMN()-14))","v":0},{"$f":"INDEX(Dt_Integ,4+($F4-1)*3,(COLUMN()-17))","v":0},{"$f":"(TRIM(L4&\" \"&M4))","v":"Luis Alexander 0"},null,null,null,null,null,3,"Sedes","Medicina","No habilitada 2018",null,null,null,null,null,null,3,1,{"$f":"COUNTIF($AN$4:$AN$806,AL4)","v":1},1,"CIAS","Fitoplasmas y Virus","COL0028687","C","https://scienti.colciencias.gov.co/gruplac/jsp/visualiza/visualizagr.jsp?nro=00000000008436",{"$f":"$AT$2&AV4&\":\"&$AT$2&AW4","v":"BB76:BB77"},{"$f":"ROW()","v":4},{"$f":"MINA(IF(AQ4=$BA$4:$BA$401,$BD$4:$BD$401))","v":76},{"$f":"MAXA(IF(AQ4=$BA$4:$BA$401,$BD$4:$BD$401))","v":77},{"$f":"AO4","v":"CIAS"},null,null,"COL0069296","Modelos de simulación",{"$f":"COUNTIF(BA$4:BA4,BA4)","v":1},{"$f":"ROW()","v":4},{"$f":"COUNTIF($AQ$3:$AQ$83,BA4)","v":1},null,null,"19:54:00","a","a",{"$f":"DMIN(BH3:BI12,\"hora\",BJ3:BJ4)","v":0.4548611111111111},"|",null,"Biotecnología",null,null,null,null,null,1,{"$f":"BV4&\"-\"&BW4","v":"Ciencias Naturales-Matemática"},"Ciencias Naturales","Matemática",{"$f":"BT4","v":1},null,null,null,1,"Fin de la pobreza","Corto (1 año)","Político","Regional","Transferencia e intercambio de conocimiento","SRL 0 – Identificación del problema.",null,null,null,null,{"$f":"ROW()-2","v":2},{"$f":"100+COUNTA(CO$3:CO4)","v":102},"Productos de Generación de Nuevo Conocimiento (GNC)","Artículos en Revistas Científicas no incluidas en las listas de revistas depredadoras (ejemplo Beall-list)","Artículo en Cuartil 2 (Q2) del SJR (Scopus) o del JCR (Web of Science) WoS ","Copia del sometimiento y copia del artículo enviado a la revista",50,50]
[null,null,"Lider",{"$f":"TRIM(CLEAN(General!C10))","v":"Luis Alexander Chirivi"},null,{"$f":"ROW()-3","v":2},{"$f":"CLEAN(TRIM(Objetivos!C10))","v":""},{"$f":"CLEAN(TRIM(Cronograma!C9))","v":""},{"$f":"Cronograma!D9","v":12},{"$f":"Cronograma!E9","v":0},"Contribuciones"," ",0,0,0,0,{"$f":"INDEX(Dt_Integ,3+($F5-1)*3,(COLUMN()-14))","v":0},0,null,"Coinvestigador",{"$f":"TRIM(L5&\" \"&M5)","v":"0"},null,null,null,null,null,4,"Sedes","Otros","No habilitada 2018",null,null,null,null,null,null,4,2,1,2,"CIAS","Grupo de investigación en Biodiversidad y ecología de abejas silvestres","COL0031959","B","https://scienti.colciencias.gov.co/gruplac/jsp/visualiza/visualizagr.jsp?nro=00000000001366",{"$f":"$AT$2&AV5&\":\"&$AT$2&AW5","v":"BB172:BB176"},{"$f":"ROW()","v":5},{"$f":"MINA(IF(AQ5=$BA$4:$BA$401,$BD$4:$BD$401))","v":172},{"$f":"MAXA(IF(AQ5=$BA$4:$BA$401,$BD$4:$BD$401))","v":176},{"$f":"AO5","v":"CIAS"},null,null,"COL0036749","Accesibilidad",{"$f":"COUNTIF(BA$4:BA5,BA5)","v":1},{"$f":"ROW()","v":5},1,null,null,"09:54:00","b","B",null,null,null,null,null,null,null,null,null,2,{"$f":"BV5&\"-\"&BW5","v":"Ciencias Naturales-Ciencias Físicas"},"Ciencias Naturales","Ciencias Físicas",{"$f":"BT5","v":2},null,null,null,{"$f":"CB4+1","v":2},"Hambre Cero ","Medio (2 años)","Salud","Nacional","Gestión del conocimiento para la apropiación","SRL 1 – Identificación del problema y el grado de madurez social.",null,null,null,null,3,{"$f":"100+COUNTA(CO$3:CO5)","v":103},"Productos de Generación de Nuevo Conocimiento (GNC)","Artículos en Revistas Científicas no incluidas en las listas de revistas depredadoras (ejemplo Beall-list)","Artículo en Cuartil 3 (Q3) del SJR (Scopus) o del JCR (Web of Science) y/o Homologada B Colciencias","Copia del sometimiento y copia del artículo enviado a la revista",40,40]
[null,null,"Sede",{"$f":"General!H12","v":0},null,3,{"$f":"CLEAN(TRIM(Objetivos!C11))","v":""},{"$f":"CLEAN(TRIM(Cronograma!C10))","v":""},{"$f":"Cronograma!D10","v":0},{"$f":"Cronograma!E10","v":0},"CvLac:",0,0,0,0,0,0,0,null,0,"0 0",null,null,null,null,null,1,"Facultad","Ciencias Básicas y Aplicadas","CIAS",null,null,null,null,null,null,12,3,1,3,"CIAS","MATRIX","COL0039321","C","https://scienti.colciencias.gov.co/gruplac/jsp/visualiza/visualizagr.jsp?nro=00000000002208","BB153:BB157",{"$f":"ROW()","v":6},{"$f":"MINA(IF(AQ6=$BA$4:$BA$401,$BD$4:$BD$401))","v":153},{"$f":"MAXA(IF(AQ6=$BA$4:$BA$401,$BD$4:$BD$401))","v":157},"CIAS",null,null,"COL0036749","Multimedia Analítica",{"$f":"COUNTIF(BA$4:BA6,BA6)","v":2},{"$f":"ROW()","v":6},1,null,null,"17:54:00","c","c",null,null,null,null,null,null,null,null,null,3,"Ciencias Naturales-Ciencias Biológicas","Ciencias Naturales","Ciencias Biológicas",3,null,null,null,3,"Salud y bienestar","Largo (3 años)","Tecnológico","Internacional","Participación ciudadana en CTeI","SRL 2 – Formulación del problema, soluciones propuestas e impacto potencial, grado de madurez social esperado; identificación de partes interesadas relevantes para el proyecto",null,null,null,null,4,{"$f":"100+COUNTA(CO$3:CO6)","v":104},"Productos de Generación de Nuevo Conocimiento (GNC)","Artículos en Revistas Científicas no incluidas en las listas de revistas depredadoras (ejemplo Beall-list)","Artículo en Cuartil 4 (Q4) del SJR (Scopus) o del JCR (Web of Science) y/o Homologada C Colciencias","Copia del sometimiento y copia del artículo enviado a la revista",30,30]
[null,null,"Facultad",{"$f":"General!C13","v":0},null,4,{"$f":"CLEAN(TRIM(Objetivos!C12))","v":""},{"$f":"CLEAN(TRIM(Cronograma!C11))","v":""},{"$f":"Cronograma!D11","v":0},{"$f":"Cronograma!E11","v":0},"Funcion :","Coinvestigador","Externo a la UMNG",0,0,0,0,0,null,0,"Coinvestigador Externo a la UMNG",null,null,null,null,null,2,"Facultad","Ciencias Económicas","ECO",null,null,null,null,null,null,18,4,1,4,"CIAS","Control Biológico UMNG","COL0032278","A","https://scienti.colciencias.gov.co/gruplac/jsp/visualiza/visualizagr.jsp?nro=00000000001399","BB158:BB159",{"$f":"ROW()","v":7},{"$f":"MINA(IF(AQ7=$BA$4:$BA$401,$BD$4:$BD$401))","v":158},{"$f":"MAXA(IF(AQ7=$BA$4:$BA$401,$BD$4:$BD$401))","v":159},"CIAS",null,null,"COL0117722","Educación y sociedad",{"$f":"COUNTIF(BA$4:BA7,BA7)","v":1},{"$f":"ROW()","v":7},1,null,null,"10:55:00","a",null,null,null,null,null,null,null,null,null,null,4,"Ciencias Naturales-Computación y Ciencias de la Información","Ciencias Naturales","Computación y Ciencias de la Información",4,null,null,null,4,"Educación de calidad"," ","Económico",null,"Comunicación del conocimiento","SRL 3 – Pruebas iniciales de las soluciones propuestas junto con partes interesadas relevantes.",null,null,null,null,5,{"$f":"100+COUNTA(CO$3:CO7)","v":105},"Productos de Generación de Nuevo Conocimiento (GNC)","Artículos en Revistas Científicas no incluidas en las listas de revistas depredadoras (ejemplo Beall-list)","Revista colombiana indexada en Publindex en A1 (Sí no está en SJR o JCR)","Copia del sometimiento y copia del artículo enviado a la revista",15,0]
[null,null,"Programa",{"$f":"CLEAN(General!H13)","v":""},null,5,{"$f":"CLEAN(TRIM(Objetivos!C13))","v":""},{"$f":"CLEAN(TRIM(Cronograma!C12))","v":""},{"$f":"Cronograma!D12","v":0},{"$f":"Cronograma!E12","v":0},0,0,0,0,12,0,"Investigador UPN","Investigador Externo",null,0,"0 0",null,null,null,null,null,3,"Facultad","Derecho","DER",null,null,null,null,null,null,26,5,1,5,"CIAS","Grupo de Micología y Fitopatologia ","COL0013719","A1","https://scienti.colciencias.gov.co/gruplac/jsp/visualiza/visualizagr.jsp?nro=00000000001127","BB30:BB34",{"$f":"ROW()","v":8},{"$f":"MINA(IF(AQ8=$BA$4:$BA$401,$BD$4:$BD$401))","v":30},{"$f":"MAXA(IF(AQ8=$BA$4:$BA$401,$BD$4:$BD$401))","v":34},"CIAS",null,null,"COL0117722","Estudios Disciplinares en Contabilidad",{"$f":"COUNTIF(BA$4:BA8,BA8)","v":2},{"$f":"ROW()","v":8},1,null,null,"11:45:00","a",null,null,null,null,null,null,null,null,null,null,5,"Ciencias Naturales-Ciencias Químicas","Ciencias Naturales","Ciencias Químicas",5,null,null,null,5,"Igualdad de genero"," ","Legal",null,null,"SRL 4 – Problema validado por medio de pruebas piloto en un entorno relevantes para justificar el impacto propuesto y el grado de madurez social",null,null,null,null,6,{"$f":"100+COUNTA(CO$3:CO8)","v":106},"Productos de Generación de Nuevo Conocimiento (GNC)","Artículos en Revistas Científicas no incluidas en las listas de revistas depredadoras (ejemplo Beall-list)","Revista colombiana indexada en publindex en A2 (sino está en SJR o JCR)","Copia del sometimiento y copia del artículo enviado a la revista",10,0]
[null,null,"Correo",{"$f":"TRIM(CLEAN(General!C11))","v":""},null,6,{"$f":"CLEAN(TRIM(Objetivos!C14))","v":""},{"$f":"CLEAN(TRIM(Cronograma!C13))","v":""},{"$f":"Cronograma!D13","v":0},{"$f":"Cronograma!E13","v":0},"Contribuciones",0,0,0,0,0,0,0,null,"Investigador UDFJC","0 0",null,null,null,null,null,4,"Facultad","Educación y Humanidades","HUM",null,null,null,null,null,null,28,6,1,6,"CIAS","Fitopatologia molecular","COL0086179","C","https://scienti.colciencias.gov.co/gruplac/jsp/visualiza/visualizagr.jsp?nro=00000000007907","BB120:BB121",{"$f":"ROW()","v":9},{"$f":"MINA(IF(AQ9=$BA$4:$BA$401,$BD$4:$BD$401))","v":120},{"$f":"MAXA(IF(AQ9=$BA$4:$BA$401,$BD$4:$BD$401))","v":121},"CIAS",null,null,"COL0101099","Educación y Sociedad",{"$f":"COUNTIF(BA$4:BA9,BA9)","v":1},{"$f":"ROW()","v":9},1,null,null,"15:12:00","b",null,null,null,null,null,null,null,null,null,null,6,"Ciencias Naturales-Otras Ciencias Naturales","Ciencias Naturales","Otras Ciencias Naturales",6,null,null,null,6,"Agua limpia y saneamiento"," ","Cultural",null,null,"SRL 5 – Soluciones propuestas validadas, ahora por las partes interesadas importantes en el área.",null,null,null,null,7,{"$f":"100+COUNTA(CO$3:CO9)","v":107},"Productos de Generación de Nuevo Conocimiento (GNC)","Artículos en Revistas Científicas no incluidas en las listas de revistas depredadoras (ejemplo Beall-list)","Revista colombiana indexada en publindex en B (sino está en SJR o JCR)","Copia del sometimiento y copia del artículo enviado a la revista",8,0]
[null,null,"Fase",{"$f":"General!F12","v":"No"},null,7,{"$f":"CLEAN(TRIM(Objetivos!C15))","v":""},{"$f":"CLEAN(TRIM(Cronograma!C14))","v":""},{"$f":"Cronograma!D14","v":0},{"$f":"Cronograma!E14","v":0},"CvLac:",0,0,0,0,0,0,0,null,0,"0 0",null,null,null,null,null,5,"Facultad","Estudios a Distancia","DIS",null,null,null,null,null,null,30,7,1,7,"CIAS","Estadística, Control y Optimización","COL0136423","B","https://scienti.colciencias.gov.co/gruplac/jsp/visualiza/visualizagr.jsp?nro=00000000013845","BB267:BB271",{"$f":"ROW()","v":10},{"$f":"MINA(IF(AQ10=$BA$4:$BA$401,$BD$4:$BD$401))","v":267},{"$f":"MAXA(IF(AQ10=$BA$4:$BA$401,$BD$4:$BD$401))","v":271},"CIAS",null,null,"COL0101099","Filosofia politica y reponsabilidad social",{"$f":"COUNTIF(BA$4:BA10,BA10)","v":2},{"$f":"ROW()","v":10},1,null,null,"23:12:00","b",null,null,null,null,null,null,null,null,null,null,7,"Ciencias Naturales-Ciencias de la Tierra y Medioambientales","Ciencias Naturales","Ciencias de la Tierra y Medioambientales",7,null,null,null,7,"Energía asequible y no contaminante"," ","Social ",null,null,"SRL 6 – Soluciones demostradas en un entorno relevante, en cooperación con las partes interasadas relevantes para obtener retroalimentación inicial subre impactos potenciales",null,null,null,null,8,{"$f":"100+COUNTA(CO$3:CO10)","v":108},"Productos de Generación de Nuevo Conocimiento (GNC)","Artículos en Revistas Científicas no incluidas en las listas de revistas depredadoras (ejemplo Beall-list)","Revista colombiana indexada en publindex en C (sino está en SJR o JCR)","Copia del sometimiento y copia del artículo enviado a la revista",5,0]
[null,null,"Finan Antes",{"$f":"General!I12","v":"No"},null,8,{"$f":"CLEAN(TRIM(Objetivos!C16))","v":""},{"$f":"CLEAN(TRIM(Cronograma!C15))","v":""},{"$f":"Cronograma!D15","v":0},{"$f":"Cronograma!E15","v":0},"Funcion :","Auxiliar de Investigación.","Estímulo a estudiante",0,0,0,0,0,null,0,"Auxiliar de Investigación. Estímulo a estudiante",null,null,null,null,null,6,"Facultad","Ingeniería","ING",null,null,null,null,null,null,32,8,1,8,"CIAS","Grupo de Ecotoxicología, Evolución, Medio ambiente y conservación (E = mc2)","COL0038084","C","https://scienti.colciencias.gov.co/gruplac/jsp/visualiza/visualizagr.jsp?nro=00000000002068","BB262:BB266",{"$f":"ROW()","v":11},{"$f":"MINA(IF(AQ11=$BA$4:$BA$401,$BD$4:$BD$401))","v":262},{"$f":"MAXA(IF(AQ11=$BA$4:$BA$401,$BD$4:$BD$401))","v":266},"CIAS",null,null,"COL0101099","Humanidades, cultura y universidad",{"$f":"COUNTIF(BA$4:BA11,BA11)","v":3},{"$f":"ROW()","v":11},1,null,null,"06:20:00","c",null,null,null,null,null,null,null,null,null,null,8,"Ciencias Médicas y de la Salud-Medicina Clínica","Ciencias Médicas y de la Salud","Medicina Clínica",8,null,null,null,8,"Trabajo decente y crecimiento económico"," ","Ambiental",null,null,"SRL 7 – Refinamiento del proyecto y/o solución y, de ser necesario, aplicación de nuevas pruebas en el entorno relevante, con partes interesadas relevantes.",null,null,null,null,9,{"$f":"100+COUNTA(CO$3:CO11)","v":109},"Productos de Generación de Nuevo Conocimiento (GNC)","Libro de Investigación","Libro de investigación en colección indexada en Scopus o indexado en el Book Citation Index BCI (WoS) ","Copia del sometimiento  ante editorial Neogranadina o editorial externa y copia del libro enviado a la editorial",60,60]
[null,null,"Resumen",{"$f":" CLEAN(TRIM(Resumen!C7&\" \"&Resumen!C8&\" \"&Resumen!C9&\" \"&Resumen!C15&\" \"&Resumen!C16&\" \"&Resumen!C17&\" \"&Resumen!C18&\" \"&Resumen!C19))","v":""},null,9,{"$f":"CLEAN(TRIM(Objetivos!C17))","v":""},{"$f":"CLEAN(TRIM(Cronograma!C16))","v":""},{"$f":"Cronograma!D16","v":0},{"$f":"Cronograma!E16","v":0},0,0,0,0,12,0,0,0,null,0,"0 0",null,null,null,null,null,7,"Facultad","Medicina y Ciencias de la Salud","MED",null,null,null,null,null,null,41,9,1,9,"CIAS","Grupo de Investigación en Hidrobiología Aplicada (HIDROBIA)","COL0048492","C","https://scienti.colciencias.gov.co/gruplac/jsp/visualiza/visualizagr.jsp?nro=00000000005664","BB163:BB166",{"$f":"ROW()","v":12},{"$f":"MINA(IF(AQ12=$BA$4:$BA$401,$BD$4:$BD$401))","v":163},{"$f":"MAXA(IF(AQ12=$BA$4:$BA$401,$BD$4:$BD$401))","v":166},"CIAS",null,null,"COL0101099","Liderazgo y gestión en educación.",{"$f":"COUNTIF(BA$4:BA12,BA12)","v":4},{"$f":"ROW()","v":12},1,null,null,"12:30:00","a",null,null,null,null,null,null,null,null,null,null,9,"Ciencias Médicas y de la Salud-Biotecnología en Salud","Ciencias Médicas y de la Salud","Biotecnología en Salud",9,null,null,null,9,"Industria, innovación e infraestructura"," ",null,null,null,"SRL 8 – Soluciones propuestas, así como un plan para la adaptación social completo y certificado.",null,null,null,null,10,{"$f":"100+COUNTA(CO$3:CO12)","v":110},"Productos de Generación de Nuevo Conocimiento (GNC)","Libro de Investigación","Libro de investigación  publicado por la Editorial Neogranadina o que cumple con los parámetros de Colciencias para que sea reconocido como producto de Generación de Nuevo Conocimiento","Copia del sometimiento ante editorial Neogranadina o editorial externa y copia del libro enviado a la editorial",40,40]
[null,null,"Total Vicen",{"$f":"General!G64","v":0},null,10,{"$f":"CLEAN(TRIM(Objetivos!C18))","v":""},{"$f":"CLEAN(TRIM(Cronograma!C17))","v":""},{"$f":"Cronograma!D17","v":0},{"$f":"Cronograma!E17","v":0},"Contribuciones",0,0,0,0,0,0,0,null,"Asistente OPS","0 0",null,null,null,null,null,8,"Facultad","Relaciones Internacionales, Estrategia y Seguridad","EES",null,null,null,null,null,null,42,10,1,10,"CIAS","Agrobiología de especies vegetales promisorias de clima frío","COL0077814","C","https://scienti.colciencias.gov.co/gruplac/jsp/visualiza/visualizagr.jsp?nro=00000000006560","BB29:BB29",{"$f":"ROW()","v":13},{"$f":"MINA(IF(AQ13=$BA$4:$BA$401,$BD$4:$BD$401))","v":29},{"$f":"MAXA(IF(AQ13=$BA$4:$BA$401,$BD$4:$BD$401))","v":29},"CIAS",null,null,"COL0044859","Interacción Humano Computador",{"$f":"COUNTIF(BA$4:BA13,BA13)","v":1},{"$f":"ROW()","v":13},1,null,null,null,null,null,null,null,null,null,null,null,null,null,null,10,"Ciencias Médicas y de la Salud-Otras Ciencias Médicas","Ciencias Médicas y de la Salud","Otras Ciencias Médicas",10,null,null,null,10,"Reducción de las desigualdades"," ",null,null,null,"SRL 9 – Soluciones reales del proyecto, probadas en un entorno relevante",null,null,null,null,11,{"$f":"100+COUNTA(CO$3:CO13)","v":111},"Productos de Generación de Nuevo Conocimiento (GNC)","Capítulo de Libro de Investigación","Capítulo incluido en libro dentro de una colección indexada en Scopus o libro indexado en el Book Citation Index (WoS) ","Copia del sometimiento ante editorial Neogranadina o editorial externa (copia del proyecto editorial de libro en el que se incluiría el capítulo y del aval de la Editorial sobre ese proyecto) y copia del capítulo de libro enviado a la editorial",40,40]
[null,null,"Total Pts",{"$f":"General!D64","v":0},null,11,{"$f":"CLEAN(TRIM(Objetivos!C19))","v":""},{"$f":"CLEAN(TRIM(Cronograma!C18))","v":""},{"$f":"Cronograma!D18","v":0},{"$f":"Cronograma!E18","v":0},null,null,null,null,null,null,null,null,null,null,null,null,null,null,null,null,1,"Programa","CIAS","Biología Aplicada",2,null,null,null,null,null,43,11,1,11,"CIAS","Grupo Integrado de Investigaciones en Química Bioorgánica (InQuiBio)","COL0077707","A1","https://scienti.colciencias.gov.co/gruplac/jsp/visualiza/visualizagr.jsp?nro=00000000008358","BB192:BB200",{"$f":"ROW()","v":14},{"$f":"MINA(IF(AQ14=$BA$4:$BA$401,$BD$4:$BD$401))","v":192},{"$f":"MAXA(IF(AQ14=$BA$4:$BA$401,$BD$4:$BD$401))","v":200},"CIAS",null,null,"COL0044859","Multimedia Educativa",{"$f":"COUNTIF(BA$4:BA14,BA14)","v":2},{"$f":"ROW()","v":14},1,null,null,null,null,null,null,null,null,null,null,null,null,null,null,11,"Ciencias Médicas y de la Salud-Medicina Básica","Ciencias Médicas y de la Salud","Medicina Básica",11,null,null,null,11,"Ciudades y comunidades sostenibles"," ",null,null,null,null,null,null,null,null,12,{"$f":"100+COUNTA(CO$3:CO14)","v":112},"Productos de Generación de Nuevo Conocimiento (GNC)","Capítulo de Libro de Investigación","Capítulo en libro de la Editorial Neogranadina o en libro que cumple con los parámetros de Colciencias para que sea reconocido como producto de Generación de Nuevo Conocimiento","Copia del sometimiento ante editorial Neogranadina o editorial externa (copia del proyecto editorial de libro en el que se incluiría el capítulo y del aval de la Editorial sobre ese proyecto) y copia del capítulo de libro enviado a la editorial",30,30]
[null,null,null,null,null,12,{"$f":"CLEAN(TRIM(Objetivos!C20))","v":""},{"$f":"CLEAN(TRIM(Cronograma!C19))","v":""},{"$f":"Cronograma!D19","v":0},{"$f":"Cronograma!E19","v":0},null,"Datos de Grupos de  Investigación  Integrantes",null,null,null,null,null,null,null,null,null,null,null,null,null,null,2,"Programa","CIAS","Tecnologia en Gestion y Produccion horticola",3,null,null,null,null,null,44,12,1,12,"CIAS","Grupo de investigación en química ambiental y tecnologías limpias - QUATELI","COL0110436","C","https://scienti.colciencias.gov.co/gruplac/jsp/visualiza/visualizagr.jsp?nro=00000000011141","BB272:BB276",{"$f":"ROW()","v":15},{"$f":"MINA(IF(AQ15=$BA$4:$BA$401,$BD$4:$BD$401))","v":272},{"$f":"MAXA(IF(AQ15=$BA$4:$BA$401,$BD$4:$BD$401))","v":276},"CIAS",null,null,"COL0044859","Procesamiento digital de imágenes y Visión por computador",{"$f":"COUNTIF(BA$4:BA15,BA15)","v":3},{"$f":"ROW()","v":15},1,null,null,null,null,null,null,null,null,null,null,null,null,null,null,12,"Ciencias Médicas y de la Salud-Ciencias de la Salud","Ciencias Médicas y de la Salud","Ciencias de la Salud",12,null,null,null,12,"Producción y consumo responsables"," ",null,null,null,null,null,null,null,null,13,{"$f":"100+COUNTA(CO$3:CO15)","v":113},"Productos de Generación de Nuevo Conocimiento (GNC)","Variedad vegetal o nueva raza animal","Publicación en gaceta de variedades vegetales protegidas o equivalente con estado de admisión","Solicitud de Certificado de obtentor de variedad vegetal expedido por el Instituto Colombiano Agropecuario (ICA) o solicitud de inscripción en el registro nacional de cultivadores",40,40]
[null,null,null,null,null,13,{"$f":"CLEAN(TRIM(Objetivos!C21))","v":""},{"$f":"CLEAN(TRIM(Cronograma!C20))","v":""},{"$f":"Cronograma!D20","v":0},{"$f":"Cronograma!E20","v":0},null,"Fila\\ Columna","D",null,null,null,null,null,null,null,null,null,null,null,null,null,3,"Programa","CIAS","Maestría en Biología Aplicada",33,null,null,null,null,null,56,13,1,13,"CIAS","ECMU (Evaluacion en Competencias y Matemáticas Universitarias)","COL0110329","C","https://scienti.colciencias.gov.co/gruplac/jsp/visualiza/visualizagr.jsp?nro=00000000011130","BB117:BB119",{"$f":"ROW()","v":16},{"$f":"MINA(IF(AQ16=$BA$4:$BA$401,$BD$4:$BD$401))","v":117},{"$f":"MAXA(IF(AQ16=$BA$4:$BA$401,$BD$4:$BD$401))","v":119},"CIAS",null,null,"COL0044859","Sistemas Multimedia",{"$f":"COUNTIF(BA$4:BA16,BA16)","v":4},{"$f":"ROW()","v":16},1,null,null,null,null,null,null,null,null,null,null,null,null,null,null,13,"Ciencias Sociales-Otras Ciencias Sociales","Ciencias Sociales","Otras Ciencias Sociales",13,null,null,null,13,"Acción por el clima"," ",null,null,null,null,null,null,null,null,14,{"$f":"100+COUNTA(CO$3:CO16)","v":114},"Productos de Generación de Nuevo Conocimiento (GNC)","Nota científica","Nota Científica Impresa o electrónica sometida en revista indexada del SJR (Scopus) o del JCR (Web of Science) que cumpla con los parámetros de Colciencias para que sea reconocido como producto de Generación de Nuevo Conocimiento","Copia del sometimiento y copia de la nota científica enviada a la revista",30,30]
[null,null,null,null,null,14,{"$f":"CLEAN(TRIM(Objetivos!C22))","v":""},{"$f":"CLEAN(TRIM(Cronograma!C21))","v":""},{"$f":"Cronograma!D21","v":0},{"$f":"Cronograma!E21","v":0},null,"General","Nombre","Cod","Clas","Fac","Linea","Cvlac","Ref",null,null,null,null,null,null,null,3,"Programa","CIAS","Departamento de Matemáticas",34,null,null,null,null,null,58,14,1,14,"CIAS","Grupo de Docencia e Investigación en Física","COL0138796","C","https://scienti.colciencias.gov.co/gruplac/jsp/visualiza/visualizagr.jsp?nro=00000000014082",{"$f":"$AT$2&AV17&\":\"&$AT$2&AW17","v":"BB122:BB126"},{"$f":"ROW()","v":17},{"$f":"MINA(IF(AQ17=$BA$4:$BA$401,$BD$4:$BD$401))","v":122},{"$f":"MAXA(IF(AQ17=$BA$4:$BA$401,$BD$4:$BD$401))","v":126},{"$f":"AO17","v":"CIAS"},null,null,"COL0044859","Visualización y Computación Gráfica",{"$f":"COUNTIF(BA$4:BA17,BA17)","v":5},{"$f":"ROW()","v":17},1,null,null,null,null,null,null,null,null,null,null,null,null,null,null,14,"Ciencias Sociales-Psicología","Ciencias Sociales","Psicología",14,null,null,null,14,"Vida submarina"," ",null,null,null,null,null,null,null,null,15,{"$f":"200+COUNTA(CO$17:CO17)","v":201},"Productos resultado de actividades de desarrollo tecnológico e innovación (DTI)","Productos tecnológicos certificados o validados","Software aprobado para registro ante la DNDA, de acuerdo con procedimientos establecidos por la UMNG.","Programas, archivos ejecutables, manual técnico y de ususario, solicitud de registro ante la DNDA.",20,20]
[null,null,null,null,null,15,{"$f":"CLEAN(TRIM(Objetivos!C23))","v":""},{"$f":"CLEAN(TRIM(Cronograma!C22))","v":""},{"$f":"Cronograma!D22","v":0},{"$f":"Cronograma!E22","v":0},null,1,{"$f":"General!C18","v":"Agua y Energía - AyE"},{"$f":"General!L18","v":"COL0026486"},{"$f":"General!I19","v":"C"},{"$f":"General!#REF!","v":{"$error":"#REF!"}},{"$f":"General!C20","v":0},{"$f":"General!C19","v":"https://scienti.colciencias.gov.co/gruplac/jsp/visualiza/visualizagr.jsp?nro=00000000000767"},{"$f":"General!L20","v":"DT!BB135:BB139"},null,null,null,null,null,null,null,3,"Programa","CIAS","Departamento de Física",35,null,null,null,null,null,71,71,1,71,"CIAS","DIVERSITAS","COL0178619","NR","https://scienti.colciencias.gov.co/gruplac/jsp/visualiza/visualizagr.jsp?nro=00000000018063",{"$f":"$AT$2&AV18&\":\"&$AT$2&AW18","v":"BB306:BB311"},{"$f":"ROW()","v":18},{"$f":"MINA(IF(AQ18=$BA$4:$BA$401,$BD$4:$BD$401))","v":306},{"$f":"MAXA(IF(AQ18=$BA$4:$BA$401,$BD$4:$BD$401))","v":311},{"$f":"AO18","v":"CIAS"},null,null,"COL0052181","Big Data Analytics",{"$f":"COUNTIF(BA$4:BA18,BA18)","v":1},{"$f":"ROW()","v":18},1,null,null,null,null,null,null,null,null,null,null,null,null,null,null,15,"Ciencias Sociales-Economía y Negocios","Ciencias Sociales","Economía y Negocios",15,null,null,null,15,"Vida de ecosistemas terrestres"," ",null,null,null,null,null,null,null,null,16,{"$f":"200+COUNTA(CO$17:CO18)","v":202},"Productos resultado de actividades de desarrollo tecnológico e innovación (DTI)","Productos tecnológicos certificados o validados","Esquema de trazado de circuito integrado registrado ante la SIC a través de acto administrativo que resuelva la concesión favorable.","Solicitud de registro ante la SIC",10,10]
[null,null,null,null,null,16,null,{"$f":"CLEAN(TRIM(Cronograma!C23))","v":""},{"$f":"Cronograma!D23","v":0},{"$f":"Cronograma!E23","v":0},null,2,{"$f":"General!D22","v":0},{"$f":"General!L22","v":0},{"$f":"General!I23","v":""},{"$f":"General!C22","v":0},{"$f":"General!C24","v":0},{"$f":"General!C23","v":""},{"$f":"General!L24","v":0},null,null,null,null,null,null,null,3,"Programa","CIAS","Departamento de Química",36,null,null,null,null,null,72,72,1,72,"CIAS","Nanofab","COL0179618","NR","https://scienti.colciencias.gov.co/gruplac/jsp/visualiza/visualizagr.jsp?nro=00000000018163",{"$f":"$AT$2&AV19&\":\"&$AT$2&AW19","v":"BB290:BB294"},{"$f":"ROW()","v":19},{"$f":"MINA(IF(AQ19=$BA$4:$BA$401,$BD$4:$BD$401))","v":290},{"$f":"MAXA(IF(AQ19=$BA$4:$BA$401,$BD$4:$BD$401))","v":294},{"$f":"AO19","v":"CIAS"},null,null,"COL0052181","Biomecánica e Ingeniería de Rehabilitación",{"$f":"COUNTIF(BA$4:BA19,BA19)","v":2},{"$f":"ROW()","v":19},1,null,null,null,null,null,null,null,null,null,null,null,null,null,null,16,"Ciencias Sociales-Derecho","Ciencias Sociales","Derecho",16,null,null,null,16,"Paz, justicia e instituciones sólidas"," ",null,null,null,null,null,null,null,null,17,{"$f":"200+COUNTA(CO$17:CO19)","v":203},"Productos resultado de actividades de desarrollo tecnológico e innovación (DTI)","Productos tecnológicos certificados o validados","Regulaciones, normas, reglamentos o legislaciones implementadas internacionalmente, acorde con parámetros de Colciencias","Copia de la norma, reglamento o legislación y certificado de la Entidad que emitió la reglamentación o normatividad",20,20]
[null,null,null,null,null,17,null,{"$f":"CLEAN(TRIM(Cronograma!C24))","v":""},{"$f":"Cronograma!D24","v":0},{"$f":"Cronograma!E24","v":0},null,3,{"$f":"General!D26","v":0},{"$f":"General!L26","v":0},{"$f":"General!I27","v":""},{"$f":"General!C26","v":0},{"$f":"General!C28","v":0},{"$f":"General!C27","v":""},{"$f":"General!L28","v":0},null,null,null,null,null,null,null,3,"Programa","CIAS","Doctorado en Ciencias Aplicadas",33,null,null,null,null,null,11,15,1,15,"DER","Grupo de derecho público ","COL0028918","B","https://scienti.colciencias.gov.co/gruplac/jsp/visualiza/visualizagr.jsp?nro=00000000001079","BB112:BB116",{"$f":"ROW()","v":20},{"$f":"MINA(IF(AQ20=$BA$4:$BA$401,$BD$4:$BD$401))","v":112},{"$f":"MAXA(IF(AQ20=$BA$4:$BA$401,$BD$4:$BD$401))","v":116},"DER",null,null,"COL0052181","Gestión hospitalaria",{"$f":"COUNTIF(BA$4:BA20,BA20)","v":3},{"$f":"ROW()","v":20},1,null,null,null,null,null,null,null,null,null,null,null,null,null,null,17,"Ciencias Sociales-Ciencias de la Educación","Ciencias Sociales","Ciencias de la Educación",17,null,null,null,17,"Alianzas para lograr los objetivos"," ",null,null,null,null,null,null,null,null,18,{"$f":"200+COUNTA(CO$17:CO20)","v":204},"Productos resultado de actividades de desarrollo tecnológico e innovación (DTI)","Productos tecnológicos certificados o validados","Regulaciones, normas, reglamentos o legislaciones implementadas nacionalmente (no institucional), acorde con parámetros de Colciencias","Copia de la norma, reglamento o legislación y certificado de la Entidad que emitió la reglamentación o normatividad",10,10]
[null,null,null,null,null,18,null,{"$f":"CLEAN(TRIM(Cronograma!C25))","v":""},{"$f":"Cronograma!D25","v":0},{"$f":"Cronograma!E25","v":0},null,null,null,null,null,null,null,null,null,null,null,null,null,null,null,null,4,"Programa","DER","Derecho",16,null,null,null,null,null,47,16,1,16,"DER","Grupo de Derecho Privado","COL0128047","R","https://scienti.colciencias.gov.co/gruplac/jsp/visualiza/visualizagr.jsp?nro=00000000012964","BB55:BB56",{"$f":"ROW()","v":21},{"$f":"MINA(IF(AQ21=$BA$4:$BA$401,$BD$4:$BD$401))","v":55},{"$f":"MAXA(IF(AQ21=$BA$4:$BA$401,$BD$4:$BD$401))","v":56},"DER",null,null,"COL0052181","Procesamiento de señales, datos, imagen y video",{"$f":"COUNTIF(BA$4:BA21,BA21)","v":4},{"$f":"ROW()","v":21},1,null,null,null,null,null,null,null,null,null,null,null,null,null,null,18,"Ciencias Sociales-Sociología","Ciencias Sociales","Sociología",18,null,null,null,null,null,null,null,null,null,null,null,null,null,null,19,{"$f":"200+COUNTA(CO$17:CO21)","v":205},"Productos resultado de actividades de desarrollo tecnológico e innovación (DTI)","Productos o procesos tecnológicos usualmente no patentables (Prototipo)","Prototipo en estado de desarrollo TRL4","Fotos, video del prototipo en funcionamiento, manual técnico y manual de usuario ",15,15]
[null,null,null,null,null,19,null,{"$f":"CLEAN(TRIM(Cronograma!C26))","v":""},{"$f":"Cronograma!D26","v":0},{"$f":"Cronograma!E26","v":0},null,null,null,null,null,null,null,null,null,null,null,null,null,null,null,null,5,"Programa","DER","Maestría en Derecho Procesal Penal",47,null,null,null,null,null,68,17,1,17,"DER","Red de estudios sociojurídicos comparados y políticas públicas","COL0142449","NR","https://scienti.colciencias.gov.co/gruplac/jsp/visualiza/visualizagr.jsp?nro=00000000014449","BB300:BB305",{"$f":"ROW()","v":22},{"$f":"MINA(IF(AQ22=$BA$4:$BA$401,$BD$4:$BD$401))","v":300},{"$f":"MAXA(IF(AQ22=$BA$4:$BA$401,$BD$4:$BD$401))","v":305},"DER",null,null,"COL0052181","Tele-cardiología y prevención",{"$f":"COUNTIF(BA$4:BA22,BA22)","v":5},{"$f":"ROW()","v":22},1,null,null,null,null,null,null,null,null,null,null,null,null,null,null,19,"Ciencias Sociales-Ciencias Políticas","Ciencias Sociales","Ciencias Políticas",19,null,null,null,null,null,null,null,null,null,null,null,null,null,null,20,{"$f":"300+COUNTA(CO$22:CO22)","v":301},"Producción resultado de actividades de apropiación social del conocimiento (ASC)","Circulación de conocimiento especializado","Ponencia en evento Internacional de acuerdo a los requisitos de la resolución de movilidad vigente.","Copia del trabajo presentado en el evento y memorias del evento con ISSN o ISBN   y/o certificado de ponente",10,10]
[null,null,null,null,null,20,null,{"$f":"CLEAN(TRIM(Cronograma!C27))","v":""},{"$f":"Cronograma!D27","v":0},{"$f":"Cronograma!E27","v":0},null,null,null,null,null,null,null,null,null,null,null,null,null,null,null,null,6,"Programa","DER","Maestría en Derecho Administrativo",48,null,null,null,null,null,2,18,1,18,"DIS","PROPPIO: Procesos organizacionales, programaticos y políticos para la promoción del desarrollo","COL0062704","R","https://scienti.colciencias.gov.co/gruplac/jsp/visualiza/visualizagr.jsp?nro=00000000006477","BB149:BB152",{"$f":"ROW()","v":23},{"$f":"MINA(IF(AQ23=$BA$4:$BA$401,$BD$4:$BD$401))","v":149},{"$f":"MAXA(IF(AQ23=$BA$4:$BA$401,$BD$4:$BD$401))","v":152},"DIS",null,null,"COL0052181","Telemetría (IoT-Routing)",{"$f":"COUNTIF(BA$4:BA23,BA23)","v":6},{"$f":"ROW()","v":23},1,null,null,null,null,null,null,null,null,null,null,null,null,null,null,20,"Ciencias Sociales-Geografía Social y Económica","Ciencias Sociales","Geografía Social y Económica",20,null,null,null,null,null,null,null,null,null,null,null,null,null,null,21,{"$f":"300+COUNTA(CO$22:CO23)","v":302},"Producción resultado de actividades de apropiación social del conocimiento (ASC)","Circulación de conocimiento especializado","Ponencia  en evento nacional de acuerdo a los requisitos de la resolución de movilidad vigente.","Copia del trabajo presentado en el evento y memorias del evento con ISSN o ISBN   y/o certificado de ponente",5,5]
[null,null,null,null,null,"Col",1,{"$f":"G24+1","v":2},{"$f":"H24+1","v":3},4,5,6,7,8,9,10,11,12,13,14,15,16,null,null,null,null,7,"Programa","DER","Maestría en Instituciones Jurídicas de la Fuerza Pública",49,null,null,null,null,null,8,19,1,19,"DIS","INCONDIS","COL0127649","NR","https://scienti.colciencias.gov.co/gruplac/jsp/visualiza/visualizagr.jsp?nro=00000000012918","BB277:BB277",{"$f":"ROW()","v":24},{"$f":"MINA(IF(AQ24=$BA$4:$BA$401,$BD$4:$BD$401))","v":277},{"$f":"MAXA(IF(AQ24=$BA$4:$BA$401,$BD$4:$BD$401))","v":277},"DIS",null,null,"COL0066669","Estrategia y Seguridad",{"$f":"COUNTIF(BA$4:BA24,BA24)","v":1},{"$f":"ROW()","v":24},1,null,null,null,null,null,null,null,null,null,null,null,null,null,null,21,"Ciencias Sociales-Periodismo y Comunicaciones","Ciencias Sociales","Periodismo y Comunicaciones",21,null,null,null,null,null,null,null,null,null,null,null,null,null,null,22,{"$f":"300+COUNTA(CO$22:CO24)","v":303},"Producción resultado de actividades de apropiación social del conocimiento (ASC)","Participación ciudadana en CTeI","Participación ciudadana en CTeI acorde con parámetros del modelo de medición de grupos de investigación- Colciencias","Constancia de la participación o aval de la comunidad para su inclusión en el proyecto de CTeI o espacios de encuentro",10,10]
[null,null,null,null,null,null,null,null,null,null,null,null,null,null,null,null,null,null,null,null,null,null,null,null,null,null,8,"Programa","DER","Especialización en Derecho Administrativo",50,null,null,null,null,null,20,20,1,20,"DIS","\"PYDES\" Pedagogía y didáctica en la educación superior","COL0018448","A","https://scienti.colciencias.gov.co/gruplac/jsp/visualiza/visualizagr.jsp?nro=00000000000929","BB201:BB203",{"$f":"ROW()","v":25},{"$f":"MINA(IF(AQ25=$BA$4:$BA$401,$BD$4:$BD$401))","v":201},{"$f":"MAXA(IF(AQ25=$BA$4:$BA$401,$BD$4:$BD$401))","v":203},"DIS",null,null,"COL0066669","Paz y Posconflicto",{"$f":"COUNTIF(BA$4:BA25,BA25)","v":2},{"$f":"ROW()","v":25},1,null,null,null,null,null,null,null,null,null,null,null,null,null,null,22,"Ingeniería y Tecnología-Ingeniería Mecánica","Ingeniería y Tecnología","Ingeniería Mecánica",22,null,null,null,null,null,null,null,null,null,null,null,null,null,null,23,{"$f":"300+COUNTA(CO$22:CO25)","v":304},"Producción resultado de actividades de apropiación social del conocimiento (ASC)","Nueva secuencia genética","Conjunto de información molecular que haya sido publicado en revista científica especializada y en una base de datos o repositorio de acceso público acorde con los parámetros del modelo de medición de grupos de investigación - Colciencias ","Certificación de la nueva secuencia genética y base de datos científica (nombre y url))",10,10]
[null,null,null,null,null,null,null,null,null,null,null,null,null,null,null,null,null,null,null,null,null,null,null,null,null,null,9,"Programa","DER","Especialización en Procedimiento Penal, Constitucional y Justicia Militar",51,null,null,null,null,null,22,21,1,21,"DIS","Medios, Mediaciones y Procesos en Educación a Distancia","COL0067504","C","https://scienti.colciencias.gov.co/gruplac/jsp/visualiza/visualizagr.jsp?nro=00000000004308","BB92:BB97",{"$f":"ROW()","v":26},{"$f":"MINA(IF(AQ26=$BA$4:$BA$401,$BD$4:$BD$401))","v":92},{"$f":"MAXA(IF(AQ26=$BA$4:$BA$401,$BD$4:$BD$401))","v":97},"DIS",null,null,"COL0066669","Seguridad Física",{"$f":"COUNTIF(BA$4:BA26,BA26)","v":3},{"$f":"ROW()","v":26},1,null,null,null,null,null,null,null,null,null,null,null,null,null,null,23,"Ingeniería y Tecnología-Otras Ingenierías y Tecnologías","Ingeniería y Tecnología","Otras Ingenierías y Tecnologías",23,null,null,null,null,null,null,null,null,null,null,null,null,null,null,24,{"$f":"400+COUNTA(CO$26:CO26)","v":401},"Formación de Recurso Humano (FRH)","Dirección o codirección de Tesis de doctorado","Dirección o codirección de Tesis de estudiantes en programas de Doctorado de la UMNG, con temáticas asociadas a la línea de investigación a la que pertenece el proyecto","Acta del comité de de investigacion donde se designa al director o Certificado de la unidad Academica y anteproyecto de tesis doctoral ",30,30]
[null,null,null,null,null,null,null,null,"Totales",null,{"$f":"SUM(K31:K52)","v":0},null,null,null,null,null,{"$f":"SUM(Q30:Q52)","v":0},null,null,null,null,{"$f":"SUM(V30:V52)","v":0},{"$f":"SUM(W30:W52)","v":0},{"$f":"SUM(X30:X52)","v":0},null,null,10,"Programa","DER","Especialización en Derecho Sancionatorio",52,null,null,null,null,null,39,22,1,22,"DIS","PIREO \"Procesos de Integración, Regionalización y Estructuras Organizacionales\"","COL0066229","C","https://scienti.colciencias.gov.co/gruplac/jsp/visualiza/visualizagr.jsp?nro=00000000004242","BB140:BB142",{"$f":"ROW()","v":27},{"$f":"MINA(IF(AQ27=$BA$4:$BA$401,$BD$4:$BD$401))","v":140},{"$f":"MAXA(IF(AQ27=$BA$4:$BA$401,$BD$4:$BD$401))","v":142},"DIS",null,null,"COL0066669","Seguridad de Personas",{"$f":"COUNTIF(BA$4:BA27,BA27)","v":4},{"$f":"ROW()","v":27},1,null,null,null,null,null,null,null,null,null,null,null,null,null,null,24,"Ingeniería y Tecnología-Ingeniería Química","Ingeniería y Tecnología","Ingeniería Química",24,null,null,null,null,null,null,null,null,null,null,null,null,null,null,25,{"$f":"400+COUNTA(CO$26:CO27)","v":402},"Formación de Recurso Humano (FRH)","Dirección o codirección de Trabajo de maestría","Dirección o codirección de trabajos de grado de estudiantes en programas de Maestría de la UMNG, con temáticas asociadas a línea de investigación a la que pertenece el proyecto","Acta del comité de de investigacion donde se designa al director o Certificado de la unidad Academica y anteproyecto de tesis de grado ",15,15]
[null,null,null,null,null,"Valores Presupuestales",null,null,null,null,null,null,null,null,null,null,null,null,null,null,null,null,null,null,null,null,11,"Programa","DER","Especialización en Derechos Humanos y Sistemas de Protección",53,null,null,null,null,null,61,23,1,23,"DIS","Modelos de simulación ICDIST","COL0069296","C","https://scienti.colciencias.gov.co/gruplac/jsp/visualiza/visualizagr.jsp?nro=00000000004423","BB4:BB4",{"$f":"ROW()","v":28},{"$f":"MINA(IF(AQ28=$BA$4:$BA$401,$BD$4:$BD$401))","v":4},{"$f":"MAXA(IF(AQ28=$BA$4:$BA$401,$BD$4:$BD$401))","v":4},"DIS",null,null,"COL0066669","Seguridad y Salud en el Trabajo",{"$f":"COUNTIF(BA$4:BA28,BA28)","v":5},{"$f":"ROW()","v":28},1,null,null,null,null,null,null,null,null,null,null,null,null,null,null,25,"Ingeniería y Tecnología-Ingenierías Eléctrica, Electrónica e Informática","Ingeniería y Tecnología","Ingenierías Eléctrica, Electrónica e Informática",25,null,null,null,{"$f":"CB20+1","v":18},"Ciencias básicas "," ",null,null,null,null,null,null,null,null,26,{"$f":"400+COUNTA(CO$26:CO28)","v":403},"Formación de Recurso Humano (FRH)","Jóven Investigador","Vinculación por mínimo ocho meses de un Joven investigador según los criterios de la Resolución institucional que actualiza la reglamentación sobre vinculación de personal a los proyectos de investigación financiados o cofinanciados por la UMNG en los programas de CTeI o la que se encuentre vigente para el momento de la ejecución del proyecto","Contrato OPS ",10,10]
[null,null,null,null,null,null,"Datos de Contrapartida",null,null,null,null,"Datos OPS",null,null,null,null,null,null,null,null,null,null,null,null,null,null,12,"Programa","DIS","Administración de Empresas",17,null,null,null,null,null,67,24,1,24,"DIS","INAMPE","COL0142331","NR","https://scienti.colciencias.gov.co/gruplac/jsp/visualiza/visualizagr.jsp?nro=00000000014438","BB297:BB299",{"$f":"ROW()","v":29},{"$f":"MINA(IF(AQ29=$BA$4:$BA$401,$BD$4:$BD$401))","v":297},{"$f":"MAXA(IF(AQ29=$BA$4:$BA$401,$BD$4:$BD$401))","v":299},"DIS",null,null,"COL0077814","Producción Hortícola Limpia",{"$f":"COUNTIF(BA$4:BA29,BA29)","v":1},{"$f":"ROW()","v":29},1,null,null,null,null,null,null,null,null,null,null,null,null,null,null,26,"Ingeniería y Tecnología-Biotecnología Ambiental","Ingeniería y Tecnología","Biotecnología Ambiental",26,null,null,null,19,"Otros"," ",null,null,null,null,null,null,null,null,27,{"$f":"400+COUNTA(CO$26:CO29)","v":404},"Formación de Recurso Humano (FRH)","Dirección o codirección de Trabajo de pregrado","Dirección o codirección de Trabajo de estudiantes en programas de pregrado de la UMNG, con temáticas asociadas a línea de investigación a la que pertenece el proyecto.","Copia del acta sustentación del proyecto de grado",5,0]
[null,null,null,null,null,"No","Identidad",{"$f":"Presupuesto!E13","v":"Tipo de Vinculo UMNG"},{"$f":"Presupuesto!F13","v":"Numero de meses "},{"$f":"Presupuesto!G13","v":"Número Horas / Semanal"},{"$f":"Presupuesto!H13","v":"Valor Final"},{"$f":"Presupuesto!C29","v":"Valor mensual"},{"$f":"Presupuesto!D29","v":"Factor Salarial"},{"$f":"Presupuesto!E29","v":"Tipo de vinculación"},"mes","Horas",{"$f":"Presupuesto!H29","v":"Valor total"},{"$f":"Presupuesto!C50","v":"Rubro / Destino"},{"$f":"Presupuesto!D50","v":"Año de Vigencia"},{"$f":"Presupuesto!E50","v":"Descripción (Entidad- Rubro)"},{"$f":"Presupuesto!F50","v":0},{"$f":"Presupuesto!G50","v":"Finaciación Vicein $ SUE"},{"$f":"Presupuesto!H50","v":"$ Contrapartida Facultad UMNG"},{"$f":"Presupuesto!I50","v":"Totales"},null,null,12,"Programa","DIS","Administración de seguridad y Salud Ocupacional ","X",null,null,null,null,null,13,25,1,25,"ECO","Grupo de Estudios en Ciencias Económicas - CIE","COL0050294","C","https://scienti.colciencias.gov.co/gruplac/jsp/visualiza/visualizagr.jsp?nro=00000000003322","BB215:BB217",{"$f":"ROW()","v":30},{"$f":"MINA(IF(AQ30=$BA$4:$BA$401,$BD$4:$BD$401))","v":215},{"$f":"MAXA(IF(AQ30=$BA$4:$BA$401,$BD$4:$BD$401))","v":217},"ECO",null,null,"COL0013719","Biología y Epidemiología de hongos patógenos humanos.",{"$f":"COUNTIF(BA$4:BA30,BA30)","v":1},{"$f":"ROW()","v":30},1,null,null,null,null,null,null,null,null,null,null,null,null,null,null,27,"Ingeniería y Tecnología-Nanotecnología","Ingeniería y Tecnología","Nanotecnología",27,null,null,null,null,null,null,null,null,null,null,null,null,null,null,28,{"$f":"400+COUNTA(CO$26:CO30)","v":405},"Formación de Recurso Humano (FRH)","Tutoría de un proyecto de iniciación científica","Tutoría de un proyecto de iniciación científica de estudiantes de la UMNG, con temáticas asociadas a línea de investigación a la que pertenece el proyecto.","Informe final y acta del Comité de investigaciones con el aval del cierre del PIC",5,0]
[null,null,null,null,null,{"$f":"ROW()-30","v":1},{"$f":"Presupuesto!I14","v":0},{"$f":"Presupuesto!E14","v":0},{"$f":"Presupuesto!F14","v":12},{"$f":"Presupuesto!G14","v":25},{"$f":"Presupuesto!H14","v":0},{"$f":"Presupuesto!C30","v":0},{"$f":"Presupuesto!D30","v":0},{"$f":"Presupuesto!E30","v":0},{"$f":"Presupuesto!F30","v":1},{"$f":"Presupuesto!G30","v":0},{"$f":"Presupuesto!H30","v":0},{"$f":"Presupuesto!C51","v":"Personal"},{"$f":"Presupuesto!D51","v":1},{"$f":"Presupuesto!E51","v":"Horas de descarga academica UMNG"},{"$f":"Presupuesto!F51","v":0},{"$f":"Presupuesto!G51","v":0},{"$f":"Presupuesto!H51","v":0},{"$f":"Presupuesto!I51","v":0},null,null,13,"Programa","DIS","Contaduría Pública",18,null,null,null,null,null,17,26,1,26,"ECO","Grupo de Estudios Macroeconómicos","COL0027367","C","https://scienti.colciencias.gov.co/gruplac/jsp/visualiza/visualizagr.jsp?nro=00000000000855","BB257:BB259",{"$f":"ROW()","v":31},{"$f":"MINA(IF(AQ31=$BA$4:$BA$401,$BD$4:$BD$401))","v":257},{"$f":"MAXA(IF(AQ31=$BA$4:$BA$401,$BD$4:$BD$401))","v":259},"ECO",null,null,"COL0013719","Diversidad, Ecología y Bioprospección",{"$f":"COUNTIF(BA$4:BA31,BA31)","v":2},{"$f":"ROW()","v":31},1,null,null,null,null,null,null,null,null,null,null,null,null,null,null,28,"Ingeniería y Tecnología-Ingeniería Civil","Ingeniería y Tecnología","Ingeniería Civil",28,null,null,null,null,null,null,null,null,null,null,null,null,null,null,29,{"$f":"500+COUNTA(CO$31:CO31)","v":501},"Gestión de la Investigación (GI)","Presentación de nuevo proyecto en la misma temática financiado o cofinanciado por entidad académica o científica.","Nueva propuesta conducente al ingreso de recursos externos en efectivo a la UMNG, superiores a la contrapartida en especie comprometida por la UMNG. Debe estar sometida a alguna convocatoria externa arbitrada por pares y acompañarse de carta de aval de la UMNG, previa realización del procedimiento de calidad o normatividad vigente para proyectos externos.","Carta de aval de institucional y registro de sometimiento a la convocatoria externa o a la entidad financiadora o coordinadora de la convocatoria ",10,10]
[null,null,null,null,null,{"$f":"ROW()-30","v":2},{"$f":"Presupuesto!I15","v":"Contribuciones"},{"$f":"Presupuesto!E15","v":0},{"$f":"Presupuesto!F15","v":0},{"$f":"Presupuesto!G15","v":0},{"$f":"Presupuesto!H15","v":0},{"$f":"Presupuesto!C31","v":0},{"$f":"Presupuesto!D31","v":0},{"$f":"Presupuesto!E31","v":0},{"$f":"Presupuesto!F31","v":0},{"$f":"Presupuesto!G31","v":0},{"$f":"Presupuesto!H31","v":0},{"$f":"Presupuesto!C52","v":0},{"$f":"Presupuesto!D52","v":1},{"$f":"Presupuesto!E52","v":0},{"$f":"Presupuesto!F52","v":0},{"$f":"Presupuesto!G52","v":0},{"$f":"Presupuesto!H52","v":0},{"$f":"Presupuesto!I52","v":0},null,null,14,"Programa","DIS","Ingeniería Civil",19,null,null,null,null,null,40,27,1,27,"ECO","Grupo de estudios contemporáneos en contabilidad, gestión y organizaciones - GECCGO","COL0028767","B","https://scienti.colciencias.gov.co/gruplac/jsp/visualiza/visualizagr.jsp?nro=00000000001069","BB204:BB205",{"$f":"ROW()","v":32},{"$f":"MINA(IF(AQ32=$BA$4:$BA$401,$BD$4:$BD$401))","v":204},{"$f":"MAXA(IF(AQ32=$BA$4:$BA$401,$BD$4:$BD$401))","v":205},"ECO",null,null,"COL0013719","Fitopatología",{"$f":"COUNTIF(BA$4:BA32,BA32)","v":3},{"$f":"ROW()","v":32},1,null,null,null,null,null,null,null,null,null,null,null,null,null,null,29,"Ingeniería y Tecnología-Ingeniería de los Materiales","Ingeniería y Tecnología","Ingeniería de los Materiales",29,null,null,null,null,null,null,null,null,null,null,null,null,null,null,30,{"$f":"500+COUNTA(CO$31:CO32)","v":502},"Gestión de la Investigación (GI)","Presentación de nuevo proyecto en la misma temática, financiado por entidad académica o científica internacional y en cooperación internacional.",{"$f":"\"Nueva propuesta conducente a ingreso a la UMNG de recursos externos en efectivo, superiores a la contrapartida en especie comprometida por la UMNG por un valor mayor o igual a \"&$CU$33&\" SMMLV. Debe estar sometido a alguna convocatoria externa\"","v":"Nueva propuesta conducente a ingreso a la UMNG de recursos externos en efectivo, superiores a la contrapartida en especie comprometida por la UMNG por un valor mayor o igual a 200 SMMLV. Debe estar sometido a alguna convocatoria externa"},"Carta de aval de institucional y registro de sometimiento a la convocatoria externa o a la entidad financiadora o coordinadora de la convocatoria ",30,30]
[null,null,null,null,null,3,{"$f":"Presupuesto!I16","v":"CvLac:"},{"$f":"Presupuesto!E16","v":0},{"$f":"Presupuesto!F16","v":0},{"$f":"Presupuesto!G16","v":0},{"$f":"Presupuesto!H16","v":0},{"$f":"Presupuesto!C32","v":0},{"$f":"Presupuesto!D32","v":0},{"$f":"Presupuesto!E32","v":0},{"$f":"Presupuesto!F32","v":0},{"$f":"Presupuesto!G32","v":0},{"$f":"Presupuesto!H32","v":0},{"$f":"Presupuesto!C53","v":0},{"$f":"Presupuesto!D53","v":1},{"$f":"Presupuesto!E53","v":0},{"$f":"Presupuesto!F53","v":0},{"$f":"Presupuesto!G53","v":0},{"$f":"Presupuesto!H53","v":0},{"$f":"Presupuesto!I53","v":0},null,null,15,"Programa","DIS","Ingeniería Industrial",20,null,null,null,null,null,64,28,1,28,"ECO","GECS (Grupo de Estudios en Educación, Contabilidad y Sociedad)","COL0117722","R","https://scienti.colciencias.gov.co/gruplac/jsp/visualiza/visualizagr.jsp?nro=00000000011887","BB7:BB8",{"$f":"ROW()","v":33},{"$f":"MINA(IF(AQ33=$BA$4:$BA$401,$BD$4:$BD$401))","v":7},{"$f":"MAXA(IF(AQ33=$BA$4:$BA$401,$BD$4:$BD$401))","v":8},"ECO",null,null,"COL0013719","Genómica y bioinformática",{"$f":"COUNTIF(BA$4:BA33,BA33)","v":4},{"$f":"ROW()","v":33},1,null,null,null,null,null,null,null,null,null,null,null,null,null,null,30,"Ingeniería y Tecnología-Ingeniería Ambiental","Ingeniería y Tecnología","Ingeniería Ambiental",30,null,null,null,null,null,null,null,null,null,null,null,null,null,null,31,{"$f":"500+COUNTA(CO$31:CO33)","v":503},"Gestión de la Investigación (GI)","Presentación de nuevo proyecto en la misma temática financiado por entidad académica o científica internacional.",{"$f":"\"Nueva propuesta conducente a ingreso a la UMNG de recursos externos en efectivo, superiores a la contrapartida en especie comprometida por la  UMNG por un valor mayor o igual a \"&CU33&\" SMMLV. Debe estar sometido a alguna convocatoria externa internacional\"","v":"Nueva propuesta conducente a ingreso a la UMNG de recursos externos en efectivo, superiores a la contrapartida en especie comprometida por la  UMNG por un valor mayor o igual a 200 SMMLV. Debe estar sometido a alguna convocatoria externa internacional"},"Carta de aval de institucional y registro de sometimiento a la convocatoria externa o a la entidad financiadora o coordinadora de la convocatoria ",40,40,{"$f":"IF(CW1=\"IMP\",350,200)","v":200}]
[null,null,null,null,null,4,{"$f":"Presupuesto!I17","v":"Funcion :"},{"$f":"Presupuesto!E17","v":0},{"$f":"Presupuesto!F17","v":0},{"$f":"Presupuesto!G17","v":0},{"$f":"Presupuesto!H17","v":0},{"$f":"Presupuesto!C33","v":0},{"$f":"Presupuesto!D33","v":0},{"$f":"Presupuesto!E33","v":0},{"$f":"Presupuesto!F33","v":0},{"$f":"Presupuesto!G33","v":0},{"$f":"Presupuesto!H33","v":0},{"$f":"Presupuesto!C54","v":0},{"$f":"Presupuesto!D54","v":1},{"$f":"Presupuesto!E54","v":0},{"$f":"Presupuesto!F54","v":0},{"$f":"Presupuesto!G54","v":0},{"$f":"Presupuesto!H54","v":0},{"$f":"Presupuesto!I54","v":0},null,null,16,"Programa","DIS","Ingeniería Informática",21,null,null,null,null,null,21,29,1,29,"EES","Estudios Internacionales y Políticos","COL0066768","C","https://scienti.colciencias.gov.co/gruplac/jsp/visualiza/visualizagr.jsp?nro=00000000004270","BB143:BB148",{"$f":"ROW()","v":34},{"$f":"MINA(IF(AQ34=$BA$4:$BA$401,$BD$4:$BD$401))","v":143},{"$f":"MAXA(IF(AQ34=$BA$4:$BA$401,$BD$4:$BD$401))","v":148},"EES",null,null,"COL0013719","Susceptibilidad a Antifungícos",{"$f":"COUNTIF(BA$4:BA34,BA34)","v":5},{"$f":"ROW()","v":34},1,null,null,null,null,null,null,null,null,null,null,null,null,null,null,31,"Ingeniería y Tecnología-Biotecnología Industrial","Ingeniería y Tecnología","Biotecnología Industrial",31,null,null,null,null,null,null,null,null,null,null,null,null,null,null,32,{"$f":"500+COUNTA(CO$31:CO34)","v":504},"Gestión de la Investigación (GI)","Proyecto ejecutado con cooperación nacional.","Ejecución del proyecto, sometido a la presente convocatoria, en la modalidad de cooperación a través de convenio especial de cooperación o instrumento contractual equivalente, con instituciones de carácter nacional que cumplan con el criterio de evaluación de colaboración externa, enunciado en los presentes términos de referencia.","Convenio perfeccionado y acta de inicio y presupuestal firmadas.",5,5]
[null,null,null,null,null,5,{"$f":"Presupuesto!I18","v":0},{"$f":"Presupuesto!E18","v":"Investigador Externo"},{"$f":"Presupuesto!F18","v":12},{"$f":"Presupuesto!G18","v":0},{"$f":"Presupuesto!H18","v":0},{"$f":"Presupuesto!C34","v":0},{"$f":"Presupuesto!D34","v":0},{"$f":"Presupuesto!E34","v":0},{"$f":"Presupuesto!F34","v":0},{"$f":"Presupuesto!G34","v":0},{"$f":"Presupuesto!H34","v":0},{"$f":"Presupuesto!C55","v":0},{"$f":"Presupuesto!D55","v":1},{"$f":"Presupuesto!E55","v":0},{"$f":"Presupuesto!F55","v":0},{"$f":"Presupuesto!G55","v":0},{"$f":"Presupuesto!H55","v":0},{"$f":"Presupuesto!I55","v":0},null,null,16,"Programa","DIS","Relaciones Internacionales y Estudios Políticos","X",null,null,null,null,null,53,30,1,30,"EES","Sociedad, Estrategia y Seguridad","COL0066669","C","https://scienti.colciencias.gov.co/gruplac/jsp/visualiza/visualizagr.jsp?nro=00000000004263","BB24:BB28",{"$f":"ROW()","v":35},{"$f":"MINA(IF(AQ35=$BA$4:$BA$401,$BD$4:$BD$401))","v":24},{"$f":"MAXA(IF(AQ35=$BA$4:$BA$401,$BD$4:$BD$401))","v":28},"EES",null,null,"COL0065804","Desarrollos mecatrónicos",{"$f":"COUNTIF(BA$4:BA35,BA35)","v":1},{"$f":"ROW()","v":35},1,null,null,null,null,null,null,null,null,null,null,null,null,null,null,32,"Ingeniería y Tecnología-Ingeniería Médica","Ingeniería y Tecnología","Ingeniería Médica",32,null,null,null,null,null,null,null,null,null,null,null,null,null,null,33,{"$f":"500+COUNTA(CO$31:CO35)","v":505},"Gestión de la Investigación (GI)","Proyecto ejecutado con cooperación internacional","Ejecución del proyecto, sometido a la presente convocatoria, en la modalidad de cooperación a través de convenio especial de cooperación o instrumento\ncontractual equivalente, con instituciones de carácter internacional en la que mínimo una de ellas tiene domicilio en el exterior y que cumplan con el criterio\nde evaluación de colaboración externa, enunciado en los presentes términos de referencia.","Convenio perfeccionado y acta de inicio y presupuestal firmadas.",10,10]
[null,null,null,null,null,6,{"$f":"Presupuesto!I19","v":"Contribuciones"},{"$f":"Presupuesto!E19","v":0},{"$f":"Presupuesto!F19","v":0},{"$f":"Presupuesto!G19","v":0},{"$f":"Presupuesto!H19","v":0},{"$f":"Presupuesto!C35","v":0},{"$f":"Presupuesto!D35","v":0},{"$f":"Presupuesto!E35","v":0},{"$f":"Presupuesto!F35","v":0},{"$f":"Presupuesto!G35","v":0},{"$f":"Presupuesto!H35","v":0},{"$f":"Presupuesto!C56","v":0},{"$f":"Presupuesto!D56","v":1},{"$f":"Presupuesto!E56","v":0},{"$f":"Presupuesto!F56","v":0},{"$f":"Presupuesto!G56","v":0},{"$f":"Presupuesto!H56","v":0},{"$f":"Presupuesto!I56","v":0},null,null,17,"Programa","DIS","Ingeniería Informática","X",null,null,null,null,null,9,31,{"$f":"COUNTIF($AN$4:$AN$806,AL36)","v":1},31,"HUM","LIDERAZGO","COL0015722","A","https://scienti.colciencias.gov.co/gruplac/jsp/visualiza/visualizagr.jsp?nro=00000000000744","BB177:BB178",{"$f":"ROW()","v":36},{"$f":"MINA(IF(AQ36=$BA$4:$BA$401,$BD$4:$BD$401))","v":177},{"$f":"MAXA(IF(AQ36=$BA$4:$BA$401,$BD$4:$BD$401))","v":178},"HUM",null,null,"COL0065804","Energías Renovables",{"$f":"COUNTIF(BA$4:BA36,BA36)","v":2},{"$f":"ROW()","v":36},1,null,null,null,null,null,null,null,null,null,null,null,null,null,null,33,"Ciencias Agrícolas-Biotecnología Agrícola","Ciencias Agrícolas","Biotecnología Agrícola",33]
[null,null,null,null,null,7,{"$f":"Presupuesto!I20","v":"CvLac:"},{"$f":"Presupuesto!E20","v":0},{"$f":"Presupuesto!F20","v":0},{"$f":"Presupuesto!G20","v":0},{"$f":"Presupuesto!H20","v":0},{"$f":"Presupuesto!C36","v":0},{"$f":"Presupuesto!D36","v":0},{"$f":"Presupuesto!E36","v":0},{"$f":"Presupuesto!F36","v":0},{"$f":"Presupuesto!G36","v":0},{"$f":"Presupuesto!H36","v":0},{"$f":"Presupuesto!C57","v":0},{"$f":"Presupuesto!D57","v":1},{"$f":"Presupuesto!E57","v":0},{"$f":"Presupuesto!F57","v":0},{"$f":"Presupuesto!G57","v":0},{"$f":"Presupuesto!H57","v":0},{"$f":"Presupuesto!I57","v":0},null,null,17,"Programa","DIS","Especialización en Alta Gerencia",54,null,null,null,null,null,23,32,1,32,"HUM","HUMANITAS","COL0101099","B","https://scienti.colciencias.gov.co/gruplac/jsp/visualiza/visualizagr.jsp?nro=00000000010165","BB9:BB12",{"$f":"ROW()","v":37},{"$f":"MINA(IF(AQ37=$BA$4:$BA$401,$BD$4:$BD$401))","v":9},{"$f":"MAXA(IF(AQ37=$BA$4:$BA$401,$BD$4:$BD$401))","v":12},"HUM",null,null,"COL0065804","Materiales y Procesos de Manufactura",{"$f":"COUNTIF(BA$4:BA37,BA37)","v":3},{"$f":"ROW()","v":37},1,null,null,null,null,null,null,null,null,null,null,null,null,null,null,34,"Ciencias Agrícolas-Ciencias Veterinarias","Ciencias Agrícolas","Ciencias Veterinarias",34]
[null,null,null,null,null,8,{"$f":"Presupuesto!I21","v":"Funcion :"},{"$f":"Presupuesto!E21","v":0},{"$f":"Presupuesto!F21","v":0},{"$f":"Presupuesto!G21","v":0},{"$f":"Presupuesto!H21","v":0},{"$f":"Presupuesto!C37","v":0},{"$f":"Presupuesto!D37","v":0},{"$f":"Presupuesto!E37","v":0},{"$f":"Presupuesto!F37","v":0},{"$f":"Presupuesto!G37","v":0},{"$f":"Presupuesto!H37","v":0},{"$f":"Presupuesto!C58","v":0},{"$f":"Presupuesto!D58","v":1},{"$f":"Presupuesto!E58","v":0},{"$f":"Presupuesto!F58","v":0},{"$f":"Presupuesto!G58","v":0},{"$f":"Presupuesto!H58","v":0},{"$f":"Presupuesto!I58","v":0},null,null,18,"Programa","ECO","Administración de Empresas","X",null,null,null,null,null,38,33,1,33,"HUM","Cultura y Desarrollo Humano","COL0002896","R","https://scienti.colciencias.gov.co/gruplac/jsp/visualiza/visualizagr.jsp?nro=00000000000740","BB38:BB40",{"$f":"ROW()","v":38},{"$f":"MINA(IF(AQ38=$BA$4:$BA$401,$BD$4:$BD$401))","v":38},{"$f":"MAXA(IF(AQ38=$BA$4:$BA$401,$BD$4:$BD$401))","v":40},"HUM",null,null,"COL0002896","Bioética Educación y Cultura",{"$f":"COUNTIF(BA$4:BA38,BA38)","v":1},{"$f":"ROW()","v":38},1,null,null,null,null,null,null,null,null,null,null,null,null,null,null,35,"Ciencias Agrícolas-Ciencias Animales y Lechería","Ciencias Agrícolas","Ciencias Animales y Lechería",35]
[null,null,null,null,null,9,{"$f":"Presupuesto!I22","v":0},{"$f":"Presupuesto!E22","v":0},{"$f":"Presupuesto!F22","v":12},{"$f":"Presupuesto!G22","v":0},{"$f":"Presupuesto!H22","v":0},{"$f":"Presupuesto!C38","v":0},{"$f":"Presupuesto!D38","v":0},{"$f":"Presupuesto!E38","v":0},{"$f":"Presupuesto!F38","v":0},{"$f":"Presupuesto!G38","v":0},{"$f":"Presupuesto!H38","v":0},{"$f":"Presupuesto!C59","v":0},{"$f":"Presupuesto!D59","v":1},{"$f":"Presupuesto!E59","v":0},{"$f":"Presupuesto!F59","v":0},{"$f":"Presupuesto!G59","v":0},{"$f":"Presupuesto!H59","v":0},{"$f":"Presupuesto!I59","v":0},null,null,18,"Programa","ECO","Contaduría Pública","X",null,null,null,null,null,50,34,1,34,"HUM","BioethicsGroup","COL0031824","A","https://scienti.colciencias.gov.co/gruplac/jsp/visualiza/visualizagr.jsp?nro=00000000001353","BB81:BB84",{"$f":"ROW()","v":39},{"$f":"MINA(IF(AQ39=$BA$4:$BA$401,$BD$4:$BD$401))","v":81},{"$f":"MAXA(IF(AQ39=$BA$4:$BA$401,$BD$4:$BD$401))","v":84},"HUM",null,null,"COL0002896","Educación y Sociedad",{"$f":"COUNTIF(BA$4:BA39,BA39)","v":2},{"$f":"ROW()","v":39},1,null,null,null,null,null,null,null,null,null,null,null,null,null,null,36,"Ciencias Agrícolas-Otras Ciencias Agrícolas","Ciencias Agrícolas","Otras Ciencias Agrícolas",36]
[null,null,null,null,null,10,{"$f":"Presupuesto!I23","v":"Contribuciones"},{"$f":"Presupuesto!E23","v":0},{"$f":"Presupuesto!F23","v":0},{"$f":"Presupuesto!G23","v":0},{"$f":"Presupuesto!H23","v":0},{"$f":"Presupuesto!C39","v":0},{"$f":"Presupuesto!D39","v":0},{"$f":"Presupuesto!E39","v":0},{"$f":"Presupuesto!F39","v":0},{"$f":"Presupuesto!G39","v":0},{"$f":"Presupuesto!H39","v":0},{"$f":"Presupuesto!C60","v":0},{"$f":"Presupuesto!D60","v":1},{"$f":"Presupuesto!E60","v":0},{"$f":"Presupuesto!F60","v":0},{"$f":"Presupuesto!G60","v":0},{"$f":"Presupuesto!H60","v":0},{"$f":"Presupuesto!I60","v":0},null,null,18,"Programa","ECO","Economía","X",null,null,null,null,null,5,35,1,35,"ING","Grupo de Investigación en Multimedia -GIM-","COL0044859","C","https://scienti.colciencias.gov.co/gruplac/jsp/visualiza/visualizagr.jsp?nro=00000000002706","BB13:BB17",{"$f":"ROW()","v":40},{"$f":"MINA(IF(AQ40=$BA$4:$BA$401,$BD$4:$BD$401))","v":13},{"$f":"MAXA(IF(AQ40=$BA$4:$BA$401,$BD$4:$BD$401))","v":17},"ING",null,null,"COL0002896","Educación y cultura",{"$f":"COUNTIF(BA$4:BA40,BA40)","v":3},{"$f":"ROW()","v":40},1,null,null,null,null,null,null,null,null,null,null,null,null,null,null,37,"Ciencias Agrícolas-Agricultura, Silvicultura y Pesca","Ciencias Agrícolas","Agricultura, Silvicultura y Pesca",37]
[null,null,null,null,null,11," "," "," "," "," ",{"$f":"Presupuesto!C40","v":0},{"$f":"Presupuesto!D40","v":0},{"$f":"Presupuesto!E40","v":0},{"$f":"Presupuesto!F40","v":0},{"$f":"Presupuesto!G40","v":0},{"$f":"Presupuesto!H40","v":0},{"$f":"Presupuesto!C61","v":0},{"$f":"Presupuesto!D61","v":1},{"$f":"Presupuesto!E61","v":0},{"$f":"Presupuesto!F61","v":0},{"$f":"Presupuesto!G61","v":0},{"$f":"Presupuesto!H61","v":0},{"$f":"Presupuesto!I61","v":0},null,null,18,"Programa","ECO","Tecnología en Contabilidad y Tributaria","X",null,null,null,null,null,10,36,1,36,"ING","GEOTECNIA","COL0005439","C","https://scienti.colciencias.gov.co/gruplac/jsp/visualiza/visualizagr.jsp?nro=00000000000739","BB98:BB102",{"$f":"ROW()","v":41},{"$f":"MINA(IF(AQ41=$BA$4:$BA$401,$BD$4:$BD$401))","v":98},{"$f":"MAXA(IF(AQ41=$BA$4:$BA$401,$BD$4:$BD$401))","v":102},"ING",null,null,"COL0047566","Educación en ingeniería",{"$f":"COUNTIF(BA$4:BA41,BA41)","v":1},{"$f":"ROW()","v":41},1,null,null,null,null,null,null,null,null,null,null,null,null,null,null,38,"Humanidades-Arte","Humanidades","Arte",38]
[null,null,null,null,null,12," "," "," "," "," ",{"$f":"Presupuesto!C41","v":0},{"$f":"Presupuesto!D41","v":0},{"$f":"Presupuesto!E41","v":0},{"$f":"Presupuesto!F41","v":0},{"$f":"Presupuesto!G41","v":0},{"$f":"Presupuesto!H41","v":0},{"$f":"Presupuesto!C62","v":0},{"$f":"Presupuesto!D62","v":1},{"$f":"Presupuesto!E62","v":0},{"$f":"Presupuesto!F62","v":0},{"$f":"Presupuesto!G62","v":0},{"$f":"Presupuesto!H62","v":0},{"$f":"Presupuesto!I62","v":0},null,null,18,"Programa","ECO","Maestría en Gestión de Organizaciones ",24,null,null,null,null,null,14,37,1,37,"ING","TIGUM: Grupo de Investigacion en Telemedicina Universidad Militar","COL0052181","C","https://scienti.colciencias.gov.co/gruplac/jsp/visualiza/visualizagr.jsp?nro=00000000003508","BB18:BB23",{"$f":"ROW()","v":42},{"$f":"MINA(IF(AQ42=$BA$4:$BA$401,$BD$4:$BD$401))","v":18},{"$f":"MAXA(IF(AQ42=$BA$4:$BA$401,$BD$4:$BD$401))","v":23},"ING",null,null,"COL0047566","Geomatica",{"$f":"COUNTIF(BA$4:BA42,BA42)","v":2},{"$f":"ROW()","v":42},1,null,null,null,null,null,null,null,null,null,null,null,null,null,null,39,"Humanidades-Otras Humanidades","Humanidades","Otras Humanidades",39]
[null,null,null,null,null,13," "," "," "," "," ",{"$f":"Presupuesto!C42","v":0},{"$f":"Presupuesto!D42","v":0},{"$f":"Presupuesto!E42","v":0},{"$f":"Presupuesto!F42","v":0},{"$f":"Presupuesto!G42","v":0},{"$f":"Presupuesto!H42","v":0},{"$f":"Presupuesto!C63","v":0},{"$f":"Presupuesto!D63","v":1},{"$f":"Presupuesto!E63","v":0},{"$f":"Presupuesto!F63","v":0},{"$f":"Presupuesto!G63","v":0},{"$f":"Presupuesto!H63","v":0},{"$f":"Presupuesto!I63","v":0},null,null,19,"Programa","ECO","Especialización en Alta Gerencia",25,null,null,null,null,null,16,38,1,38,"ING","VOLTA - Grupo de Materiales, Corrosión, Degradación y Protección (GMCDP) ","COL0065804","A1","https://scienti.colciencias.gov.co/gruplac/jsp/visualiza/visualizagr.jsp?nro=00000000004193","BB35:BB37",{"$f":"ROW()","v":43},{"$f":"MINA(IF(AQ43=$BA$4:$BA$401,$BD$4:$BD$401))","v":35},{"$f":"MAXA(IF(AQ43=$BA$4:$BA$401,$BD$4:$BD$401))","v":37},"ING",null,null,"COL0047566","Gerencia de proyectos",{"$f":"COUNTIF(BA$4:BA43,BA43)","v":3},{"$f":"ROW()","v":43},1,null,null,null,null,null,null,null,null,null,null,null,null,null,null,40,"Humanidades-Otras historias","Humanidades","Otras historias",40]
[null,null,null,null,null,14," "," "," "," "," ",{"$f":"Presupuesto!C43","v":0},{"$f":"Presupuesto!D43","v":0},{"$f":"Presupuesto!E43","v":0},{"$f":"Presupuesto!F43","v":0},{"$f":"Presupuesto!G43","v":0},{"$f":"Presupuesto!H43","v":0},{"$f":"Presupuesto!C64","v":0},{"$f":"Presupuesto!D64","v":1},{"$f":"Presupuesto!E64","v":0},{"$f":"Presupuesto!F64","v":0},{"$f":"Presupuesto!G64","v":0},{"$f":"Presupuesto!H64","v":0},{"$f":"Presupuesto!I64","v":0},null,null,20,"Programa","ECO","Especialización en Administración Aeronáutica y Aeroespacial",26,null,null,null,null,null,27,39,1,39,"ING","PRODUCCION, INNOVACION Y TECNOLOGIA","COL0049999","C","https://scienti.colciencias.gov.co/gruplac/jsp/visualiza/visualizagr.jsp?nro=00000000003290","BB129:BB134",{"$f":"ROW()","v":44},{"$f":"MINA(IF(AQ44=$BA$4:$BA$401,$BD$4:$BD$401))","v":129},{"$f":"MAXA(IF(AQ44=$BA$4:$BA$401,$BD$4:$BD$401))","v":134},"ING",null,null,"COL0047566","Procesos estocásticos",{"$f":"COUNTIF(BA$4:BA44,BA44)","v":4},{"$f":"ROW()","v":44},1,null,null,null,null,null,null,null,null,null,null,null,null,null,null,41,"Humanidades-Historia y Arqueología","Humanidades","Historia y Arqueología",41]
[null,null,null,null,null,15," "," "," "," "," "," "," "," "," "," "," ",{"$f":"Presupuesto!C65","v":0},{"$f":"Presupuesto!D65","v":1},{"$f":"Presupuesto!E65","v":0},{"$f":"Presupuesto!F65","v":0},{"$f":"Presupuesto!G65","v":0},{"$f":"Presupuesto!H65","v":0},{"$f":"Presupuesto!I65","v":0},null,null,21,"Programa","ECO","Especialización en Control Interno",27,null,null,null,null,null,29,40,1,40,"ING","GIDAM","COL0116636","C","https://scienti.colciencias.gov.co/gruplac/jsp/visualiza/visualizagr.jsp?nro=00000000011773","BB50:BB54",{"$f":"ROW()","v":45},{"$f":"MINA(IF(AQ45=$BA$4:$BA$401,$BD$4:$BD$401))","v":50},{"$f":"MAXA(IF(AQ45=$BA$4:$BA$401,$BD$4:$BD$401))","v":54},"ING",null,null,"COL0047566","Productividad e impacto ambiental en proyectos de ingenieria civil (construcción sostenible)",{"$f":"COUNTIF(BA$4:BA45,BA45)","v":5},{"$f":"ROW()","v":45},1,null,null,null,null,null,null,null,null,null,null,null,null,null,null,42,"Humanidades-Idiomas y Literatura","Humanidades","Idiomas y Literatura",42]
[null,null,null,null,null,16," "," "," "," "," "," "," "," "," "," "," ",{"$f":"Presupuesto!C66","v":0},{"$f":"Presupuesto!D66","v":1},{"$f":"Presupuesto!E66","v":0},{"$f":"Presupuesto!F66","v":0},{"$f":"Presupuesto!G66","v":0},{"$f":"Presupuesto!H66","v":0},{"$f":"Presupuesto!I66","v":0},null,null,22,"Programa","ECO","Especialización en Gestión de Desarrollo Administrativo",28,null,null,null,null,null,31,41,1,41,"ING","DAVINCI","COL0036025","A","https://scienti.colciencias.gov.co/gruplac/jsp/visualiza/visualizagr.jsp?nro=00000000001843","BB211:BB214",{"$f":"ROW()","v":46},{"$f":"MINA(IF(AQ46=$BA$4:$BA$401,$BD$4:$BD$401))","v":211},{"$f":"MAXA(IF(AQ46=$BA$4:$BA$401,$BD$4:$BD$401))","v":214},"ING",null,null,"COL0050982","Expansión de células stem",{"$f":"COUNTIF(BA$4:BA46,BA46)","v":1},{"$f":"ROW()","v":46},1]
[null,null,null,null,null,17," "," "," "," "," "," "," "," "," "," "," ",{"$f":"Presupuesto!C67","v":0},{"$f":"Presupuesto!D67","v":1},{"$f":"Presupuesto!E67","v":0},{"$f":"Presupuesto!F67","v":0},{"$f":"Presupuesto!G67","v":0},{"$f":"Presupuesto!H67","v":0},{"$f":"Presupuesto!I67","v":0},null,null,23,"Programa","ECO","Especialización en Gerencia en Comercio Internacional",29,null,null,null,null,null,33,42,1,42,"ING","Estructuras y sísmica","COL0016999","C","https://scienti.colciencias.gov.co/gruplac/jsp/visualiza/visualizagr.jsp?nro=00000000000737","BB245:BB249",{"$f":"ROW()","v":47},{"$f":"MINA(IF(AQ47=$BA$4:$BA$401,$BD$4:$BD$401))","v":245},{"$f":"MAXA(IF(AQ47=$BA$4:$BA$401,$BD$4:$BD$401))","v":249},"ING",null,null,"COL0050982","Inmunoregulación",{"$f":"COUNTIF(BA$4:BA47,BA47)","v":2},{"$f":"ROW()","v":47},1]
[null,null,null,null,null,18," "," "," "," "," "," "," "," "," "," "," ",{"$f":"Presupuesto!C68","v":0},{"$f":"Presupuesto!D68","v":1},{"$f":"Presupuesto!E68","v":0},{"$f":"Presupuesto!F68","v":0},{"$f":"Presupuesto!G68","v":0},{"$f":"Presupuesto!H68","v":0},{"$f":"Presupuesto!I68","v":0},null,null,24,"Programa","ECO","Especialización en Finanzas y Administración Pública",30,null,null,null,null,null,34,43,1,43,"ING","INGENIERÍA, GEOMÁTICA Y EDUCACIÓN (IGE)","COL0047566","C","https://scienti.colciencias.gov.co/gruplac/jsp/visualiza/visualizagr.jsp?nro=00000000003044","BB41:BB45",{"$f":"ROW()","v":48},{"$f":"MINA(IF(AQ48=$BA$4:$BA$401,$BD$4:$BD$401))","v":41},{"$f":"MAXA(IF(AQ48=$BA$4:$BA$401,$BD$4:$BD$401))","v":45},"ING",null,null,"COL0050982","Investigación en Cáncer",{"$f":"COUNTIF(BA$4:BA48,BA48)","v":3},{"$f":"ROW()","v":48},1]
[null,null,null,null,null,19," "," "," "," "," "," "," "," "," "," "," ",{"$f":"Presupuesto!C69","v":0},{"$f":"Presupuesto!D69","v":1},{"$f":"Presupuesto!E69","v":0},{"$f":"Presupuesto!F69","v":0},{"$f":"Presupuesto!G69","v":0},{"$f":"Presupuesto!H69","v":0},{"$f":"Presupuesto!I69","v":0},null,null,25,"Programa","ECO","Especialización en Mercadeo de Servicios",31,null,null,null,null,null,37,44,1,44,"ING","ACCEDER","COL0036749","C","https://scienti.colciencias.gov.co/gruplac/jsp/visualiza/visualizagr.jsp?nro=00000000012996","BB5:BB6",{"$f":"ROW()","v":49},{"$f":"MINA(IF(AQ49=$BA$4:$BA$401,$BD$4:$BD$401))","v":5},{"$f":"MAXA(IF(AQ49=$BA$4:$BA$401,$BD$4:$BD$401))","v":6},"ING",null,null,"COL0050982","Mesénquima",{"$f":"COUNTIF(BA$4:BA49,BA49)","v":4},{"$f":"ROW()","v":49},1]
[null,null,null,null,null,20," "," "," "," "," "," "," "," "," "," "," ",{"$f":"Presupuesto!C70","v":0},{"$f":"Presupuesto!D70","v":1},{"$f":"Presupuesto!E70","v":0},{"$f":"Presupuesto!F70","v":0},{"$f":"Presupuesto!G70","v":0},{"$f":"Presupuesto!H70","v":0},{"$f":"Presupuesto!I70","v":0},null,null,26,"Programa","ECO","Especialización en Revisoría Fiscal y Auditoría Internacional",32,null,null,null,null,null,49,45,1,45,"ING","Agua y Energía - AyE","COL0026486","C","https://scienti.colciencias.gov.co/gruplac/jsp/visualiza/visualizagr.jsp?nro=00000000000767","BB135:BB139",{"$f":"ROW()","v":50},{"$f":"MINA(IF(AQ50=$BA$4:$BA$401,$BD$4:$BD$401))","v":135},{"$f":"MAXA(IF(AQ50=$BA$4:$BA$401,$BD$4:$BD$401))","v":139},"ING",null,null,"COL0116636","Desarrollo de software y hardware en sistemas embarcables",{"$f":"COUNTIF(BA$4:BA50,BA50)","v":1},{"$f":"ROW()","v":50},1]
[null,null,null,null,null,21," "," "," "," "," "," "," "," "," "," "," ",{"$f":"Presupuesto!C86","v":0},{"$f":"Presupuesto!D86","v":0},{"$f":"Presupuesto!E86","v":0},{"$f":"Presupuesto!F86","v":0},{"$f":"Presupuesto!G86","v":0},{"$f":"Presupuesto!H86","v":0},{"$f":"Presupuesto!I86","v":0},null,null,27,"Programa","EES","Relaciones Internacionales y Estudios Políticos",12,null,null,null,null,null,52,46,1,46,"ING","GISSIC: Grupo de Investigacion en Seguridad y Sistemas de Comunicaciones","COL0052163","A","https://scienti.colciencias.gov.co/gruplac/jsp/visualiza/visualizagr.jsp?nro=00000000003506","BB206:BB210",{"$f":"ROW()","v":51},{"$f":"MINA(IF(AQ51=$BA$4:$BA$401,$BD$4:$BD$401))","v":206},{"$f":"MAXA(IF(AQ51=$BA$4:$BA$401,$BD$4:$BD$401))","v":210},"ING",null,null,"COL0116636","Procesamiento digital de señales e imágenes",{"$f":"COUNTIF(BA$4:BA51,BA51)","v":2},{"$f":"ROW()","v":51},1]
[null,null,null,null,null,22," "," "," "," "," "," "," "," "," "," "," ",null,null,null,null,null,null,null,null,null,28,"Programa","EES","Administración de la Seguridad y Salud Ocupacional",13,null,null,null,null,null,54,47,1,47,"ING","GAV","COL0068762","A","https://scienti.colciencias.gov.co/gruplac/jsp/visualiza/visualizagr.jsp?nro=00000000004391","BB78:BB80",{"$f":"ROW()","v":52},{"$f":"MINA(IF(AQ52=$BA$4:$BA$401,$BD$4:$BD$401))","v":78},{"$f":"MAXA(IF(AQ52=$BA$4:$BA$401,$BD$4:$BD$401))","v":80},"ING",null,null,"COL0116636","Producción sostenible",{"$f":"COUNTIF(BA$4:BA52,BA52)","v":3},{"$f":"ROW()","v":52},1]
[null,null,null,null,null,null,null,null,null,null,null,null,null,null,null,null,null,null,null,null,null,null,null,null,null,null,31,"Programa","EES","Maestría en Relaciones y Negocios Internacionales",44,null,null,null,null,null,57,48,1,48,"ING","Energia alternativa, Centro Multidisciplinario de Investigación","COL0117052","C","https://scienti.colciencias.gov.co/gruplac/jsp/visualiza/visualizagr.jsp?nro=00000000011817","BB66:BB70",{"$f":"ROW()","v":53},{"$f":"MINA(IF(AQ53=$BA$4:$BA$401,$BD$4:$BD$401))","v":66},{"$f":"MAXA(IF(AQ53=$BA$4:$BA$401,$BD$4:$BD$401))","v":70},"ING",null,null,"COL0116636","Robótica móvil",{"$f":"COUNTIF(BA$4:BA53,BA53)","v":4},{"$f":"ROW()","v":53},1]
[null,null,null,null,null,null,null,null,null,null,null,null,"Recopilación deTextos",null,null,null,null,null,null,null,null,null,null,null,null,null,32,"Programa","EES","Especialización en Administración de la Seguridad",45,null,null,null,null,null,60,49,1,49,"ING","GI-iTEC - Grupo de Investigación e innovación Tecnológica en Electrónica y Comunicaciones","COL0143731","C","https://scienti.colciencias.gov.co/gruplac/jsp/visualiza/visualizagr.jsp?nro=00000000014576","BB160:BB162",{"$f":"ROW()","v":54},{"$f":"MINA(IF(AQ54=$BA$4:$BA$401,$BD$4:$BD$401))","v":160},{"$f":"MAXA(IF(AQ54=$BA$4:$BA$401,$BD$4:$BD$401))","v":162},"ING",null,null,"COL0116636","Sistemas de interacción humano-máquina con actuación convencional y no convencional",{"$f":"COUNTIF(BA$4:BA54,BA54)","v":5},{"$f":"ROW()","v":54},1]
[null,null,null,null,null,"No","Impacto","Categoria","Plazo"," "," ","No","No. Hoja","Hoja","Letra","No","Texto","Diferencia",null,null,null,null,null,null,null,null,33,"Programa","EES","Especialización en Alta Gerencia de la Seguridad y Defensa",46,null,null,null,null,null,66,50,1,50,"ING","LA TRAMOYA","COL0126777","C","https://scienti.colciencias.gov.co/gruplac/jsp/visualiza/visualizagr.jsp?nro=00000000012813","BB186:BB191",{"$f":"ROW()","v":55},{"$f":"MINA(IF(AQ55=$BA$4:$BA$401,$BD$4:$BD$401))","v":186},{"$f":"MAXA(IF(AQ55=$BA$4:$BA$401,$BD$4:$BD$401))","v":191},"ING",null,null,"COL0128047","Derecho de la responsabilidad y de seguros",{"$f":"COUNTIF(BA$4:BA55,BA55)","v":1},{"$f":"ROW()","v":55},1]
[null,null,null,null,null,{"$f":"ROW()-55","v":1},{"$f":"CLEAN(TRIM(Impactos!C8))","v":"Impacto principal"},{"$f":"Impactos!F8","v":"Paz, justicia e instituciones sólidas"},{"$f":"Impactos!#REF!","v":{"$error":"#REF!"}}," "," ",{"$f":"COUNTIF(N$56:N56,N56)","v":1},3,{"$f":"NbHoja(M56)","v":"Resumen"},"C",1,{"$f":"CLEAN(TRIM(INDIRECT($N56&\"!\"&$O56&(P56+R56),1)))","v":""},6,null,null,null,null,null,null,null,null,34,"Programa","HUM","Especialización en Docencia Universitaria",55,null,null,null,null,null,70,51,1,51,"ING","GREST","COL0151789","C","https://scienti.colciencias.gov.co/gruplac/jsp/visualiza/visualizagr.jsp?nro=00000000015386","BB179:BB185",{"$f":"ROW()","v":56},{"$f":"MINA(IF(AQ56=$BA$4:$BA$401,$BD$4:$BD$401))","v":179},{"$f":"MAXA(IF(AQ56=$BA$4:$BA$401,$BD$4:$BD$401))","v":185},"ING",null,null,"COL0128047","Derecho económico y de los negocios.",{"$f":"COUNTIF(BA$4:BA56,BA56)","v":2},{"$f":"ROW()","v":56},1]
[null,null,null,null,null,{"$f":"ROW()-55","v":2},{"$f":"CLEAN(TRIM(Impactos!E9))","v":"Lineas de apropiación social"},{"$f":"Impactos!D9","v":"Nacional"},{"$f":"Impactos!#REF!","v":{"$error":"#REF!"}}," "," ",{"$f":"COUNTIF(N$56:N57,N57)","v":2},3,{"$f":"NbHoja(M57)","v":"Resumen"},{"$f":"O56","v":"C"},{"$f":"P56+1","v":2},{"$f":"CLEAN(TRIM(INDIRECT($N57&\"!\"&$O57&(P57+R57),1)))","v":""},{"$f":"R56","v":6},null,null,null,null,null,null,null,null,34,"Programa","HUM","Maestría en Educación",55,null,null,null,null,null,1,52,1,52,"MED","CATCH","COL0049659","C","https://scienti.colciencias.gov.co/gruplac/jsp/visualiza/visualizagr.jsp?nro=00000000003253","BB260:BB261",{"$f":"ROW()","v":57},{"$f":"MINA(IF(AQ57=$BA$4:$BA$401,$BD$4:$BD$401))","v":260},{"$f":"MAXA(IF(AQ57=$BA$4:$BA$401,$BD$4:$BD$401))","v":261},"MED",null,null,"COL0067371","Desarrollo de diagnósticos físico matemáticos de la morfofisiología celular e histológica con base en geometría fractal y euclidiana.",{"$f":"COUNTIF(BA$4:BA57,BA57)","v":1},{"$f":"ROW()","v":57},1]
[null,null,null,null,null,3,{"$f":"CLEAN(TRIM(Impactos!C13))","v":"Estado actual del SRL"},{"$f":"Impactos!F13","v":0},{"$f":"Impactos!G13","v":0}," "," ",{"$f":"COUNTIF(N$56:N58,N58)","v":3},3,"Resumen",{"$f":"O57","v":"C"},{"$f":"P57+1","v":3},"",{"$f":"R57","v":6},null,null,null,null,null,null,null,null,35,"Programa","HUM","Doctorado de Bioética",55,null,null,null,null,null,6,53,1,53,"MED","BONE","COL0047762","C","https://scienti.colciencias.gov.co/gruplac/jsp/visualiza/visualizagr.jsp?nro=00000000003064","BB110:BB111",{"$f":"ROW()","v":58},{"$f":"MINA(IF(AQ58=$BA$4:$BA$401,$BD$4:$BD$401))","v":110},{"$f":"MAXA(IF(AQ58=$BA$4:$BA$401,$BD$4:$BD$401))","v":111},"MED",null,null,"COL0067371","Desarrollo de diagnósticos físico matemáticos de la morfofisiología y la dinámica cardiaca fetal y de adultos",{"$f":"COUNTIF(BA$4:BA58,BA58)","v":2},{"$f":"ROW()","v":58},1]
[null,null,null,null,null,4,{"$f":"CLEAN(TRIM(Impactos!C10))","v":"Tener en cuenta :Fomentar la participación ciudadana en la construcción de política pública en CTI, fortaleciendo las capacidades de la sociedad para tomar decisiones que contribuyan a la resolución de conflictos que involucran conocimientos científico-tecnológicos."},{"$f":"Impactos!F10","v":0},{"$f":"Impactos!G10","v":0}," "," ",{"$f":"COUNTIF(N$56:N59,N59)","v":4},3,"Resumen","C",4,"",6,null,null,null,null,null,null,null,null,36,"Programa","ING","Ingeniería Ambiental",4,null,null,null,null,null,7,54,1,54,"MED","Grupo de Psoriasis e Inmunodermatologia","COL0126015","C","https://scienti.colciencias.gov.co/gruplac/jsp/visualiza/visualizagr.jsp?nro=00000000012737","BB218:BB219",{"$f":"ROW()","v":59},{"$f":"MINA(IF(AQ59=$BA$4:$BA$401,$BD$4:$BD$401))","v":218},{"$f":"MAXA(IF(AQ59=$BA$4:$BA$401,$BD$4:$BD$401))","v":219},"MED",null,null,"COL0067371","Física y matemáticas aplicadas",{"$f":"COUNTIF(BA$4:BA59,BA59)","v":3},{"$f":"ROW()","v":59},1]
[null,null,null,null,null,5,{"$f":"CLEAN(TRIM(Impactos!C14))","v":"SRL Comprometido al finalizar el proyecto"},{"$f":"Impactos!F14","v":0},{"$f":"Impactos!G14","v":0}," "," ",{"$f":"COUNTIF(N$56:N60,N60)","v":5},3,"Resumen","C",5,"",6,null,null,null,null,null,null,null,null,37,"Programa","ING","Ingeniería Biomédica",5,null,null,null,null,null,15,55,1,55,"MED","Grupo para el estudio de enfermedades respiratorias en niños. Respira","COL0107771","C","https://scienti.colciencias.gov.co/gruplac/jsp/visualiza/visualizagr.jsp?nro=00000000010842","BB240:BB244",{"$f":"ROW()","v":60},{"$f":"MINA(IF(AQ60=$BA$4:$BA$401,$BD$4:$BD$401))","v":240},{"$f":"MAXA(IF(AQ60=$BA$4:$BA$401,$BD$4:$BD$401))","v":244},"MED",null,null,"COL0067371","Predicciones en infectología",{"$f":"COUNTIF(BA$4:BA60,BA60)","v":4},{"$f":"ROW()","v":60},1]
[null,null,null,null,null,6,{"$f":"CLEAN(TRIM(Impactos!C15))","v":""},{"$f":"Impactos!F15","v":0},{"$f":"Impactos!G15","v":0}," "," ",{"$f":"COUNTIF(N$56:N61,N61)","v":6},3,"Resumen","C",6,"",6,null,null,null,null,null,null,null,null,38,"Programa","ING","Ingeniería Civil",6,null,null,null,null,null,19,56,1,56,"MED","Salud y Comportamiento","COL0033239","NR","https://scienti.colciencias.gov.co/gruplac/jsp/visualiza/visualizagr.jsp?nro=00000000001536","BB278:BB280",{"$f":"ROW()","v":61},{"$f":"MINA(IF(AQ61=$BA$4:$BA$401,$BD$4:$BD$401))","v":278},{"$f":"MAXA(IF(AQ61=$BA$4:$BA$401,$BD$4:$BD$401))","v":280},"MED",null,null,"COL0067371","Predicciones físicas y matemáticas en economía",{"$f":"COUNTIF(BA$4:BA61,BA61)","v":5},{"$f":"ROW()","v":61},1]
[null,null,null,null,null,7,{"$f":"CLEAN(TRIM(Impactos!C18))","v":"Descripción de los Beneficiario(s) del impacto del proyecto"},{"$f":"Impactos!F18","v":0},{"$f":"Impactos!G18","v":0}," "," ",{"$f":"COUNTIF(N$56:N62,N62)","v":7},3,"Resumen","C",7,"",6,null,null,null,null,null,null,null,null,39,"Programa","ING","Ingeniería Industrial",7,null,null,null,null,null,24,57,1,57,"MED","GRUPO NEUROCIENCIAS HMC","COL0138698","B","https://scienti.colciencias.gov.co/gruplac/jsp/visualiza/visualizagr.jsp?nro=00000000014072","BB220:BB233",{"$f":"ROW()","v":62},{"$f":"MINA(IF(AQ62=$BA$4:$BA$401,$BD$4:$BD$401))","v":220},{"$f":"MAXA(IF(AQ62=$BA$4:$BA$401,$BD$4:$BD$401))","v":233},"MED",null,null,"COL0067371","Teorías físicas y Matemáticas aplicadas al desarrollo de diagnósticos de la dinámica y morfología cardíaca",{"$f":"COUNTIF(BA$4:BA62,BA62)","v":6},{"$f":"ROW()","v":62},1]
[null,null,null,null,null,8,{"$f":"CLEAN(TRIM(Impactos!C19))","v":""},{"$f":"Impactos!F19","v":0},{"$f":"Impactos!G19","v":0}," "," ",{"$f":"COUNTIF(N$56:N63,N63)","v":8},3,"Resumen","C",8,"",6,null,null,null,null,null,null,null,null,40,"Programa","ING","Ingeniería en Mecatrónica",8,null,null,null,null,null,25,58,1,58,"MED","Grupo de Investigacion en Dermatologia HMC","COL0116439","C","https://scienti.colciencias.gov.co/gruplac/jsp/visualiza/visualizagr.jsp?nro=00000000011753","BB167:BB171",{"$f":"ROW()","v":63},{"$f":"MINA(IF(AQ63=$BA$4:$BA$401,$BD$4:$BD$401))","v":167},{"$f":"MAXA(IF(AQ63=$BA$4:$BA$401,$BD$4:$BD$401))","v":171},"MED",null,null,"COL0067371","teorías físicas y Matemáticas aplicadas a la prediccion de epidemias",{"$f":"COUNTIF(BA$4:BA63,BA63)","v":7},{"$f":"ROW()","v":63},1]
[null,null,null,null,null,9,{"$f":"CLEAN(TRIM(Impactos!C20))","v":"Descripción del impacto esperado."},{"$f":"Impactos!F20","v":0},{"$f":"Impactos!G20","v":0}," "," ",{"$f":"COUNTIF(N$56:N64,N64)","v":9},3,"Resumen","C",9,"",6,null,null,null,null,null,null,null,null,41,"Programa","ING","Ingeniería en Multimedia",9,null,null,null,null,null,35,59,1,59,"MED","Células Stem Adultas","COL0050982","C","https://scienti.colciencias.gov.co/gruplac/jsp/visualiza/visualizagr.jsp?nro=00000000005735","BB46:BB49",{"$f":"ROW()","v":64},{"$f":"MINA(IF(AQ64=$BA$4:$BA$401,$BD$4:$BD$401))","v":46},{"$f":"MAXA(IF(AQ64=$BA$4:$BA$401,$BD$4:$BD$401))","v":49},"MED",null,null,"COL0067371","teorías físicas y Matemáticas aplicadas al de diagnósticos de Morfología y fisiología celular",{"$f":"COUNTIF(BA$4:BA64,BA64)","v":8},{"$f":"ROW()","v":64},1]
[null,null,null,null,null,10,{"$f":"CLEAN(TRIM(Impactos!C21))","v":""},{"$f":"Impactos!F21","v":0},{"$f":"Impactos!G21","v":0}," "," ",{"$f":"COUNTIF(N$56:N65,N65)","v":10},3,"Resumen",{"$f":"O64","v":"C"},10,"",{"$f":"R64","v":6},null,null,null,null,null,null,null,null,42,"Programa","ING","Ingenieria en Telecomunicaciones",10,null,null,null,null,null,36,60,1,60,"MED","Grupo de Salud Oral y Cirugia Maxilofacial","COL0129689","C","https://scienti.colciencias.gov.co/gruplac/jsp/visualiza/visualizagr.jsp?nro=00000000013172","BB89:BB91",{"$f":"ROW()","v":65},{"$f":"MINA(IF(AQ65=$BA$4:$BA$401,$BD$4:$BD$401))","v":89},{"$f":"MAXA(IF(AQ65=$BA$4:$BA$401,$BD$4:$BD$401))","v":91},"MED",null,null,"COL0067371","teorías físicas y Matemáticas aplicadas al desarrollo de predicciones en inmunología y biología molecular para el desarrollo de vacunas",{"$f":"COUNTIF(BA$4:BA65,BA65)","v":9},{"$f":"ROW()","v":65},1]
[null,null,null,null,null,11,{"$f":"CLEAN(TRIM(Impactos!C16))","v":"Evolución del impacto alcanzado como resultado de proyectos anteriores"},{"$f":"Impactos!F16","v":0},{"$f":"Impactos!G16","v":0}," "," ",{"$f":"COUNTIF(N$56:N66,N66)","v":11},3,"Resumen","C",11,"",6,null,null,null,null,null,null,null,null,43,"Programa","ING","Tecnología en Electrónica y Comunicaciones",11,null,null,null,null,null,45,61,1,61,"MED","Kokhlias.","COL0125134","C","https://scienti.colciencias.gov.co/gruplac/jsp/visualiza/visualizagr.jsp?nro=00000000012649","BB103:BB109",{"$f":"ROW()","v":66},{"$f":"MINA(IF(AQ66=$BA$4:$BA$401,$BD$4:$BD$401))","v":103},{"$f":"MAXA(IF(AQ66=$BA$4:$BA$401,$BD$4:$BD$401))","v":109},"MED",null,null,"COL0117052","Ambiental",{"$f":"COUNTIF(BA$4:BA66,BA66)","v":1},{"$f":"ROW()","v":66},1]
[null,null,null,null,null,12,{"$f":"CLEAN(TRIM(Impactos!C17))","v":""},{"$f":"Impactos!F17","v":0},{"$f":"Impactos!G17","v":0}," "," ",{"$f":"COUNTIF(N$56:N67,N67)","v":12},3,"Resumen","C",12,"",6,null,null,null,null,null,null,null,null,44,"Programa","ING","Maestría en Ingeniería Mecatrónica",34,null,null,null,null,null,46,62,1,62,"MED","Grupo de Rehabilitacion HOMIC-UMNG","COL0120281","NR","https://scienti.colciencias.gov.co/gruplac/jsp/visualiza/visualizagr.jsp?nro=00000000012152","BB281:BB286",{"$f":"ROW()","v":67},{"$f":"MINA(IF(AQ67=$BA$4:$BA$401,$BD$4:$BD$401))","v":281},{"$f":"MAXA(IF(AQ67=$BA$4:$BA$401,$BD$4:$BD$401))","v":286},"MED",null,null,"COL0117052","Arte y Tecnología",{"$f":"COUNTIF(BA$4:BA67,BA67)","v":2},{"$f":"ROW()","v":67},1]
[null,null,null,null,null,13,{"$f":"CLEAN(TRIM(Impactos!C22))","v":""},{"$f":"Impactos!F22","v":0},{"$f":"Impactos!G22","v":0}," "," ",{"$f":"COUNTIF(N$56:N68,N68)","v":13},3,"Resumen","C",13,"",6,null,null,null,null,null,null,null,null,45,"Programa","ING","Maestría en Ingeniería Civil",35,null,null,null,null,null,48,63,{"$f":"COUNTIF($AN$4:$AN$806,AL68)","v":1},63,"MED","Grupo de Investigacion en Urologia HMC","COL0116538","C","https://scienti.colciencias.gov.co/gruplac/jsp/visualiza/visualizagr.jsp?nro=00000000011763","BB234:BB239",{"$f":"ROW()","v":68},{"$f":"MINA(IF(AQ68=$BA$4:$BA$401,$BD$4:$BD$401))","v":234},{"$f":"MAXA(IF(AQ68=$BA$4:$BA$401,$BD$4:$BD$401))","v":239},"MED",null,null,"COL0117052","Energía",{"$f":"COUNTIF(BA$4:BA68,BA68)","v":3},{"$f":"ROW()","v":68},{"$f":"COUNTIF($AQ$3:$AQ$83,BA68)","v":1}]
[null,null,null,null,null,14,{"$f":"CLEAN(TRIM(Impactos!C23))","v":""},{"$f":"Impactos!F23","v":0},{"$f":"Impactos!G23","v":0}," "," ",{"$f":"COUNTIF(N$56:N69,N69)","v":14},3,"Resumen","C",14,"",6,null,null,null,null,null,null,null,null,46,"Programa","ING","Maestría en Logística Integral",36,null,null,null,null,null,51,64,1,64,"MED","Epidemiología molecular de enfermedades endocrinas","COL0045848","NR","https://scienti.colciencias.gov.co/gruplac/jsp/visualiza/visualizagr.jsp?nro=00000000002874","BB287:BB289",{"$f":"ROW()","v":69},{"$f":"MINA(IF(AQ69=$BA$4:$BA$401,$BD$4:$BD$401))","v":287},{"$f":"MAXA(IF(AQ69=$BA$4:$BA$401,$BD$4:$BD$401))","v":289},"MED",null,null,"COL0117052","Gestión e Innovación",{"$f":"COUNTIF(BA$4:BA69,BA69)","v":4},{"$f":"ROW()","v":69},1]
[null,null,null,null,null,15,{"$f":"CLEAN(TRIM(Impactos!C24))","v":""},{"$f":"Impactos!F24","v":0},{"$f":"Impactos!G24","v":0}," "," ",{"$f":"COUNTIF(N$56:N70,N70)","v":15},3,"Resumen","C",15,"-",6,null,null,null,null,null,null,null,null,47,"Programa","ING","Maestría en Gerencia de Proyectos",37,null,null,null,null,null,55,65,1,65,"MED","Insight","COL0067371","C","https://scienti.colciencias.gov.co/gruplac/jsp/visualiza/visualizagr.jsp?nro=00000000006698","BB57:BB65",{"$f":"ROW()","v":70},{"$f":"MINA(IF(AQ70=$BA$4:$BA$401,$BD$4:$BD$401))","v":57},{"$f":"MAXA(IF(AQ70=$BA$4:$BA$401,$BD$4:$BD$401))","v":65},"MED",null,null,"COL0117052","Materiales",{"$f":"COUNTIF(BA$4:BA70,BA70)","v":5},{"$f":"ROW()","v":70},1]
[null,null,null,null,null,16,{"$f":"CLEAN(TRIM(Impactos!C25))","v":""},{"$f":"Impactos!F25","v":0},{"$f":"Impactos!G25","v":0}," "," ",{"$f":"COUNTIF(N$56:N71,N71)","v":16},3,"Resumen","C",16,"",6,null,null,null,null,null,null,null,null,47,"Programa","ING","Maestría en Ingeniería Mecatrónica","x",null,null,null,null,null,59,66,1,66,"MED","EDUMECIS","COL0152463","R","https://scienti.colciencias.gov.co/gruplac/jsp/visualiza/visualizagr.jsp?nro=00000000015421",{"$f":"$AT$2&AV71&\":\"&$AT$2&AW71","v":"BB85:BB88"},{"$f":"ROW()","v":71},{"$f":"MINA(IF(AQ71=$BA$4:$BA$401,$BD$4:$BD$401))","v":85},{"$f":"MAXA(IF(AQ71=$BA$4:$BA$401,$BD$4:$BD$401))","v":88},{"$f":"AO71","v":"MED"},null,null,"COL0152319","Epidemiología Clínica",{"$f":"COUNTIF(BA$4:BA71,BA71)","v":1},{"$f":"ROW()","v":71},1]
[null,null,null,null,null,17,{"$f":"CLEAN(TRIM(Impactos!C26))","v":""},{"$f":"Impactos!F26","v":0},{"$f":"Impactos!G26","v":0}," "," ",{"$f":"COUNTIF(N$56:N72,N72)","v":17},3,"Resumen","C",17,"Planteamiento y justificación de la propuesta.",6,null,null,null,null,null,null,null,null,48,"Programa","ING","Especialización en Geomática",38,null,null,null,null,null,62,67,1,67,"MED","BioGenEtica & BioDerecho","COL0096032","C","https://scienti.colciencias.gov.co/gruplac/jsp/visualiza/visualizagr.jsp?nro=00000000009651","BB253:BB256",{"$f":"ROW()","v":72},{"$f":"MINA(IF(AQ72=$BA$4:$BA$401,$BD$4:$BD$401))","v":253},{"$f":"MAXA(IF(AQ72=$BA$4:$BA$401,$BD$4:$BD$401))","v":256},"MED",null,null,"COL0152319","Epidemiología General.",{"$f":"COUNTIF(BA$4:BA72,BA72)","v":2},{"$f":"ROW()","v":72},1]
[null,null,null,null,null,18,{"$f":"CLEAN(TRIM(Impactos!C27))","v":""},{"$f":"Impactos!F27","v":0},{"$f":"Impactos!G27","v":0}," "," ",{"$f":"COUNTIF(N$56:N73,N73)","v":18},3,"Resumen","C",18,"",6,null,null,null,null,null,null,null,null,49,"Programa","ING","Especialización en Gerencia de la Calidad",39,null,null,null,null,null,69,70,1,68,"MED","GAFRED","COL0149359","R","https://scienti.colciencias.gov.co/gruplac/jsp/visualiza/visualizagr.jsp?nro=00000000015141","BB250:BB252",{"$f":"ROW()","v":73},{"$f":"MINA(IF(AQ73=$BA$4:$BA$401,$BD$4:$BD$401))","v":250},{"$f":"MAXA(IF(AQ73=$BA$4:$BA$401,$BD$4:$BD$401))","v":252},"MED",null,null,"COL0152319","Formación del Recurso Humano en Salud en Epidemiología y Salud Colectiva",{"$f":"COUNTIF(BA$4:BA73,BA73)","v":3},{"$f":"ROW()","v":73},1]
[null,null,null,null,null,19,{"$f":"CLEAN(TRIM(Impactos!C28))","v":""},{"$f":"Impactos!F28","v":0},{"$f":"Impactos!G28","v":0}," "," ",{"$f":"COUNTIF(N$56:N74,N74)","v":19},3,"Resumen","C",19,"",6,null,null,null,null,null,null,null,null,50,"Programa","ING","Especialización en Gerencia en Logística Integral",40,null,null,null,null,null,71,71,1,69,"MED","Grupo de inmunología Clínica Aplicada (GICA)","COL0152472","C","https://scienti.colciencias.gov.co/gruplac/jsp/visualiza/visualizagr.jsp?nro=00000000015414","BB127:BB128",{"$f":"ROW()","v":74},{"$f":"MINA(IF(AQ74=$BA$4:$BA$401,$BD$4:$BD$401))","v":127},{"$f":"MAXA(IF(AQ74=$BA$4:$BA$401,$BD$4:$BD$401))","v":128},"MED",null,null,"COL0152319","Las Tecnologías de la Información y de la comunicación en Epidemiología y Salud Colectiva",{"$f":"COUNTIF(BA$4:BA74,BA74)","v":4},{"$f":"ROW()","v":74},1]
[null,null,null,null,null,20,{"$f":"CLEAN(TRIM(Impactos!C29))","v":""},{"$f":"Impactos!F29","v":0},{"$f":"Impactos!G29","v":0}," "," ",{"$f":"COUNTIF(N$56:N75,N75)","v":20},3,"Resumen","C",20,"",6,null,null,null,null,null,null,null,null,51,"Programa","ING","Especialización en Gerencia Integral de Proyectos",41,null,null,null,null,null,70,70,1,70,"MED","Epidemiología y Salud Colectiva ","COL0152319","C","https://scienti.colciencias.gov.co/gruplac/jsp/visualiza/visualizagr.jsp?nro=00000000015438",{"$f":"$AT$2&AV75&\":\"&$AT$2&AW75","v":"BB71:BB75"},{"$f":"ROW()","v":75},{"$f":"MINA(IF(AQ75=$BA$4:$BA$401,$BD$4:$BD$401))","v":71},{"$f":"MAXA(IF(AQ75=$BA$4:$BA$401,$BD$4:$BD$401))","v":75},{"$f":"AO75","v":"MED"},null,null,"COL0152319","Medicina tradicional complementaria.",{"$f":"COUNTIF(BA$4:BA75,BA75)","v":5},{"$f":"ROW()","v":75},1]
[null,null,null,null,null,null,null,null,null,null,null,{"$f":"COUNTIF(N$56:N76,N76)","v":21},3,"Resumen","C",21,"",6,null,null,null,null,null,null,null,null,52,"Programa","ING","Especialización en Ingeniería de Pavimentos",42,null,null,null,null,null,73,73,1,73,"MED","Grupo de investigaciones sobre agentes radiológicos, biológicos y químicos","COL0191078","NR","https://scienti.colciencias.gov.co/gruplac/jsp/visualiza/visualizagr.jsp?nro=00000000019309","BB295:BB296",{"$f":"ROW()","v":76},{"$f":"MINA(IF(AQ76=$BA$4:$BA$401,$BD$4:$BD$401))","v":295},{"$f":"MAXA(IF(AQ76=$BA$4:$BA$401,$BD$4:$BD$401))","v":296},"MED",null,null,"COL0028687","Fitoplasmas",{"$f":"COUNTIF(BA$4:BA76,BA76)","v":1},{"$f":"ROW()","v":76},1]
[null,null,null,null,null,null,null,null,null,null,null,{"$f":"COUNTIF(N$56:N77,N77)","v":22},3,"Resumen","C",22,"",6,null,null,null,null,null,null,null,null,53,"Programa","ING","Especialización en Planeación Ambiental y Manejo Integral de los Recursos Naturales",43,null,null,null,null,null,null,null,null,null,null,null,null,null,null,null,null,null,null,null,null,null,"COL0028687","Virus",{"$f":"COUNTIF(BA$4:BA77,BA77)","v":2},{"$f":"ROW()","v":77},1]
[null,null,"No","Nombre Inst","Grupo","Clasif","Investig","Presupuesto","Alcance","Link",null,{"$f":"COUNTIF(N$56:N78,N78)","v":23},3,"Resumen","C",23,"",6,null,null,null,null,null,null,null,null,53,"Programa","ING","Doctorado en Ciencias Aplicadas",43,null,null,null,null,null,null,null,null,null,null,null,null,null,null,null,null,null,null,null,null,null,"COL0068762","Ingeniería Sostenible",{"$f":"COUNTIF(BA$4:BA78,BA78)","v":1},{"$f":"ROW()","v":78},1]
[null,null,1,{"$f":"General!C32","v":0},{"$f":"General!C33","v":0},{"$f":"General!I33","v":"NA"},{"$f":"General!C34","v":0},{"$f":"General!I34","v":0},{"$f":"General!G35","v":0},{"$f":"General!C36","v":0},null,{"$f":"COUNTIF(N$56:N79,N79)","v":24},3,"Resumen",{"$f":"O78","v":"C"},{"$f":"P78+1","v":24},"",{"$f":"R78","v":6},null,null,null,null,null,null,null,null,54,"Programa","MED","Medicina",14,null,null,null,null,null,null,null,null,null,null,"Grupo","No",null,null,null,null,null,null,null,null,null,"COL0068762","Inteligencia artificial y procesamiento de señales",{"$f":"COUNTIF(BA$4:BA79,BA79)","v":2},{"$f":"ROW()","v":79},1]
[null,null,2,{"$f":"General!C38","v":0},{"$f":"General!C39","v":0},{"$f":"General!I39","v":0},{"$f":"General!C40","v":0},{"$f":"General!I40","v":0},{"$f":"General!G41","v":0},{"$f":"General!C42","v":0},null,{"$f":"COUNTIF(N$56:N80,N80)","v":25},3,"Resumen","C",25,"",6,null,null,null,null,null,null,null,null,55,"Programa","MED","Tecnología en Atención Prehospitalaria",15,null,null,null,null,null,null,null,null,null,null,"ACCEDER",44,null,null,null,null,null,null,null,null,null,"COL0068762","Tecnologías de la información y las comunicaciones (TIC)",{"$f":"COUNTIF(BA$4:BA80,BA80)","v":3},{"$f":"ROW()","v":80},1]
[null,null,3,{"$f":"General!C44","v":0},{"$f":"General!C45","v":0},{"$f":"General!I45","v":0},{"$f":"General!C46","v":0},{"$f":"General!I46","v":0},{"$f":"General!G47","v":0},{"$f":"General!C48","v":0},null,{"$f":"COUNTIF(N$56:N81,N81)","v":26},3,"Resumen","C",26,"",6,null,null,null,null,null,null,null,null,1,"Tipo Proyecto","PAZ","Investigación en Paz y Pos-acuerdo. SUE",{"$f":"AC81","v":"PAZ"},null,null,null,null,null,null,null,null,null,null,"Agrobiología de especies vegetales promisorias de clima frío",10,null,null,null,null,null,null,null,null,null,"COL0031824","Bioética Global y Complejidad",{"$f":"COUNTIF(BA$4:BA81,BA81)","v":1},{"$f":"ROW()","v":81},1]
[null,null,null,null,null,null,null,null,null,null,null,{"$f":"COUNTIF(N$56:N82,N82)","v":27},3,"Resumen",{"$f":"O81","v":"C"},{"$f":"P81+1","v":27},"",{"$f":"R81","v":6},null,null,null,null,null,null,null,null,null,"Tipo Proyecto","INV","Investigación Científica","INV",null,null,null,null,null,null,null,null,null,null,"BioethicsGroup",34,null,null,null,null,null,null,null,null,null,"COL0031824","Bioética Médica y salud pública",{"$f":"COUNTIF(BA$4:BA82,BA82)","v":2},{"$f":"ROW()","v":82},1]
[null,null,null,null,null,null,null,null,null,null,null,{"$f":"COUNTIF(N$56:N83,N83)","v":28},3,"Resumen","C",28,"",6,null,null,null,null,null,null,null,null,2,"Tipo Proyecto","IMP","Alto Impacto","IMP",null,null,null,null,null,null,null,null,null,null,"BioGenEtica & BioDerecho",67,null,null,null,null,null,null,null,null,null,"COL0031824","Bioética, Biopolítica y Biojurídica",{"$f":"COUNTIF(BA$4:BA83,BA83)","v":3},{"$f":"ROW()","v":83},1]
[null,null,null,null,null,null,null,null,null,null,null,{"$f":"COUNTIF(N$56:N84,N84)","v":29},3,"Resumen","C",29,"",6,null,null,null,null,null,null,null,null,1,"Función","Investigador Principal","Investigador Principal o lider del proyecto","IP",null,null,null,null,null,null,null,null,null,null,"BONE",53,null,null,null,null,null,null,null,null,null,"COL0031824","Bioética, educación y cultura",{"$f":"COUNTIF(BA$4:BA84,BA84)","v":4},{"$f":"ROW()","v":84},1]
[null,null,null,null,null,null,null,null,null,null,null,{"$f":"COUNTIF(N$56:N85,N85)","v":1},4,"Estado_del_arte",{"$f":"O84","v":"C"},{"$f":"P84+1","v":30},"Este es un titulo Inicial.",-23,null,null,null,null,null,null,null,null,2,"Función","Coinvestigador","Investigador que apoya al lider del proyecto","CO",null,null,null,null,null,null,null,null,null,null,"CATCH",52,null,null,null,null,null,null,null,null,null,"COL0152463","Currículo y evaluación",{"$f":"COUNTIF(BA$4:BA85,BA85)","v":1},{"$f":"ROW()","v":85},1]
[null,null,null,null,null,null,null,null,null,null,null,{"$f":"COUNTIF(N$56:N86,N86)","v":2},4,"Estado_del_arte",{"$f":"O85","v":"C"},{"$f":"P85+1","v":31},"",-23,null,null,null,null,null,null,null,null,3,"Función","Investigador UNAL","Investigador de la Universidad Nacional de Colombia","UNAL ",null,null,null,null,null,null,null,null,null,null,"Células Stem Adultas",59,null,null,null,null,null,null,null,null,null,"COL0152463","Docencia y pedagogía",{"$f":"COUNTIF(BA$4:BA86,BA86)","v":2},{"$f":"ROW()","v":86},1]
[null,null,null,null,null,null,null,null,null,null,null,{"$f":"COUNTIF(N$56:N87,N87)","v":3},4,"Estado_del_arte","C",32,"",-23,null,null,null,null,null,null,null,null,4,"Función","Investigador UDFJC","Investigador de la Universidad Distrita Francisco José de Caldas","UDFJC",null,null,null,null,null,null,null,null,null,null,"Cultura y Desarrollo Humano",33,null,null,null,null,null,null,null,null,null,"COL0152463","Investigación clinica",{"$f":"COUNTIF(BA$4:BA87,BA87)","v":3},{"$f":"ROW()","v":87},1]
[null,null,null,null,null,null,null,null,null,null,null,{"$f":"COUNTIF(N$56:N88,N88)","v":4},4,"Estado_del_arte","C",33,"",-23,null,null,null,null,null,null,null,null,5,"Función","Investigador UPN","Investigador de la Universidad Pedagógica Nacional","UPN",null,null,null,null,null,null,null,null,null,null,"DAVINCI",41,null,null,null,null,null,null,null,null,null,"COL0152463","Proyección Social y contexto de formación en Salud Pública",{"$f":"COUNTIF(BA$4:BA88,BA88)","v":4},{"$f":"ROW()","v":88},1]
[null,null,null,null,null,null,null,null,null,null,null,{"$f":"COUNTIF(N$56:N89,N89)","v":5},4,"Estado_del_arte","C",34,"",-23,null,null,null,null,null,null,null,null,6,"Función","Investigador CMC","Investigador de la Universidad Colegio Mayor de Cundinamarca","CMC",null,null,null,null,null,null,null,null,null,null,"Desarrollo e integración de estrategias alternativas para la protección de cultivos de importancia económica, con énfasis en control biológico.",4,null,null,null,null,null,null,null,null,null,"COL0129689","Cirugía Ortognática y Distracción Osteogénica",{"$f":"COUNTIF(BA$4:BA89,BA89)","v":1},{"$f":"ROW()","v":89},1]
[null,null,null,null,null,null,null,null,null,null,null,{"$f":"COUNTIF(N$56:N90,N90)","v":6},4,"Estado_del_arte","C",35,"",-23,null,null,null,null,null,null,null,null,7,"Función","Auxiliar de Investigación.","Estudiante apoya el proyecto","EST",null,null,null,null,null,null,null,null,null,null,"DIVERSITAS",71,null,null,null,null,null,null,null,null,null,"COL0129689","Implantología y Cirugía Reconstructiva",{"$f":"COUNTIF(BA$4:BA90,BA90)","v":2},{"$f":"ROW()","v":90},1]
[null,null,null,null,null,null,null,null,null,null,null,{"$f":"COUNTIF(N$56:N91,N91)","v":7},4,"Estado_del_arte","C",36,"",-23,null,null,null,null,null,null,null,null,8,"Función","Asesor","Asesor externo no vinculado a ninguna entidad","AR",null,null,null,null,null,null,null,null,null,null,"ECMU (Evaluacion en Competencias y Matemáticas Universitarias)",13,null,null,null,null,null,null,null,null,null,"COL0129689","Infecciones, Patología y Cirugía Dentoalveolar",{"$f":"COUNTIF(BA$4:BA91,BA91)","v":3},{"$f":"ROW()","v":91},1]
[null,null,null,null,null,null,null,null,null,null,null,{"$f":"COUNTIF(N$56:N92,N92)","v":8},4,"Estado_del_arte","C",37,"",-23,null,null,null,null,null,null,null,null,1,"Vinculo","Doc. Carrera TC","Docente de Carrera Tiempo Completo","DTC",null,null,null,null,null,null,null,null,null,null,"EDUMECIS",66,null,null,null,null,null,null,null,null,null,"COL0067504","Gestión Tecnológica",{"$f":"COUNTIF(BA$4:BA92,BA92)","v":1},{"$f":"ROW()","v":92},1]
[null,null,null,null,null,null,null,null,null,null,null,{"$f":"COUNTIF(N$56:N93,N93)","v":9},4,"Estado_del_arte","C",38,"",-23,null,null,null,null,null,null,null,null,2,"Vinculo","Doc. Carrera MT","Docente de Carrera Medio Tiempo","DMT",null,null,null,null,null,null,null,null,null,null,"Energia alternativa, Centro Multidisciplinario de Investigación",48,null,null,null,null,null,null,null,null,null,"COL0067504","Gestión del conocimiento",{"$f":"COUNTIF(BA$4:BA93,BA93)","v":2},{"$f":"ROW()","v":93},1]
[null,null,null,null,null,null,null,null,null,null,null,{"$f":"COUNTIF(N$56:N94,N94)","v":10},4,"Estado_del_arte",{"$f":"O93","v":"C"},{"$f":"P93+1","v":39},"",-23,null,null,null,null,null,null,null,null,3,"Vinculo","Doc. Ocasional","Docente de Ocasional","OCA",null,null,null,null,null,null,null,null,null,null,"Epidemiología molecular de enfermedades endocrinas",64,null,null,null,null,null,null,null,null,null,"COL0067504","Los Estilos de enseñanza y Aprendizaje",{"$f":"COUNTIF(BA$4:BA94,BA94)","v":3},{"$f":"ROW()","v":94},1]
[null,null,null,null,null,null,null,null,null,null,null,{"$f":"COUNTIF(N$56:N95,N95)","v":11},4,"Estado_del_arte","C",40,"",-23,null,null,null,null,null,null,null,null,4,"Vinculo","OPS - Prestación Servicios","Asistente de Investigacion contratado OPS","OPS",null,null,null,null,null,null,null,null,null,null,"Epidemiología y Salud Colectiva ",70,null,null,null,null,null,null,null,null,null,"COL0067504","Mercadeo Cuántico",{"$f":"COUNTIF(BA$4:BA95,BA95)","v":4},{"$f":"ROW()","v":95},1]
[null,null,null,null,null,null,null,null,null,null,null,{"$f":"COUNTIF(N$56:N96,N96)","v":12},4,"Estado_del_arte","C",41,"",-23,null,null,null,null,null,null,null,null,5,"Vinculo","Estudiante","Estudiante activo de pregrado o postgrado","EST",null,null,null,null,null,null,null,null,null,null,"Estadística, Control y Optimización",7,null,null,null,null,null,null,null,null,null,"COL0067504","Mineria Web",{"$f":"COUNTIF(BA$4:BA96,BA96)","v":5},{"$f":"ROW()","v":96},1]
[null,null,null,null,null,null,null,null,null,null,null,{"$f":"COUNTIF(N$56:N97,N97)","v":13},4,"Estado_del_arte","C",42,"",-23,null,null,null,null,null,null,null,null,6,"Vinculo","Externo a la UMNG","Docentes Investigadores externos sin vinculo lavoral al U.","EXT",null,null,null,null,null,null,null,null,null,null,"Estructuras y sísmica",42,null,null,null,null,null,null,null,null,null,"COL0067504","Salud Pública, Bioética e Ingeniería",{"$f":"COUNTIF(BA$4:BA97,BA97)","v":6},{"$f":"ROW()","v":97},1]
[null,null,null,null,null,null,null,null,null,null,null,{"$f":"COUNTIF(N$56:N98,N98)","v":14},4,"Estado_del_arte","C",43,"",-23,null,null,null,null,null,null,null,null,1,"NBC",11,"Programas y certificaciones básicas",11,null,null,null,null,null,null,null,null,null,null,"Estudios Internacionales y Políticos",29,null,null,null,null,null,null,null,null,null,"COL0005439","Modelación numérica",{"$f":"COUNTIF(BA$4:BA98,BA98)","v":1},{"$f":"ROW()","v":98},1]
[null,null,null,null,null,null,null,null,null,null,null,{"$f":"COUNTIF(N$56:N99,N99)","v":15},4,"Estado_del_arte","C",44,"",-23,null,null,null,null,null,null,null,null,2,"NBC",21,"Alfabetización y aritmética elemental",21,null,null,null,null,null,null,null,null,null,null,"Fitopatologia molecular",6,null,null,null,null,null,null,null,null,null,"COL0005439","Ordenación del territorio",{"$f":"COUNTIF(BA$4:BA99,BA99)","v":2},{"$f":"ROW()","v":99},1]
[null,null,null,null,null,null,null,null,null,null,null,{"$f":"COUNTIF(N$56:N100,N100)","v":16},4,"Estado_del_arte","C",45,"",-23,null,null,null,null,null,null,null,null,3,"NBC",31,"Competencias personales y desarrollo",31,null,null,null,null,null,null,null,null,null,null,"Fitoplasmas y Virus",1,null,null,null,null,null,null,null,null,null,"COL0005439","Pavimentos",{"$f":"COUNTIF(BA$4:BA100,BA100)","v":3},{"$f":"ROW()","v":100},1]
[null,null,null,null,null,null,null,null,null,null,null,{"$f":"COUNTIF(N$56:N101,N101)","v":17},4,"Estado_del_arte","C",46,"",-23,null,null,null,null,null,null,null,null,4,"NBC",111,"Ciencias de la educación",111,null,null,null,null,null,null,null,null,null,null,"GAFRED",68,null,null,null,null,null,null,null,null,null,"COL0005439","Suelos",{"$f":"COUNTIF(BA$4:BA101,BA101)","v":4},{"$f":"ROW()","v":101},1]
[null,null,null,null,null,null,null,null,null,null,null,{"$f":"COUNTIF(N$56:N102,N102)","v":18},4,"Estado_del_arte","C",47,"",-23,null,null,null,null,null,null,null,null,5,"NBC",112,"Formación para docentes de educación pre-primaría",112,null,null,null,null,null,null,null,null,null,null,"GAV",47,null,null,null,null,null,null,null,null,null,"COL0005439","Transportes",{"$f":"COUNTIF(BA$4:BA102,BA102)","v":5},{"$f":"ROW()","v":102},1]
[null,null,null,null,null,null,null,null,null,null,null,{"$f":"COUNTIF(N$56:N103,N103)","v":19},4,"Estado_del_arte","C",48,"",-23,null,null,null,null,null,null,null,null,6,"NBC",113,"Formación para docentes sin asignatura de especialización",113,null,null,null,null,null,null,null,null,null,null,"GECS (Grupo de Investigación en Contabilidad y Sociedad)",28,null,null,null,null,null,null,null,null,null,"COL0125134","Ayudas Auditivas Implantables",{"$f":"COUNTIF(BA$4:BA103,BA103)","v":1},{"$f":"ROW()","v":103},1]
[null,null,null,null,null,null,null,null,null,null,null,{"$f":"COUNTIF(N$56:N104,N104)","v":20},4,"Estado_del_arte","C",49,"",-23,null,null,null,null,null,null,null,null,7,"NBC",114,"Formación para docentes con asignatura de especialización",114,null,null,null,null,null,null,null,null,null,null,"GEOTECNIA",36,null,null,null,null,null,null,null,null,null,"COL0125134","Base de cráneo",{"$f":"COUNTIF(BA$4:BA104,BA104)","v":2},{"$f":"ROW()","v":104},1]
[null,null,null,null,null,null,null,null,null,null,null,{"$f":"COUNTIF(N$56:N105,N105)","v":21},4,"Estado_del_arte","C",50,"",-23,null,null,null,null,null,null,null,null,8,"NBC",211,"Técnicas audiovisuales y producción para medios de comunicación",211,null,null,null,null,null,null,null,null,null,null,"GIDAM",40,null,null,null,null,null,null,null,null,null,"COL0125134","Cáncer Laríngeo",{"$f":"COUNTIF(BA$4:BA105,BA105)","v":3},{"$f":"ROW()","v":105},1]
[null,null,null,null,null,null,null,null,null,null,null,{"$f":"COUNTIF(N$56:N106,N106)","v":22},4,"Estado_del_arte","C",51,"",-23,null,null,null,null,null,null,null,null,9,"NBC",212,"Diseño industrial, de modas e interiores",212,null,null,null,null,null,null,null,null,null,null,"GI-iTEC - Grupo de Investigación e innovación Tecnológica en Electrónica y Comunicaciones",49,null,null,null,null,null,null,null,null,null,"COL0125134","Enfermedad de Meniere",{"$f":"COUNTIF(BA$4:BA106,BA106)","v":4},{"$f":"ROW()","v":106},1]
[null,null,null,null,null,null,null,null,null,null,null,{"$f":"COUNTIF(N$56:N107,N107)","v":23},4,"Estado_del_arte","C",52,"",-23,null,null,null,null,null,null,null,null,10,"NBC",213,"Bellas artes",213,null,null,null,null,null,null,null,null,null,null,"GISSIC: Grupo de Investigacion en Seguridad y Sistemas de Comunicaciones",46,null,null,null,null,null,null,null,null,null,"COL0125134","Oído Crónico",{"$f":"COUNTIF(BA$4:BA107,BA107)","v":5},{"$f":"ROW()","v":107},1]
[null,null,null,null,null,null,null,null,null,null,null,{"$f":"COUNTIF(N$56:N108,N108)","v":24},4,"Estado_del_arte","C",53,"",-23,null,null,null,null,null,null,null,null,11,"NBC",214,"Artesanías",214,null,null,null,null,null,null,null,null,null,null,"GREST",51,null,null,null,null,null,null,null,null,null,"COL0125134","Rinosinusitis Crónica",{"$f":"COUNTIF(BA$4:BA108,BA108)","v":6},{"$f":"ROW()","v":108},1]
[null,null,null,null,null,null,null,null,null,null,null,{"$f":"COUNTIF(N$56:N109,N109)","v":25},4,"Estado_del_arte","C",54,"",-23,null,null,null,null,null,null,null,null,12,"NBC",215,"Música y artes escénicas",215,null,null,null,null,null,null,null,null,null,null,"Grupo de Derecho Privado",16,null,null,null,null,null,null,null,null,null,"COL0125134","Trauma de guerra en Otorrinolaringología",{"$f":"COUNTIF(BA$4:BA109,BA109)","v":7},{"$f":"ROW()","v":109},1]
[null,null,null,null,null,null,null,null,null,null,null,{"$f":"COUNTIF(N$56:N110,N110)","v":26},4,"Estado_del_arte","C",55,"",-23,null,null,null,null,null,null,null,null,13,"NBC",221,"Religión y Teología",221,null,null,null,null,null,null,null,null,null,null,"Grupo de derecho público ",15,null,null,null,null,null,null,null,null,null,"COL0047762","Desarrollo de modelos de ingeniería de tejido humano",{"$f":"COUNTIF(BA$4:BA110,BA110)","v":1},{"$f":"ROW()","v":110},1]
[null,null,null,null,null,null,null,null,null,null,null,{"$f":"COUNTIF(N$56:N111,N111)","v":27},4,"Estado_del_arte","C",56,"",-23,null,null,null,null,null,null,null,null,14,"NBC",222,"Historia y arqueología",222,null,null,null,null,null,null,null,null,null,null,"Grupo de Docencia e Investigación en Física",14,null,null,null,null,null,null,null,null,null,"COL0047762","Metabolismo Oseo - Bone Metabolism",{"$f":"COUNTIF(BA$4:BA111,BA111)","v":2},{"$f":"ROW()","v":111},1]
[null,null,null,null,null,null,null,null,null,null,null,{"$f":"COUNTIF(N$56:N112,N112)","v":28},4,"Estado_del_arte","C",57,"",-23,null,null,null,null,null,null,null,null,15,"NBC",223,"Filosofía y ética",223,null,null,null,null,null,null,null,null,null,null,"Grupo de Ecotoxicología, Evolución, Medio ambiente y conservación (E = mc2)",8,null,null,null,null,null,null,null,null,null,"COL0028918","Constitución, Derecho Público y Estado",{"$f":"COUNTIF(BA$4:BA112,BA112)","v":1},{"$f":"ROW()","v":112},1]
[null,null,null,null,null,null,null,null,null,null,null,{"$f":"COUNTIF(N$56:N113,N113)","v":29},4,"Estado_del_arte","C",58,"",-23,null,null,null,null,null,null,null,null,16,"NBC",231,"Adquisición del lenguaje",231,null,null,null,null,null,null,null,null,null,null,"Grupo de estudios contemporáneos en contabilidad, gestión y organizaciones - GECCGO",27,null,null,null,null,null,null,null,null,null,"COL0028918","Derecho Historia y Filosofía",{"$f":"COUNTIF(BA$4:BA113,BA113)","v":2},{"$f":"ROW()","v":113},1]
[null,null,null,null,null,null,null,null,null,null,null,{"$f":"COUNTIF(N$56:N114,N114)","v":30},4,"Estado_del_arte","C",59,"",-23,null,null,null,null,null,null,null,null,17,"NBC",232,"Literatura y lingüística",232,null,null,null,null,null,null,null,null,null,null,"Grupo de Estudios en Ciencias Económicas - CIE",25,null,null,null,null,null,null,null,null,null,"COL0028918","Derecho Internacional, Derechos Humanos, Derecho Internacional Humanitario",{"$f":"COUNTIF(BA$4:BA114,BA114)","v":3},{"$f":"ROW()","v":114},1]
[null,null,null,null,null,null,null,null,null,null,null,{"$f":"COUNTIF(N$56:N115,N115)","v":31},4,"Estado_del_arte","C",60,"",-23,null,null,null,null,null,null,null,null,18,"NBC",311,"Economía",311,null,null,null,null,null,null,null,null,null,null,"Grupo de Estudios Macroeconómicos",26,null,null,null,null,null,null,null,null,null,"COL0028918","Derecho Penal y Justicia Militar",{"$f":"COUNTIF(BA$4:BA115,BA115)","v":4},{"$f":"ROW()","v":115},1]
[null,null,null,null,null,null,null,null,null,null,null,{"$f":"COUNTIF(N$56:N116,N116)","v":32},4,"Estado_del_arte","C",61,"",-23,null,null,null,null,null,null,null,null,19,"NBC",312,"Ciencias políticas y educación cívica",312,null,null,null,null,null,null,null,null,null,null,"Grupo de inmunología Clínica Aplicada (GICA)",69,null,null,null,null,null,null,null,null,null,"COL0028918","Derecho, Educación y Sociedad",{"$f":"COUNTIF(BA$4:BA116,BA116)","v":5},{"$f":"ROW()","v":116},1]
[null,null,null,null,null,null,null,null,null,null,null,{"$f":"COUNTIF(N$56:N117,N117)","v":1},6,"Metodología",{"$f":"O116","v":"C"},{"$f":"P116+1","v":62},"",-55,null,null,null,null,null,null,null,null,20,"NBC",313,"Psicología",313,null,null,null,null,null,null,null,null,null,null,"Grupo de investigación en Biodiversidad y ecología de abejas silvestres",2,null,null,null,null,null,null,null,null,null,"COL0110329","Didáctica de las matemáticas universitarias",{"$f":"COUNTIF(BA$4:BA117,BA117)","v":1},{"$f":"ROW()","v":117},1]
[null,null,null,null,null,null,null,null,null,null,null,{"$f":"COUNTIF(N$56:N118,N118)","v":2},6,"Metodología",{"$f":"O117","v":"C"},{"$f":"P117+1","v":63},"",-55,null,null,null,null,null,null,null,null,21,"NBC",314,"Sociología y estudios culturales",314,null,null,null,null,null,null,null,null,null,null,"Grupo de Investigacion en Dermatologia HMC",58,null,null,null,null,null,null,null,null,null,"COL0110329","Diseño curricular y evaluación en matemáticas universitarias",{"$f":"COUNTIF(BA$4:BA118,BA118)","v":2},{"$f":"ROW()","v":118},1]
[null,null,null,null,null,null,null,null,null,null,null,{"$f":"COUNTIF(N$56:N119,N119)","v":3},6,"Metodología","C",64,"",-55,null,null,null,null,null,null,null,null,22,"NBC",321,"Periodismo y reportajes",321,null,null,null,null,null,null,null,null,null,null,"Grupo de Investigación en Hidrobiología Aplicada (HIDROBIA)",9,null,null,null,null,null,null,null,null,null,"COL0110329","Herramientas virtuales y enseñanza de las matemáticas universitarias",{"$f":"COUNTIF(BA$4:BA119,BA119)","v":3},{"$f":"ROW()","v":119},1]
[null,null,null,null,null,null,null,null,null,null,null,{"$f":"COUNTIF(N$56:N120,N120)","v":4},6,"Metodología","C",65,"",-55,null,null,null,null,null,null,null,null,23,"NBC",322,"Bibliotecología, información y archivología",322,null,null,null,null,null,null,null,null,null,null,"Grupo de Investigación en Multimedia -GIM-",35,null,null,null,null,null,null,null,null,null,"COL0086179","Búsqueda de marcadores genéticos y estudio de genes ligados a la resistencia a Fusarium en clavel.",{"$f":"COUNTIF(BA$4:BA120,BA120)","v":1},{"$f":"ROW()","v":120},1]
[null,null,null,null,null,null,null,null,null,null,null,{"$f":"COUNTIF(N$56:N121,N121)","v":5},6,{"$f":"NbHoja(M121)","v":"Metodología"},"C",66,{"$f":"CLEAN(TRIM(INDIRECT($N121&\"!\"&$O121&(P121+R121),1)))","v":""},-55,null,null,null,null,null,null,null,null,24,"NBC",411,"Contabilidad e impuestos",411,null,null,null,null,null,null,null,null,null,null,"Grupo de investigación en química ambiental y tecnologías limpias - QUATELI",12,null,null,null,null,null,null,null,null,null,"COL0086179","Producción de nuevas variedades de clavel resistentes a parasitos vasculares.",{"$f":"COUNTIF(BA$4:BA121,BA121)","v":2},{"$f":"ROW()","v":121},1]
[null,null,null,null,null,null,null,null,null,null,null,{"$f":"COUNTIF(N$56:N122,N122)","v":6},6,"Metodología","C",67,"",-55,null,null,null,null,null,null,null,null,25,"NBC",412,"Gestión financiera, administración bancaria y seguros",412,null,null,null,null,null,null,null,null,null,null,"Grupo de Investigacion en Urologia HMC",63,null,null,null,null,null,null,null,null,null,"COL0138796","Docencia y Didactica de la Física Universitaria",{"$f":"COUNTIF(BA$4:BA122,BA122)","v":1},{"$f":"ROW()","v":122},1]
[null,null,null,null,null,null,null,null,null,null,null,{"$f":"COUNTIF(N$56:N123,N123)","v":7},6,"Metodología","C",68,"",-55,null,null,null,null,null,null,null,null,26,"NBC",413,"Gestión y administración",413,null,null,null,null,null,null,null,null,null,null,"Grupo de investigaciones sobre agentes radiológicos, biológicos y químicos",73,null,null,null,null,null,null,null,null,null,"COL0138796","Física Atómica, Molecular y de Agregados",{"$f":"COUNTIF(BA$4:BA123,BA123)","v":2},{"$f":"ROW()","v":123},1]
[null,null,null,null,null,null,null,null,null,null,null,{"$f":"COUNTIF(N$56:N124,N124)","v":8},6,"Metodología","C",69,"",-55,null,null,null,null,null,null,null,null,27,"NBC",414,"Mercadotecnia y publicidad",414,null,null,null,null,null,null,null,null,null,null,"Grupo de Micología y Fitopatologia ",5,null,null,null,null,null,null,null,null,null,"COL0138796","Magnetismo y Aplicaciones",{"$f":"COUNTIF(BA$4:BA124,BA124)","v":3},{"$f":"ROW()","v":124},1]
[null,null,null,null,null,null,null,null,null,null,null,{"$f":"COUNTIF(N$56:N125,N125)","v":9},6,"Metodología","C",70,"",-55,null,null,null,null,null,null,null,null,28,"NBC",415,"Secretariado y trabajo de oficina",415,null,null,null,null,null,null,null,null,null,null,"Grupo de Psoriasis e Inmunodermatologia",54,null,null,null,null,null,null,null,null,null,"COL0138796","Nanotecnología y Sensórica",{"$f":"COUNTIF(BA$4:BA125,BA125)","v":4},{"$f":"ROW()","v":125},1]
[null,null,null,null,null,null,null,null,null,null,null,{"$f":"COUNTIF(N$56:N126,N126)","v":10},6,"Metodología","C",71,"",-55,null,null,null,null,null,null,null,null,29,"NBC",416,"Ventas al por mayor y al por menor",416,null,null,null,null,null,null,null,null,null,null,"Grupo de Rehabilitacion HOMIC-UMNG",62,null,null,null,null,null,null,null,null,null,"COL0138796","Uso de radiación ionizante para la producción de imágenes médicas",{"$f":"COUNTIF(BA$4:BA126,BA126)","v":5},{"$f":"ROW()","v":126},1]
[null,null,null,null,null,null,null,null,null,null,null,{"$f":"COUNTIF(N$56:N127,N127)","v":11},6,"Metodología","C",72,"",-55,null,null,null,null,null,null,null,null,30,"NBC",417,"Competencias laborales",417,null,null,null,null,null,null,null,null,null,null,"Grupo de Salud Oral y Cirugia Maxilofacial",60,null,null,null,null,null,null,null,null,null,"COL0152472","Autoinmunidad y Artritis Reumatoide",{"$f":"COUNTIF(BA$4:BA127,BA127)","v":1},{"$f":"ROW()","v":127},1]
[null,null,null,null,null,null,null,null,null,null,null,{"$f":"COUNTIF(N$56:N128,N128)","v":12},6,"Metodología",{"$f":"O127","v":"C"},{"$f":"P127+1","v":73},"",-55,null,null,null,null,null,null,null,null,31,"NBC",421,"Derecho",421,null,null,null,null,null,null,null,null,null,null,"Grupo Integrado de Investigaciones en Química y Biología (InQuiBio)",11,null,null,null,null,null,null,null,null,null,"COL0152472","Espondiloartritis Axial y Artritis Psoriásica",{"$f":"COUNTIF(BA$4:BA128,BA128)","v":2},{"$f":"ROW()","v":128},1]
[null,null,null,null,null,null,null,null,null,null,null,{"$f":"COUNTIF(N$56:N129,N129)","v":13},6,"Metodología","C",74,"",-55,null,null,null,null,null,null,null,null,32,"NBC",511,"Biología",511,null,null,null,null,null,null,null,null,null,null,"GRUPO NEUROCIENCIAS HMC",57,null,null,null,null,null,null,null,null,null,"COL0049999","Calidad y Gestión en la Educación",{"$f":"COUNTIF(BA$4:BA129,BA129)","v":1},{"$f":"ROW()","v":129},1]
[null,null,null,null,null,null,null,null,null,null,null,{"$f":"COUNTIF(N$56:N130,N130)","v":14},6,"Metodología","C",75,"",-55,null,null,null,null,null,null,null,null,33,"NBC",512,"Bioquímica",512,null,null,null,null,null,null,null,null,null,null,"Grupo para el estudio de enfermedades respiratorias en nińos. Respira",55,null,null,null,null,null,null,null,null,null,"COL0049999","Gestión y Proyectos",{"$f":"COUNTIF(BA$4:BA130,BA130)","v":2},{"$f":"ROW()","v":130},1]
[null,null,null,null,null,null,null,null,null,null,null,{"$f":"COUNTIF(N$56:N131,N131)","v":15},6,"Metodología","C",76,"",-55,null,null,null,null,null,null,null,null,34,"NBC",521,"Ciencias del medio ambiente",521,null,null,null,null,null,null,null,null,null,null,"HUMANITAS",32,null,null,null,null,null,null,null,null,null,"COL0049999","Innovación",{"$f":"COUNTIF(BA$4:BA131,BA131)","v":3},{"$f":"ROW()","v":131},1]
[null,null,null,null,null,null,null,null,null,null,null,{"$f":"COUNTIF(N$56:N132,N132)","v":16},6,"Metodología","C",77,"",-55,null,null,null,null,null,null,null,null,35,"NBC",522,"Medio ambiente natural y vida silvestre",522,null,null,null,null,null,null,null,null,null,null,"INAMPE",24,null,null,null,null,null,null,null,null,null,"COL0049999","Productividad",{"$f":"COUNTIF(BA$4:BA132,BA132)","v":4},{"$f":"ROW()","v":132},{"$f":"COUNTIF($AQ$3:$AQ$83,BA132)","v":1}]
[null,null,null,null,null,null,null,null,null,null,null,{"$f":"COUNTIF(N$56:N133,N133)","v":17},6,"Metodología","C",78,"",-55,null,null,null,null,null,null,null,null,36,"NBC",531,"Química",531,null,null,null,null,null,null,null,null,null,null,"INCONDIS",19,null,null,null,null,null,null,null,null,null,"COL0049999","Sostenibilidad y Medio Ambiente",{"$f":"COUNTIF(BA$4:BA133,BA133)","v":5},{"$f":"ROW()","v":133},1]
[null,null,null,null,null,null,null,null,null,null,null,{"$f":"COUNTIF(N$56:N134,N134)","v":18},6,"Metodología","C",79,"",-55,null,null,null,null,null,null,null,null,37,"NBC",532,"Ciencias de la tierra",532,null,null,null,null,null,null,null,null,null,null,"INGENIERÍA, GEOMÁTICA Y EDUCACIÓN (IGE)",43,null,null,null,null,null,null,null,null,null,"COL0049999","Tecnología",{"$f":"COUNTIF(BA$4:BA134,BA134)","v":6},{"$f":"ROW()","v":134},1]
[null,null,null,null,null,null,null,null,null,null,null,{"$f":"COUNTIF(N$56:N135,N135)","v":19},6,"Metodología","C",80,"",-55,null,null,null,null,null,null,null,null,38,"NBC",533,"Física",533,null,null,null,null,null,null,null,null,null,null,"Insight",65,null,null,null,null,null,null,null,null,null,"COL0026486","Biorefinerias",{"$f":"COUNTIF(BA$4:BA135,BA135)","v":1},{"$f":"ROW()","v":135},1]
[null,null,null,null,null,null,null,null,null,null,null,{"$f":"COUNTIF(N$56:N136,N136)","v":20},6,"Metodología","C",81,"",-55,null,null,null,null,null,null,null,null,39,"NBC",541,"Matemáticas",541,null,null,null,null,null,null,null,null,null,null,"Kokhlias.",61,null,null,null,null,null,null,null,null,null,"COL0026486","Ciudades Sostenibles",{"$f":"COUNTIF(BA$4:BA136,BA136)","v":2},{"$f":"ROW()","v":136},1]
[null,null,null,null,null,null,null,null,null,null,null,{"$f":"COUNTIF(N$56:N137,N137)","v":21},6,"Metodología","C",82,"",-55,null,null,null,null,null,null,null,null,40,"NBC",542,"Estadística",542,null,null,null,null,null,null,null,null,null,null,"LA TRAMOYA",50,null,null,null,null,null,null,null,null,null,"COL0026486","Ingeniería Offshore.",{"$f":"COUNTIF(BA$4:BA137,BA137)","v":3},{"$f":"ROW()","v":137},1]
[null,null,null,null,null,null,null,null,null,null,null,{"$f":"COUNTIF(N$56:N138,N138)","v":22},6,"Metodología","C",83,"",-55,null,null,null,null,null,null,null,null,41,"NBC",611,"Uso de computadores",611,null,null,null,null,null,null,null,null,null,null,"LIDERAZGO",31,null,null,null,null,null,null,null,null,null,"COL0026486","Ingeniería de recursos hídricos y energéticos.",{"$f":"COUNTIF(BA$4:BA138,BA138)","v":4},{"$f":"ROW()","v":138},1]
[null,null,null,null,null,null,null,null,null,null,null,{"$f":"COUNTIF(N$56:N139,N139)","v":23},6,"Metodología","C",84,"",-55,null,null,null,null,null,null,null,null,42,"NBC",612,"Diseño y administración de redes y bases de datos",612,null,null,null,null,null,null,null,null,null,null,"MATRIX",3,null,null,null,null,null,null,null,null,null,"COL0026486","Procesos físico-químicos y de oxidación avanzada",{"$f":"COUNTIF(BA$4:BA139,BA139)","v":5},{"$f":"ROW()","v":139},1]
[null,null,null,null,null,null,null,null,null,null,null,{"$f":"COUNTIF(N$56:N140,N140)","v":24},6,"Metodología","C",85,"",-55,null,null,null,null,null,null,null,null,43,"NBC",613,"Desarrollo y análisis de software y aplicaciones",613,null,null,null,null,null,null,null,null,null,null,"Medios, Mediaciones y Procesos en Educación a Distancia",21,null,null,null,null,null,null,null,null,null,"COL0066229","(EO) Estructuras Organizacionales",{"$f":"COUNTIF(BA$4:BA140,BA140)","v":1},{"$f":"ROW()","v":140},1]
[null,null,null,null,null,null,null,null,null,null,null,{"$f":"COUNTIF(N$56:N141,N141)","v":25},6,"Metodología","C",86,"",-55,null,null,null,null,null,null,null,null,44,"NBC",711,"Ingeniería y procesos químicos",711,null,null,null,null,null,null,null,null,null,null,"Modelos de simulación ICDIST",23,null,null,null,null,null,null,null,null,null,"COL0066229","(PI) Procesos de Integración",{"$f":"COUNTIF(BA$4:BA141,BA141)","v":2},{"$f":"ROW()","v":141},1]
[null,null,null,null,null,null,null,null,null,null,null,{"$f":"COUNTIF(N$56:N142,N142)","v":26},6,"Metodología","C",87,"",-55,null,null,null,null,null,null,null,null,45,"NBC",712,"Tecnología de protección del medio ambiente",712,null,null,null,null,null,null,null,null,null,null,"Nanofab",72,null,null,null,null,null,null,null,null,null,"COL0066229","(R) Regionalización",{"$f":"COUNTIF(BA$4:BA142,BA142)","v":3},{"$f":"ROW()","v":142},1]
[null,null,null,null,null,null,null,null,null,null,null,{"$f":"COUNTIF(N$56:N143,N143)","v":27},6,"Metodología","C",88,"",-55,null,null,null,null,null,null,null,null,46,"NBC",713,"Electricidad y energía",713,null,null,null,null,null,null,null,null,null,null,"PIREO \"Procesos de Integración, Regionalización y Estructuras Organizacionales\"",22,null,null,null,null,null,null,null,null,null,"COL0066768","Derecho de las relaciones internacionales",{"$f":"COUNTIF(BA$4:BA143,BA143)","v":1},{"$f":"ROW()","v":143},1]
[null,null,null,null,null,null,null,null,null,null,null,{"$f":"COUNTIF(N$56:N144,N144)","v":28},6,"Metodología","C",89,"",-55,null,null,null,null,null,null,null,null,47,"NBC",714,"Electrónica y automatización",714,null,null,null,null,null,null,null,null,null,null,"PRODUCCION, INNOVACION Y TECNOLOGIA",39,null,null,null,null,null,null,null,null,null,"COL0066768","Economia y negocios internacionales",{"$f":"COUNTIF(BA$4:BA144,BA144)","v":2},{"$f":"ROW()","v":144},1]
[null,null,null,null,null,null,null,null,null,null,null,{"$f":"COUNTIF(N$56:N145,N145)","v":29},6,"Metodología","C",90,"",-55,null,null,null,null,null,null,null,null,48,"NBC",715,"Mecánica y profesiones afines a la metalistería",715,null,null,null,null,null,null,null,null,null,null,"PROPPIO: Procesos organizacionales, programaticos y políticos para la promoción del desarrollo",18,null,null,null,null,null,null,null,null,null,"COL0066768","Estudios políticos",{"$f":"COUNTIF(BA$4:BA145,BA145)","v":3},{"$f":"ROW()","v":145},1]
[null,null,null,null,null,null,null,null,null,null,null,{"$f":"COUNTIF(N$56:N146,N146)","v":30},6,"Metodología","C",91,"",-55,null,null,null,null,null,null,null,null,49,"NBC",716,"Vehículos, barcos y aeronaves motorizadas",716,null,null,null,null,null,null,null,null,null,null,"PYDES Pedagogía y didáctica en la educación superior",20,null,null,null,null,null,null,null,null,null,"COL0066768","Estudios regionales",{"$f":"COUNTIF(BA$4:BA146,BA146)","v":4},{"$f":"ROW()","v":146},1]
[null,null,null,null,null,null,null,null,null,null,null,{"$f":"COUNTIF(N$56:N147,N147)","v":31},6,"Metodología","C",92,"",-55,null,null,null,null,null,null,null,null,50,"NBC",721,"Procesamiento de alimentos",721,null,null,null,null,null,null,null,null,null,null,"Red de estudios sociojurídicos comparados y políticas públicas",17,null,null,null,null,null,null,null,null,null,"COL0066768","Historia internacional",{"$f":"COUNTIF(BA$4:BA147,BA147)","v":5},{"$f":"ROW()","v":147},1]
[null,null,null,null,null,null,null,null,null,null,null,{"$f":"COUNTIF(N$56:N148,N148)","v":32},6,"Metodología","C",93,"",-55,null,null,null,null,null,null,null,null,51,"NBC",722,"Materiales (vidrio, papel, plástico y madera)",722,null,null,null,null,null,null,null,null,null,null,"Salud y Comportamiento",56,null,null,null,null,null,null,null,null,null,"COL0066768","Relaciones internacionales",{"$f":"COUNTIF(BA$4:BA148,BA148)","v":6},{"$f":"ROW()","v":148},1]
[null,null,null,null,null,null,null,null,null,null,null,{"$f":"COUNTIF(N$56:N149,N149)","v":33},6,"Metodología","C",94,"",-55,null,null,null,null,null,null,null,null,52,"NBC",723,"Producción textiles (ropa, calzado y artículos de cuero)",723,null,null,null,null,null,null,null,null,null,null,"Sociedad, Estrategia y Seguridad",30,null,null,null,null,null,null,null,null,null,"COL0062704","Procesos Organizacionales (Prospectiva de las Organizaciones), Programáticos y Políticos para la Promoción del Desarrollo.",{"$f":"COUNTIF(BA$4:BA149,BA149)","v":1},{"$f":"ROW()","v":149},1]
[null,null,null,null,null,null,null,null,null,null,null,{"$f":"COUNTIF(N$56:N150,N150)","v":34},6,"Metodología","C",95,"",-55,null,null,null,null,null,null,null,null,53,"NBC",724,"Minería y extracción",724,null,null,null,null,null,null,null,null,null,null,"TIGUM: Grupo de Investigacion en Telemedicina Universidad Militar",37,null,null,null,null,null,null,null,null,null,"COL0062704","Prospectiva de las Organizaciones",{"$f":"COUNTIF(BA$4:BA150,BA150)","v":2},{"$f":"ROW()","v":150},1]
[null,null,null,null,null,null,null,null,null,null,null,{"$f":"COUNTIF(N$56:N151,N151)","v":1},12,"Presupuesto",{"$f":"O150","v":"C"},{"$f":"P150+1","v":96},"Título de la Propuesta :",-89,null,null,null,null,null,null,null,null,54,"NBC",731,"Arquitectura y urbanismo",731,null,null,null,null,null,null,null,null,null,null,"Tratamiento de agua",45,null,null,null,null,null,null,null,null,null,"COL0062704","Responsabilidad Ambiental",{"$f":"COUNTIF(BA$4:BA151,BA151)","v":3},{"$f":"ROW()","v":151},1]
[null,null,null,null,null,null,null,null,null,null,null,{"$f":"COUNTIF(N$56:N152,N152)","v":2},12,"Presupuesto",{"$f":"O151","v":"C"},{"$f":"P151+1","v":97},"Lider responsable",-89,null,null,null,null,null,null,null,null,55,"NBC",732,"Construcción e ingeniería civil",732,null,null,null,null,null,null,null,null,null,null,"VOLTA - GMCDP",38,null,null,null,null,null,null,null,null,null,"COL0062704","Responsabilidad Social Empresarial",{"$f":"COUNTIF(BA$4:BA152,BA152)","v":4},{"$f":"ROW()","v":152},1]
[null,null,null,null,null,null,null,null,null,null,null,{"$f":"COUNTIF(N$56:N153,N153)","v":3},12,"Presupuesto","C",98,"",-89,null,null,null,null,null,null,null,null,56,"NBC",811,"Producción agrícola y ganadera",811,null,null,null,null,null,null,null,null,null,null,null,null,null,null,null,null,null,null,null,null,null,"COL0039321","Analisis de Matrices",{"$f":"COUNTIF(BA$4:BA153,BA153)","v":1},{"$f":"ROW()","v":153},1]
[null,null,null,null,null,null,null,null,null,null,null,{"$f":"COUNTIF(N$56:N154,N154)","v":4},12,"Presupuesto","C",99,"",-89,null,null,null,null,null,null,null,null,57,"NBC",812,"Horticultura",812,null,null,null,null,null,null,null,null,null,null,null,null,null,null,null,null,null,null,null,null,null,"COL0039321","Filosofía de la Ciencia: Filosofía de la Física",{"$f":"COUNTIF(BA$4:BA154,BA154)","v":2},{"$f":"ROW()","v":154},1]
[null,null,null,null,null,null,null,null,null,null,null,{"$f":"COUNTIF(N$56:N155,N155)","v":5},12,"Presupuesto","C",100,"",-89,null,null,null,null,null,null,null,null,58,"NBC",821,"Silvicultura",821,null,null,null,null,null,null,null,null,null,null,null,null,null,null,null,null,null,null,null,null,null,"COL0039321","Leyes de conservacion hiperbolica",{"$f":"COUNTIF(BA$4:BA155,BA155)","v":3},{"$f":"ROW()","v":155},1]
[null,null,null,null,null,null,null,null,null,null,null,{"$f":"COUNTIF(N$56:N156,N156)","v":6},12,"Presupuesto","C",101,"Personal de planta o ocasional que integra al proyecto de investigación.",-89,null,null,null,null,null,null,null,null,59,"NBC",831,"Pesca",831,null,null,null,null,null,null,null,null,null,null,null,null,null,null,null,null,null,null,null,null,null,"COL0039321","Matematicas aplicadas",{"$f":"COUNTIF(BA$4:BA156,BA156)","v":4},{"$f":"ROW()","v":156},1]
[null,null,null,null,null,null,null,null,null,null,null,{"$f":"COUNTIF(N$56:N157,N157)","v":7},12,"Presupuesto","C",102,"Sueldo Neto",-89,null,null,null,null,null,null,null,null,60,"NBC",841,"Veterinaria",841,null,null,null,null,null,null,null,null,null,null,null,null,null,null,null,null,null,null,null,null,null,"COL0039321","Solución numérica de ecuaciones diferenciales parciales",{"$f":"COUNTIF(BA$4:BA157,BA157)","v":5},{"$f":"ROW()","v":157},1]
[null,null,null,null,null,null,null,null,null,null,null,{"$f":"COUNTIF(N$56:N158,N158)","v":8},12,"Presupuesto","C",103,"",-89,null,null,null,null,null,null,null,null,61,"NBC",911,"Odontología",911,null,null,null,null,null,null,null,null,null,null,null,null,null,null,null,null,null,null,null,null,null,"COL0032278","Biología y Ecología de plagas y enemigos naturales de cultivos de importancia económica",{"$f":"COUNTIF(BA$4:BA158,BA158)","v":1},{"$f":"ROW()","v":158},1]
[null,null,null,null,null,null,null,null,null,null,null,{"$f":"COUNTIF(N$56:N159,N159)","v":9},12,"Presupuesto","C",104,"",-89,null,null,null,null,null,null,null,null,62,"NBC",912,"Medicina",912,null,null,null,null,null,null,null,null,null,null,null,null,null,null,null,null,null,null,null,null,null,"COL0032278","Generación de recomendaciones para el manejo integrado de plagas, mediante el diseño de modelos de simulación de agroecosistemas",{"$f":"COUNTIF(BA$4:BA159,BA159)","v":2},{"$f":"ROW()","v":159},1]
[null,null,null,null,null,null,null,null,null,null,null,{"$f":"COUNTIF(N$56:N160,N160)","v":10},12,"Presupuesto","C",105,"",-89,null,null,null,null,null,null,null,null,63,"NBC",913,"Enfermería y partería",913,null,null,null,null,null,null,null,null,null,null,null,null,null,null,null,null,null,null,null,null,null,"COL0143731","Electrónica y Telecomunicaciones en Salud",{"$f":"COUNTIF(BA$4:BA160,BA160)","v":1},{"$f":"ROW()","v":160},1]
[null,null,null,null,null,null,null,null,null,null,null,{"$f":"COUNTIF(N$56:N161,N161)","v":11},12,"Presupuesto","C",106,"",-89,null,null,null,null,null,null,null,null,64,"NBC",914,"Tecnología de diagnóstico y tratamiento médico",914,null,null,null,null,null,null,null,null,null,null,null,null,null,null,null,null,null,null,null,null,null,"COL0143731","Espectro Radioeléctrico",{"$f":"COUNTIF(BA$4:BA161,BA161)","v":2},{"$f":"ROW()","v":161},1]
[null,null,null,null,null,null,null,null,null,null,null,{"$f":"COUNTIF(N$56:N162,N162)","v":12},12,"Presupuesto","C",107,"",-89,null,null,null,null,null,null,null,null,65,"NBC",915,"Terapia y rehabilitación",915,null,null,null,null,null,null,null,null,null,null,null,null,null,null,null,null,null,null,null,null,null,"COL0143731","Sistemas virtuales de comunicación",{"$f":"COUNTIF(BA$4:BA162,BA162)","v":3},{"$f":"ROW()","v":162},1]
[null,null,null,null,null,null,null,null,null,null,null,{"$f":"COUNTIF(N$56:N163,N163)","v":13},12,"Presupuesto","C",108,"",-89,null,null,null,null,null,null,null,null,66,"NBC",916,"Farmacia",916,null,null,null,null,null,null,null,null,null,null,null,null,null,null,null,null,null,null,null,null,null,"COL0048492","Biología Molecular de organismos acuáticos, con énfasis en especies de interés comercial y amenazadas.",{"$f":"COUNTIF(BA$4:BA163,BA163)","v":1},{"$f":"ROW()","v":163},1]
[null,null,null,null,null,null,null,null,null,null,null,{"$f":"COUNTIF(N$56:N164,N164)","v":14},12,"Presupuesto","C",109,"",-89,null,null,null,null,null,null,null,null,67,"NBC",917,"Medicina y terapia tradicional y complementaria",917,null,null,null,null,null,null,null,null,null,null,null,null,null,null,null,null,null,null,null,null,null,"COL0048492","Dinámica ecológica del zooplancton en el océano pacífico colombiano. cruceros 2007-2010 de la serie erfen (estudio regional del fenómeno el niño).",{"$f":"COUNTIF(BA$4:BA164,BA164)","v":2},{"$f":"ROW()","v":164},1]
[null,null,null,null,null,null,null,null,null,null,null,{"$f":"COUNTIF(N$56:N165,N165)","v":15},12,"Presupuesto","C",110,"",-89,null,null,null,null,null,null,null,null,68,"NBC",921,"Asistencia a adultos mayores y discapacitados",921,null,null,null,null,null,null,null,null,null,null,null,null,null,null,null,null,null,null,null,null,null,"COL0048492","Estudios Morfológicos, Tróficos, Ecológicos, Bióticos y Abióticos de Humedales Colombianos, con énfasis en la Sabana de Bogotá.",{"$f":"COUNTIF(BA$4:BA165,BA165)","v":3},{"$f":"ROW()","v":165},1]
[null,null,null,null,null,null,null,null,null,null,null,{"$f":"COUNTIF(N$56:N166,N166)","v":16},12,"Presupuesto","C",111,"",-89,null,null,null,null,null,null,null,null,69,"NBC",922,"Asistencia a la infancia y servicios para jóvenes",922,null,null,null,null,null,null,null,null,null,null,null,null,null,null,null,null,null,null,null,null,null,"COL0048492","Estudios morfológicos, nutricionales, ontogénicos y de cultivo de organismos acuáticos de interés comercial.",{"$f":"COUNTIF(BA$4:BA166,BA166)","v":4},{"$f":"ROW()","v":166},1]
[null,null,null,null,null,null,null,null,null,null,null,{"$f":"COUNTIF(N$56:N167,N167)","v":17},12,"Presupuesto","C",112,"",-89,null,null,null,null,null,null,null,null,70,"NBC",923,"Trabajo social y orientación",923,null,null,null,null,null,null,null,null,null,null,null,null,null,null,null,null,null,null,null,null,null,"COL0116439","Cirugía Dermatologica",{"$f":"COUNTIF(BA$4:BA167,BA167)","v":1},{"$f":"ROW()","v":167},1]
[null,null,null,null,null,null,null,null,null,null,null,{"$f":"COUNTIF(N$56:N168,N168)","v":18},12,"Presupuesto","C",113,"Sumatoria del calculo de personal de planta \"Valor contrapartida Facultades\":Diligenciado VICEIN",-89,null,null,null,null,null,null,null,null,71,"NBC",1011,"Servicios domésticos",1011,null,null,null,null,null,null,null,null,null,null,null,null,null,null,null,null,null,null,null,null,null,"COL0116439","Dermatologia Pediatrica",{"$f":"COUNTIF(BA$4:BA168,BA168)","v":2},{"$f":"ROW()","v":168},1]
[null,null,null,null,null,null,null,null,null,null,null,{"$f":"COUNTIF(N$56:N169,N169)","v":19},12,"Presupuesto","C",114,"",-89,null,null,null,null,null,null,null,null,72,"NBC",1012,"Peluquería y tratamientos de belleza",1012,null,null,null,null,null,null,null,null,null,null,null,null,null,null,null,null,null,null,null,null,null,"COL0116439","Fotobiologia y Fototerapia",{"$f":"COUNTIF(BA$4:BA169,BA169)","v":3},{"$f":"ROW()","v":169},1]
[null,null,null,null,null,null,null,null,null,null,null,{"$f":"COUNTIF(N$56:N170,N170)","v":20},12,"Presupuesto","C",115,"Asistentes externos o temporales contratados OPS y Estimulo Estudiantes.",-89,null,null,null,null,null,null,null,null,73,"NBC",1013,"Hotelería, restaurantes y servicios de banquetes",1013,null,null,null,null,null,null,null,null,null,null,null,null,null,null,null,null,null,null,null,null,null,"COL0116439","Leishmaniasis",{"$f":"COUNTIF(BA$4:BA170,BA170)","v":4},{"$f":"ROW()","v":170},1]
[null,null,null,null,null,null,null,null,null,null,null,{"$f":"COUNTIF(N$56:N171,N171)","v":21},12,"Presupuesto","C",116,"Salario Minimo Legal Vigente (SMIV) :",-89,null,null,null,null,null,null,null,null,74,"NBC",1014,"Deportes",1014,null,null,null,null,null,null,null,null,null,null,null,null,null,null,null,null,null,null,null,null,null,"COL0116439","Psoriasis",{"$f":"COUNTIF(BA$4:BA171,BA171)","v":5},{"$f":"ROW()","v":171},1]
[null,null,null,null,null,null,null,null,null,null,null,{"$f":"COUNTIF(N$56:N172,N172)","v":22},12,"Presupuesto","C",117,"",-89,null,null,null,null,null,null,null,null,75,"NBC",1015,"Viajes, turismo y actividades recreativas",1015,null,null,null,null,null,null,null,null,null,null,null,null,null,null,null,null,null,null,null,null,null,"COL0031959","Análisis de redes de interacción planta-polinizador a partir de técnicas palinológicas",{"$f":"COUNTIF(BA$4:BA172,BA172)","v":1},{"$f":"ROW()","v":172},1]
[null,null,null,null,null,null,null,null,null,null,null,{"$f":"COUNTIF(N$56:N173,N173)","v":23},12,"Presupuesto","C",118,"Valor mensual",-89,null,null,null,null,null,null,null,null,76,"NBC",1021,"Saneamiento de la comunidad",1021,null,null,null,null,null,null,null,null,null,null,null,null,null,null,null,null,null,null,null,null,null,"COL0031959","Cría de especies del género Bombus para su utilización como polinizadores en cultivos de la sabana Cundi-boyacense.",{"$f":"COUNTIF(BA$4:BA173,BA173)","v":2},{"$f":"ROW()","v":173},1]
[null,null,null,null,null,null,null,null,null,null,null,{"$f":"COUNTIF(N$56:N174,N174)","v":24},12,"Presupuesto","C",119,"0",-89,null,null,null,null,null,null,null,null,77,"NBC",1022,"Salud y protección laboral",1022,null,null,null,null,null,null,null,null,null,null,null,null,null,null,null,null,null,null,null,null,null,"COL0031959","Diversidad, biología y taxonomia de polinizadores colombianos",{"$f":"COUNTIF(BA$4:BA174,BA174)","v":3},{"$f":"ROW()","v":174},1]
[null,null,null,null,null,null,null,null,null,null,null,{"$f":"COUNTIF(N$56:N175,N175)","v":25},12,"Presupuesto","C",120,"0",-89,null,null,null,null,null,null,null,null,78,"NBC",1031,"Educación militar y de defensa",1031,null,null,null,null,null,null,null,null,null,null,null,null,null,null,null,null,null,null,null,null,null,"COL0031959","Ecología de la polinización: estudios del uso sostenible de especies de abejas silvestres como polinizadores de hortalizas y frutales",{"$f":"COUNTIF(BA$4:BA175,BA175)","v":4},{"$f":"ROW()","v":175},1]
[null,null,null,null,null,null,null,null,null,null,null,null,null,null,null,null,null,null,null,null,null,null,null,null,null,null,79,"NBC",1032,"Protección de las personas y de la propiedad",1032,null,null,null,null,null,null,null,null,null,null,null,null,null,null,null,null,null,null,null,null,null,"COL0031959","Modelos biológicos y ecológicos de insectos benéficos",{"$f":"COUNTIF(BA$4:BA176,BA176)","v":5},{"$f":"ROW()","v":176},1]
[null,null,null,null,null,null,null,null,null,null,null,null,null,null,null,null,null,null,null,null,null,null,null,null,null,null,80,"NBC",1041,"Servicios de transporte",1041,null,null,null,null,null,null,null,null,null,null,null,null,null,null,null,null,null,null,null,null,null,"COL0015722","Bioética, Biopolítica y biojurídica",{"$f":"COUNTIF(BA$4:BA177,BA177)","v":1},{"$f":"ROW()","v":177},1]
[null,null,null,null,null,null,null,null,null,null,null,null,null,null,null,null,null,null,null,null,null,null,null,null,null,null,1,"Nivel",1,"Postdoctorado",{"$f":"AC178","v":1},null,null,null,null,null,null,null,null,null,null,null,null,null,null,null,null,null,null,null,null,null,"COL0015722","Liderazgo",{"$f":"COUNTIF(BA$4:BA178,BA178)","v":2},{"$f":"ROW()","v":178},1]
[null,null,null,null,null,null,null,null,null,null,null,null,null,null,null,null,null,null,null,null,null,null,null,null,null,null,2,"Nivel",2,"Doctorado",{"$f":"AC179","v":2},null,null,null,null,null,null,null,null,null,null,null,null,null,null,null,null,null,null,null,null,null,"COL0151789","Aprovechamiento de residuos orgánicos",{"$f":"COUNTIF(BA$4:BA179,BA179)","v":1},{"$f":"ROW()","v":179},1]
[null,null,null,null,null,null,null,null,null,null,null,null,null,null,null,null,null,null,null,null,null,null,null,null,null,null,3,"Nivel",3,"Maestría",3,null,null,null,null,null,null,null,null,null,null,null,null,null,null,null,null,null,null,null,null,null,"COL0151789","Ecosostenibilidad en procesos de producción",{"$f":"COUNTIF(BA$4:BA180,BA180)","v":2},{"$f":"ROW()","v":180},1]
[null,null,null,null,null,null,null,null,null,null,null,null,null,null,null,null,null,null,null,null,null,null,null,null,null,null,4,"Nivel",4,"Esp. universitaria",4,null,null,null,null,null,null,null,null,null,null,null,null,null,null,null,null,null,null,null,null,null,"COL0151789","Estética del videojuego",{"$f":"COUNTIF(BA$4:BA181,BA181)","v":3},{"$f":"ROW()","v":181},1]
[null,null,null,null,null,null,null,null,null,null,null,null,null,null,null,null,null,null,null,null,null,null,null,null,null,null,5,"Nivel",5,"Esp. Técnica Profesional",5,null,null,null,null,null,null,null,null,null,null,null,null,null,null,null,null,null,null,null,null,null,"COL0151789","Ingeniería del terreno, geodesia y geofísica",{"$f":"COUNTIF(BA$4:BA182,BA182)","v":4},{"$f":"ROW()","v":182},1]
[null,null,null,null,null,null,null,null,null,null,null,null,null,null,null,null,null,null,null,null,null,null,null,null,null,null,6,"Nivel",6,"Esp. Tecnológica",6,null,null,null,null,null,null,null,null,null,null,null,null,null,null,null,null,null,null,null,null,null,"COL0151789","Museología",{"$f":"COUNTIF(BA$4:BA183,BA183)","v":5},{"$f":"ROW()","v":183},1]
[null,null,null,null,null,null,null,null,null,null,null,null,null,null,null,null,null,null,null,null,null,null,null,null,null,null,7,"Nivel",7,"Universitario",7,null,null,null,null,null,null,null,null,null,null,null,null,null,null,null,null,null,null,null,null,null,"COL0151789","Prevención y control de la contaminación",{"$f":"COUNTIF(BA$4:BA184,BA184)","v":6},{"$f":"ROW()","v":184},1]
[null,null,null,null,null,null,null,null,null,null,null,null,null,null,null,null,null,null,null,null,null,null,null,null,null,null,8,"Nivel",8,"Tecnológico",8,null,null,null,null,null,null,null,null,null,null,null,null,null,null,null,null,null,null,null,null,null,"COL0151789","Sensórica y sistemas inteligentes",{"$f":"COUNTIF(BA$4:BA185,BA185)","v":7},{"$f":"ROW()","v":185},1]
[null,null,null,null,null,null,null,null,null,null,null,null,null,null,null,null,null,null,null,null,null,null,null,null,null,null,9,"Nivel",9,"Técnico profesional",9,null,null,null,null,null,null,null,null,null,null,null,null,null,null,null,null,null,null,null,null,null,"COL0126777","Animación 2D y 3D",{"$f":"COUNTIF(BA$4:BA186,BA186)","v":1},{"$f":"ROW()","v":186},1]
[null,null,null,null,null,null,null,null,null,null,null,null,null,null,null,null,null,null,null,null,null,null,null,null,null,null,10,"Nivel",10,"Estudiante pregrado",10,null,null,null,null,null,null,null,null,null,null,null,null,null,null,null,null,null,null,null,null,null,"COL0126777","Audio y video",{"$f":"COUNTIF(BA$4:BA187,BA187)","v":2},{"$f":"ROW()","v":187},1]
[null,null,null,null,null,null,null,null,null,null,null,null,null,null,null,null,null,null,null,null,null,null,null,null,null,null,1,"A",100,"Puede aplicar al maximo de presupuesto dependiendo los puntos comprometidos",null,null,null,null,null,null,null,null,null,null,null,null,null,null,null,null,null,null,null,null,null,null,"COL0126777","Desarrollo Multimedia",{"$f":"COUNTIF(BA$4:BA188,BA188)","v":3},{"$f":"ROW()","v":188},1]
[null,null,null,null,null,null,null,null,null,null,null,null,null,null,null,null,null,null,null,null,null,null,null,null,null,null,8,"A1",100,"Puede aplicar al maximo de presupuesto dependiendo los puntos comprometidos",null,null,null,null,null,null,null,null,null,null,null,null,null,null,null,null,null,null,null,null,null,null,"COL0126777","Museografía y Museología",{"$f":"COUNTIF(BA$4:BA189,BA189)","v":4},{"$f":"ROW()","v":189},1]
[null,null,null,null,null,null,null,null,null,null,null,null,null,null,null,null,null,null,null,null,null,null,null,null,null,null,9,"B",100,"Puede aplicar al maximo de presupuesto dependiendo los puntos comprometidos",null,null,null,null,null,null,null,null,null,null,null,null,null,null,null,null,null,null,null,null,null,null,"COL0126777","Narrativas digitales",{"$f":"COUNTIF(BA$4:BA190,BA190)","v":5},{"$f":"ROW()","v":190},1]
[null,null,null,null,null,null,null,null,null,null,null,null,null,null,null,null,null,null,null,null,null,null,null,null,null,null,10,"C",100,"Puede aplicar al maximo de presupuesto dependiendo los puntos comprometidos",null,null,null,null,null,null,null,null,null,null,null,null,null,null,null,null,null,null,null,null,null,null,"COL0126777","Patrimonio",{"$f":"COUNTIF(BA$4:BA191,BA191)","v":6},{"$f":"ROW()","v":191},1]
[null,null,null,null,null,null,null,null,null,null,null,null,null,null,null,null,null,null,null,null,null,null,null,null,null,null,11,"D",50,"Puede aplicar hasta 50 millones de presupuesto dependiendo los puntos comprometidos",null,null,null,null,null,null,null,null,null,null,null,null,null,null,null,null,null,null,null,null,null,null,"COL0077707","(Eco)Fisiología vegetal",{"$f":"COUNTIF(BA$4:BA192,BA192)","v":1},{"$f":"ROW()","v":192},1]
[null,null,null,null,null,null,null,null,null,null,null,null,null,null,null,null,null,null,null,null,null,null,null,null,null,null,2,"R",25,"Puede aplicar hasta 25 millones de presupuesto dependiendo los puntos comprometidos",null,null,null,null,null,null,null,null,null,null,null,null,null,null,null,null,null,null,null,null,null,null,"COL0077707","Bioprospección de Comunidades Vegetales",{"$f":"COUNTIF(BA$4:BA193,BA193)","v":2},{"$f":"ROW()","v":193},1]
[null,null,null,null,null,null,null,null,null,null,null,null,null,null,null,null,null,null,null,null,null,null,null,null,null,null,2,"NR",25,"Puede aplicar hasta 25 millones de presupuesto dependiendo los puntos comprometidos",null,null,null,null,null,null,null,null,null,null,null,null,null,null,null,null,null,null,null,null,null,null,"COL0077707","Búsqueda Biodirigida y Síntesis de Sustancias Bioactivas",{"$f":"COUNTIF(BA$4:BA194,BA194)","v":3},{"$f":"ROW()","v":194},1]
[null,null,null,null,null,null,null,null,null,null,null,null,null,null,null,null,null,null,null,null,null,null,null,null,null,null,12,"NA",25,"Puede aplicar hasta 25 millones de presupuesto dependiendo los puntos comprometidos",null,null,null,null,null,null,null,null,null,null,null,null,null,null,null,null,null,null,null,null,null,null,"COL0077707","Ecología Química y Redes Tróficas",{"$f":"COUNTIF(BA$4:BA195,BA195)","v":4},{"$f":"ROW()","v":195},1]
[null,null,null,null,null,null,null,null,null,null,null,null,null,null,null,null,null,null,null,null,null,null,null,null,null,null,1,"Nivel_Inst",1,"Distrital",null,null,null,null,null,null,null,null,null,null,null,null,null,null,null,null,null,null,null,null,null,null,"COL0077707","Fitoquímica Analítica",{"$f":"COUNTIF(BA$4:BA196,BA196)","v":5},{"$f":"ROW()","v":196},{"$f":"COUNTIF($AQ$3:$AQ$83,BA196)","v":1}]
[null,null,null,null,null,null,null,null,null,null,null,null,null,null,null,null,null,null,null,null,null,null,null,null,null,null,2,"Nivel_Inst",2,"Nacional",null,null,null,null,null,null,null,null,null,null,null,null,null,null,null,null,null,null,null,null,null,null,"COL0077707","Metabolómica | Fisiología Molecular | Ecología Metabólica | Respuestas Metabólicas",{"$f":"COUNTIF(BA$4:BA197,BA197)","v":6},{"$f":"ROW()","v":197},1]
[null,null,null,null,null,null,null,null,null,null,null,null,null,null,null,null,null,null,null,null,null,null,null,null,null,null,3,"Nivel_Inst",3,"Internacional",null,null,null,null,null,null,null,null,null,null,null,null,null,null,null,null,null,null,null,null,null,null,"COL0077707","Modelado Molecular, Bio- y Quimio-informática",{"$f":"COUNTIF(BA$4:BA198,BA198)","v":7},{"$f":"ROW()","v":198},1]
[null,null,null,null,null,null,null,null,null,null,null,null,null,null,null,null,null,null,null,null,null,null,null,null,null,null,null,null,null,null,null,null,null,null,null,null,null,null,null,null,null,null,null,null,null,null,null,null,null,null,null,null,"COL0077707","Química Ambiental",{"$f":"COUNTIF(BA$4:BA199,BA199)","v":8},{"$f":"ROW()","v":199},1]
[null,null,null,null,null,null,null,null,null,null,null,null,null,null,null,null,null,null,null,null,null,null,null,null,null,null,null,null,null,null,null,null,null,null,null,null,null,null,null,null,null,null,null,null,null,null,null,null,null,null,null,null,"COL0077707","Química Bioorgánica y Bioquímica",{"$f":"COUNTIF(BA$4:BA200,BA200)","v":9},{"$f":"ROW()","v":200},1]
[null,null,null,null,null,null,null,null,null,null,null,null,null,null,null,null,null,null,null,null,null,null,null,null,null,null,null,null,null,null,null,null,null,null,null,null,null,null,null,null,null,null,null,null,null,null,null,null,null,null,null,null,"COL0018448","Ambiente Virtuales de Aprendizaje",{"$f":"COUNTIF(BA$4:BA201,BA201)","v":1},{"$f":"ROW()","v":201},1]
[null,null,null,null,null,null,null,null,null,null,null,null,null,null,null,null,null,null,null,null,null,null,null,null,null,null,null,null,null,null,null,null,null,null,null,null,null,null,null,null,null,null,null,null,null,null,null,null,null,null,null,null,"COL0018448","Formación pedagógica para el posconflicto en Colombia",{"$f":"COUNTIF(BA$4:BA202,BA202)","v":2},{"$f":"ROW()","v":202},1]
[null,null,null,null,null,null,null,null,null,null,null,null,null,null,null,null,null,null,null,null,null,null,null,null,null,null,null,null,null,null,null,null,null,null,null,null,null,null,null,null,null,null,null,null,null,null,null,null,null,null,null,null,"COL0018448","Gestión del conocimiento y calidad de la educación superior",{"$f":"COUNTIF(BA$4:BA203,BA203)","v":3},{"$f":"ROW()","v":203},1]
[null,null,null,null,null,null,null,null,null,null,null,null,null,null,null,null,null,null,null,null,null,null,null,null,null,null,null,null,null,null,null,null,null,null,null,null,null,null,null,null,null,null,null,null,null,null,null,null,null,null,null,null,"COL0028767","Estudios Contemporáneos en Contabilidad y Finanzas",{"$f":"COUNTIF(BA$4:BA204,BA204)","v":1},{"$f":"ROW()","v":204},1]
[null,null,null,null,null,null,null,null,null,null,null,null,null,null,null,null,null,null,null,null,null,null,null,null,null,null,null,null,null,null,null,null,null,null,null,null,null,null,null,null,null,null,null,null,null,null,null,null,null,null,null,null,"COL0028767","Estudios Contemporáneos en Gestión y Organizaciones",{"$f":"COUNTIF(BA$4:BA205,BA205)","v":2},{"$f":"ROW()","v":205},1]
[null,null,null,null,null,null,null,null,null,null,null,null,null,null,null,null,null,null,null,null,null,null,null,null,null,null,null,null,null,null,null,null,null,null,null,null,null,null,null,null,null,null,null,null,null,null,null,null,null,null,null,null,"COL0052163","Internet de las Cosas",{"$f":"COUNTIF(BA$4:BA206,BA206)","v":1},{"$f":"ROW()","v":206},1]
[null,null,null,null,null,null,null,null,null,null,null,null,null,null,null,null,null,null,null,null,null,null,null,null,null,null,null,null,null,null,null,null,null,null,null,null,null,null,null,null,null,null,null,null,null,null,null,null,null,null,null,null,"COL0052163","Procesamiento de Señales",{"$f":"COUNTIF(BA$4:BA207,BA207)","v":2},{"$f":"ROW()","v":207},1]
[null,null,null,null,null,null,null,null,null,null,null,null,null,null,null,null,null,null,null,null,null,null,null,null,null,null,null,null,null,null,null,null,null,null,null,null,null,null,null,null,null,null,null,null,null,null,null,null,null,null,null,null,"COL0052163","Seguridad Informática",{"$f":"COUNTIF(BA$4:BA208,BA208)","v":3},{"$f":"ROW()","v":208},1]
[null,null,null,null,null,null,null,null,null,null,null,null,null,null,null,null,null,null,null,null,null,null,null,null,null,null,null,null,null,null,null,null,null,null,null,null,null,null,null,null,null,null,null,null,null,null,null,null,null,null,null,null,"COL0052163","Sistemas bioinspirados",{"$f":"COUNTIF(BA$4:BA209,BA209)","v":4},{"$f":"ROW()","v":209},1]
[null,null,null,null,null,null,null,null,null,null,null,null,null,null,null,null,null,null,null,null,null,null,null,null,null,null,null,null,null,null,null,null,null,null,null,null,null,null,null,null,null,null,null,null,null,null,null,null,null,null,null,null,"COL0052163","Sistemas de comunicaciones",{"$f":"COUNTIF(BA$4:BA210,BA210)","v":5},{"$f":"ROW()","v":210},1]
[null,null,null,null,null,null,null,null,null,null,null,null,null,null,null,null,null,null,null,null,null,null,null,null,null,null,null,null,null,null,null,null,null,null,null,null,null,null,null,null,null,null,null,null,null,null,null,null,null,null,null,null,"COL0036025","Biomecatronica",{"$f":"COUNTIF(BA$4:BA211,BA211)","v":1},{"$f":"ROW()","v":211},1]
[null,null,null,null,null,null,null,null,null,null,null,null,null,null,null,null,null,null,null,null,null,null,null,null,null,null,null,null,null,null,null,null,null,null,null,null,null,null,null,null,null,null,null,null,null,null,null,null,null,null,null,null,"COL0036025","Optimización y Control de sistemas dinámicos",{"$f":"COUNTIF(BA$4:BA212,BA212)","v":2},{"$f":"ROW()","v":212},1]
[null,null,null,null,null,null,null,null,null,null,null,null,null,null,null,null,null,null,null,null,null,null,null,null,null,null,null,null,null,null,null,null,null,null,null,null,null,null,null,null,null,null,null,null,null,null,null,null,null,null,null,null,"COL0036025","Robótica híbrida",{"$f":"COUNTIF(BA$4:BA213,BA213)","v":3},{"$f":"ROW()","v":213},1]
[null,null,null,null,null,null,null,null,null,null,null,null,null,null,null,null,null,null,null,null,null,null,null,null,null,null,null,null,null,null,null,null,null,null,null,null,null,null,null,null,null,null,null,null,null,null,null,null,null,null,null,null,"COL0036025","Simulacion y Realidad Virtual",{"$f":"COUNTIF(BA$4:BA214,BA214)","v":4},{"$f":"ROW()","v":214},1]
[null,null,null,null,null,null,null,null,null,null,null,null,null,null,null,null,null,null,null,null,null,null,null,null,null,null,null,null,null,null,null,null,null,null,null,null,null,null,null,null,null,null,null,null,null,null,null,null,null,null,null,null,"COL0050294","Economía de la defensa y del conflicto",{"$f":"COUNTIF(BA$4:BA215,BA215)","v":1},{"$f":"ROW()","v":215},1]
[null,null,null,null,null,null,null,null,null,null,null,null,null,null,null,null,null,null,null,null,null,null,null,null,null,null,null,null,null,null,null,null,null,null,null,null,null,null,null,null,null,null,null,null,null,null,null,null,null,null,null,null,"COL0050294","Gestión Ambiental",{"$f":"COUNTIF(BA$4:BA216,BA216)","v":2},{"$f":"ROW()","v":216},1]
[null,null,null,null,null,null,null,null,null,null,null,null,null,null,null,null,null,null,null,null,null,null,null,null,null,null,null,null,null,null,null,null,null,null,null,null,null,null,null,null,null,null,null,null,null,null,null,null,null,null,null,null,"COL0050294","Política Económica",{"$f":"COUNTIF(BA$4:BA217,BA217)","v":3},{"$f":"ROW()","v":217},1]
[null,null,null,null,null,null,null,null,null,null,null,null,null,null,null,null,null,null,null,null,null,null,null,null,null,null,null,null,null,null,null,null,null,null,null,null,null,null,null,null,null,null,null,null,null,null,null,null,null,null,null,null,"COL0126015","Inmunodermatologia",{"$f":"COUNTIF(BA$4:BA218,BA218)","v":1},{"$f":"ROW()","v":218},1]
[null,null,null,null,null,null,null,null,null,null,null,null,null,null,null,null,null,null,null,null,null,null,null,null,null,null,null,null,null,null,null,null,null,null,null,null,null,null,null,null,null,null,null,null,null,null,null,null,null,null,null,null,"COL0126015","Psoriasis",{"$f":"COUNTIF(BA$4:BA219,BA219)","v":2},{"$f":"ROW()","v":219},1]
[null,null,null,null,null,null,null,null,null,null,null,null,null,null,null,null,null,null,null,null,null,null,null,null,null,null,null,null,null,null,null,null,null,null,null,null,null,null,null,null,null,null,null,null,null,null,null,null,null,null,null,null,"COL0138698","Bioetica",{"$f":"COUNTIF(BA$4:BA220,BA220)","v":1},{"$f":"ROW()","v":220},1]
[null,null,null,null,null,null,null,null,null,null,null,null,null,null,null,null,null,null,null,null,null,null,null,null,null,null,null,null,null,null,null,null,null,null,null,null,null,null,null,null,null,null,null,null,null,null,null,null,null,null,null,null,"COL0138698","Cerebrovascular",{"$f":"COUNTIF(BA$4:BA221,BA221)","v":2},{"$f":"ROW()","v":221},1]
[null,null,null,null,null,null,null,null,null,null,null,null,null,null,null,null,null,null,null,null,null,null,null,null,null,null,null,null,null,null,null,null,null,null,null,null,null,null,null,null,null,null,null,null,null,null,null,null,null,null,null,null,"COL0138698","Demencias",{"$f":"COUNTIF(BA$4:BA222,BA222)","v":3},{"$f":"ROW()","v":222},1]
[null,null,null,null,null,null,null,null,null,null,null,null,null,null,null,null,null,null,null,null,null,null,null,null,null,null,null,null,null,null,null,null,null,null,null,null,null,null,null,null,null,null,null,null,null,null,null,null,null,null,null,null,"COL0138698","Distonias",{"$f":"COUNTIF(BA$4:BA223,BA223)","v":4},{"$f":"ROW()","v":223},1]
[null,null,null,null,null,null,null,null,null,null,null,null,null,null,null,null,null,null,null,null,null,null,null,null,null,null,null,null,null,null,null,null,null,null,null,null,null,null,null,null,null,null,null,null,null,null,null,null,null,null,null,null,"COL0138698","Enfermedades huerfanas",{"$f":"COUNTIF(BA$4:BA224,BA224)","v":5},{"$f":"ROW()","v":224},1]
[null,null,null,null,null,null,null,null,null,null,null,null,null,null,null,null,null,null,null,null,null,null,null,null,null,null,null,null,null,null,null,null,null,null,null,null,null,null,null,null,null,null,null,null,null,null,null,null,null,null,null,null,"COL0138698","Epilepsia",{"$f":"COUNTIF(BA$4:BA225,BA225)","v":6},{"$f":"ROW()","v":225},1]
[null,null,null,null,null,null,null,null,null,null,null,null,null,null,null,null,null,null,null,null,null,null,null,null,null,null,null,null,null,null,null,null,null,null,null,null,null,null,null,null,null,null,null,null,null,null,null,null,null,null,null,null,"COL0138698","Esclerosis multiple",{"$f":"COUNTIF(BA$4:BA226,BA226)","v":7},{"$f":"ROW()","v":226},1]
[null,null,null,null,null,null,null,null,null,null,null,null,null,null,null,null,null,null,null,null,null,null,null,null,null,null,null,null,null,null,null,null,null,null,null,null,null,null,null,null,null,null,null,null,null,null,null,null,null,null,null,null,"COL0138698","Movimientos anormales",{"$f":"COUNTIF(BA$4:BA227,BA227)","v":8},{"$f":"ROW()","v":227},1]
[null,null,null,null,null,null,null,null,null,null,null,null,null,null,null,null,null,null,null,null,null,null,null,null,null,null,null,null,null,null,null,null,null,null,null,null,null,null,null,null,null,null,null,null,null,null,null,null,null,null,null,null,"COL0138698","Neuromuscular",{"$f":"COUNTIF(BA$4:BA228,BA228)","v":9},{"$f":"ROW()","v":228},1]
[null,null,null,null,null,null,null,null,null,null,null,null,null,null,null,null,null,null,null,null,null,null,null,null,null,null,null,null,null,null,null,null,null,null,null,null,null,null,null,null,null,null,null,null,null,null,null,null,null,null,null,null,"COL0138698","Paralisis cerebral",{"$f":"COUNTIF(BA$4:BA229,BA229)","v":10},{"$f":"ROW()","v":229},1]
[null,null,null,null,null,null,null,null,null,null,null,null,null,null,null,null,null,null,null,null,null,null,null,null,null,null,null,null,null,null,null,null,null,null,null,null,null,null,null,null,null,null,null,null,null,null,null,null,null,null,null,null,"COL0138698","Retardo mental",{"$f":"COUNTIF(BA$4:BA230,BA230)","v":11},{"$f":"ROW()","v":230},1]
[null,null,null,null,null,null,null,null,null,null,null,null,null,null,null,null,null,null,null,null,null,null,null,null,null,null,null,null,null,null,null,null,null,null,null,null,null,null,null,null,null,null,null,null,null,null,null,null,null,null,null,null,"COL0138698","Salud mental",{"$f":"COUNTIF(BA$4:BA231,BA231)","v":12},{"$f":"ROW()","v":231},1]
[null,null,null,null,null,null,null,null,null,null,null,null,null,null,null,null,null,null,null,null,null,null,null,null,null,null,null,null,null,null,null,null,null,null,null,null,null,null,null,null,null,null,null,null,null,null,null,null,null,null,null,null,"COL0138698","Sueño",{"$f":"COUNTIF(BA$4:BA232,BA232)","v":13},{"$f":"ROW()","v":232},1]
[null,null,null,null,null,null,null,null,null,null,null,null,null,null,null,null,null,null,null,null,null,null,null,null,null,null,null,null,null,null,null,null,null,null,null,null,null,null,null,null,null,null,null,null,null,null,null,null,null,null,null,null,"COL0138698","Trastornos del neurodesarrollo",{"$f":"COUNTIF(BA$4:BA233,BA233)","v":14},{"$f":"ROW()","v":233},1]
[null,null,null,null,null,null,null,null,null,null,null,null,null,null,null,null,null,null,null,null,null,null,null,null,null,null,null,null,null,null,null,null,null,null,null,null,null,null,null,null,null,null,null,null,null,null,null,null,null,null,null,null,"COL0116538","Andrologia y Salud sexual",{"$f":"COUNTIF(BA$4:BA234,BA234)","v":1},{"$f":"ROW()","v":234},1]
[null,null,null,null,null,null,null,null,null,null,null,null,null,null,null,null,null,null,null,null,null,null,null,null,null,null,null,null,null,null,null,null,null,null,null,null,null,null,null,null,null,null,null,null,null,null,null,null,null,null,null,null,"COL0116538","Hiperplasia Prostatica",{"$f":"COUNTIF(BA$4:BA235,BA235)","v":2},{"$f":"ROW()","v":235},1]
[null,null,null,null,null,null,null,null,null,null,null,null,null,null,null,null,null,null,null,null,null,null,null,null,null,null,null,null,null,null,null,null,null,null,null,null,null,null,null,null,null,null,null,null,null,null,null,null,null,null,null,null,"COL0116538","Incontinencia Urinaria",{"$f":"COUNTIF(BA$4:BA236,BA236)","v":3},{"$f":"ROW()","v":236},1]
[null,null,null,null,null,null,null,null,null,null,null,null,null,null,null,null,null,null,null,null,null,null,null,null,null,null,null,null,null,null,null,null,null,null,null,null,null,null,null,null,null,null,null,null,null,null,null,null,null,null,null,null,"COL0116538","Litiasis y endourologia",{"$f":"COUNTIF(BA$4:BA237,BA237)","v":4},{"$f":"ROW()","v":237},1]
[null,null,null,null,null,null,null,null,null,null,null,null,null,null,null,null,null,null,null,null,null,null,null,null,null,null,null,null,null,null,null,null,null,null,null,null,null,null,null,null,null,null,null,null,null,null,null,null,null,null,null,null,"COL0116538","Oncologia Urologica",{"$f":"COUNTIF(BA$4:BA238,BA238)","v":5},{"$f":"ROW()","v":238},1]
[null,null,null,null,null,null,null,null,null,null,null,null,null,null,null,null,null,null,null,null,null,null,null,null,null,null,null,null,null,null,null,null,null,null,null,null,null,null,null,null,null,null,null,null,null,null,null,null,null,"MED",null,null,"COL0116538","Urologia Pediatrica",{"$f":"COUNTIF(BA$4:BA239,BA239)","v":6},{"$f":"ROW()","v":239},1]
[null,null,null,null,null,null,null,null,null,null,null,null,null,null,null,null,null,null,null,null,null,null,null,null,null,null,null,null,null,null,null,null,null,null,null,null,null,null,null,null,null,null,null,null,null,null,null,null,null,"MED",null,null,"COL0107771","Calidad de Vida de las enfermedades respiratorias en la niñez",{"$f":"COUNTIF(BA$4:BA240,BA240)","v":1},{"$f":"ROW()","v":240},1]
[null,null,null,null,null,null,null,null,null,null,null,null,null,null,null,null,null,null,null,null,null,null,null,null,null,null,null,null,null,null,null,null,null,null,null,null,null,null,null,null,null,null,null,null,null,null,null,null,null,null,null,null,"COL0107771","Enfermedad bronquial obstructiva recurrente en niños (Asma, sibilancias inducidas por virus, sibilancias recurrentes, sibilancias persistentes de múltiples desencadenantes)",{"$f":"COUNTIF(BA$4:BA241,BA241)","v":2},{"$f":"ROW()","v":241},1]
[null,null,null,null,null,null,null,null,null,null,null,null,null,null,null,null,null,null,null,null,null,null,null,null,null,null,null,null,null,null,null,null,null,null,null,null,null,null,{"$f":"COUNTIF($AN$4:$AN$76,AL101)","v":0},"63n","MED","Grupo de Investigación en Farmacología, Toxicología y Terapéutica-UMNG","COL0114201","NA","https://scienti.colciencias.gov.co/gruplac/jsp/visualiza/visualizagr.jsp?nro=00000000011524",{"$f":"$AT$2&AV242&\":\"&$AT$2&AW242","v":"BB0:BB0"},{"$f":"ROW()","v":242},{"$f":"MINA(IF(AQ242=$BA$4:$BA$401,$BD$4:$BD$401))","v":0},{"$f":"MAXA(IF(AQ242=$BA$4:$BA$401,$BD$4:$BD$401))","v":0},null,null,null,"COL0107771","Enfermedad pulmonar obstructiva crónica del Recién Nacido",{"$f":"COUNTIF(BA$4:BA242,BA242)","v":3},{"$f":"ROW()","v":242},1]
[null,null,null,null,null,null,null,null,null,null,null,null,null,null,null,null,null,null,null,null,null,null,null,null,null,null,null,null,null,null,null,null,null,null,null,null,null,null,{"$f":"COUNTIF($AN$4:$AN$76,AL102)","v":0},"65n","MED","MEDICINA REGENERATIVA HMC UMNG","COL0125107","NA","https://scienti.colciencias.gov.co/gruplac/jsp/visualiza/visualizagr.jsp?nro=00000000012646",{"$f":"$AT$2&AV243&\":\"&$AT$2&AW243","v":"BB0:BB0"},{"$f":"ROW()","v":243},{"$f":"MINA(IF(AQ243=$BA$4:$BA$401,$BD$4:$BD$401))","v":0},{"$f":"MAXA(IF(AQ243=$BA$4:$BA$401,$BD$4:$BD$401))","v":0},null,null,null,"COL0107771","Enfermedades infecciosas de la infancia (Rinosinusitis, Croup, Bronquiolitis, Neumonía, Tuberculosis, Infección por VIH con afectación pulmonar)",{"$f":"COUNTIF(BA$4:BA243,BA243)","v":4},{"$f":"ROW()","v":243},1]
[null,null,null,null,null,null,null,null,null,null,null,null,null,null,null,null,null,null,null,null,null,null,null,null,null,null,null,null,null,null,null,null,null,null,null,null,null,null,null,null,null,null,null,null,null,null,null,null,null,null,null,null,"COL0107771","Fármaco economía de las enfermedades respiratorias en la infancia",{"$f":"COUNTIF(BA$4:BA244,BA244)","v":5},{"$f":"ROW()","v":244},1]
[null,null,null,null,null,null,null,null,null,null,null,null,null,null,null,null,null,null,null,null,null,null,null,null,null,null,null,null,null,null,null,null,null,null,null,null,null,null,null,null,null,null,null,null,null,null,null,null,null,null,null,null,"COL0016999","Elementos de concreto y de mampostería",{"$f":"COUNTIF(BA$4:BA245,BA245)","v":1},{"$f":"ROW()","v":245},1]
[null,null,null,null,null,null,null,null,null,null,null,null,null,null,null,null,null,null,null,null,null,null,null,null,null,null,null,null,null,null,null,null,null,null,null,null,null,null,null,null,null,null,null,null,null,null,null,null,null,null,null,null,"COL0016999","Instrumentación estructural y sensórica",{"$f":"COUNTIF(BA$4:BA246,BA246)","v":2},{"$f":"ROW()","v":246},1]
[null,null,null,null,null,null,null,null,null,null,null,null,null,null,null,null,null,null,null,null,null,null,null,null,null,null,null,null,null,null,null,null,null,null,null,null,null,null,null,null,null,null,null,null,null,null,null,null,null,null,null,null,"COL0016999","Materiales alternativos para construcción",{"$f":"COUNTIF(BA$4:BA247,BA247)","v":3},{"$f":"ROW()","v":247},1]
[null,null,null,null,null,null,null,null,null,null,null,null,null,null,null,null,null,null,null,null,null,null,null,null,null,null,null,null,null,null,null,null,null,null,null,null,null,null,null,null,null,null,null,null,null,null,null,null,null,null,null,null,"COL0016999","Modelación Matemática",{"$f":"COUNTIF(BA$4:BA248,BA248)","v":4},{"$f":"ROW()","v":248},1]
[null,null,null,null,null,null,null,null,null,null,null,null,null,null,null,null,null,null,null,null,null,null,null,null,null,null,null,null,null,null,null,null,null,null,null,null,null,null,null,null,null,null,null,null,null,null,null,null,null,null,null,null,"COL0016999","Vulnerabilidad Sísmica",{"$f":"COUNTIF(BA$4:BA249,BA249)","v":5},{"$f":"ROW()","v":249},1]
[null,null,null,null,null,null,null,null,null,null,null,null,null,null,null,null,null,null,null,null,null,null,null,null,null,null,null,null,null,null,null,null,null,null,null,null,null,null,null,null,null,null,null,null,null,null,null,null,null,null,null,null,"COL0149359","Gestion de la educacion y la academia",{"$f":"COUNTIF(BA$4:BA250,BA250)","v":1},{"$f":"ROW()","v":250},1]
[null,null,null,null,null,null,null,null,null,null,null,null,null,null,null,null,null,null,null,null,null,null,null,null,null,null,null,null,null,null,null,null,null,null,null,null,null,null,null,null,null,null,null,null,null,null,null,null,null,null,null,null,"COL0149359","Gestion de la salud publica",{"$f":"COUNTIF(BA$4:BA251,BA251)","v":2},{"$f":"ROW()","v":251},1]
[null,null,null,null,null,null,null,null,null,null,null,null,null,null,null,null,null,null,null,null,null,null,null,null,null,null,null,null,null,null,null,null,null,null,null,null,null,null,null,null,null,null,null,null,null,null,null,null,null,null,null,null,"COL0149359","Gestión de la ética y el conocimiento",{"$f":"COUNTIF(BA$4:BA252,BA252)","v":3},{"$f":"ROW()","v":252},1]
[null,null,null,null,null,null,null,null,null,null,null,null,null,null,null,null,null,null,null,null,null,null,null,null,null,null,null,null,null,null,null,null,null,null,null,null,null,null,null,null,null,null,null,null,null,null,null,null,null,null,null,null,"COL0096032","Bioetica, Bioderecho, Biomedicina y Biotecnologia",{"$f":"COUNTIF(BA$4:BA253,BA253)","v":1},{"$f":"ROW()","v":253},1]
[null,null,null,null,null,null,null,null,null,null,null,null,null,null,null,null,null,null,null,null,null,null,null,null,null,null,null,null,null,null,null,null,null,null,null,null,null,null,null,null,null,null,null,null,null,null,null,null,null,null,null,null,"COL0096032","Células Madre & Medicina Regenerativa",{"$f":"COUNTIF(BA$4:BA254,BA254)","v":2},{"$f":"ROW()","v":254},1]
[null,null,null,null,null,null,null,null,null,null,null,null,null,null,null,null,null,null,null,null,null,null,null,null,null,null,null,null,null,null,null,null,null,null,null,null,null,null,null,null,null,null,null,null,null,null,null,null,null,null,null,null,"COL0096032","Genética Humana",{"$f":"COUNTIF(BA$4:BA255,BA255)","v":3},{"$f":"ROW()","v":255},1]
[null,null,null,null,null,null,null,null,null,null,null,null,null,null,null,null,null,null,null,null,null,null,null,null,null,null,null,null,null,null,null,null,null,null,null,null,null,null,null,null,null,null,null,null,null,null,null,null,null,null,null,null,"COL0096032","Medicina Transfusional y Cuidado Crítico",{"$f":"COUNTIF(BA$4:BA256,BA256)","v":4},{"$f":"ROW()","v":256},1]
[null,null,null,null,null,null,null,null,null,null,null,null,null,null,null,null,null,null,null,null,null,null,null,null,null,null,null,null,null,null,null,null,null,null,null,null,null,null,null,null,null,null,null,null,null,null,null,null,null,null,null,null,"COL0027367","Aprendizaje en Economía",{"$f":"COUNTIF(BA$4:BA257,BA257)","v":1},{"$f":"ROW()","v":257},1]
[null,null,null,null,null,null,null,null,null,null,null,null,null,null,null,null,null,null,null,null,null,null,null,null,null,null,null,null,null,null,null,null,null,null,null,null,null,null,null,null,null,null,null,null,null,null,null,null,null,null,null,null,"COL0027367","Demografía y Economía Laboral",{"$f":"COUNTIF(BA$4:BA258,BA258)","v":2},{"$f":"ROW()","v":258},1]
[null,null,null,null,null,null,null,null,null,null,null,null,null,null,null,null,null,null,null,null,null,null,null,null,null,null,null,null,null,null,null,null,null,null,null,null,null,null,null,null,null,null,null,null,null,null,null,null,null,null,null,null,"COL0027367","Política Monetaria y Desarrollo Financiero",{"$f":"COUNTIF(BA$4:BA259,BA259)","v":3},{"$f":"ROW()","v":259},1]
[null,null,null,null,null,null,null,null,null,null,null,null,null,null,null,null,null,null,null,null,null,null,null,null,null,null,null,null,null,null,null,null,null,null,null,null,null,null,null,null,null,null,null,null,null,null,null,null,null,null,null,null,"COL0049659","Medios de comunicación, educación y salud",{"$f":"COUNTIF(BA$4:BA260,BA260)","v":1},{"$f":"ROW()","v":260},{"$f":"COUNTIF($AQ$3:$AQ$83,BA260)","v":1}]
[null,null,null,null,null,null,null,null,null,null,null,null,null,null,null,null,null,null,null,null,null,null,null,null,null,null,null,null,null,null,null,null,null,null,null,null,null,null,null,null,null,null,null,null,null,null,null,null,null,null,null,null,"COL0049659","Salud Pública y Nutrición, Prevención de la Enfermedad y Promoción de la Salud",{"$f":"COUNTIF(BA$4:BA261,BA261)","v":2},{"$f":"ROW()","v":261},1]
[null,null,null,null,null,null,null,null,null,null,null,null,null,null,null,null,null,null,null,null,null,null,null,null,null,null,null,null,null,null,null,null,null,null,null,null,null,null,null,null,null,null,null,null,null,null,null,null,null,null,null,null,"COL0038084","Acuaponía, recirculación e hidroponía",{"$f":"COUNTIF(BA$4:BA262,BA262)","v":1},{"$f":"ROW()","v":262},1]
[null,null,null,null,null,null,null,null,null,null,null,null,null,null,null,null,null,null,null,null,null,null,null,null,null,null,null,null,null,null,null,null,null,null,null,null,null,null,null,null,null,null,null,null,null,null,null,null,null,null,null,null,"COL0038084","Biología evolutiva de animales",{"$f":"COUNTIF(BA$4:BA263,BA263)","v":2},{"$f":"ROW()","v":263},1]
[null,null,null,null,null,null,null,null,null,null,null,null,null,null,null,null,null,null,null,null,null,null,null,null,null,null,null,null,null,null,null,null,null,null,null,null,null,null,null,null,null,null,null,null,null,null,null,null,null,null,null,null,"COL0038084","Ecotoxicología",{"$f":"COUNTIF(BA$4:BA264,BA264)","v":3},{"$f":"ROW()","v":264},1]
[null,null,null,null,null,null,null,null,null,null,null,null,null,null,null,null,null,null,null,null,null,null,null,null,null,null,null,null,null,null,null,null,null,null,null,null,null,null,null,null,null,null,null,null,null,null,null,null,null,null,null,null,"COL0038084","Energías alternas y recursos ambientales",{"$f":"COUNTIF(BA$4:BA265,BA265)","v":4},{"$f":"ROW()","v":265},1]
[null,null,null,null,null,null,null,null,null,null,null,null,null,null,null,null,null,null,null,null,null,null,null,null,null,null,null,null,null,null,null,null,null,null,null,null,null,null,null,null,null,null,null,null,null,null,null,null,null,null,null,null,"COL0038084","modelamiento de especies bajo escenario de calentamiento global",{"$f":"COUNTIF(BA$4:BA266,BA266)","v":5},{"$f":"ROW()","v":266},1]
[null,null,null,null,null,null,null,null,null,null,null,null,null,null,null,null,null,null,null,null,null,null,null,null,null,null,null,null,null,null,null,null,null,null,null,null,null,null,null,null,null,null,null,null,null,null,null,null,null,null,null,null,"COL0136423","Control óptimo estocástico",{"$f":"COUNTIF(BA$4:BA267,BA267)","v":1},{"$f":"ROW()","v":267},1]
[null,null,null,null,null,null,null,null,null,null,null,null,null,null,null,null,null,null,null,null,null,null,null,null,null,null,null,null,null,null,null,null,null,null,null,null,null,null,null,null,null,null,null,null,null,null,null,null,null,null,null,null,"COL0136423","Estadística Multivariada paramétrica y no paramétrica.",{"$f":"COUNTIF(BA$4:BA268,BA268)","v":2},{"$f":"ROW()","v":268},1]
[null,null,null,null,null,null,null,null,null,null,null,null,null,null,null,null,null,null,null,null,null,null,null,null,null,null,null,null,null,null,null,null,null,null,null,null,null,null,null,null,null,null,null,null,null,null,null,null,null,null,null,null,"COL0136423","Métodos estadísticos basados en grafos",{"$f":"COUNTIF(BA$4:BA269,BA269)","v":3},{"$f":"ROW()","v":269},1]
[null,null,null,null,null,null,null,null,null,null,null,null,null,null,null,null,null,null,null,null,null,null,null,null,null,null,null,null,null,null,null,null,null,null,null,null,null,null,null,null,null,null,null,null,null,null,null,null,null,null,null,null,"COL0136423","Optimizacion Semidefinida",{"$f":"COUNTIF(BA$4:BA270,BA270)","v":4},{"$f":"ROW()","v":270},1]
[null,null,null,null,null,null,null,null,null,null,null,null,null,null,null,null,null,null,null,null,null,null,null,null,null,null,null,null,null,null,null,null,null,null,null,null,null,null,null,null,null,null,null,null,null,null,null,null,null,null,null,null,"COL0136423","Optimización Numérica. Máquinas de Vectores de Soportes.",{"$f":"COUNTIF(BA$4:BA271,BA271)","v":5},{"$f":"ROW()","v":271},1]
[null,null,null,null,null,null,null,null,null,null,null,null,null,null,null,null,null,null,null,null,null,null,null,null,null,null,null,null,null,null,null,null,null,null,null,null,null,null,null,null,null,null,null,null,null,null,null,null,null,null,null,null,"COL0110436","Bioquímica",{"$f":"COUNTIF(BA$4:BA272,BA272)","v":1},{"$f":"ROW()","v":272},1]
[null,null,null,null,null,null,null,null,null,null,null,null,null,null,null,null,null,null,null,null,null,null,null,null,null,null,null,null,null,null,null,null,null,null,null,null,null,null,null,null,null,null,null,null,null,null,null,null,null,null,null,null,"COL0110436","Química Ambiental y Forense",{"$f":"COUNTIF(BA$4:BA273,BA273)","v":2},{"$f":"ROW()","v":273},1]
[null,null,null,null,null,null,null,null,null,null,null,null,null,null,null,null,null,null,null,null,null,null,null,null,null,null,null,null,null,null,null,null,null,null,null,null,null,null,null,null,null,null,null,null,null,null,null,null,null,null,null,null,"COL0110436","Química Inorgánica",{"$f":"COUNTIF(BA$4:BA274,BA274)","v":3},{"$f":"ROW()","v":274},1]
[null,null,null,null,null,null,null,null,null,null,null,null,null,null,null,null,null,null,null,null,null,null,null,null,null,null,null,null,null,null,null,null,null,null,null,null,null,null,null,null,null,null,null,null,null,null,null,null,null,null,null,null,"COL0110436","Química Verde",{"$f":"COUNTIF(BA$4:BA275,BA275)","v":4},{"$f":"ROW()","v":275},1]
[null,null,null,null,null,null,null,null,null,null,null,null,null,null,null,null,null,null,null,null,null,null,null,null,null,null,null,null,null,null,null,null,null,null,null,null,null,null,null,null,null,null,null,null,null,null,null,null,null,null,null,null,"COL0110436","Química de coordinación y catálisis ambiental",{"$f":"COUNTIF(BA$4:BA276,BA276)","v":5},{"$f":"ROW()","v":276},1]
[null,null,null,null,null,null,null,null,null,null,null,null,null,null,null,null,null,null,null,null,null,null,null,null,null,null,null,null,null,null,null,null,null,null,null,null,null,null,null,null,null,null,null,null,null,null,null,null,null,null,null,null,"COL0127649","Línea en Contabilidad Integral",{"$f":"COUNTIF(BA$4:BA277,BA277)","v":1},{"$f":"ROW()","v":277},1]
[null,null,null,null,null,null,null,null,null,null,null,null,null,null,null,null,null,null,null,null,null,null,null,null,null,null,null,null,null,null,null,null,null,null,null,null,null,null,null,null,null,null,null,null,null,null,null,null,null,null,null,null,"COL0033239","Prevención de la enfermedad y promoción de la salud",{"$f":"COUNTIF(BA$4:BA278,BA278)","v":1},{"$f":"ROW()","v":278},1]
[null,null,null,null,null,null,null,null,null,null,null,null,null,null,null,null,null,null,null,null,null,null,null,null,null,null,null,null,null,null,null,null,null,null,null,null,null,null,null,null,null,null,null,null,null,null,null,null,null,null,null,null,"COL0033239","Salud Mental y Calidad de Vida",{"$f":"COUNTIF(BA$4:BA279,BA279)","v":2},{"$f":"ROW()","v":279},1]
[null,null,null,null,null,null,null,null,null,null,null,null,null,null,null,null,null,null,null,null,null,null,null,null,null,null,null,null,null,null,null,null,null,null,null,null,null,null,null,null,null,null,null,null,null,null,null,null,null,null,null,null,"COL0033239","Salud Sexual y Reproductiva",{"$f":"COUNTIF(BA$4:BA280,BA280)","v":3},{"$f":"ROW()","v":280},1]
[null,null,null,null,null,null,null,null,null,null,null,null,null,null,null,null,null,null,null,null,null,null,null,null,null,null,null,null,null,null,null,null,null,null,null,null,null,null,null,null,null,null,null,null,null,null,null,null,null,null,null,null,"COL0120281","Medicina Electrodiagnostica",{"$f":"COUNTIF(BA$4:BA281,BA281)","v":1},{"$f":"ROW()","v":281},1]
[null,null,null,null,null,null,null,null,null,null,null,null,null,null,null,null,null,null,null,null,null,null,null,null,null,null,null,null,null,null,null,null,null,null,null,null,null,null,null,null,null,null,null,null,null,null,null,null,null,null,null,null,"COL0120281","Rehabilitacion Neurologica",{"$f":"COUNTIF(BA$4:BA282,BA282)","v":2},{"$f":"ROW()","v":282},1]
[null,null,null,null,null,null,null,null,null,null,null,null,null,null,null,null,null,null,null,null,null,null,null,null,null,null,null,null,null,null,null,null,null,null,null,null,null,null,null,null,null,null,null,null,null,null,null,null,null,null,null,null,"COL0120281","Rehabilitacion cardio-pulmonar",{"$f":"COUNTIF(BA$4:BA283,BA283)","v":3},{"$f":"ROW()","v":283},1]
[null,null,null,null,null,null,null,null,null,null,null,null,null,null,null,null,null,null,null,null,null,null,null,null,null,null,null,null,null,null,null,null,null,null,null,null,null,null,null,null,null,null,null,null,null,null,null,null,null,null,null,null,"COL0120281","Rehabilitacion musculo esqueletica",{"$f":"COUNTIF(BA$4:BA284,BA284)","v":4},{"$f":"ROW()","v":284},1]
[null,null,null,null,null,null,null,null,null,null,null,null,null,null,null,null,null,null,null,null,null,null,null,null,null,null,null,null,null,null,null,null,null,null,null,null,null,null,null,null,null,null,null,null,null,null,null,null,null,null,null,null,"COL0120281","Rehabilitación Infantil",{"$f":"COUNTIF(BA$4:BA285,BA285)","v":5},{"$f":"ROW()","v":285},1]
[null,null,null,null,null,null,null,null,null,null,null,null,null,null,null,null,null,null,null,null,null,null,null,null,null,null,null,null,null,null,null,null,null,null,null,null,null,null,null,null,null,null,null,null,null,null,null,null,null,null,null,null,"COL0120281","Robotica en Rehabilitación",{"$f":"COUNTIF(BA$4:BA286,BA286)","v":6},{"$f":"ROW()","v":286},1]
[null,null,null,null,null,null,null,null,null,null,null,null,null,null,null,null,null,null,null,null,null,null,null,null,null,null,null,null,null,null,null,null,null,null,null,null,null,null,null,null,null,null,null,null,null,null,null,null,null,null,null,null,"COL0045848","Epidemiología Clínica de Diabetes e Insulino resistencia",{"$f":"COUNTIF(BA$4:BA287,BA287)","v":1},{"$f":"ROW()","v":287},1]
[null,null,null,null,null,null,null,null,null,null,null,null,null,null,null,null,null,null,null,null,null,null,null,null,null,null,null,null,null,null,null,null,null,null,null,null,null,null,null,null,null,null,null,null,null,null,null,null,null,null,null,null,"COL0045848","Genética de diabetes mellitus e insulino resistencia",{"$f":"COUNTIF(BA$4:BA288,BA288)","v":2},{"$f":"ROW()","v":288},1]
[null,null,null,null,null,null,null,null,null,null,null,null,null,null,null,null,null,null,null,null,null,null,null,null,null,null,null,null,null,null,null,null,null,null,null,null,null,null,null,null,null,null,null,null,null,null,null,null,null,null,null,null,"COL0045848","Prevención Cardiovascular",{"$f":"COUNTIF(BA$4:BA289,BA289)","v":3},{"$f":"ROW()","v":289},1]
[null,null,null,null,null,null,null,null,null,null,null,null,null,null,null,null,null,null,null,null,null,null,null,null,null,null,null,null,null,null,null,null,null,null,null,null,null,null,null,null,null,null,null,null,null,null,null,null,null,null,null,null,"COL0179618","Biochips",{"$f":"COUNTIF(BA$4:BA290,BA290)","v":1},{"$f":"ROW()","v":290},1]
[null,null,null,null,null,null,null,null,null,null,null,null,null,null,null,null,null,null,null,null,null,null,null,null,null,null,null,null,null,null,null,null,null,null,null,null,null,null,null,null,null,null,null,null,null,null,null,null,null,null,null,null,"COL0179618","Diseño y fabricación de sistemas para producción de nanomateriales",{"$f":"COUNTIF(BA$4:BA291,BA291)","v":2},{"$f":"ROW()","v":291},1]
[null,null,null,null,null,null,null,null,null,null,null,null,null,null,null,null,null,null,null,null,null,null,null,null,null,null,null,null,null,null,null,null,null,null,null,null,null,null,null,null,null,null,null,null,null,null,null,null,null,null,null,null,"COL0179618","Nanofotónica, sensórica y nanotecnología",{"$f":"COUNTIF(BA$4:BA292,BA292)","v":3},{"$f":"ROW()","v":292},1]
[null,null,null,null,null,null,null,null,null,null,null,null,null,null,null,null,null,null,null,null,null,null,null,null,null,null,null,null,null,null,null,null,null,null,null,null,null,null,null,null,null,null,null,null,null,null,null,null,null,null,null,null,"COL0179618","Termo-electrónica",{"$f":"COUNTIF(BA$4:BA293,BA293)","v":4},{"$f":"ROW()","v":293},1]
[null,null,null,null,null,null,null,null,null,null,null,null,null,null,null,null,null,null,null,null,null,null,null,null,null,null,null,null,null,null,null,null,null,null,null,null,null,null,null,null,null,null,null,null,null,null,null,null,null,null,null,null,"COL0179618","Tomografia óptica coherente",{"$f":"COUNTIF(BA$4:BA294,BA294)","v":5},{"$f":"ROW()","v":294},1]
[null,null,null,null,null,null,null,null,null,null,null,null,null,null,null,null,null,null,null,null,null,null,null,null,null,null,null,null,null,null,null,null,null,null,null,null,null,null,null,null,null,null,null,null,null,null,null,null,null,null,null,null,"COL0191078","Enfermedades agudas y cronicas por exposición a agentes químicos y radiológicos",{"$f":"COUNTIF(BA$4:BA295,BA295)","v":1},{"$f":"ROW()","v":295},1]
[null,null,null,null,null,null,null,null,null,null,null,null,null,null,null,null,null,null,null,null,null,null,null,null,null,null,null,null,null,null,null,null,null,null,null,null,null,null,null,null,null,null,null,null,null,null,null,null,null,null,null,null,"COL0191078","Toxinología",{"$f":"COUNTIF(BA$4:BA296,BA296)","v":2},{"$f":"ROW()","v":296},1]
[null,null,null,null,null,null,null,null,null,null,null,null,null,null,null,null,null,null,null,null,null,null,null,null,null,null,null,null,null,null,null,null,null,null,null,null,null,null,null,null,null,null,null,null,null,null,null,null,null,null,null,null,"COL0142331","Competitividad industrial",{"$f":"COUNTIF(BA$4:BA297,BA297)","v":1},{"$f":"ROW()","v":297},1]
[null,null,null,null,null,null,null,null,null,null,null,null,null,null,null,null,null,null,null,null,null,null,null,null,null,null,null,null,null,null,null,null,null,null,null,null,null,null,null,null,null,null,null,null,null,null,null,null,null,null,null,null,"COL0142331","Innovación y educación en ingeniería",{"$f":"COUNTIF(BA$4:BA298,BA298)","v":2},{"$f":"ROW()","v":298},1]
[null,null,null,null,null,null,null,null,null,null,null,null,null,null,null,null,null,null,null,null,null,null,null,null,null,null,null,null,null,null,null,null,null,null,null,null,null,null,null,null,null,null,null,null,null,null,null,null,null,null,null,null,"COL0142331","Productividad industrial",{"$f":"COUNTIF(BA$4:BA299,BA299)","v":3},{"$f":"ROW()","v":299},1]
[null,null,null,null,null,null,null,null,null,null,null,null,null,null,null,null,null,null,null,null,null,null,null,null,null,null,null,null,null,null,null,null,null,null,null,null,null,null,null,null,null,null,null,null,null,null,null,null,null,null,null,null,"COL0142449","Cultura constitucional, paz y justicia transicional",{"$f":"COUNTIF(BA$4:BA300,BA300)","v":1},{"$f":"ROW()","v":300},1]
[null,null,null,null,null,null,null,null,null,null,null,null,null,null,null,null,null,null,null,null,null,null,null,null,null,null,null,null,null,null,null,null,null,null,null,null,null,null,null,null,null,null,null,null,null,null,null,null,null,null,null,null,"COL0142449","Bioética, derechos humanos y educación",{"$f":"COUNTIF(BA$4:BA301,BA301)","v":2},{"$f":"ROW()","v":301},1]
[null,null,null,null,null,null,null,null,null,null,null,null,null,null,null,null,null,null,null,null,null,null,null,null,null,null,null,null,null,null,null,null,null,null,null,null,null,null,null,null,null,null,null,null,null,null,null,null,null,null,null,null,"COL0142449","Política criminal, derecho penal y criminología",{"$f":"COUNTIF(BA$4:BA302,BA302)","v":3},{"$f":"ROW()","v":302},1]
[null,null,null,null,null,null,null,null,null,null,null,null,null,null,null,null,null,null,null,null,null,null,null,null,null,null,null,null,null,null,null,null,null,null,null,null,null,null,null,null,null,null,null,null,null,null,null,null,null,null,null,null,"COL0142449","Políticas públicas, derecho administrativo y desarrollo",{"$f":"COUNTIF(BA$4:BA303,BA303)","v":4},{"$f":"ROW()","v":303},1]
[null,null,null,null,null,null,null,null,null,null,null,null,null,null,null,null,null,null,null,null,null,null,null,null,null,null,null,null,null,null,null,null,null,null,null,null,null,null,null,null,null,null,null,null,null,null,null,null,null,null,null,null,"COL0142449","Propiedad intelectual y transferencia tecnológica",{"$f":"COUNTIF(BA$4:BA304,BA304)","v":5},{"$f":"ROW()","v":304},1]
[null,null,null,null,null,null,null,null,null,null,null,null,null,null,null,null,null,null,null,null,null,null,null,null,null,null,null,null,null,null,null,null,null,null,null,null,null,null,null,null,null,null,null,null,null,null,null,null,null,null,null,null,"COL0142449","Sociología jurídica, derecho público y teoría jurídica",{"$f":"COUNTIF(BA$4:BA305,BA305)","v":6},{"$f":"ROW()","v":305},1]
[null,null,null,null,null,null,null,null,null,null,null,null,null,null,null,null,null,null,null,null,null,null,null,null,null,null,null,null,null,null,null,null,null,null,null,null,null,null,null,null,null,null,null,null,null,null,null,null,null,null,null,null,"COL0178619","Administración, conservación, y manejo de Recursos Naturales Renovables",{"$f":"COUNTIF(BA$4:BA306,BA306)","v":1},{"$f":"ROW()","v":306},1]
[null,null,null,null,null,null,null,null,null,null,null,null,null,null,null,null,null,null,null,null,null,null,null,null,null,null,null,null,null,null,null,null,null,null,null,null,null,null,null,null,null,null,null,null,null,null,null,null,null,null,null,null,"COL0178619","Bioinnovación y educación",{"$f":"COUNTIF(BA$4:BA307,BA307)","v":2},{"$f":"ROW()","v":307},1]
[null,null,null,null,null,null,null,null,null,null,null,null,null,null,null,null,null,null,null,null,null,null,null,null,null,null,null,null,null,null,null,null,null,null,null,null,null,null,null,null,null,null,null,null,null,null,null,null,null,null,null,null,"COL0178619","Biología de poblaciones y evolutiva de plantas, animales y microorganismos",{"$f":"COUNTIF(BA$4:BA308,BA308)","v":3},{"$f":"ROW()","v":308},1]
[null,null,null,null,null,null,null,null,null,null,null,null,null,null,null,null,null,null,null,null,null,null,null,null,null,null,null,null,null,null,null,null,null,null,null,null,null,null,null,null,null,null,null,null,null,null,null,null,null,null,null,null,"COL0178619","Cambio climático",{"$f":"COUNTIF(BA$4:BA309,BA309)","v":4},{"$f":"ROW()","v":309},1]
[null,null,null,null,null,null,null,null,null,null,null,null,null,null,null,null,null,null,null,null,null,null,null,null,null,null,null,null,null,null,null,null,null,null,null,null,null,null,null,null,null,null,null,null,null,null,null,null,null,null,null,null,"COL0178619","Ecofisiología vegetal, animal y microbiana",{"$f":"COUNTIF(BA$4:BA310,BA310)","v":5},{"$f":"ROW()","v":310},1]
[null,null,null,null,null,null,null,null,null,null,null,null,null,null,null,null,null,null,null,null,null,null,null,null,null,null,null,null,null,null,null,null,null,null,null,null,null,null,null,null,null,null,null,null,null,null,null,null,null,null,null,null,"COL0178619","Servicios ecosistčmicos",{"$f":"COUNTIF(BA$4:BA311,BA311)","v":6},{"$f":"ROW()","v":311},1]
[]
[]
[]
[]
[]
[]
[]
[]
[]
[]
[]
[]
[]
[]
[]
[]
[]
[]
[]
[]
[]
[]
[]
[]
[]
[]
[]
[]
[]
[]
[]
[]
[]
[]
[]
[]
[]
[]
[]
[]
[]
[]
[]
[]
[]
[]
[]
[]
[]
[]
[]
[]
[]
[]
[]
[]
[]
[]
[]
[]
[]
[]
[]
[]
[]
[]
[]
[]
[]
[]
[]
[]
[]
[]
[]
[]
[]
[]
[]
[]
[]
[]
[]
[]
[]
[]
[]
[]
[]
[]
[]
[]
[]
[]
[]
[]
[]
[]
[]
[]
[]
[]
[]
[]
[]
[]
[]
[]
[]
[]
[]
[]
[]
[]
[]
[]
[]
[]
[]
[]
[]
[]
[]
[]
[]
[]
[]
[]
[]
[]
[]
[]
[]
[]
[]
[]
[]
[]
[]
[]
[]
[]
[]
[]
[]
[]
[]
[]
[]
[]
[]
[]
[]
[]
[]
[]
[]
[]
[]
[]
[]
[]
[]
[]
[]
[]
[]
[]
[]
[]
[]
[]
[]
[]
[]
[]
[]
[]
[]
[]
[]
[]
[]
[]
[]
[]
[]
[]
[]
[]
[]
[]
[]
[]
[]
[]
[]
[]
[]
[]
[]
[]
[]
[]
[]
[]
[]
[]
[]
[]
[]
[]
[]
[]
[]
[]
[]
[]
[]
[]
[]
[]
[]
[]
[]
[]
[]
[]
[]
[]
[]
[]
[]
[]
[]
[]
[]
[]
[]
[]
[]
[]
[]
[]
[]
[]
[]
[]
[]
[]
[]
[]
[]
[]
[]
[]
[]
[]
[]
[]
[]
[]
[]
[]
[]
[]
[]
[]
[]
[]
[]
[]
[]
[]
[]
[]
[]
[]
[]
[]
[]
[]
[]
[]
[]
[]
[]
[]
[]
[]
[]
[]
[]
[]
[]
[]
[]
[]
[]
[]
[]
[]
[]
[]
[]
[]
[]
[]
[]
[]
[]
[]
[]
[]
[]
[]
[]
[]
[]
[]
[]
[]
[]
[]
[]
[]
[]
[]
[]
[]
[]
[]
[]
[]
[]
[]
[]
[]
[]
[]
[]
[]
[]
[]
[]
[]
[]
[]
[]
[]
[]
[]
[]
[]
[]
[]
[]
[]
[]
[]
[]
[]
[]
[]
[]
[]
[]
[]
[]
[]
[]
[]
[]
[]
[]
[]
[]
[]
[]
[]
[]
[]
[]
[]
[]
[]
[]
[]
[]
[]
[]
[]
[]
[]
[]
[]
[]
[]
[]
[]
[]
[]
[]
[]
[]
[]
[]
[]
[]
[]
[]
[]
[]
[]
[]
[]
[]
[]
[]
[]
[]
[]
[]
[]
[]
[]
[]
[]
[]
[]
[]
[]
[]
[]
[]
[]
[]
[]
[]
[]
[]
[]
[]
[]
[]
[]
[]
[]
[]
[]
[]
[]
[]
[]
[]
[]
[]
[]
[]
[]
[]
[]
[]
[]
[]
[]
[]
[]
[]
[]
[]
[]
[]
[]
[]
[]
[]
[]
[]
[]
[]
[]
[]
[]
[]
[]
[]
[]
[]
[]
[]
[]
[]
[]
[]
[]
[]
[]
[]
[]
[]
[]
[]
[]
[]
[]
[]
[]
[]
[]
[]
[]
[]
[]
[]
[]
[]
[]
[]
[]
[]
[]
[]
[]
[]
[]
[]
[]
[]
[]
[]
[]
[]
[]
[]
[]
[]
[]
[]
[]
[]
[]
[]
[]
[]
[]
[]
[]
[]
[]
[]
[]
[]
[]
[]
[]
[]
[]
[]
[]
[]
[]
[]
[]
[]
[]
[]
[]
[]
[]
[]
[]
[]
[]
[]
[]
[]
[]
[]
[]
[]
[]
[]
[]
[]
[]
[]
[]
[]
[]
[]
[]
[]
[]
[]
[]
[]
[]
[]
[]
[]
[]
[]
[]
[]
[]
[]
[]
[]
[]
[]
[]
[]
[]
[]
[]
[]
[]
[]
[]
[]
[]
[]
[]
[]
[]
[]
[]
[]
[]
[]
[]
[]
[]
[]
[]
[]
[]
[]
[]
[]
[]
[]
[]
[]
[]
[]
[]
[]
[]
[]
[]
[]
[]
[]
[]
[]
[]
[]
[]
[]
[]
[]
[]
[]
[]
[]
[]
[]
[]
[]
[]
[]
[]
[]
[]
[]
[]
[]
[]
[]
[]
[]
[]
[]
[]
[]
[]
[]
[]
[]
[]
[]
[]
[]
[]
[]
[]
[]
[]
[]
[]
[]
[]
[]
[]
[]
[]
[]
[]
[]
[]
[]
[]
[]
[]
[]
[]
[]
[]
[]
[]
[]
[]
[]
[]
[]
[]
[]
[]
[]
[]
[]
[]
[]
[]
[]
[]
[]
[]
[]
[]
[]
[]
[]
[]
[]
[]
[]
[]
[]
[]
[]
[]
[]
[]
[]
[]
[]
[]
[]
[]
[]
[]
[]
[]
[]
[]
[]
[]
[]
[]
[]
[]
[]
[]
[]
[]
[]
[]
[]
[]
[]
[]
[]
[]
[]
[]
[]
[]
[]
[]
[]
[]
[]
[]
[]
[]
[]
[]
[]
[]
[]
[]
[]
[]
[]
[]
[]
[]
[]
[]
[]
[]
[]
[]
[]
[]
[]
[]
[]
[]
[]
[]
[]
[]
[]
[]
[]
[]
[]
[]
[]
[]
[]
[]
[]
[]
[]
[]
[]
[]
[]
[]
[]
[]
[]
[]
[]
[]
[]
[]
[]
[]
[]
[]
[]
[]
[]
[]
[]
[]
[]
[]
[]
[]
[]
[]
[]
[]
[]
[]
[]
[]
[]
[]
[]
[]
[]
[]
[]
[]
[]
[]
[]
[]
[]
[]
[]
[]
[]
[]
[]
[]
[]
[]
[]
[]
[]
[]
[]
[]
[]
[]
[]
[]
[]
[]
[]
[]
[]
[]
[]
[]
[]
[]
[]
[]
[]
[]
[]
[]
[]
[]
[]
[]
[]
[]
[]
[]
[]
[]
[]
[]
[]
[]
[]
[]
[]
[]
[]
[]
[]
[]
[]
[]
[]
[]
[]
[]
[]
[]
[]
[]
[]
[]
[]
[]
[]
[]
[]
[]
[]
[]
[]
[]
[]
[]
[]
[]
[]
[]
[]
[]
[]
[]
[]
[]
[]
[]
[]
[]
[]
[]
[]
[]
[]
[]
[]
[]
[]
[]
[]
[]
[]
[]
[]
[]
[]
[]
[]
[]
[]
[]
[]
[]
[]
[]
[]
[]
[]
[]
[]
[]
[]
[]
[]
[]
[]
[]
[]
[]
[]
[]
[]
[]
[]
[]
[]
[]
[]
[]
[]
[]
[]
[]
[]
[]
[]
[]
[]
[]
[]
[]
[]
[]
[]
[]
[]
[]
[]
[]
[]
[]
[]
[]
[]
[]
[]
[]
[]
[]
[]
[]
[]
[]
[]
[]
[]
[]
[]
[]
[]
[]
[]
[]
[]
[]
[]
[]
[]
[]
[]
[]
[]
[]
[]
[]
[]
[]
[]
[]
[]
[]
[]
[]
[]
[]
[]
[]
[]
[]
[]
[]
[]
[]
[]
[]
[]
[]
[]
[]
[]
[]
[]
[]
[]
[]
[]
[]
[]
[]
[]
[]
[]
[]
[]
[]
[]
[]
[]
[]
[]
[]
[]
[]
[]
[]
[]
[]
[]
[]
[]
[]
[]
[]
[]
[]
[]
[]
[]
[]
[]
[]
[]
[]
[]
[]
[]
[]
[]
[]
[]
[]
[]
[]
[]
[]
[]
[]
[]
[]
[]
[]
[]
[]
[]
[]
[]
[]
[]
[]
[]
[]
[]
[]
[]
[]
[]
[]
[]
[]
[]
[]
[]
[]
[]
[]
[]
[]
[]
[]
[]
[]
[]
[]
[]
[]
[]
[]
[]
[]
[]
[]
[]
[]
[]
[]
[]
[]
[]
[]
[]
[]
[]
[]
[]
[]
[]
[]
[]
[]
[]
[]
[]
[]
[]
[]
[]
[]
[]
[]
[]
[]
[]
[]
[]
[]
[]
[]
[]
[]
[]
[]
[]
[]
[]
[]
[]
[]
[]
[]
[]
[]
[]
[]
[]
[]
[]
[]
[]
[]
[]
[]
[]
[]
[]
[]
[]
[]
[]
[]
[]
[]
[]
[]
[]
[]
[]
[]
[]
[]
[]
[]
[]
[]
[]
[]
[]
[]
[]
[]
[]
[]
[]
[]
[]
[]
[]
[]
[]
[]
[]
[]
[]
[]
[]
[]
[]
[]
[]
[]
[]
[]
[]
[]
[]
[]
[]
[]
[]
[]
[]
[]
[]
[]
[]
[]
[]
[]
[]
[]
[]
[]
[]
[]
[]
[]
[]
[]
[]
[]
[]
[]
[]
[]
[]
[]
[]
[]
[]
[]
[]
[]
[]
[]
[]
[]
[]
[]
[]
[]
[]
[]
[]
[]
[]
[]
[]
[]
[]
[]
[]
[]
[]
[]
[]
[]
[]
[]
[]
[]
[]
[]
[]
[]
[]
[]
[]
[]
[]
[]
[]
[]
[]
[]
[]
[]
[]
[]
[]
[]
[]
[]
[]
[]
[]
[]
[]
[]
[]
[]
[]
[]
[]
[]
[]
[]
[]
[]
[]
[]
[]
[]
[]
[]
[]
[]
[]
[]
[]
[]
[]
[]
[]
[]
[]
[]
[]
[]
[]
[]
[]
[]
[]
[]
[]
[]
[]
[]
[]
[]
[]
[]
[]
[]
[]
[]
[]
[]
[]
[]
[]
[]
[]
[]
[]
[]
[]
[]
[]
[]
[]
[]
[]
[]
[]
[]
[]
[]
[]
[]
[]
[]
[]
[]
[]
[]
[]
[]
[]
[]
[]
[]
[]
[]
[]
[]
[]
[]
[]
[]
[]
[]
[]
[]
[]
[]
[]
[]
[]
[]
[]
[]
[]
[]
[]
[]
[]
[]
[]
[]
[]
[]
[]
[]
[]
[]
[]
[]
[]
[]
[]
[]
[]
[]
[]
[]
[]
[]
[]
[]
[]
[]
[]
[]
[]
[]
[]
[]
[]
[]
[]
[]
[]
[]
[]
[]
[]
[]
[]
[]
[]
[]
[]
[]
[]
[]
[]
[]
[]
[]
[]
[]
[]
[]
[]
[]
[]
[]
[]
[]
[]
[]
[]
[]
[]
[]
[]
[]
[]
[]
[]
[]
[]
[]
[]
[]
[]
[]
[]
[]
[]
[]
[]
[]
[]
[]
[]
[]
[]
[]
[]
[]
[]
[]
[]
[]
[]
[]
[]
[]
[]
[]
[]
[]
[]
[]
[]
[]
[]
[]
[]
[]
[]
[]
[]
[]
[]
[]
[]
[]
[]
[]
[]
[]
[]
[]
[]
[]
[]
[]
[]
[]
[]
[]
[]
[]
[]
[]
[]
[]
[]
[]
[]
[]
[]
[]
[]
[]
[]
[]
[]
[]
[]
[]
[]
[]
[]
[]
[]
[]
[]
[null,null,null,null,null,null,null,null,null,null,null,null,null,null,null,null,null,null,null,null,null,null,null,null,null,null,null,null,null,null,null,null,null,null,null,null,null,null,null,null,null,null,null,null,null,null,null,null,null,null,null,null,null,null,null,null,null,null,null,null,null,null,null,null,null,null,null,null,null,null,null,null,null,null,null,null,null,null,null,null,null,null,null,null,null,null,null,null,null,null,null,null,null,null,null,null,null,null,null,null,null,null,null,null,null,null,null,null,null,null,null,null,null,null,null,null,null,null,null,null,null,null,null,null,null,null,null,null,null,null,null,null,null,null,null,null,null,null,null,null,null,null,null,null,null,null,null,null,null,null,null,null,null,null,null,null,null,null,null,null,null,null,null,null,null,null,null,null,null,null,null,null,null,null,null,null,null,null,null,null,null,null,null,null,null,null,null,null,null,null,null,null,null,null,null,null,null,null,null,null,null,null,null,null,null,null,null,null,null,null,null,null,null,null,null,null,null,null,null,null,null,null,null,null,null,null,null,null,null,null,null,null,null,null,null,null,null,null,null,null,null,null,null,null,null,null,null,null,null,null,null,null,null,null,null,null,null,null,null,null,null,null,null,null,null,null,null,null,null,null,null,null,null,null,null,null,null,null,null,null,null,null,null,null,null,null,null,null,null,null,null,null,null,null,null,null,null,null,null,null,null,null,null,null,null,null,null,null,null,null,null,null,null,null,null,null,null,null,null,null,null,null,null,null,null,null,null,null,null,null,null,null,null,null,null,null,null,null,null,null,null,null,null,null,null,null,null,null,null,null,null,null,null,null,null,null,null,null,null,null,null,null,null,null,null,null,null,null,null,null,null,null,null,null,null,null,null,null,null,null,null,null,null,null,null,null,null,null,null,null,null,null,null,null,null,null,null,null,null,null,null,null,null,null,null,null,null,null,null,null,null,null,null,null,null,null,null,null,null,null,null,null,null,null,null,null,null,null,null,null,null,null,null,null,null,null,null,null,null,null,null,null,null,null,null,null,null,null,null,null,null,null,null,null,null,null,null,null,null,null,null,null,null,null,null,null,null,null,null,null,null,null,null,null,null,null,null,null,null,null,null,null,null,null,null,null,null,null,null,null,null,null,null,null,null,null,null,null,null,null,null,null,null,null,null,null,null,null,null,null,null,null,null,null,null,null,null,null,null,null,null,null,null,null,null,null,null,null,null,null,null,null,null,null,null,null,null,null,null,null,null,null,null,null,null,null,null,null,null,null,null,null,null,null,null,null,null,null,null,null,null,null,null,null,null,null,null,null,null,null,null,null,null,null,null,null,null,null,null,null,null,null,null,null,null,null,null,null,null,null,null,null,null,null,null,null,null,null,null,null,null,null,null,null,null,null,null,null,null,null,null,null,null,null,null,null,null,null,null,null,null,null,null,null,null,null,null,null,null,null,null,null,null,null,null,null,null,null,null,null,null,null,null,"Luis.chirivi"]
[null,null,null,null,null,null,null,null,null,null,null,null,null,null,null,null,null,null,null,null,null,null,null,null,null,null,null,null,null,null,null,null,null,null,null,null,null,null,null,null,null,null,null,null,null,null,null,null,null,null,null,null,null,null,null,null,null,null,null,null,null,null,null,null,null,null,null,null,null,null,null,null,null,null,null,null,null,null,null,null,null,null,null,null,null,null,null,null,null,null,null,null,null,null,null,null,null,null,null,null,null,null,null,null,null,null,null,null,null,null,null,null,null,null,null,null,null,null,null,null,null,null,null,null,null,null,null,null,null,null,null,null,null,null,null,null,null,null,null,null,null,null,null,null,null,null,null,null,null,null,null,null,null,null,null,null,null,null,null,null,null,null,null,null,null,null,null,null,null,null,null,null,null,null,null,null,null,null,null,null,null,null,null,null,null,null,null,null,null,null,null,null,null,null,null,null,null,null,null,null,null,null,null,null,null,null,null,null,null,null,null,null,null,null,null,null,null,null,null,null,null,null,null,null,null,null,null,null,null,null,null,null,null,null,null,null,null,null,null,null,null,null,null,null,null,null,null,null,null,null,null,null,null,null,null,null,null,null,null,null,null,null,null,null,null,null,null,null,null,null,null,null,null,null,null,null,null,null,null,null,null,null,null,null,null,null,null,null,null,null,null,null,null,null,null,null,null,null,null,null,null,null,null,null,null,null,null,null,null,null,null,null,null,null,null,null,null,null,null,null,null,null,null,null,null,null,null,null,null,null,null,null,null,null,null,null,null,null,null,null,null,null,null,null,null,null,null,null,null,null,null,null,null,null,null,null,null,null,null,null,null,null,null,null,null,null,null,null,null,null,null,null,null,null,null,null,null,null,null,null,null,null,null,null,null,null,null,null,null,null,null,null,null,null,null,null,null,null,null,null,null,null,null,null,null,null,null,null,null,null,null,null,null,null,null,null,null,null,null,null,null,null,null,null,null,null,null,null,null,null,null,null,null,null,null,null,null,null,null,null,null,null,null,null,null,null,null,null,null,null,null,null,null,null,null,null,null,null,null,null,null,null,null,null,null,null,null,null,null,null,null,null,null,null,null,null,null,null,null,null,null,null,null,null,null,null,null,null,null,null,null,null,null,null,null,null,null,null,null,null,null,null,null,null,null,null,null,null,null,null,null,null,null,null,null,null,null,null,null,null,null,null,null,null,null,null,null,null,null,null,null,null,null,null,null,null,null,null,null,null,null,null,null,null,null,null,null,null,null,null,null,null,null,null,null,null,null,null,null,null,null,null,null,null,null,null,null,null,null,null,null,null,null,null,null,null,null,null,null,null,null,null,null,null,null,null,null,null,null,null,null,null,null,null,null,null,null,null,null,null,null,null,null,null,null,null,null,null,null,null,null,null,null,null,null,null,null,null,null,null,null,null,null,null,null,null,null,null,null,null,null,null,null,null,null,null,null,null,null,null,null,null,null,"Luis.chirivi"]

{"sheet":"General","index":1,"n_rows":96,"n_cols":28,"rows_kept":96,"cut":false,"hidden":false,"merged":[[40,7,40,8],[38,2,38,6],[39,2,39,6],[13,2,13,5],[13,7,13,8],[27,2,27,8],[33,2,33,6],[35,2,35,8],[37,2,37,8],[25,2,25,8],[19,2,19,8],[23,2,23,8],[68,1,68,8],[43,2,43,8],[47,2,47,8],[44,2,44,6],[45,2,45,6],[46,7,46,8],[49,2,49,8],[50,2,50,6],[51,2,51,6],[52,7,52,8],[53,2,53,8],[55,2,55,8],[56,2,56,6],[57,2,57,6],[58,7,58,8],[59,2,59,8],[41,2,41,8],[31,2,31,8],[32,2,32,6],[34,7,34,8],[1,1,2,6],[12,2,12,5],[12,7,12,8],[8,1,8,8],[9,2,9,5],[9,7,9,8],[6,2,6,5],[6,7,6,8],[10,2,10,5],[10,7,10,8],[17,2,17,8],[21,2,21,8]]}
[1,null,null,null,null,null,null,{"$f":"IFERROR(VLOOKUP($C$7,Dt!AD81:AE83,2,0),\"INV\")","v":"PAZ"},{"$f":"IFERROR(VLOOKUP($C$13,Dt!$AC$6:$AD$13,2,0),\"NT\")","v":"NT"},null,null,null,null,null,null,null,null,null,null,null,null,null,null,"Número de Paginas del documento final , se puede ajustar."]
[null,"PRESENTACIÓN DE PROYECTOS \nDE INVESTIGACIÓN",null,null,null,null,null,"Fecha de Emisión: 2019/03/18","IN-IV-F-14",null,null,null,null,null,null,null,null,null,".",null,null,null,null,11,null,null,"NN","No. Grupo"]
[null,null,null,null,null,null,null,"Revisión N°:\n4",{"$f":"\"Página \"&A1&\" de \"&Dt_TPG","v":"Página 1 de 11"},null,null,null,null,null,null,null,null,null,"Documento de Prueba 06 Marzo 2018",null,null,null,null,null,null,null,44,{"$f":"VLOOKUP($AA3,Dt!$AN$3:$AR$76,3,0)","v":"ACCEDER"}]
[null,null,null,null,null,null,null,null,null,null,null,null,null,null,null,null,null,null,null,null,null,null,null,null,null,null,45,{"$f":"VLOOKUP($AA4,Dt!$AN$3:$AR$76,3,0)","v":"Agua y Energía - AyE"}]
["1.-","Información general del proyecto.",null,null,null,null,null,null,{"$f":"\"Vrs.- \"&TEXT(DAY($U$5),\"00\")&\".\"&(TEXT(MONTH($U$5),\"00\"))&U7","v":"Vrs.- 05.09"},null,null,null,null,null,null,null,null,null,"Fecha Actualización ",null,{"$f":"I73","v":"2019-09-05"},null,null,"Hoy es ",null,null,10,{"$f":"VLOOKUP($AA5,Dt!$AN$3:$AR$76,3,0)","v":"Agrobiología de especies vegetales promisorias de clima frío"}]
[null,null,null,null,null,null,null,null,null,null,null,null,null,null,null,null,null,null,null,null,null,null,null,null,null,null,34,{"$f":"VLOOKUP($AA6,Dt!$AN$3:$AR$76,3,0)","v":"BioethicsGroup"}]
[null,"Convocatoria:","Investigación en Paz y Pos-acuerdo. SUE",null,null,null,"Código o Radicado",null,null,null,null,null,null,null,null,null,null,null,null,null,"",null,null,{"$f":"NOW()","v":"2019-09-06T16:08:49.710"},null,null,67,{"$f":"VLOOKUP($AA7,Dt!$AN$3:$AR$76,3,0)","v":"BioGenEtica & BioDerecho"}]
[null,null,null,null,null,null,null,null,null,null,null,null,null,null,null,null,null,null,null,null,null,null,null,null,null,null,53,{"$f":"VLOOKUP($AA8,Dt!$AN$3:$AR$76,3,0)","v":"BONE"}]
[null,"Formato: actualizado a 06 Sep 2019",null,null,null,null,null,null,null,null,null,null,null,null,null,null,null,null,{"$f":"Cel_Fac","v":"NT"},null,null,null,null,null,null,null,52,{"$f":"VLOOKUP($AA9,Dt!$AN$3:$AR$76,3,0)","v":"CATCH"}]
[null,"Líder: ","Luis Alexander Chirivi",null,null,null,"Teléfonos :",null,null,null,null,null,null,null,null,null,null,null,null,null,null,null,null,"2019-03-18",null,null,59,{"$f":"VLOOKUP($AA10,Dt!$AN$3:$AR$76,3,0)","v":"Células Stem Adultas"}]
[null,"Correo:",null,null,null,null," Sede:",null,null,null,null,null,null,null,null,null,null,null,null,null,null,null,null,null,null,null,33,{"$f":"VLOOKUP($AA11,Dt!$AN$3:$AR$76,3,0)","v":"Cultura y Desarrollo Humano"}]
[null,"Este proyecto es continuación de un proyecto anterior",null,null,null,"No","El proyecto tiene o ha tenido financiación",null,"No",null,null,null,null,null,null,null,null,null,null,null,null,null,null,null,null,null,41,{"$f":"VLOOKUP($AA12,Dt!$AN$3:$AR$76,3,0)","v":"DAVINCI"}]
[null,"Facultad del Líder investigador",null,null,null,null,"Programa del Líder investigador",null,null,null,null,"Clasificación Grupo Máximo",null,null,null,null,null,null,null,null,null,null,null,null,null,null,4,{"$f":"VLOOKUP($AA13,Dt!$AN$3:$AR$76,3,0)","v":"Control Biológico UMNG"}]
[null,"Palabras Clave",null,null,null,null,"Áreas Colciencias",null,null,null,null,null,null,null,null,null,null,null,null,null,null,null,null,42796,null,null,71,{"$f":"VLOOKUP($AA14,Dt!$AN$3:$AR$76,3,0)","v":"DIVERSITAS"}]
[null,null,null,null,null,null,null,null,null,null,null,null,null,null,null,null,null,null,2,null,null,null,null,null,null,null,13,{"$f":"VLOOKUP($AA15,Dt!$AN$3:$AR$76,3,0)","v":"ECMU (Evaluacion en Competencias y Matemáticas Universitarias)"}]
["2.-","Información de Grupos de Investigación UMNG asociados al proyecto",null,null,null,null,null,null,null,null,null,null,null,null,null,null,null,null,null,null,null,null,null,null,null,null,66,{"$f":"VLOOKUP($AA16,Dt!$AN$3:$AR$76,3,0)","v":"EDUMECIS"}]
[null,null,null,null,null,null,null,null,null,null,null,null,null,null,null,null,null,null,null,null,null,null,null,null,null,null,48,{"$f":"VLOOKUP($AA17,Dt!$AN$3:$AR$76,3,0)","v":"Energia alternativa, Centro Multidisciplinario de Investigación"}]
[null,"Grupo UMNG Principal","Agua y Energía - AyE",null,null,null,null,null,null,null,null,{"$f":"IFERROR(VLOOKUP($C18,Dt!$AP$3:$AQ$76,2,0),0)","v":"COL0026486"},{"$f":"LEN(C18)","v":20},null,null,null,null,null,null,null,null,null,null,null,null,null,64,{"$f":"VLOOKUP($AA18,Dt!$AN$3:$AR$76,3,0)","v":"Epidemiología molecular de enfermedades endocrinas"}]
[null,"Link Colciencias:",{"$f":"IFERROR(VLOOKUP(L18,Dt!$AQ$3:$AS$76,3,0),\"\")","v":"https://scienti.colciencias.gov.co/gruplac/jsp/visualiza/visualizagr.jsp?nro=00000000000767"},null,null,null,null,null,{"$f":"IFERROR(VLOOKUP(L18,Dt!$AQ$3:$AS$76,2,0),\"\")","v":"C"},null,null,{"$f":"COUNTIF($O$7:$O$9,I19)","v":0},null,null,null,null,null,null,null,null,null,null,null,null,null,null,70,{"$f":"VLOOKUP($AA19,Dt!$AN$3:$AR$76,3,0)","v":"Epidemiología y Salud Colectiva "}]
[null,"Líneas",null,null,null,null,null,null,null,null,null,{"$f":"IFERROR(\"DT!\"&VLOOKUP($C18,Dt!$AP$3:$AT$76,5,0),0)","v":"DT!BB135:BB139"},null,null,null,null,null,null,null,null,null,null,null,null,null,null,7,{"$f":"VLOOKUP($AA20,Dt!$AN$3:$AR$76,3,0)","v":"Estadística, Control y Optimización"}]
[null,null,null,null,null,null,null,null,null,null,null,null,null,null,null,null,null,null,null,null,null,null,null,null,null,null,42,{"$f":"VLOOKUP($AA21,Dt!$AN$3:$AR$76,3,0)","v":"Estructuras y sísmica"}]
[{"$f":"IFERROR(VLOOKUP(D22,Dt!$AP$3:$AU$76,5,0),\"\")","v":""},"Grupo UMNG Aliado 1",null,null,null,null,null,null,null,null,null,{"$f":"IFERROR(VLOOKUP($C22,Dt!$AP$3:$AQ$76,2,0),0)","v":0},null,null,null,null,null,null,null,null,null,null,null,null,null,null,29,{"$f":"VLOOKUP($AA22,Dt!$AN$3:$AR$76,3,0)","v":"Estudios Internacionales y Políticos"}]
[null,"Link Colciencias:",{"$f":"IFERROR(VLOOKUP(L22,Dt!$AQ$3:$AS$76,3,0),\"\")","v":""},null,null,null,null,null,{"$f":"IFERROR(VLOOKUP(L22,Dt!$AQ$3:$AS$76,2,0),\"\")","v":""},null,null,null,null,null,null,null,null,null,null,null,null,null,null,null,null,null,6,{"$f":"VLOOKUP($AA23,Dt!$AN$3:$AR$76,3,0)","v":"Fitopatologia molecular"}]
[{"$f":"IFERROR(VLOOKUP($C24,Dt!$BB$3:$BD$293,3,0),\"\")","v":""},"Líneas",null,null,null,null,null,null,null,null,null,{"$f":"IFERROR(\"DT!\"&VLOOKUP($C22,Dt!$AP$3:$AT$76,5,0),0)","v":0},null,null,null,null,null,null,null,null,null,null,null,null,null,null,1,{"$f":"VLOOKUP($AA24,Dt!$AN$3:$AR$76,3,0)","v":"Fitoplasmas y Virus"}]
[null,null,null,null,null,null,null,null,null,null,null,null,null,null,null,null,null,null,null,null,null,null,null,null,null,null,68,{"$f":"VLOOKUP($AA25,Dt!$AN$3:$AR$76,3,0)","v":"GAFRED"}]
[null,"Grupo UMNG Aliado 2",null,null,null,null,null,null,null,null,null,{"$f":"IFERROR(VLOOKUP($C26,Dt!$AP$3:$AQ$76,2,0),0)","v":0},null,null,null,null,null,null,null,null,null,null,null,null,null,null,47,{"$f":"VLOOKUP($AA26,Dt!$AN$3:$AR$76,3,0)","v":"GAV"}]
[null,"Link Colciencias:",{"$f":"IFERROR(VLOOKUP(L26,Dt!$AQ$3:$AS$76,3,0),\"\")","v":""},null,null,null,null,null,{"$f":"IFERROR(VLOOKUP(L26,Dt!$AQ$3:$AS$76,2,0),\"\")","v":""},null,null,null,null,null,null,null,null,null,null,null,null,null,null,null,null,null,28,{"$f":"VLOOKUP($AA27,Dt!$AN$3:$AR$76,3,0)","v":"GECS (Grupo de Estudios en Educación, Contabilidad y Sociedad)"}]
[null,"Líneas",null,null,null,null,null,null,null,null,null,{"$f":"IFERROR(\"DT!\"&VLOOKUP($C26,Dt!$AP$3:$AT$76,5,0),0)","v":0},null,null,null,null,null,null,null,null,null,null,null,null,null,null,36,{"$f":"VLOOKUP($AA28,Dt!$AN$3:$AR$76,3,0)","v":"GEOTECNIA"}]
[null,null,null,null,null,null,null,null,null,null,null,null,null,null,null,null,null,null,null,null,null,null,null,null,null,null,40,{"$f":"VLOOKUP($AA29,Dt!$AN$3:$AR$76,3,0)","v":"GIDAM"}]
["3.-","Instituciones Externas participantes.",null,null,null,null,{"$f":"ROW()","v":30},"No. de Instituciones: -->",2,null,null,null,null,null,null,null,null,null,null,null,null,null,null,null,null,null,49,{"$f":"VLOOKUP($AA30,Dt!$AN$3:$AR$76,3,0)","v":"GI-iTEC - Grupo de Investigación e innovación Tecnológica en Electrónica y Comunicaciones"}]
[null,null,"s",null,null,null,null,null,null,null,null,null,null,null,null,null,null,null,null,null,null,null,null,null,null,null,46,{"$f":"VLOOKUP($AA31,Dt!$AN$3:$AR$76,3,0)","v":"GISSIC: Grupo de Investigacion en Seguridad y Sistemas de Comunicaciones"}]
[null,"Nombre 1",null,null,null,null,null,null,null,null,null,null,null,null,null,null,null,null,null,null,null,null,null,null,null,null,51,{"$f":"VLOOKUP($AA32,Dt!$AN$3:$AR$76,3,0)","v":"GREST"}]
[null,"Grupo 1",null,null,null,null,null,"Clasificación","NA",null,null,null,null,null,null,null,null,null,null,null,null,null,null,null,null,null,16,{"$f":"VLOOKUP($AA33,Dt!$AN$3:$AR$76,3,0)","v":"Grupo de Derecho Privado"}]
[null,"Investigadores",null,null,null,null,null,"Presupuesto en \nplan de compras:",{"$f":"R82","v":0},null,null,null,null,null,null,null,null,null,null,null,null,null,null,null,null,null,15,{"$f":"VLOOKUP($AA34,Dt!$AN$3:$AR$76,3,0)","v":"Grupo de derecho público "}]
[null," Nivel o alcance institucional de la entidad externa es :",null,null,null,null,null,{"$f":"$M$67","v":"."},null,null,null,null,null,null,null,null,null,null,null,null,null,null,null,null,null,null,14,{"$f":"VLOOKUP($AA35,Dt!$AN$3:$AR$76,3,0)","v":"Grupo de Docencia e Investigación en Física"}]
[null,"Link Colciencias:",null,null,null,null,null,null,null,null,null,{"$f":"IFERROR(SEARCH(M36,C36,1),0)","v":0},"http://scienti.colciencias.gov.co:8085",null,null,null,null,null,null,null,null,null,null,null,null,null,8,{"$f":"VLOOKUP($AA36,Dt!$AN$3:$AR$76,3,0)","v":"Grupo de Ecotoxicología, Evolución, Medio ambiente y conservación (E = mc2)"}]
[null,null,null,null,null,null,null,null,null,null,null,null,null,null,null,null,null,null,null,null,null,null,null,null,null,null,27,{"$f":"VLOOKUP($AA37,Dt!$AN$3:$AR$76,3,0)","v":"Grupo de estudios contemporáneos en contabilidad, gestión y organizaciones - GECCGO"}]
[null,"Nombre 2",null,null,null,null,null,null,null,null,null,null,null,null,null,null,null,null,null,null,null,null,null,null,null,null,25,{"$f":"VLOOKUP($AA38,Dt!$AN$3:$AR$76,3,0)","v":"Grupo de Estudios en Ciencias Económicas - CIE"}]
[null,"Grupo 2",null,null,null,null,null,"Clasificación",null,null,null,null,null,null,null,null,null,null,null,null,null,null,null,null,null,null,26,{"$f":"VLOOKUP($AA39,Dt!$AN$3:$AR$76,3,0)","v":"Grupo de Estudios Macroeconómicos"}]
[null,"Investigadores",null,null,null,null,null,"Presupuesto en \nplan de compras:",{"$f":"R83","v":0},null,null,null,null,null,null,null,null,null,null,null,null,null,null,null,null,null,69,{"$f":"VLOOKUP($AA40,Dt!$AN$3:$AR$76,3,0)","v":"Grupo de inmunología Clínica Aplicada (GICA)"}]
[null," Nivel o alcance institucional de la entidad externa es :",null,null,null,null,null,{"$f":"IF(I40>0,$M$67,\".\")","v":"."},null,null,null,null,null,null,null,null,null,null,null,null,null,null,null,null,null,null,2,{"$f":"VLOOKUP($AA41,Dt!$AN$3:$AR$76,3,0)","v":"Grupo de investigación en Biodiversidad y ecología de abejas silvestres"}]
[null,"Link Colciencias:",null,null,null,null,null,null,null,null,null,{"$f":"IFERROR(SEARCH(M42,C42,1),0)","v":0},"http://scienti.colciencias.gov.co:8085",null,null,null,null,null,null,null,null,null,null,null,null,null,58,{"$f":"VLOOKUP($AA42,Dt!$AN$3:$AR$76,3,0)","v":"Grupo de Investigacion en Dermatologia HMC"}]
[null,null,null,null,null,null,null,null,null,null,null,null,null,null,null,null,null,null,null,null,null,null,null,null,null,null,9,{"$f":"VLOOKUP($AA43,Dt!$AN$3:$AR$76,3,0)","v":"Grupo de Investigación en Hidrobiología Aplicada (HIDROBIA)"}]
[null,"Nombre3",null,null,null,null,null,null,null,null,null,null,null,null,null,null,null,null,null,null,null,null,null,null,null,null,35,{"$f":"VLOOKUP($AA44,Dt!$AN$3:$AR$76,3,0)","v":"Grupo de Investigación en Multimedia -GIM-"}]
[null,"Grupo 3",null,null,null,null,null,"Clasificación",null,null,null,null,null,null,null,null,null,null,null,null,null,null,null,null,null,null,12,{"$f":"VLOOKUP($AA45,Dt!$AN$3:$AR$76,3,0)","v":"Grupo de investigación en química ambiental y tecnologías limpias - QUATELI"}]
[null,"Investigadores",null,null,null,null,null,"Presupuesto en \nplan de compras:",{"$f":"R84","v":0},null,null,null,null,null,null,null,null,null,null,null,null,null,null,null,null,null,63,{"$f":"VLOOKUP($AA46,Dt!$AN$3:$AR$76,3,0)","v":"Grupo de Investigacion en Urologia HMC"}]
[null," Nivel o alcance institucional de la entidad externa es :",null,null,null,null,null,{"$f":"IF(I46>0,$M$67,\".\")","v":"."},null,null,null,null,null,null,null,null,null,null,null,null,null,null,null,null,null,null,73,{"$f":"VLOOKUP($AA47,Dt!$AN$3:$AR$76,3,0)","v":"Grupo de investigaciones sobre agentes radiológicos, biológicos y químicos"}]
[null,"Link Colciencias:",null,null,null,null,null,null,null,null,null,{"$f":"IFERROR(SEARCH(M48,C48,1),0)","v":0},"http://scienti.colciencias.gov.co:8085",null,null,null,null,null,null,null,null,null,null,null,null,null,5,{"$f":"VLOOKUP($AA48,Dt!$AN$3:$AR$76,3,0)","v":"Grupo de Micología y Fitopatologia "}]
[null,null,null,null,null,null,null,null,null,null,null,null,null,null,null,null,null,null,null,null,null,null,null,null,null,null,54,{"$f":"VLOOKUP($AA49,Dt!$AN$3:$AR$76,3,0)","v":"Grupo de Psoriasis e Inmunodermatologia"}]
[null,"Nombre4",null,null,null,null,null,null,null,null,null,null,null,null,null,null,null,null,null,null,null,null,null,null,null,null,35,{"$f":"VLOOKUP($AA50,Dt!$AN$3:$AR$76,3,0)","v":"Grupo de Investigación en Multimedia -GIM-"}]
[null,"Grupo 4",null,null,null,null,null,"Clasificación",null,null,null,null,null,null,null,null,null,null,null,null,null,null,null,null,null,null,12,{"$f":"VLOOKUP($AA51,Dt!$AN$3:$AR$76,3,0)","v":"Grupo de investigación en química ambiental y tecnologías limpias - QUATELI"}]
[null,"Investigadores",null,null,null,null,null,"Presupuesto en \nplan de compras:",{"$f":"R85","v":0},null,null,null,null,null,null,null,null,null,null,null,null,null,null,null,null,null,63,{"$f":"VLOOKUP($AA52,Dt!$AN$3:$AR$76,3,0)","v":"Grupo de Investigacion en Urologia HMC"}]
[null," Nivel o alcance institucional de la entidad externa es :",null,null,null,null,null,{"$f":"IF(I52>0,$M$67,\".\")","v":"."},null,null,null,null,null,null,null,null,null,null,null,null,null,null,null,null,null,null,73,{"$f":"VLOOKUP($AA53,Dt!$AN$3:$AR$76,3,0)","v":"Grupo de investigaciones sobre agentes radiológicos, biológicos y químicos"}]
[null,"Link Colciencias:",null,null,null,null,null,null,null,null,null,{"$f":"IFERROR(SEARCH(M54,C54,1),0)","v":0},"http://scienti.colciencias.gov.co:8085",null,null,null,null,null,null,null,null,null,null,null,null,null,5,{"$f":"VLOOKUP($AA54,Dt!$AN$3:$AR$76,3,0)","v":"Grupo de Micología y Fitopatologia "}]
[null,null,null,null,null,null,null,null,null,null,null,null,null,null,null,null,null,null,null,null,null,null,null,null,null,null,9,{"$f":"VLOOKUP($AA55,Dt!$AN$3:$AR$76,3,0)","v":"Grupo de Investigación en Hidrobiología Aplicada (HIDROBIA)"}]
[null,"Nombre5",null,null,null,null,null,null,null,null,null,null,null,null,null,null,null,null,null,null,null,null,null,null,null,null,35,{"$f":"VLOOKUP($AA56,Dt!$AN$3:$AR$76,3,0)","v":"Grupo de Investigación en Multimedia -GIM-"}]
[null,"Grupo 5",null,null,null,null,null,"Clasificación",null,null,null,null,null,null,null,null,null,null,null,null,null,null,null,null,null,null,12,{"$f":"VLOOKUP($AA57,Dt!$AN$3:$AR$76,3,0)","v":"Grupo de investigación en química ambiental y tecnologías limpias - QUATELI"}]
[null,"Investigadores",null,null,null,null,null,"Presupuesto en \nplan de compras:",{"$f":"R86","v":0},null,null,null,null,null,null,null,null,null,null,null,null,null,null,null,null,null,63,{"$f":"VLOOKUP($AA58,Dt!$AN$3:$AR$76,3,0)","v":"Grupo de Investigacion en Urologia HMC"}]
[null," Nivel o alcance institucional de la entidad externa es :",null,null,null,null,null,{"$f":"IF(I58>0,$M$67,\".\")","v":"."},null,null,null,null,null,null,null,null,null,null,null,null,null,null,null,null,null,null,73,{"$f":"VLOOKUP($AA59,Dt!$AN$3:$AR$76,3,0)","v":"Grupo de investigaciones sobre agentes radiológicos, biológicos y químicos"}]
[null,"Link Colciencias:",null,null,null,null,null,null,null,null,null,{"$f":"IFERROR(SEARCH(M60,C60,1),0)","v":0},"http://scienti.colciencias.gov.co:8085",null,null,null,null,null,null,null,null,null,null,null,null,null,5,{"$f":"VLOOKUP($AA60,Dt!$AN$3:$AR$76,3,0)","v":"Grupo de Micología y Fitopatologia "}]
[null,null,null,null,null,null,null,null,null,null,null,null,null,null,null,null,null,null,null,null,null,null,null,null,null,null,9,{"$f":"VLOOKUP($AA61,Dt!$AN$3:$AR$76,3,0)","v":"Grupo de Investigación en Hidrobiología Aplicada (HIDROBIA)"}]
[null,"Datos comprometidos.",null,null,null,null,null,null,null,null,null,null,null,null,null,null,null,null,null,null,null,null,null,null,null,null,62,{"$f":"VLOOKUP($AA62,Dt!$AN$3:$AR$76,3,0)","v":"Grupo de Rehabilitacion HOMIC-UMNG"}]
[null,null,null,null,null,null,null,null,null,null,null,null,null,null,null,null,null,null,null,null,null,null,null,null,null,null,60,{"$f":"VLOOKUP($AA63,Dt!$AN$3:$AR$76,3,0)","v":"Grupo de Salud Oral y Cirugia Maxilofacial"}]
[null,"Productividad  comprometida",null,null,null,"$ Vicein:",{"$f":"IF(D64>0,Presupuesto!F172,0)","v":0},null,{"$f":"\"Limite en millones \"&Integrantes!T4*0+70","v":"Limite en millones 70"},null,{"$f":"IF(Productos!P60>0,1,0)","v":{"$error":"#VALUE!"}},null,null,null,null,null,null,null,null,null,null,null,null,null,null,null,11,{"$f":"VLOOKUP($AA64,Dt!$AN$3:$AR$76,3,0)","v":"Grupo Integrado de Investigaciones en Química Bioorgánica (InQuiBio)"}]
[null,"* Las áreas sombreadas de color azul no son editables ",null,null,null,null,null,null,null,null,null,{"$f":"SUM(I34,I40,I46,I52,I58)","v":0},"<-- Sumatoria Presupuesto de entidades externas en Pg. General",null,null,null,null,null,null,null,null,null,null,null,null,null,57,{"$f":"VLOOKUP($AA65,Dt!$AN$3:$AR$76,3,0)","v":"GRUPO NEUROCIENCIAS HMC"}]
[null,null,null,null,null,null,null,null,null,null,null,{"$f":"Presupuesto!H172","v":0},"<-- Sumatoria Presupuesto de entidades externas en Pg. Presupuesto",null,null,null,null,null,null,null,null,null,null,null,null,null,55,{"$f":"VLOOKUP($AA66,Dt!$AN$3:$AR$76,3,0)","v":"Grupo para el estudio de enfermedades respiratorias en niños. Respira"}]
[null,"Observaciones o recomendaciones (no valida para calificación de Propuesta):",null,null,null,null,null,null,null,null,null,{"$f":"L65-L66","v":0},{"$f":"IF(L67=0,\".\",\"   Pendiente validar dif. $\"&TEXT(L67,\"###.###.###\"))","v":"."},null,null,null,null,null,null,null,null,null,null,null,null,null,32,{"$f":"VLOOKUP($AA67,Dt!$AN$3:$AR$76,3,0)","v":"HUMANITAS"}]
[null,null,null,null,null,null,null,null,null,null,null,null,null,null,null,null,null,null,null,null,null,null,null,null,null,null,24,{"$f":"VLOOKUP($AA68,Dt!$AN$3:$AR$76,3,0)","v":"INAMPE"}]
[null,null,null,null,null,null,null,null,null,null,null,null,null,null,null,null,null,null,null,null,null,null,null,null,null,null,19,{"$f":"VLOOKUP($AA69,Dt!$AN$3:$AR$76,3,0)","v":"INCONDIS"}]
[null,null,null,null,null,null,null,null,null,null,null,null,null,null,null,null,null,null,null,null,null,null,null,null,null,null,43,{"$f":"VLOOKUP($AA70,Dt!$AN$3:$AR$76,3,0)","v":"INGENIERÍA, GEOMÁTICA Y EDUCACIÓN (IGE)"}]
[null,"Calificación del formato",null,null,null,null,null,null,null,null,null,null,null,null,null,null,null,null,null,null,null,null,null,null,null,null,65,{"$f":"VLOOKUP($AA71,Dt!$AN$3:$AR$76,3,0)","v":"Insight"}]
[null,null,null,null,null,null,null,null,null,null,null,null,null,null,null,null,null,null,null,null,null,null,null,null,null,null,61,{"$f":"VLOOKUP($AA72,Dt!$AN$3:$AR$76,3,0)","v":"Kokhlias."}]
[null,"Observaciones : Ajustes y actualizaciones realizadas al formato.",null,null,null,null,null,null,{"$f":"MAX(I75:I214)","v":"2019-09-05"},null,null,"Pts. Prueba",10,null,{"$f":"IF(N77>2,O77,\"\") & IF(N78>2,\"; \"&O78,\"\")& IF(N76>2,\"; \"&O76,\"\")","v":""},null,null,null,null,null,null,null,null,null,null,null,50,{"$f":"VLOOKUP($AA73,Dt!$AN$3:$AR$76,3,0)","v":"LA TRAMOYA"}]
[null,null,null,null,null,null,null,null,null,null,null,null,null,null,null,null,null,null,null,null,null,null,null,null,null,null,31,{"$f":"VLOOKUP($AA74,Dt!$AN$3:$AR$76,3,0)","v":"LIDERAZGO"}]
[null,"No","Actualización, ajustes y cambios.",null,null,null,null,null,"Fecha",null,null,null,{"$f":"I30","v":2},null,null,null,null,null,null,null,null,null,null,null,null,null,3,{"$f":"VLOOKUP($AA75,Dt!$AN$3:$AR$76,3,0)","v":"MATRIX"}]
[null,{"$f":"ROW()-63","v":13},"Ajuste de validaciones y opciones para convocatoria  PAZ  -  SUE 2019 - 2",null,null,null,null,null,"2019-09-05",null,null,null,3,{"$f":"LEN(O76)","v":0},{"$f":"CLEAN(C44)","v":""},null,null,null,null,null,null,null,null,null,null,null,21,{"$f":"VLOOKUP($AA76,Dt!$AN$3:$AR$76,3,0)","v":"Medios, Mediaciones y Procesos en Educación a Distancia"}]
[null,{"$f":"ROW()-63","v":14},0,null,null,null,null,null,null,null,null,null,2,{"$f":"LEN(O77)","v":0},{"$f":"CLEAN(C38)","v":""},null,null,null,null,null,null,null,null,null,null,null,23,{"$f":"VLOOKUP($AA77,Dt!$AN$3:$AR$76,3,0)","v":"Modelos de simulación ICDIST"}]
[null,15,0,null,null,null,null,null,null,null,null,null,1,{"$f":"LEN(O78)","v":0},{"$f":"CLEAN(C32)","v":""},null,null,null,null,null,null,null,null,null,null,null,72,{"$f":"VLOOKUP($AA78,Dt!$AN$3:$AR$76,3,0)","v":"Nanofab"}]
[null,16,0,null,null,null,null,null,null,null,null,null,null,null,null,null,null,null,null,null,null,null,null,null,null,null,22,{"$f":"VLOOKUP($AA79,Dt!$AN$3:$AR$76,3,0)","v":"PIREO \"Procesos de Integración, Regionalización y Estructuras Organizacionales\""}]
[null,17,0,null,null,null,null,null,null,null,null,null,null,null,null,null,null,null,null,null,null,null,null,null,null,null,39,{"$f":"VLOOKUP($AA80,Dt!$AN$3:$AR$76,3,0)","v":"PRODUCCION, INNOVACION Y TECNOLOGIA"}]
[null,18,0,null,null,null,null,null,null,null,null,null,"Int",null,null,null,null,null,null,null,null,null,null,null,null,null,18,{"$f":"VLOOKUP($AA81,Dt!$AN$3:$AR$76,3,0)","v":"PROPPIO: Procesos organizacionales, programaticos y políticos para la promoción del desarrollo"}]
[null,19,0,null,null,null,null,null,null,null,null,null,1,{"$f":"C32","v":0},null,null,null,{"$f":"Presupuesto!I118","v":0},null,null,null,null,null,null,null,null,20,{"$f":"VLOOKUP($AA82,Dt!$AN$3:$AR$76,3,0)","v":"\"PYDES\" Pedagogía y didáctica en la educación superior"}]
[null,20,0,null,null,null,null,null,null,null,null,null,2,{"$f":"CLEAN(C38)","v":""},null,null,null,{"$f":"Presupuesto!I119","v":0},null,null,null,null,null,null,null,null,17,{"$f":"VLOOKUP($AA83,Dt!$AN$3:$AR$76,3,0)","v":"Red de estudios sociojurídicos comparados y políticas públicas"}]
[null,21,0,null,null,null,null,null,null,null,null,null,3,{"$f":"CLEAN(C44)","v":""},null,null,null,{"$f":"Presupuesto!I120","v":0},null,null,null,null,null,null,null,null,56,{"$f":"VLOOKUP($AA84,Dt!$AN$3:$AR$76,3,0)","v":"Salud y Comportamiento"}]
[null,22,0,null,null,null,null,null,null,null,null,null,4,{"$f":"CLEAN(C50)","v":""},null,null,null,{"$f":"Presupuesto!I121","v":0},null,null,null,null,null,null,null,null,30,{"$f":"VLOOKUP($AA85,Dt!$AN$3:$AR$76,3,0)","v":"Sociedad, Estrategia y Seguridad"}]
[null,23,0,null,null,null,null,null,null,null,null,null,5,{"$f":"CLEAN(C56)","v":""},null,null,null,null,null,null,null,null,null,null,null,null,37,{"$f":"VLOOKUP($AA86,Dt!$AN$3:$AR$76,3,0)","v":"TIGUM: Grupo de Investigacion en Telemedicina Universidad Militar"}]
[null,24,0,null,null,null,null,null,null,null,null,null,null,null,null,null,null,null,null,null,null,null,null,null,null,null,38,{"$f":"VLOOKUP($AA87,Dt!$AN$3:$AR$76,3,0)","v":"VOLTA - Grupo de Materiales, Corrosión, Degradación y Protección (GMCDP) "}]
[null,25,0]
[null,26,0,null,null,null,null,null,null,null,null,null,null,{"$f":"(N82&\";\"&N83&\";\"&N84&\";\"&N85&\";\"&N86)","v":"0;;;;"}]
[null,27,0]
[null,28,0]
[null,29,0]
[null,30,0]
[null,31,0]
[null,{"$f":"ROW()-49","v":46}]
[null,{"$f":"ROW()-49","v":47}]

{"sheet":"Resumen","index":2,"n_rows":55,"n_cols":18,"rows_kept":55,"cut":false,"hidden":false,"merged":[[25,2,25,4],[1,2,2,2],[6,2,6,4],[24,2,24,4],[18,2,18,4],[17,2,17,4],[11,2,11,4],[10,2,10,4],[9,2,9,4],[8,2,8,4],[7,2,7,4],[12,2,12,4],[13,2,13,4],[14,2,14,4],[43,2,43,4],[26,2,26,4],[27,2,27,4],[28,2,28,4],[29,2,29,4],[41,3,41,4],[40,3,40,4],[38,2,38,4],[30,2,30,4],[31,2,31,4],[32,2,32,4],[33,2,33,4]]}
[2,null,null,null,null,null,"*Pueden  Ocultar las Filas que no se utilicen.",null,null,null,null,null,null,null,null,null,null,"https://www.ealde.es/niveles-riesgo-niveles-control/"]
[null,null,{"$f":"General!B2","v":"PRESENTACIÓN DE PROYECTOS \nDE INVESTIGACIÓN"},{"$f":"General!$H$2","v":"Fecha de Emisión: 2019/03/18"},{"$f":"General!$I$2","v":"IN-IV-F-14"},null,{"$f":"SUM(G7:G19)","v":0},"<=== N° palabras en total"]
[null,null,null,{"$f":"General!$H$3","v":"Revisión N°:\n4"},{"$f":"\"Página \"&A1&\" de \"&Dt_TPG","v":"Página 2 de 11"},null,"Palabras","Largo L"]
[]
["4.-","#","Resumen de la propuesta .",null,null,null,{"$f":"SUM(G6:G20)","v":0},{"$f":"SUM(H6:H20)","v":0}]
[]
[null,{"$f":"ROW()-6","v":1},null,null,null,null,{"$f":"IF(C7=\"\",0,LEN(TRIM(C7))-LEN(SUBSTITUTE(TRIM(C7),\" \",\"\"))+1)","v":0},{"$f":"LEN(C7)","v":0}]
[null,{"$f":"ROW()-6","v":2},null,null,null,null,{"$f":"IF(C8=\"\",0,LEN(TRIM(C8))-LEN(SUBSTITUTE(TRIM(C8),\" \",\"\"))+1)","v":0},{"$f":"LEN(C8)","v":0}]
[null,3,null,null,null,null,{"$f":"IF(C9=\"\",0,LEN(TRIM(C9))-LEN(SUBSTITUTE(TRIM(C9),\" \",\"\"))+1)","v":0},{"$f":"LEN(C9)","v":0}]
[null,4,null,null,null,null,0,0]
[null,5,null,null,null,null,0,0]
[null,6,null,null,null,null,0,0]
[null,7,null,null,null,null,0,0]
[null,8,null,null,null,null,0,0]
[null,9,null,null,null,null,0,0]
[null,10,null,null,null,null,0,0]
[null,11,null,null,null,null,0,0]
[null,12,null,null,null,null,0,0]
[null,13,null,null,null,null,{"$f":"IF(C19=\"\",0,LEN(TRIM(C19))-LEN(SUBSTITUTE(TRIM(C19),\" \",\"\"))+1)","v":0},{"$f":"LEN(C19)","v":0}]
[]
[null,null,{"$f":"IF(G2>250,I21, \"-\")","v":"-"}]
[]
["5.-","#","Planteamiento y justificación de la propuesta.",null,null,null,{"$f":"SUM(G24:G302)","v":26},"<=== Palabras en total"]
[null,null,null,null,null,null,{"$f":"IF(C24=\"\",0,LEN(TRIM(C24))-LEN(SUBSTITUTE(TRIM(C24),\" \",\"\"))+1)","v":0}]
[null,{"$f":"ROW()-19","v":6},null,null,null,null,0]
[null,{"$f":"ROW()-19","v":7},null,null,null,null,0]
[null,8,null,null,null,null,0]
[null,9,null,null,null,null,0]
[null,10,null,null,null,null,0]
[null,11,null,null,null,null,0]
[null,12,null,null,null,null,0]
[null,13,null,null,null,null,0]
[null,14,null,null,null,null,0]
[null,15,null,null,null,null,0]
[null,null,null,null,null,null,0,null,null,null,"Si hay duas en riesgos (Ir al documento)"]
["5.b-","#","Tipos y probabilidad de ocurrencia de riesgos.",null,null,null,{"$f":"SUM(G37:G316)","v":13},"<=== Palabras en total",null,null,"http://www.umng.edu.co/gestion-de-riesgos-institucional"]
[null,null,null,null,null,null,0]
[null,null,"Identificación general del riesgo .       Max 100 palabras",null,null,null,{"$f":"IF(C40=\"\",0,LEN(TRIM(C40))-LEN(SUBSTITUTE(TRIM(C40),\" \",\"\"))+1)","v":0},null,null,null,"Identificacion","Impacto","Probabilidad"]
[null,null,null,null,null,null,null,null,null,1,null,"Catastrofico","Casi seguro"]
[null,null,null,null,null,null,null,null,null,2,null,"Mayor ","Probable"]
[null,null,"Probabilidad ","Probable",null,null,null,null,null,3,null,"Moderado","Posible"]
[null,null,"Impacto","Insignificante",null,null,null,null,null,4,null,"Menor ","Improbable"]
[null,null,"Acciones de control, detección, mitigación o corrección.",null,null,null,null,null,null,5,null,"Insignificante","Rara vez"]
[null,null,null,null,null,null,null,null,null,6]
[null,null,null,null,null,null,null,null,null,7]
[null,null,null,null,null,null,null,null,null,8]
[]
[]
[]
[]
[]
[null,null,null,null,null,null,{"$f":"IF(C52=\"\",0,LEN(TRIM(C52))-LEN(SUBSTITUTE(TRIM(C52),\" \",\"\"))+1)","v":0}]
[null,null,null,null,null,null,{"$f":"IF(C53=\"\",0,LEN(TRIM(C53))-LEN(SUBSTITUTE(TRIM(C53),\" \",\"\"))+1)","v":0}]
[null,null,null,null,null,null,{"$f":"IF(C54=\"\",0,LEN(TRIM(C54))-LEN(SUBSTITUTE(TRIM(C54),\" \",\"\"))+1)","v":0}]
[null,null,"*Pueden  Ocultar las Filas que no se utilicen ( Favor no eliminar filas).",null,null,null,{"$f":"IF(C55=\"\",0,LEN(TRIM(C55))-LEN(SUBSTITUTE(TRIM(C55),\" \",\"\"))+1)","v":13}]

{"sheet":"Estado_del_arte","index":3,"n_rows":68,"n_cols":8,"rows_kept":68,"cut":false,"hidden":false,"merged":[[63,2,63,4],[1,2,2,2],[58,2,58,4],[59,2,59,4],[60,2,60,4],[61,2,61,4],[18,2,18,4],[19,2,19,4],[20,2,20,4],[21,2,21,4],[50,2,50,4],[51,2,51,4],[12,2,12,4],[13,2,13,4],[14,2,14,4],[15,2,15,4],[62,2,62,4],[52,2,52,4],[53,2,53,4],[54,2,54,4],[55,2,55,4],[56,2,56,4],[57,2,57,4],[44,2,44,4],[45,2,45,4],[49,2,49,4],[11,2,11,4],[6,2,6,4],[7,2,7,4],[8,2,8,4],[9,2,9,4],[10,2,10,4],[16,2,16,4],[17,2,17,4],[38,2,38,4],[46,2,46,4],[47,2,47,4],[48,2,48,4],[39,2,39,4],[40,2,40,4],[41,2,41,4],[42,2,42,4],[43,2,43,4],[35,2,35,4],[36,2,36,4],[37,2,37,4],[22,2,22,4],[23,2,23,4],[24,2,24,4],[25,2,25,4],[26,2,26,4],[32,2,32,4],[33,2,33,4],[34,2,34,4],[27,2,27,4],[28,2,28,4],[29,2,29,4],[30,2,30,4],[31,2,31,4]]}
[3,null,null,null,null,null,"*Pueden  Ocultar las Filas que no se utilicen."]
[null,null,{"$f":"General!B2","v":"PRESENTACIÓN DE PROYECTOS \nDE INVESTIGACIÓN"},{"$f":"General!$H$2","v":"Fecha de Emisión: 2019/03/18"},{"$f":"General!$I$2","v":"IN-IV-F-14"}]
[null,null,null,{"$f":"General!$H$3","v":"Revisión N°:\n4"},{"$f":"\"Página \"&A1&\" de \"&Dt_TPG","v":"Página 3 de 11"},null,{"$f":"SUM(G7:G3528)","v":5},"<== Total de palabras"]
[]
["6.-","#","Estado del arte de la propuesta o  antecedentes.",null,null,null,"Largo"]
[]
[null,{"$f":"ROW()-6","v":1},"Este es un titulo  Inicial.",null,null,null,{"$f":"IF(C7=\"\",0,LEN(TRIM(C7))-LEN(SUBSTITUTE(TRIM(C7),\" \",\"\"))+1)","v":5}]
[null,{"$f":"ROW()-6","v":2},null,null,null,null,{"$f":"IF(C8=\"\",0,LEN(TRIM(C8))-LEN(SUBSTITUTE(TRIM(C8),\" \",\"\"))+1)","v":0}]
[null,3,null,null,null,null,0]
[null,4,null,null,null,null,0]
[null,5,null,null,null,null,0]
[null,6,null,null,null,null,0]
[null,7,null,null,null,null,0]
[null,8,null,null,null,null,0]
[null,9,null,null,null,null,0]
[null,10,null,null,null,null,0]
[null,11,null,null,null,null,0]
[null,12,null,null,null,null,0]
[null,13,null,null,null,null,0]
[null,14,null,null,null,null,0]
[null,15,null,null,null,null,0]
[null,16,null,null,null,null,0]
[null,17,null,null,null,null,0]
[null,18,null,null,null,null,0]
[null,19,null,null,null,null,0]
[null,20,null,null,null,null,{"$f":"IF(C26=\"\",0,LEN(TRIM(C26))-LEN(SUBSTITUTE(TRIM(C26),\" \",\"\"))+1)","v":0}]
[null,21,null,null,null,null,0]
[null,22,null,null,null,null,0]
[null,23,null,null,null,null,0]
[null,24,null,null,null,null,0]
[null,25,null,null,null,null,0]
[null,26,null,null,null,null,0]
[null,27,null,null,null,null,0]
[null,28,null,null,null,null,0]
[null,29,null,null,null,null,0]
[null,30,null,null,null,null,0]
[null,31,null,null,null,null,0]
[null,32,null,null,null,null,0]
[null,33,null,null,null,null,0]
[null,34,null,null,null,null,0]
[null,35,null,null,null,null,0]
[null,36,null,null,null,null,0]
[null,37,null,null,null,null,0]
[null,38,null,null,null,null,0]
[null,39,null,null,null,null,{"$f":"IF(C45=\"\",0,LEN(TRIM(C45))-LEN(SUBSTITUTE(TRIM(C45),\" \",\"\"))+1)","v":0}]
[null,40,null,null,null,null,0]
[null,41,null,null,null,null,0]
[null,42,null,null,null,null,0]
[null,43,null,null,null,null,0]
[null,44,null,null,null,null,0]
[null,45,null,null,null,null,0]
[null,46,null,null,null,null,0]
[null,47,null,null,null,null,0]
[null,48,null,null,null,null,0]
[null,49,null,null,null,null,0]
[null,50,null,null,null,null,0]
[null,51,null,null,null,null,0]
[null,52,null,null,null,null,0]
[null,53,null,null,null,null,0]
[null,54,null,null,null,null,0]
[null,55,null,null,null,null,0]
[null,56,null,null,null,null,0]
[null,57,null,null,null,null,0]
[null,58,null,null,null,null,0]
[]
[]
[]
[null,"*Pueden  Ocultar las Filas que no se utilicen ( Favor no eliminar filas)."]

{"sheet":"Objetivos","index":4,"n_rows":31,"n_cols":8,"rows_kept":31,"cut":false,"hidden":false,"merged":[[18,2,18,4],[17,2,17,4],[22,2,22,4],[21,2,21,4],[20,2,20,4],[19,2,19,4],[1,1,2,2],[7,2,7,4],[8,2,8,4],[9,2,9,4],[10,2,10,4],[6,1,6,4],[11,2,11,4],[13,2,13,4],[14,2,14,4],[15,2,15,4],[16,2,16,4],[12,2,12,4]]}
[4]
[null,{"$f":"General!B2","v":"PRESENTACIÓN DE PROYECTOS \nDE INVESTIGACIÓN"},null,{"$f":"General!$H$2","v":"Fecha de Emisión: 2019/03/18"},{"$f":"General!$I$2","v":"IN-IV-F-14"}]
[null,null,null,{"$f":"General!$H$3","v":"Revisión N°:\n4"},{"$f":"\"Página \"&A1&\" de \"&Dt_TPG","v":"Página 4 de 11"},null,{"$f":"SUM(G7:G3500)","v":0},"<== Total de palabras"]
[]
["7.-","Objetivos de la propuesta.",null,null,null,null,"Largo"]
[]
[null,"*El especio del Item (0) Cero es para definir el objetivo general los demás corresponden a objetivos especificos "]
[null,{"$f":"ROW()-8","v":0},null,null,null,null,{"$f":"IF(C8=\"\",0,LEN(TRIM(C8))-LEN(SUBSTITUTE(TRIM(C8),\" \",\"\"))+1)","v":0}]
[null,{"$f":"ROW()-8","v":1},null,null,null,null,0]
[null,2,null,null,null,null,0]
[null,3,null,null,null,null,0]
[null,4,null,null,null,null,0]
[null,5,null,null,null,null,0]
[null,6,null,null,null,null,0]
[null,7,null,null,null,null,0]
[null,8,null,null,null,null,0]
[null,9,null,null,null,null,0]
[null,10,null,null,null,null,0]
[null,11,null,null,null,null,0]
[null,12,null,null,null,null,0]
[null,13,null,null,null,null,0]
[null,14,null,null,null,null,0]
[null,15,null,null,null,null,0]
[]
[]
[]
[]
[]
[]
[]
[null,"*Pueden  Ocultar las Filas que no se utilicen ( Favor no eliminar filas)."]

{"sheet":"Metodología","index":5,"n_rows":41,"n_cols":8,"rows_kept":41,"cut":false,"hidden":false,"merged":[[34,2,34,4],[1,2,2,2],[28,2,28,4],[29,2,29,4],[30,2,30,4],[31,2,31,4],[12,2,12,4],[13,2,13,4],[14,2,14,4],[15,2,15,4],[16,2,16,4],[17,2,17,4],[6,2,6,4],[7,2,7,4],[8,2,8,4],[9,2,9,4],[10,2,10,4],[11,2,11,4],[18,2,18,4],[19,2,19,4],[20,2,20,4],[21,2,21,4],[22,2,22,4],[23,2,23,4],[24,2,24,4],[33,2,33,4],[32,2,32,4],[27,2,27,4],[26,2,26,4],[25,2,25,4]]}
[5,null,null,null,null,null,"*Pueden  Ocultar las Filas que no se utilicen."]
[null,null,{"$f":"General!B2","v":"PRESENTACIÓN DE PROYECTOS \nDE INVESTIGACIÓN"},{"$f":"General!$H$2","v":"Fecha de Emisión: 2019/03/18"},{"$f":"General!$I$2","v":"IN-IV-F-14"}]
[null,null,null,{"$f":"General!$H$3","v":"Revisión N°:\n4"},{"$f":"\"Página \"&A1&\" de \"&Dt_TPG","v":"Página 5 de 11"},null,{"$f":"SUM(G7:G3501)","v":0},"<== Total de palabras"]
[]
["8.-","#","Metodología de la propuesta.",null,null,null,"Largo"]
[]
[null,{"$f":"ROW()-6","v":1},null,null,null,null,{"$f":"IF(C7=\"\",0,LEN(TRIM(C7))-LEN(SUBSTITUTE(TRIM(C7),\" \",\"\"))+1)","v":0}]
[null,{"$f":"ROW()-6","v":2},null,null,null,null,{"$f":"IF(C8=\"\",0,LEN(TRIM(C8))-LEN(SUBSTITUTE(TRIM(C8),\" \",\"\"))+1)","v":0}]
[null,3,null,null,null,null,0]
[null,4,null,null,null,null,0]
[null,5,null,null,null,null,0]
[null,6,null,null,null,null,0]
[null,7,null,null,null,null,0]
[null,8,null,null,null,null,0]
[null,9,null,null,null,null,0]
[null,10,null,null,null,null,0]
[null,11,null,null,null,null,0]
[null,12,null,null,null,null,0]
[null,13,null,null,null,null,0]
[null,14,null,null,null,null,0]
[null,15,null,null,null,null,0]
[null,16,null,null,null,null,{"$f":"IF(C22=\"\",0,LEN(TRIM(C22))-LEN(SUBSTITUTE(TRIM(C22),\" \",\"\"))+1)","v":0}]
[null,17,null,null,null,null,0]
[null,18,null,null,null,null,0]
[null,19,null,null,null,null,0]
[null,20,null,null,null,null,0]
[null,21,null,null,null,null,0]
[null,22,null,null,null,null,0]
[null,23,null,null,null,null,0]
[null,24,null,null,null,null,0]
[null,25,null,null,null,null,0]
[null,26,null,null,null,null,0]
[null,27,null,null,null,null,0]
[null,28,null,null,null,null,0]
[null,29,null,null,null,null,0]
[]
[]
[]
[]
[]
[null,"*Pueden  Ocultar las Filas que no se utilicen. No eliminar filas."]

{"sheet":"Etica","index":6,"n_rows":71,"n_cols":17,"rows_kept":71,"cut":false,"hidden":false,"merged":[[67,2,67,4],[1,2,2,2],[6,2,6,3],[27,2,27,3],[40,2,40,3],[47,2,47,3],[41,2,41,3],[43,2,43,3],[45,2,45,3],[10,2,10,4],[12,2,12,4],[14,2,14,4],[16,2,16,4],[18,2,18,4],[20,2,20,4],[22,2,22,4],[24,2,24,4],[19,2,19,3],[21,2,21,3],[8,2,8,4],[52,2,52,3],[25,2,25,3],[28,2,28,3],[30,2,30,3],[32,2,32,3],[36,2,36,3],[38,2,38,3],[26,2,26,4],[29,2,29,4],[31,2,31,4],[33,2,33,4],[35,2,35,4],[7,2,7,3],[11,2,11,3],[13,2,13,3],[15,2,15,3],[17,2,17,3],[56,2,56,4],[58,2,58,4],[60,2,60,4],[64,2,64,3],[62,2,62,4],[65,2,65,4],[37,2,37,4],[39,2,39,4],[42,2,42,4],[44,2,44,4],[46,2,46,4],[61,2,61,3],[48,2,48,3],[50,2,50,3],[53,2,53,3],[55,2,55,3],[57,2,57,3],[59,2,59,3],[49,2,49,4],[51,2,51,4],[54,2,54,4]]}
[5,null,null,null,null,null,"*Pueden  Ocultar las Filas que no se utilicen."]
[null,null,{"$f":"General!B2","v":"PRESENTACIÓN DE PROYECTOS \nDE INVESTIGACIÓN"},{"$f":"General!$H$2","v":"Fecha de Emisión: 2019/03/18"},{"$f":"General!$I$2","v":"IN-IV-F-14"},null,null,null,null,"Detalles:"]
[null,null,null,{"$f":"General!$H$3","v":"Revisión N°:\n4"},{"$f":"\"Página \"&A1&\" de \"&Dt_TPG","v":"Página 5 de 11"},null,{"$f":"SUM(G5:G3524)","v":445},"<== Total de palabras"]
[]
[null,null,{"$f":"$Q$13","v":"."}]
["8b.-",0,"Consideraciones e implicaciones éticas de la investigación, bioética e integridad científica",null,"( Si  / No  )",null,"Palabras",null,null,null,null,null,"Validaciones"]
[null,1,"Proyecto de investigación en CTeI que  involucra seres humanos",null,"No",null,{"$f":"IF(C7=\"\",0,LEN(TRIM(C7))-LEN(SUBSTITUTE(TRIM(C7),\" \",\"\"))+1)","v":9},{"$f":"I7-J7","v":0},{"$f":"IF(OR(E7=\"No\",E7=0),0,1)","v":0},{"$f":"MAX(I8:I23)","v":0},null,1,{"$f":"VLOOKUP($L7,$B$6:$J$68,7,0)","v":0},"CTeI que  involucra seres humanos",null,{"$f":"LEN(N7)","v":33},{"$f":"IF(M7=0,\"\",N7&\"; \")","v":""}]
[null,"1.1","¿utiliza información exclusiva o reservada por parte de terceros y prevé su forma de acceso?",null,"No",null,{"$f":"IF(C8=\"\",0,LEN(TRIM(C8))-LEN(SUBSTITUTE(TRIM(C8),\" \",\"\"))+1)","v":15},null,{"$f":"IF(OR(E8=\"No\",E8=0),0,1)","v":0},null,null,2,0,"CTeI involucra animales",null,23,""]
[null,null,{"$f":"$J$2","v":"Detalles:"},null,null,null,1,null,{"$f":"IF(OR(E9=\"No\",E9=0),0,1)","v":0},null,null,3,0,"CTeI involucra fuentes documentales",null,35,""]
[null,"1.2","¿utiliza información exclusiva o reservada por parte de terceros y prevé su forma de acceso?",null,"No",null,15,null,0,null,null,4,0,"CTeI involucra el ambiente",null,26,""]
[null,null,{"$f":"$J$2","v":"Detalles:"},null,null,null,1,null,0,null,null,5,0,"Aspectos de Integridad científica",null,33,""]
[null,"1.3","¿Utiliza datos personales?",null,"No",null,3,null,0,null,null,6,0,"otras razones que ameritan la revisión ",null,39,""]
[null,null,{"$f":"$J$2","v":"Detalles:"},null,null,null,1,null,0,null,null,null,{"$f":"LEN(N13)","v":0},{"$f":"Q7&Q8&Q9&Q10&Q11&Q12","v":""},null,null,{"$f":"IF(M13>0,\"Error, revisar el ítem: \"&N13,\".\")","v":"."}]
[null,"1.4","¿utiliza información confidencial?",null,"No",null,3,null,0]
[null,null,{"$f":"$J$2","v":"Detalles:"},null,null,null,1,null,0]
[null,"1.5","¿Requiere Consentimiento informado?",null,"No",null,3,null,0]
[null,null,{"$f":"$J$2","v":"Detalles:"},null,null,null,1,null,0]
[null,"1.6","¿indica un modelo de recopilación y conservación de información?",null,"No",null,9,null,0]
[null,null,{"$f":"$J$2","v":"Detalles:"},null,null,null,1,null,0]
[null,"1.7","¿Es una investigación con comunidades vulnerables (indígenas, afrodescendientes, menores  o personal subordinado, entre otros)?",null,"No",null,14,null,0]
[null,null,{"$f":"$J$2","v":"Detalles:"},null,null,null,1,null,0]
[null,"1.8","¿Se evidencia conocimiento previo sobre aspectos políticos, económicos sociales y culturales de las comunidades indígenas?",null,"No",null,15,null,0]
[null,null,{"$f":"$J$2","v":"Detalles:"},null,null,null,1,null,0]
[null,"1.9","¿Realiza intervención a través cuestionarios, medicamentos, rutinas, modificación de actividades o estilo de vida?",null,null,null,14,null,0]
[null,null,{"$f":"$J$2","v":"Detalles:"},null,null,null,1,null,0]
[null,"1.10","¿incluye modelos de consentimiento informado, uso de datos personales u otro?",null,"No",null,11,null,0]
[null,null,{"$f":"$J$2","v":"Detalles:"},null,null,null,1,null,0]
[null,2,"Proyecto de investigación en CTeI involucra animales",null,"No",null,7,{"$f":"I28-J28","v":0},0,{"$f":"MAX(I29:I40)","v":0}]
[null,"2.1","¿Incluye un protocolo de investigación en animales?",null,"No",null,7,null,0]
[null,null,{"$f":"$J$2","v":"Detalles:"},null,null,null,1,null,0]
[null,"2.2","¿Incluye un protocolo de manipulación de recursos biológicos?",null,"No",null,8,null,0]
[null,null,{"$f":"$J$2","v":"Detalles:"},null,null,null,1,null,0]
[null,"2.3","¿Incluye un protocolo de manejo y disposición de sustancias peligrosas, agentes infecciosos y desechos?",null,"No",null,14,null,0]
[null,null,{"$f":"$J$2","v":"Detalles:"},null,null,null,1,null,0]
[null,"2.4","¿hay caracterización de los animales de experimentación criterios de selección de la especie?",null,"No",null,13,null,0]
[null,null,{"$f":"$J$2","v":"Detalles:"},null,null,null,1,null,0]
[null,"2.5","¿se prevé formación previa al equipo de laboratorio por parte del investigador sobre el cuidado permanente del animal y experimentación?",null,"No",null,20,null,0]
[null,null,{"$f":"$J$2","v":"Detalles:"},null,null,null,1,null,0]
[null,"2.6","¿se prevé declaración previa del origen y estado de los animales para experimentación?",null,"No",null,13,null,0]
[null,null,{"$f":"$J$2","v":"Detalles:"},null,null,null,1,null,0]
[null,3,"El proyecto de investigación en CTeI involucra fuentes documentales",null,"No",null,9,{"$f":"I41-J41","v":0},0,{"$f":"SUM(I42:I47)","v":0}]
[null,"3.1","¿hace referencia a la anonimización de datos?",null,"No",null,7,null,0]
[null,null,{"$f":"$J$2","v":"Detalles:"},null,null,null,1,null,0]
[null,"3.2","¿prevé conservación de datos de consulta?",null,"No",null,6,null,0]
[null,null,{"$f":"$J$2","v":"Detalles:"},null,null,null,1,null,0]
[null,"3.3","¿se identifica objetivamente que las bases de consulta de acceso abierto pueden ser calificadas de tal manera?",null,"No",null,17,null,0]
[null,null,{"$f":"$J$2","v":"Detalles:"},null,null,null,1,null,0]
[null,4,"Proyecto de investigación en CTeI involucra el ambiente",null,"No",null,8,{"$f":"I48-J48","v":0},0,{"$f":"SUM(I49:I52)","v":0}]
[null,"4.1","¿requiere permisos o licencias ambientales como recolección de especímenes, colecciones biológicas, manipulación o movilización de recursos bilógicas?",null,"No",null,17,null,0]
[null,null,{"$f":"$J$2","v":"Detalles:"},null,null,null,1,null,0]
[null,"4.2","¿requiere uso de recursos genéticos?",null,"No",null,5,null,0]
[null,null,{"$f":"$J$2","v":"Detalles:"},null,null,null,1,null,0]
[null,5,"Aspectos de Integridad científica",null,"No",null,4,{"$f":"I53-J53","v":0},0,{"$f":"SUM(I54:I64)","v":0}]
[null,"5.1","¿Podría darse un conflicto de interés no declarado entre quienes participan en el proyecto y/o las instituciones coejecutoras y/o las instancias de aprobación y seguimiento?",null,"No",null,25,null,0]
[null,null,{"$f":"$J$2","v":"Detalles:"},null,null,null,1,null,0]
[null,"5.2","¿Hay indicios de que se han fabricado o plagiado datos en la investigación?",null,"No",null,13,null,0]
[null,null,{"$f":"$J$2","v":"Detalles:"},null,null,null,1,null,0]
[null,"5.3","¿se presume que se incluye personal vinculado al proyecto que objetivamente podría no aportar técnica ni intelectualmente al proyecto?",null,"No",null,19,null,0]
[null,null,{"$f":"$J$2","v":"Detalles:"},null,null,null,1,null,0]
[null,"5.4","¿se estima que los recursos y tiempos de dedicación solicitados exceden lo necesario para financiación del proyecto o se prevé que los productos son escasos ante las capacidades y alcance de la propuesta?",null,"No",null,33,null,0]
[null,null,{"$f":"$J$2","v":"Detalles:"},null,null,null,1,null,0]
[null,"5.5","¿Podría darse un conflicto de interés no declarado entre quienes participan en el proyecto y/o las instituciones coejecutoras y/o las instancias de aprobación y seguimiento?",null,"No",null,25,null,0]
[null,null,{"$f":"$J$2","v":"Detalles:"},null,null,null,1,null,0]
[null,null,null,null,"No",null,0,null,0]
[null,6,"Existen otras razones que ameritan la revisión por parte del comité de ética de la investigación (indique cuales).",null,"No",null,18,{"$f":"I65-J65","v":0},0,{"$f":"SUM(I66:I68)","v":0}]
[null,"6.1",{"$f":"$J$2","v":"Detalles:"},null,null,null,1,null,0]
[null,null,"especificaciones de ética de la investigación, bioética e integridad científica que deban ser ampliadas en detalle (indique cuales).",null,"No",null,18,null,0]
[null,"6.1",{"$f":"$J$2","v":"Detalles:"},null,null,null,{"$f":"IF(C68=\"\",0,LEN(TRIM(C68))-LEN(SUBSTITUTE(TRIM(C68),\" \",\"\"))+1)","v":1},null,0]
[null,null,null,null,null,null,null,null,0]
[null,null,null,null,null,null,{"$f":"IF(C70=\"\",0,LEN(TRIM(C70))-LEN(SUBSTITUTE(TRIM(C70),\" \",\"\"))+1)","v":0},null,0]
[null,null,null,null,null,null,{"$f":"IF(C71=\"\",0,LEN(TRIM(C71))-LEN(SUBSTITUTE(TRIM(C71),\" \",\"\"))+1)","v":0}]

{"sheet":"Cronograma","index":7,"n_rows":33,"n_cols":12,"rows_kept":33,"cut":false,"hidden":false,"merged":[[1,1,2,2]]}
[6,null,null,null,null,null,null,null,"*Pueden  Ocultar las Filas que no se utilicen.",null,null,{"$f":"(\"* Actualmente tiene \"&G7&\" meses de ejecución no superar los \"& G5&\" meses.\")","v":"* Actualmente tiene 12 meses de ejecución no superar los 24 meses."}]
[null,{"$f":"General!B2","v":"PRESENTACIÓN DE PROYECTOS \nDE INVESTIGACIÓN"},null,{"$f":"General!$H$2","v":"Fecha de Emisión: 2019/03/18"},{"$f":"General!$I$2","v":"IN-IV-F-14"}]
[null,null,null,{"$f":"General!$H$3","v":"Revisión N°:\n4"},{"$f":"\"Página \"&A1&\" de \"&Dt_TPG","v":"Página 6 de 11"}]
[]
["9.-","Cronograma de actividades a desarrollar",null,null,{"$f":"Integrantes!J6","v":24},null,{"$f":"E5","v":24},"Meses Maximo","Palabras"]
[]
[null,"No","Descripción básica de la actividad","Mes de Inicio","Duración en mes",null,{"$f":"MAX(G8:G27)","v":12},"Meses de ejecición actuales",{"$f":"SUM(I8:I27)","v":0},"<== Total de palabras"]
[null,{"$f":"ROW()-7","v":1},null,0,12,null,{"$f":"SUM(D8:E8)","v":12},null,{"$f":"IF(C8=\"\",0,LEN(TRIM(C8))-LEN(SUBSTITUTE(TRIM(C8),\" \",\"\"))+1)","v":0}]
[null,{"$f":"ROW()-7","v":2},null,12,0,null,{"$f":"SUM(D9:E9)","v":12},null,{"$f":"IF(C9=\"\",0,LEN(TRIM(C9))-LEN(SUBSTITUTE(TRIM(C9),\" \",\"\"))+1)","v":0}]
[null,3,null,null,null,null,0,null,0]
[null,4,null,null,null,null,0,null,0]
[null,5,null,null,null,null,0,null,0]
[null,6,null,null,null,null,0,null,0]
[null,7,null,null,null,null,0,null,0]
[null,8,null,null,null,null,0,null,0]
[null,9,null,null,null,null,0,null,0]
[null,10,null,null,null,null,0,null,0]
[null,11,null,null,null,null,0,null,0]
[null,12,null,null,null,null,0,null,0]
[null,13,null,null,null,null,0,null,0]
[null,14,null,null,null,null,0,null,0]
[null,15,null,null,null,null,0,null,0]
[null,16,null,null,null,null,0,null,0]
[null,17,null,null,null,null,0,null,0]
[null,18,null,null,null,null,0,null,0]
[null,19,null,null,null,null,0,null,0]
[null,20,null,null,null,null,0,null,0]
[]
[null,null,{"$f":"IF(G7>G5,L1,\".\")","v":"."}]
[]
[]
[]
[null,"*Pueden  Ocultar las Filas que no se utilicen. No eliminen filas"]

{"sheet":"Crono","index":8,"n_rows":30,"n_cols":17,"rows_kept":30,"cut":false,"hidden":true,"merged":[[1,1,2,14]]}
[6]
[null,{"$f":"General!B2","v":"PRESENTACIÓN DE PROYECTOS \nDE INVESTIGACIÓN"},null,null,null,null,null,null,null,null,null,null,null,null,null,{"$f":"General!$H$2","v":"Fecha de Emisión: 2019/03/18"},{"$f":"General!$I$2","v":"IN-IV-F-14"}]
[null,null,null,null,null,null,null,null,null,null,null,null,null,null,null,{"$f":"General!$H$3","v":"Revisión N°:\n4"},{"$f":"\"Página \"&A1&\" de \"&Dt_TPG","v":"Página 6 de 11"}]
[]
["9.-","Cronograma de actividades a desarrollar"]
[]
[]
[null,"    Actividades   - Meses de ejecucion",null,1,{"$f":"D8+1","v":2},3,4,5,6,7,8,9,10,11,12,"Inicia","Termina"]
[]
[]
[null,{"$f":"TEXT(ROW()-10,\"00\")","v":"01"}]
[null,{"$f":"TEXT(ROW()-10,\"00\")","v":"02"}]
[null,"03"]
[null,"04"]
[null,"05"]
[null,"06"]
[null,"07"]
[null,"08"]
[null,"09"]
[null,"10"]
[null,"11"]
[null,"12"]
[null,"13"]
[null,"14"]
[null,"15"]
[null,"16"]
[null,"17"]
[null,"18"]
[null,"19"]
[null,"20"]

{"sheet":"Integrantes","index":9,"n_rows":52,"n_cols":31,"rows_kept":52,"cut":false,"hidden":false,"merged":[[24,25,24,26],[25,5,25,7],[29,5,29,7],[33,5,33,7],[24,1,27,1],[26,3,26,7],[28,1,31,1],[30,3,30,7],[32,1,35,1],[27,3,27,7],[31,3,31,7],[35,3,35,7],[13,5,13,7],[21,5,21,7],[17,5,17,7],[8,1,11,1],[12,1,15,1],[14,3,14,7],[16,1,19,1],[18,3,18,7],[20,1,23,1],[22,3,22,7],[11,3,11,7],[15,3,15,7],[19,3,19,7],[23,3,23,7],[2,1,3,4],[2,6,2,7],[3,6,3,7],[9,5,9,7],[10,3,10,7],[44,1,47,1],[46,3,46,7],[34,3,34,7],[36,1,39,1],[38,3,38,7],[40,1,43,1],[42,3,42,7],[41,5,41,7],[45,5,45,7],[37,5,37,7],[39,3,39,7],[43,3,43,7],[47,3,47,7]]}
[8]
[]
[null,{"$f":"Productos!B2","v":"PRESENTACIÓN DE PROYECTOS \nDE INVESTIGACIÓN"},null,null,null,{"$f":"General!$H$2","v":"Fecha de Emisión: 2019/03/18"},"IN-IV-F-14",null,null,null,null,null,"Ok","Puntos","IP Max","IP Min","CO Max","CO Min","CR"]
[null,null,null,null,null,{"$f":"General!$H$3","v":"Revisión N°:\n4"},{"$f":"\"Página \"&A1&\" de \"&Dt_TPG","v":"Página 8 de 11"},{"$f":"\"Página \"&A2&\" de \"&Dt_TPG","v":"Página  de 11"},null,20,null,null,1,{"$f":"S8","v":0},{"$f":"VLOOKUP($M$4,$M$8:$T$23,3,0)","v":40},{"$f":"VLOOKUP($M$4,$M$8:$T$23,4,0)","v":0},{"$f":"VLOOKUP($M$4,$M$8:$T$23,5,0)","v":40},{"$f":"VLOOKUP($M$4,$M$8:$T$23,6,0)","v":0},{"$f":"VLOOKUP($M$4,$M$8:$T$23,2,0)","v":20},{"$f":"VLOOKUP($M$4,$M$8:$T$23,8,0)","v":25}]
[]
["11.-","Investigadores Integrantes del proyecto.",null,null,null,{"$f":"Cel_TP","v":"PAZ"},{"$f":"Cel_Fac","v":"NT"},{"$f":"V_Max","v":0},null,{"$f":"IF(F6=\"INV\",12,24)","v":24},null,null,null,null,null,null,null,null,null,null,null,null,"* Cuadro para tener relación entre Fincion y Tipo de Vinculo"]
[]
[null,"No","Identificacion","Nombres","Apellidos","Nivel Academico","Mes","Horas",null,"Max","Min",null,"Ok","Puntos","IP Max","IP Min","CO Max","CO Min",{"$f":"H6","v":0},"Valores",null,null,"Funcion ","y","Vinculo","Mes","Fila"]
[null,1,null,"Luis Alexander",null,null,12,25,null,{"$f":"O4","v":40},{"$f":"P4","v":0},{"$f":"IF(OR(H9>J9,H9<K9),1,0)","v":0},{"$f":"IF(SUM(M10:M23)=0,1,IF(N9=S9,1,0))","v":1},20,40,0,{"$f":"O9","v":40},{"$f":"P9","v":0},{"$f":"INT(S8/20)*20","v":0},25,null,null,"Investigador Principal",{"$f":"$X$8&\"9:\"&$X$8&\"10\"","v":"y9:y10"},"Doc. Carrera TC",{"$f":"G9","v":12},{"$f":"ROW()","v":9}]
[null,null,"Funcion :","Investigador Principal",null,null,null,null,null,{"$f":"IFERROR(VLOOKUP($F10,V_IdNBC,2,0),0)","v":0},null,"Doc. Carrera MT",{"$f":"IF(N10=S10,1,0)","v":0},40,40,0,{"$f":"O10","v":40},0,{"$f":"INT(S9/20)*20","v":0},50,null,null,"Investigador Principal",{"$f":"$X$8&\"9:\"&$X$8&\"10\"","v":"y9:y10"},"Doc. Carrera MT",{"$f":"Z9","v":12},{"$f":"ROW()","v":10}]
[null,null,"CvLac:",null,null,null,null,null,null,{"$f":"IF($D10=$W$19,20,IFERROR(VLOOKUP($E10,$Y$8:$Z$20,2,0),$G$9))","v":12},{"$f":"IF($D10=$W$11,IF($E10=$Y$13,10,12),0)","v":0},null,0,60,40,0,40,0,0,75,null,null,"Coinvestigador",{"$f":"$X$8&\"11:\"&$X$8&\"14\"","v":"y11:y14"},"Doc. Carrera TC",{"$f":"Z10","v":12},{"$f":"ROW()","v":11}]
[null,null,"Contribuciones"," ",null,null,null,null,null,null,null,null,0,80,40,0,40,0,0,100,null,null,"Coinvestigador",{"$f":"$X$8&\"11:\"&$X$8&\"14\"","v":"y11:y14"},"Doc. Carrera MT",{"$f":"Z11","v":12},{"$f":"ROW()","v":12}]
[null,2,null,null,null,null,12,0,null,{"$f":"J9","v":40},{"$f":"IF(E14=$Y$14,0,IF($D14=\"Coinvestigador\",$R$4,0))","v":0},{"$f":"IF(OR(H13>J13,H13<K13),1,0)","v":0},0,{"$f":"N12+20","v":100},40,0,40,0,0,100,null,null,"Coinvestigador",{"$f":"$X$8&\"11:\"&$X$8&\"14\"","v":"y11:y14"},"Doc. Ocasional",10,{"$f":"ROW()","v":13}]
[null,{"$f":"+B13","v":2},"Funcion :","Coinvestigador","Doc. Ocasional",null,null,null,null,{"$f":"IFERROR(VLOOKUP($F14,V_IdNBC,2,0),0)","v":0},{"$f":"IF($D14=$K$10,\"Ok\",\"\")","v":""},null,0,{"$f":"N13+20","v":120},40,0,40,0,0,100,null,null,"Coinvestigador",{"$f":"$X$8&\"11:\"&$X$8&\"14\"","v":"y11:y14"},"Externo a la UMNG",{"$f":"Z12","v":12},{"$f":"ROW()","v":14}]
[null,{"$f":"+B14","v":2},"CvLac:",null,null,null,null,null,null,{"$f":"IF($D14=$W$19,20,IFERROR(VLOOKUP($E14,$Y$8:$Z$20,2,0),$G$9))","v":10},{"$f":"IF($D14=$W$11,IF($E14=$Y$13,10,12),0)","v":10},null,0,{"$f":"N14+20","v":140},40,0,40,0,0,100,null,null,"Asesor",{"$f":"$X$8&AA15&\":\"&$X$8&AA15","v":"y15:y15"},"Externo a la UMNG",{"$f":"Z14","v":12},{"$f":"ROW()","v":15}]
[null,null,{"$f":"C12","v":"Contribuciones"},null,null,null,null,null,null,null,null,null,0,{"$f":"N15+20","v":160},40,0,40,0,0,100,null,null,"Investigador UNAL","y16:y16","Investigador Externo",10,{"$f":"ROW()","v":16}]
[null,{"$f":"B13+1","v":3},null,null,null,null,12,null,null,{"$f":"J13","v":40},{"$f":"IF(E18=$Y$14,0,IF($D18=\"Coinvestigador\",$R$4,0))","v":0},{"$f":"IF(OR(H17>J17,H17<K17),1,0)","v":0},0,{"$f":"N16+20","v":180},40,0,40,0,0,100,null,null,"Investigador UDFJC","y17:y17","Investigador Externo",10,{"$f":"ROW()","v":17}]
[null,{"$f":"+B17","v":3},"Funcion :","Coinvestigador","Externo a la UMNG",null,null,null,null,{"$f":"IFERROR(VLOOKUP($F18,V_IdNBC,2,0),0)","v":0},{"$f":"IF($D18=$K$10,\"Ok\",\"\")","v":""},null,0,200,40,0,40,0,0,250,null,null,"Investigador UPN","y18:y18","Investigador Externo",10,{"$f":"ROW()","v":18}]
[null,{"$f":"+B18","v":3},"CvLac:",null,null,null,null,null,null,{"$f":"IF($D18=$W$19,20,IFERROR(VLOOKUP($E18,$Y$8:$Z$20,2,0),$G$9))","v":12},{"$f":"IF($D18=$W$11,IF($E18=$Y$13,10,12),0)","v":12},null,0,{"$f":"N18+20","v":220},40,0,40,0,{"$f":"INT(S18/20)*20","v":0},250,null,null,"Investigador CMC","y19:y19","Investigador Externo",10,{"$f":"ROW()","v":19}]
[null,null,{"$f":"C16","v":"Contribuciones"},null,null,null,null,null,null,null,null,null,0,{"$f":"N19+20","v":240},40,0,40,0,{"$f":"INT(S19/20)*20","v":0},250,null,null,"Estudiante","y20:y20","Auxiliar  de Investigación",10,{"$f":"ROW()","v":20}]
[null,{"$f":"B17+1","v":4},null,null,null,null,12,null,null,{"$f":"IF($E22=$Y$15,IF($D22=$W$15,0,40),IF($D22=\"Coinvestigador\",J$9/2,40))","v":40},{"$f":"IF(E22=$Y$14,0,IF($D22=\"Coinvestigador\",$R$4,0))","v":0},{"$f":"IF(OR(H21>J21,H21<K21),1,0)","v":0},0,{"$f":"N20+20","v":260},40,0,40,0,{"$f":"INT(S20/20)*20","v":0},250]
[null,{"$f":"+B21","v":4},"Funcion :","Investigador UPN","Investigador Externo",null,null,null,null,{"$f":"IFERROR(VLOOKUP($F22,V_IdNBC,2,0),0)","v":0},{"$f":"IF($D22=$K$10,\"Ok\",\"\")","v":""},null,0,{"$f":"N21+20","v":280},40,0,40,0,{"$f":"INT(S21/20)*20","v":0},250]
[null,{"$f":"+B22","v":4},"CvLac:",null,null,null,null,null,null,{"$f":"IF($D22=$W$19,20,IFERROR(VLOOKUP($E22,$Y$8:$Z$20,2,0),$G$9))","v":10},{"$f":"IF($D22=$W$11,IF($E22=$Y$13,10,12),0)","v":0},null,0,{"$f":"N22+20","v":300},40,0,40,0,{"$f":"INT(S22/20)*20","v":0},250]
[null,null,{"$f":"C20","v":"Contribuciones"}]
[null,{"$f":"B21+1","v":5},null,null,null,null,12,null,null,{"$f":"IF($E26=$Y$15,IF($D26=$W$15,0,40),IF($D26=\"Coinvestigador\",J$9/2,40))","v":40},{"$f":"IF(E26=$Y$14,0,IF($D26=\"Coinvestigador\",$R$4,0))","v":0},{"$f":"IF(OR(H25>J25,H25<K25),1,0)","v":0},"N","Tipos",1,2,3,"No",null,null,null,null,"Clasificación de grupo máximo asociado a la propuesta ",null,null,{"$f":"Gp_Max","v":"C"}]
[null,{"$f":"+B25","v":5},"Funcion :","Investigador UDFJC","OPS - Prestación Servicios",null,null,null,null,{"$f":"IFERROR(VLOOKUP($F26,V_IdNBC,2,0),0)","v":0},{"$f":"IF($D26=$K$10,\"Ok\",\"\")","v":""},null,1,"Investigador Principal",null,null,null,{"$f":"COUNTIF($D$10:$D$49,$N26)","v":1},null,null,null,null,null,null,null,"Inv IP"]
[null,{"$f":"+B26","v":5},"CvLac:",null,null,null,null,null,null,{"$f":"IF($D26=$W$19,20,IFERROR(VLOOKUP($E26,$Y$8:$Z$20,2,0),$G$9))","v":12},{"$f":"IF($D26=$W$11,IF($E26=$Y$13,10,12),0)","v":0},null,2,"Coinvestigador",null,null,null,2,null,null,null,null,"Grupos","Millon","Entre","Max","Min"]
[null,null,{"$f":"C24","v":"Contribuciones"},null,null,null,null,null,null,null,null,null,3,"Asistente OPS",null,null,null,1,null,null,null,null,"Avalados ",25,"20-39",null,null,null,null,8,4]
[null,{"$f":"B25+1","v":6},null,null,null,"Doctorado",12,null,null,{"$f":"IF($E30=$Y$15,IF($D30=$W$15,0,40),IF($D30=\"Coinvestigador\",J$9/2,40))","v":40},{"$f":"IF(E30=$Y$14,0,IF($D30=\"Coinvestigador\",$R$4,0))","v":0},{"$f":"IF(OR(H29>J29,H29<K29),1,0)","v":0},4,"Joven Investigador",null,null,null,0,null,null,null,null,"No reconicido",25,"20-39",null,null,null,null,12,8]
[null,{"$f":"+B29","v":6},"Funcion :","Auxiliar de Investigación.","Estímulo a estudiante",null,null,null,null,{"$f":"IFERROR(VLOOKUP($F30,V_IdNBC,2,0),0)","v":0},{"$f":"IF($D30=$K$10,\"Ok\",\"\")","v":""},null,5,"Asistente Graduado",null,null,null,0,null,null,null,null,"Reconocidos",50,"40-59",null,null,null,null,16,12]
[null,{"$f":"+B30","v":6},"CvLac:",null,null,null,null,null,null,{"$f":"IF($D30=$W$19,20,IFERROR(VLOOKUP($E30,$Y$8:$Z$20,2,0),$G$9))","v":12},{"$f":"IF($D30=$W$11,IF($E30=$Y$13,10,12),0)","v":0},null,6,"Asesor",null,null,null,0,null,null,null,null,"Mayores de Cat. C",75,"60-79",null,null,null,null,20,16]
[null,null,{"$f":"C28","v":"Contribuciones"},null,null,null,null,null,null,null,null,null,7,"Estudiante",null,null,null,0,null,null,null,null,"Mayores de Cat. C",100,"80-199",null,null,null,null,24,10]
[null,{"$f":"B29+1","v":7},null,null,null,null,12,null,null,{"$f":"IF($E34=$Y$15,IF($D34=$W$15,0,40),IF($D34=\"Coinvestigador\",J$9/2,40))","v":40},{"$f":"IF(E34=$Y$14,0,IF($D34=\"Coinvestigador\",$R$4,0))","v":0},{"$f":"IF(OR(H33>J33,H33<K33),1,0)","v":0},null,null,null,null,null,null,null,null,null,null,"IMP",250,"200-300"]
[null,{"$f":"+B33","v":7},"Funcion :",null,null,null,null,null,null,{"$f":"IFERROR(VLOOKUP($F34,V_IdNBC,2,0),0)","v":0},{"$f":"IF($D34=$K$10,\"Ok\",\"\")","v":"Ok"},null,"N","Nivel",null,null,null,"No"]
[null,{"$f":"+B34","v":7},"CvLac:",null,null,null,null,null,null,{"$f":"IF($D34=$W$19,20,IFERROR(VLOOKUP($E34,$Y$8:$Z$20,2,0),$G$9))","v":12},{"$f":"IF($D34=$W$11,IF($E34=$Y$13,10,12),0)","v":0},null,null,"Postdoctorado",null,null,null,{"$f":"IF($F$9=N35,1,0)","v":0},null,null,null,"No","Mensaje de Error "]
[null,null,{"$f":"C32","v":"Contribuciones"},null,null,null,null,null,null,null,null,null,null,"Doctorado",null,null,null,{"$f":"IF($F$9=N36,1,0)","v":0},null,null,null,0," "]
[null,{"$f":"B33+1","v":8},null,null,null,"Esp. Tecnológica",12,null,null,{"$f":"IF($E38=$Y$15,IF($D38=$W$15,0,40),IF($D38=\"Coinvestigador\",J$9/2,40))","v":40},{"$f":"IF(E38=$Y$14,0,IF($D38=\"Coinvestigador\",$R$4,0))","v":0},{"$f":"IF(OR(H37>J37,H37<K37),1,0)","v":0},null,"Maestría",null,null,null,{"$f":"IF($F$9=N37,1,0)","v":0},null,null,null,1,"Error: El lider del proyecto debe tener titulación doctoral."]
[null,{"$f":"+B37","v":8},"Funcion :","Asistente OPS","OPS - Prestación Servicios",null,null,null,null,{"$f":"IFERROR(VLOOKUP($F38,V_IdNBC,2,0),0)","v":0},{"$f":"IF($D38=$K$10,\"Ok\",\"\")","v":""},null,null,null,null,null,null,null,null,null,null,2]
[null,{"$f":"+B38","v":8},"CvLac:",null,null,null,null,null,null,{"$f":"IF($D38=$W$19,20,IFERROR(VLOOKUP($E38,$Y$8:$Z$20,2,0),$G$9))","v":12},{"$f":"IF($D38=$W$11,IF($E38=$Y$13,10,12),0)","v":0}]
[null,null,{"$f":"C36","v":"Contribuciones"},null,null,null,null,null,null,null,null,null,"ERR",{"$f":"VLOOKUP(Y40,M41:O50,2,0)","v":" "},null,null,null,null,null,"Validaciones",null,null,null,null,{"$f":"MAX(Y41:Y48)","v":0},null,null,null,{"$f":"Presupuesto!H24","v":0}]
[null,{"$f":"B37+1","v":9},null,null,null,null,12,null,null,{"$f":"IF($E42=$Y$15,IF($D42=$W$15,0,40),IF($D42=\"Coinvestigador\",J$9/2,40))","v":40},{"$f":"IF(E42=$Y$14,0,IF($D42=\"Coinvestigador\",$R$4,0))","v":0},{"$f":"IF(OR(H41>J41,H41<K41),1,0)","v":0},0," ",null,null,null,null,null,1,"Validacion IMP  Lider doctoral",null,null,null,{"$f":"IF(F6=\"IMP\",IF(SUM(R35:R36)=0,1,0),0)","v":0},null,null,null,{"$f":"Presupuesto!G172","v":0}]
[null,{"$f":"+B41","v":9},"Funcion :",null,null,null,null,null,null,{"$f":"IFERROR(VLOOKUP($F42,V_IdNBC,2,0),0)","v":0},{"$f":"IF($D42=$K$10,\"Ok\",\"\")","v":"Ok"},null,1,"El Investigador Principal debe tener doctorado para proyecto de Alto Impacto.",null,null,null,null,null,2,"No hay integrantes",null,null,null,{"$f":"IF(Z42=0,2,0)","v":0},{"$f":"SUM(H9,H13,H17,H21,H25,H29,H33,H37,H41,H45)","v":25}]
[null,{"$f":"+B42","v":9},"CvLac:",null,null,null,null,null,null,{"$f":"IF($D42=$W$19,20,IFERROR(VLOOKUP($E42,$Y$8:$Z$20,2,0),$G$9))","v":12},{"$f":"IF($D42=$W$11,IF($E42=$Y$13,10,12),0)","v":0},null,2,"Error :  hasta el momento no tiene integrantes con horas ",null,null,null,null,null,3,"Validación de las horas de investigación estan bien",null,null,null,{"$f":"IF(SUM(L45,L41,L37,L33,L29,L25,L21,L17,L13,L9)>0,2,0)","v":0}]
[null,null,{"$f":"C40","v":"Contribuciones"},null,null,null,null,null,null,null,null,null,3,"Error :  hay  integrantes con las horas mal diligenidas",null,null,null,null,null,4,"Validacion de contrapartida",null,null,null,{"$f":"IF(AC40=AC41,0,4)","v":0}]
[null,{"$f":"B41+1","v":10},null,null,null,null,12,null,null,{"$f":"IF($E46=$Y$15,IF($D46=$W$15,0,40),IF($D46=\"Coinvestigador\",J$9/2,40))","v":40},{"$f":"IF(E46=$Y$14,0,IF($D46=\"Coinvestigador\",$R$4,0))","v":0},{"$f":"IF(OR(H45>J45,H45<K45),1,0)","v":0},4,"Error: debe poner atención en los integrantes IP o CO que carge de contrapartida",null,null,null,null,null,5,"Validacion si hay asistente graduado en INV",null,null,null,{"$f":"IF(AND(Z45=\"INV\",R30>0),5,0)","v":0},{"$f":"F6","v":"PAZ"},null,{"$f":"SUM(Presupuesto!Q39:Q40)","v":0}]
[null,{"$f":"+B45","v":10},"Funcion :",null,null,null,null,null,null,{"$f":"IFERROR(VLOOKUP($F46,V_IdNBC,2,0),0)","v":0},{"$f":"IF($D46=$K$10,\"Ok\",\"\")","v":"Ok"},null,5,"Error: No puede seleccionar Asistente graduado en proyectos INV",null,null,null,null,null,6,"Validacion Que Asistentes graduados esten en los dos lados ",null,null,null,{"$f":"IF(R30<=AB45,0,6)","v":0}]
[null,{"$f":"+B46","v":10},"CvLac:",null,null,null,null,null,null,{"$f":"IF($D46=$W$19,20,IFERROR(VLOOKUP($E46,$Y$8:$Z$20,2,0),$G$9))","v":12},{"$f":"IF($D46=$W$11,IF($E46=$Y$13,10,12),0)","v":0},null,6,"Error  Hay Asistentes graduados sin diligenciar en presupuesto o integrantes Verificar",null,null,null,null,null,7]
[null,null,{"$f":"C44","v":"Contribuciones"},null,null,null,null,null,null,null,null,null,7,null,null,null,null,null,null,8]
[null,null,null,null,null,null,null,null,null,null,null,null,8,null,null,null,null,null,null,9]
[null,null,null,null,null,null,null,null,null,null,null,null,9,null,null,null,null,null,null,10]
[]
[null,null,"Su termino de participacion  en el proyecto sera interrumpido en razón de su vinculación contractual  ver numeral No3 de la convocatoria;  con la limintante de 10 meses maximo por vigencia"]

{"sheet":"Productos","index":10,"n_rows":112,"n_cols":27,"rows_kept":112,"cut":false,"hidden":false,"merged":[[36,2,36,5],[37,2,37,5],[38,2,38,5],[39,2,39,5],[40,2,40,5],[1,1,2,5],[32,2,32,5],[33,2,33,5],[34,2,34,5],[35,2,35,5]]}
[7]
[null,{"$f":"Cronograma!B2","v":"PRESENTACIÓN DE PROYECTOS \nDE INVESTIGACIÓN"},null,null,null,null,{"$f":"General!$H$2","v":"Fecha de Emisión: 2019/03/18"},{"$f":"General!$I$2","v":"IN-IV-F-14"}]
[null,null,null,null,null,null,{"$f":"General!$H$3","v":"Revisión N°:\n4"},{"$f":"\"Página \"&A1&\" de \"&Dt_TPG","v":"Página 7 de 11"},{"$f":"IF(H5=\"INV\",4,5)","v":5},null,"N","Cod","Abreviatura","IdClase","INV","IMP","Clase ","Tipo de Productos","Indicadores","o","Ok","IdClase"]
[null,null,null,null,null,null,{"$f":"IF(H5=\"INV\",3,4)","v":4},null,null,null,{"$f":"ROW()-3","v":1},101,"101-Libro","GNC",1,1,"Productos Generacion Nuevo Conocimiento (Minimo 3 productos).",null,"Soportes de sometimiento Evaluation positiva del libro por parte de los pares academicos",null,null,0]
["10.-","Productividad comprometida",null,null,null,"Tipo de proyecto:",null,{"$f":"General!$H$1","v":"PAZ"},null,null,{"$f":"ROW()-3","v":2},102,"102-Capitulo de libro","GNC",1,1,"Productos Generacion Nuevo Conocimiento (Minimo 3 productos).",null,"Soportes de sometimiento Copia del capitulo, portada y pagina legal del libro en el que fue publicado.",null,null,0]
[null,null,"Selección de topes comprometidos",null,null,null,null,null,null,null,3,103,"103-Articulo en revista cientifica","GNC",1,1,"Productos Generacion Nuevo Conocimiento (Minimo 3 productos).",null,"Soportes de sometimiento, aceptacion y/o publicacion.",null,null,0]
[null,"N°","Resultado/Producto esperado","Descripción o detalles del producto esperado","Indicador","Cantidad","Clase","Beneficiario",null,null,4,104,"104-Articulo en revista cientifica indexada en bases de datos de caracter internacional","GNC",1,1,"Productos Generacion Nuevo Conocimiento (Minimo 3 productos).",null,"Soportes de sometimiento, aceptacion y/o publicacion.",null,null,0]
[null,{"$f":"ROW()-7","v":1},null,null,{"$f":"IFERROR(VLOOKUP($I8,$L$3:$V$55,8,0),\" \")","v":" "},1,{"$f":"IFERROR(VLOOKUP($I8,L3:V55,3),\" \")","v":" "},null,{"$f":"IFERROR(ABS(LEFT(C8,3)),0)","v":0},null,5,105,"105-Producto cartografico (mapa, planos, cartas, etc.).","GNC",1,1,"Productos Generacion Nuevo Conocimiento (Minimo 3 productos).",null,"Copia del material.",null,null,0]
[null,{"$f":"ROW()-7","v":2},null,null,{"$f":"IFERROR(VLOOKUP($I9,$L$3:$V$55,8,0),\" \")","v":" "},1,{"$f":"IFERROR(VLOOKUP($I9,L4:V56,3),\" \")","v":" "},null,{"$f":"IFERROR(ABS(LEFT(C9,3)),0)","v":0},null,6,106,"106-Proyecto de investigation para presentar a Convocatorias financiadas por entidades externas.","GNC",1,1,"Productos Generacion Nuevo Conocimiento (Minimo 3 productos).",null,"Propuesta de investigacion presentada por los integrantes de la alianza como miembros de las universidades del SUE, y soportes de presentation a Convocatorias financiadas por entidades externas (Colciencias, Regalias, Erasmus, etc).",null,null,0]
[null,3,null,null," ",1,{"$f":"IFERROR(VLOOKUP($I10,L5:V56,3),\" \")","v":" "},null,0,null,7,201,"201-Exposiciones en recintos de prestigio, con catalogo y/o memoria en medio audiovisual","ART",1,1,"Productos de creacion artistica, memoria fotografica y/o audiovisual de los objetos de arte desarrollados en el proyecto (opcional).",null,"Certification de la Facultad de Artes o registros correspondientes ante la autoridad competente.",null,null,0]
[null,4,null,null," ",1,{"$f":"IFERROR(VLOOKUP($I11,L6:V56,3),\" \")","v":" "},null,0,null,8,202,"202-Audiciones de concierto en recintos de prestigio, con programa y memoria de audio","ART",1,1,"Productos de creacion artistica, memoria fotografica y/o audiovisual de los objetos de arte desarrollados en el proyecto (opcional).",null,"Certificacion de la Facultad de Artes o registros correspondientes ante la autoridad competente.",null,null,0]
[null,5,null,null," ",1,{"$f":"IFERROR(VLOOKUP($I12,L7:V56,3),\" \")","v":" "},null,0,null,9,203,"203-Formato audiovisual listo para publication","ART",1,1,"Productos de creacion artistica, memoria fotografica y/o audiovisual de los objetos de arte desarrollados en el proyecto (opcional).",null,"Certificacion de la Facultad de Artes o registros correspondientes ante la autoridad competente.",null,null,0]
[null,6,null,null," ",1,{"$f":"IFERROR(VLOOKUP($I13,L8:V56,3),\" \")","v":" "},null,0,null,10,204,"204-Partitura final lista para impresion","ART",1,1,"Productos de creacion artistica, memoria fotografica y/o audiovisual de los objetos de arte desarrollados en el proyecto (opcional).",null,"Certificacion de la Facultad de Artes o registros correspondientes ante la autoridad competente.",null,null,0]
[null,7,null,null," ",1,{"$f":"IFERROR(VLOOKUP($I14,L9:V56,3),\" \")","v":" "},null,0,null,11,205,"205-Grabacion lista    para publicacion","ART",1,1,"Productos de creacion artistica, memoria fotografica y/o audiovisual de los objetos de arte desarrollados en el proyecto (opcional).",null,"Certificacion de la Facultad de Artes o registros correspondientes ante la autoridad competente.",null,null,0]
[null,8,null,null," ",1,{"$f":"IFERROR(VLOOKUP($I15,L10:V56,3),\" \")","v":" "},null,0,null,12,206,"206-Pieza literaria","ART",1,1,"Productos de creacion artistica, memoria fotografica y/o audiovisual de los objetos de arte desarrollados en el proyecto (opcional).",null,"Certificacion de la Facultad de Artes o registros correspondientes ante la autoridad competente.",null,null,0]
[null,9,null,null," ",1,{"$f":"IFERROR(VLOOKUP($I16,L11:V56,3),\" \")","v":" "},null,0,null,13,207,"207-eporte tecnico escrito, indicando la importancia y signification de la obra. Cuando se trate de pinturas y esculturas debe apoyarse con registros fotograficos, videos, catalogos, etc.","ART",1,1,"Productos de creacion artistica, memoria fotografica y/o audiovisual de los objetos de arte desarrollados en el proyecto (opcional).",null,"Certification de la Facultad de Artes o registros correspondientes ante la autoridad competente.",null,null,0,null,null,null,null,"Publicación en  la  gaceta  del  ICA,  Constancia expedida  por  el  ICA  que  indique en qué etapa  del  proceso  se  encuentra la solicitud."]
[null,10,null,null," ",1,{"$f":"IFERROR(VLOOKUP($I17,L12:V56,3),\" \")","v":" "},null,0,null,14,208,"208-Obra o Creation Eflmera: Interpretation musical, Perfomancias, Escenograflas, Documental. Videoarte, Animation, Danza,","ART",1,1,"Productos de creacion artistica, memoria fotografica y/o audiovisual de los objetos de arte desarrollados en el proyecto (opcional).",null,"Certificacion de la Facultad de Artes o registros correspondientes ante la autoridad competente.",null,null,0]
[null,11,null,null," ",1,{"$f":"IFERROR(VLOOKUP($I18,L13:V56,3),\" \")","v":" "},null,0,null,15,301,"301-Proyecto de regulation o de normatividad","NRM",1,1,"Proyectos    de normas emanadas del proyecto (opcional).",null,"Certificacion de la Secretarla del Senado de la Republica en la que se haga expllcito la participation del Grupo de Investigation o Investigador en su desarrollo.",null,null,0]
[null,12,null,null," ",1,{"$f":"IFERROR(VLOOKUP($I19,L14:V56,3),\" \")","v":" "},null,0,null,16,302,"302-Norma tecnica","NRM",1,1,"Proyectos    de normas emanadas del proyecto (opcional).",null,"Certificado de la entidad o institucion que emitio el producto, indicando la participacion del grupo o de alguno de sus integrantes en la construccion.",null,null,0]
[null,13,null,null," ",1,{"$f":"IFERROR(VLOOKUP($I20,L15:V56,3),\" \")","v":" "},null,0,null,17,401,"401-Trabajo de grado","FRH",1,1,"Productos    de formacion (Minimo 4 productos).",null,"Acta de sustentacion emitida por el programa curricular y documento final del trabajo de grado.",null,null,0]
[null,14,null,null," ",1,{"$f":"IFERROR(VLOOKUP($I21,L16:V56,3),\" \")","v":" "},null,0,null,18,402,"402-Tesis de maestrla","FRH",1,1,"Productos    de formacion (Minimo 4 productos).",null,"Acta de sustentacion de trabajo de grado de Maestrla emitida por coordination del programa de Maestrla y documento de trabajo grado de maestrla.",null,null,0]
[null,15,null,null," ",1,{"$f":"IFERROR(VLOOKUP($I22,L17:V56,3),\" \")","v":" "},null,0,null,19,403,"403-Tesis doctoral","FRH",1,1,"Productos    de formacion (Minimo 4 productos).",null,"Acta de sustentacion de tesis doctoral emitida por coordinacion del programa de doctorado y documento de tesis doctoral.",null,null,0]
[null,16,null,null," ",1," ",null,0,null,20,404,"404-Documento de avance de tesis de maestrla","FRH",1,1,"Productos    de formacion (Minimo 4 productos).",null,"Documento de resultados parciales (con visto bueno del investigador principal) y certificado de participacion del investigador en evento institucional de socialization de resultados de investigacion",null,null,0]
[null,17,null,null," ",1," ",null,0,null,21,405,"405-Documento de avance de tesis de doctorado","FRH",1,1,"Productos    de formacion (Minimo 4 productos).",null,"Documento de resultados parciales (con visto bueno del investigador principal) y",null,null,0]
[null,18,null,null," ",1," ",null,0,null,22,406,"406-Documento de avance de trabajo de grado","FRH",1,1,"Productos    de formacion (Minimo 4 productos).",null,"Documento de resultados parciales (con visto bueno del investigador principal) y certificado de participacion del investigador en evento institucional de socializacion de resultados de investigacion",null,null,0]
[null,19,null,null," ",1," ",null,0,null,23,407,"407-Desarrollo de un curso dirigido a estudiantes de pregrado o posgrado","FRH",1,1,"Productos    de formacion (Minimo 4 productos).",null,"Certification expedida por la Universidad en donde se avale el desarrollo del curso-taller",null,null,0]
[null,20,null,null," ",1," ",null,0,null,24,408,"408-Apoyo a la creacion de programas de formation en maestria o doctorado","FRH",1,1,"Productos    de formacion (Minimo 4 productos).",null,"Documento conceptual avalado por el Consejo de Facultad.",null,null,0]
[null,null,null,null,null,null,null,null,null,null,25,501,"501-Producto tecnologico","TEC",1,1,"Productos procesos tecnologicos (opcional)",null,"Registro del producto o solicitud de registro radicada ante la entidad competente.",null,null,0]
[null,"T",{"$f":"\"En el caso de aprobacion se liquidara el proyecto con  \"&V_Max&\" Pts.\"","v":"En el caso de aprobacion se liquidara el proyecto con  0 Pts."},null,null,{"$f":"SUM(F7:F27)","v":20},{"$f":"INT(SUM(G7:G27))","v":0},null,null,null,26,502,"502-Diseno industrial","TEC",1,1,"Productos procesos tecnologicos (opcional)",null,"Registro del producto o solicitud de registro radicada ante la entidad competente.",null,null,0]
[null,{"$f":"IF(V_Max>H67,Q60,\"\")","v":""},null,null,null,null,null,null,null,null,27,503,"503-Proceso pedagogico","TEC",1,1,"Productos procesos tecnologicos (opcional)",null,"Registro del proceso o solicitud de registro radicada ante la entidad competente.",null,null,0]
[null,null,null,null,null,null,null,null,null,null,28,504,"504-Desarrollo de software","TEC",1,1,"Productos procesos tecnologicos (opcional)",null,"Descripcion del Analisis, Diseno, Implementation y Validation.",null,null,0]
[null,"N",null,"Grupos",null,null,"Sigla","No  Prod.",null,null,29,505,"505-Proceso industrial","TEC",1,1,"Productos procesos tecnologicos (opcional)",null,"Registro del proceso o solicitud de registro radicada ante la entidad competente.",null,null,0]
["GNC",1,{"$f":"CLEAN(TRIM(VLOOKUP($G33,$N$3:$U$55,4,0)))","v":"Productos Generacion Nuevo Conocimiento (Minimo 3 productos)."},null,null,null,"GNC",{"$f":"SUMIFS($F$7:$F$27,$G$7:$G$27,$G33)","v":0},3,null,30,506,"506-Proceso terapeutico","TEC",1,1,"Productos procesos tecnologicos (opcional)",null,"Registro del proceso o solicitud de registro radicada ante la entidad competente.",null,null,0]
["FRH",2,"Productos de creacion artistica, memoria fotografica y/o audiovisual de los objetos de arte desarrollados en el proyecto (opcional).",null,null,null,"ART",{"$f":"SUMIFS($F$7:$F$27,$G$7:$G$27,$G34)","v":0},null,null,31,507,"507-Proceso analitico","TEC",1,1,"Productos procesos tecnologicos (opcional)",null,"Registro del proceso o solicitud de registro radicada ante la entidad competente.",null,null,0]
["SAC",3,{"$f":"CLEAN(TRIM(VLOOKUP($G35,$N$3:$U$55,4,0)))","v":"Proyectos de normas emanadas del proyecto (opcional)."},null,null,null,"NRM",0,null,null,32,508,"508-Proceso instrumental","TEC",1,1,"Productos procesos tecnologicos (opcional)",null,"Registro del proceso o solicitud de registro radicada ante la entidad competente.",null,null,0]
[null,4,{"$f":"CLEAN(TRIM(VLOOKUP($G36,$N$3:$U$55,4,0)))","v":"Productos de formacion (Minimo 4 productos)."},null,null,null,"FRH",0,4,null,33,509,"509-Esquema de trazado de circuito integrado","TEC",1,1,"Productos procesos tecnologicos (opcional)",null,"Registro del producto o solicitud de registro radicada ante la entidad competente.",null,null,0]
[null,5,"Productos procesos tecnologicos (opcional)",null,null,null,"TEC",0,null,null,34,510,"510-Nueva variedad (vegetal o animal), o nueva raza","TEC",1,1,"Productos procesos tecnologicos (opcional)",null,"Nombre de la variedad, autor, fecha, tipo de ciclo (corto o largo) y estado de la solicitud, en proceso u obtenida.",null,null,0]
[null,6,"Productos o procesos tecnologicos patentables o susceptibles de ser protegidos por secreto industrial (opcional).",null,null,null,"INO",0,null,null,35,511,"511-Patentes o su tramite","TEC",1,1,"Productos procesos tecnologicos (opcional)",null,"Patente o solicitud de patente radicada ante la entidad competente.",null,null,0]
[null,7,"Productos de apropiación social del conocimiento",null,null,null,"ASC",0,null,null,36,512,"512-Modelos de utilidad o su tramite","TEC",1,1,"Productos procesos tecnologicos (opcional)",null,"Modelo de utilidad o solicitud de modelo radicada ante la entidad competente.",null,null,0]
[null,8,"Productos de divulgacion de resultados (Minimo 2 productos).",null,null,null,"DIB",0,2,null,37,513,"513-Propuesta de transferencia tecnologica y/o creacion de spin off, y/o plan de negocios de empresa de base tecnologica","TEC",1,1,"Productos procesos tecnologicos (opcional)",null,"Nombre de Empresa creada, Certificado Camara de comercio, NIT o codigo de registro tributario si la empresa radica fuera de Colombia; Certificacion institucional describiendo el campo tecnologico de las empresas creadas",null,null,0]
[null,9,"Otros.",null,null,null,"OTO",0,null,null,38,601,"601-Prototipo industrial","INO",1,1,"Productos o procesos tecnologicos patentables    o susceptibles de ser protegidos    por secreto industrial (opcional).",null,"Registro del producto o solicitud de registro radicada ante la entidad competente.",null,null,0]
[null,null,null,null,null,null,null,{"$f":"SUMIFS($U$3:$U$57,$N$3:$N$57,$A42)","v":0},null,null,39,602,"602-Planta piloto","INO",1,1,"Productos o procesos tecnologicos patentables    o susceptibles de ser protegidos    por secreto industrial (opcional).",null,"Registro del producto o copia digital de los contratos de desarrollo de la Planta Piloto",null,null,0]
[null,null,null,null,null,null,null,{"$f":"SUM(H33:H42)","v":0},null,null,40,603,"603-Productos o procesos protegidos por secreto industrial","INO",1,1,"Productos o procesos tecnologicos patentables    o susceptibles de ser protegidos    por secreto industrial (opcional).",null,"Registro del producto o solicitud de registro radicada ante la entidad competente.",null,null,0]
[null,null,null,null,null,null,null,null,null,null,41,604,"604-Proceso instrumental","INO",1,1,"Productos o procesos tecnologicos patentables    o susceptibles de ser protegidos    por secreto industrial (opcional).",null,"Registro del proceso o solicitud de registro radicada ante la entidad competente.",null,null,0]
[null,"N","Lineas Tematicas asociadas a la presente propuesta.",null,null,{"$f":"SUM(F23:F43)","v":25},null,null,null,null,42,605,"605-Prototipo de productos nuevos que puedan ser fabricados por el sector empresarial","INO",1,1,"Productos o procesos tecnologicos patentables    o susceptibles de ser protegidos    por secreto industrial (opcional).",null,"Registro del producto o solicitud de registro radicada ante la entidad competente.",null,null,0]
[null,null,null,null,null,null,null,null,null,null,43,606,"606-Diseno de sistemas o procesos que constituyan una innovacion tecnologica","INO",1,1,"Productos o procesos tecnologicos patentables    o susceptibles de ser protegidos    por secreto industrial (opcional).",null,"nombre de la innovacion, fecha, autor(es); Certificados de implementation en pequenas, medianas y grande empresas",null,null,0]
[null,"N","Nombres de las lineas tematicas ",null,null,null,null,"Aplica (Si o No)",null,null,44,701,"701-Participation ciudadana CTel y creation. Participacion ciudadana o comunidad(es)    en proyectos    de investigation.    Espacio/evento    de participacion ciudadana o de comunidad(es) en relation con la CTel","ASC",1,1,"Productos de apropiación social del conocimiento",null,"Titulo del proyecto de investigacion, fecha de inicio, investigador principal, nombre de la comunidad o comunidades participantes, instituciones o entidades vinculadas al proyecto. Nombre del espacio/evento de participacion ciudadana, fecha de inicio, lider, investigadores participantes, nombre de la comunidad o comunidades participantes, instituciones o entidades vinculadas.",null,null,0]
[null,1,"Educación y pedagogías para la paz",null,null,null,null,"No",null,null,45,702,"702-Estrategias pedagogicas para el Programa de fomento a la CTel. Programa /estrategia pedagogica de fomento CTU. Incluye la formation de redes de fomento de la apropiacion social del conocimiento","ASC",1,1,"Productos de apropiación social del conocimiento",null,"Nombre de la estrategia pedagogica, fecha de inicio, institucion(es) o entidad(es) vinculada(s), investigador principal.",null,null,0]
[null,2,"Desarrollo territorial, comunidades, organizaciones y movimientos sociales",null,null,null,null,"No",null,null,46,703,"703-Comunicacion social del conocimiento.    Estrategias    de comunicacion    del    conocimiento, generation de contenidos impresos, multimedia y virtuales","ASC",1,1,"Productos de apropiación social del conocimiento",null,"Nombre de la estrategia de comunicacion, fecha de inicio, lider, nombre de la comunidad o comunidades participantes, instituciones o entidades vinculadas a la estrategia. Certificacion de production y contenido por parte de la institucion o empresa, donde conste la participacion del grupo en la generacion de contenidos.",null,null,0]
[null,3,"Historia y memoria",null,null,null,null,"No",null,null,47,704,"704-Reconocimientos. Premios o distinciones otorgadas por instituciones u organizaciones publicas o privadas que utilizan parametros de excelencia para reconocer la gestion, la productividad y los aportes y el impacto de la investigation o el desarrollo tecnologico, en un    area    del conocimiento","ASC",1,1,"Productos de apropiación social del conocimiento",null,"Institucion u organization que lo otorga, fecha de otorgamiento.",null,null,0]
[null,4,"Derechos humanos y justicia: víctimas y excombatientes",null,null,null,null,"No",null,null,48,801,"801-Realizar un evento academico, de caracter cientifico, tecnologico, artistico y cultural, entre otros.","DIB",1,1,"Productos    de divulgacion    de resultados (Minimo 2 productos).",null,"Informe de realization del evento con los respectivos soportes. Memorias del evento organizado, en donde se aprecie la participacion del investigador como miembro del comite organizador.",null,null,0]
[null,5,"Fortalecimiento institucional, Estado, sistema político, economía para el pos-acuerdo y política\nexterior",null,null,null,null,"No",null,null,49,802,"802-Presentation o conferencia en eventos academicos de caracter cientifico, tecnologico, artistico y cultural, entre otros","DIB",1,1,"Productos    de divulgacion    de resultados (Minimo 2 productos).",null,"Certificado de participacion como ponente en un seminario o congreso nacional o internacional, emitido por la institution que organizo el evento.",null,null,0]
[null,6,"Problemáticas ambientales, agropecuarias y de seguridad alimentaria en el pos-acuerdo",null,null,null,null,"No",null,null,50,803,"803-Material didactico de divulgacion","DIB",1,1,"Productos    de divulgacion    de resultados (Minimo 2 productos).",null,"Copia del material",null,null,0]
[null,7,"Salud, habilitación y rehabilitación para víctimas y excombatientes",null,null,null,null,"No",null,null,51,804,"804-Circulation de conocimiento especializado. Eventos cientificos y participacion en redes de conocimiento, talleres de creation, eventos culturales y artisticos, documentos de trabajo (working papers), boletines divulgativos de resultado de investigacion, ediciones de revista cientifica o de libros resultado de investigacion e informes finales de investigacion.","DIB",1,1,"Productos    de divulgacion    de resultados (Minimo 2 productos).",null,"Certificado de participacion como ponente en un seminario o congreso nacional o internacional, emitido por la institucion que organizo el evento. Memorias del evento organizado en donde se aprecie la participacion del investigador como miembro del comite organizador. Titulo del documento, autor(es), ano en que elaboro el documento, instituciones vinculadas en la realizacion del documento, pagina WEB (del working paper) o DOI en donde se encuentra publicado el documento (si la tiene). Titulo del boletfn, autor(es), fecha en que elaboro el boletin, institucion que lo publica. Titulo de la revista o titulo del libro, ISSN o ISBN, nombre del editor, fecha en el cual fue editor, ano de publicacion, Pagina WEB de la revista o del libro. Titulo del Informe Final de Investigacion. Nombre del proyecto de investigacion. Fecha de elaboracion.",null,null,0]
[null,8,"Arte y cultura para la paz en el marco del pos-acuerdo",null,null,null,null,"No",null,null,52,901,"901-Otros. Se aplica a todos aquellos Productos Academicos que no puedan ser ubicados en alguno de los grupos y subgrupos de la presente tabla.","OTO",1,1,"Otros.",null,"",null,null,0]
[null,null,null,null,null,null,null,null,null,null,53,null,null,null,null,null,null,null,null,null,null,0]
[null,null,null,null,null,null,null,null,null,null,54,{"$f":"IFERROR(ABS(LEFT(M57,3)),0)","v":0},{"$f":"IFERROR(V57&\"- \"&VLOOKUP($K57,Dt_prod2,5,0),\"XX\")","v":"XX"},"GI",{"$f":"IFERROR(VLOOKUP($K57,Dt_prod2,7,0),0)","v":0},{"$f":"IFERROR(VLOOKUP($K57,Dt_prod2,8,0),0)","v":0},{"$f":"IFERROR(VLOOKUP($K57,Dt_prod2,3,0),0)","v":0},{"$f":"IFERROR(VLOOKUP($K57,Dt_prod2,4,0),0)","v":0},{"$f":"IFERROR(VLOOKUP($K57,Dt_prod2,6,0),0)","v":0},0,0,0]
[null,null,null,null,null,null,null,null,null,null,null,"}"]
[null,null,null,null,null,"Validación de productividad",null,null,null,null,null,null,null,"Preupuesto"]
[null,null,null,null,null,{"$f":"IF(H60>=0,1,0)","v":0},{"$f":"G33","v":"GNC"},{"$f":"H33-I33","v":-3},null,null,null,null,"Pts Sobrantes",{"$f":"V_Max-M61","v":-80},null,{"$f":"V_Max-H67","v":{"$error":"#VALUE!"}},{"$f":"\"*Nota: supera en \"&P60&\"  Pts. el limite máximo puntos por nivel de grupo de :\"&H67&\" Pts.\"","v":{"$error":"#VALUE!"}},{"$f":"General!C7","v":"Investigación en Paz y Pos-acuerdo. SUE"},"T","INV","IMP"]
[null,null,null,null,null,{"$f":"IF(H61>=0,1,0)","v":0},{"$f":"G36","v":"FRH"},{"$f":"H36-I36","v":-4},null,null,null,true,{"$f":"VLOOKUP($L$61,$L$63:$N$69,2,0)","v":80},{"$f":"IFERROR(VLOOKUP($L$61,$L$63:$N$68,3,0),0)","v":100},"<< Tope al que aplica el proyecto",null,"* debe por lo menos tener 20 puntos para cumplir los topes requisto de la convocatoria (INV)",null,"A",199,300]
[null,null,null,null,null,{"$f":"IF(H62>=0,1,0)","v":0},{"$f":"G40","v":"DIB"},{"$f":"H40-I40","v":-2},null,null,null,null,null,null,null,null,null,null,"A1",199,300]
[null,null,null,null,null,{"$f":"SUM(F60:F62)","v":0},"<== Si es 3 Ok , Menos Mal ",null,null,null,null,{"$f":"V_Max>=M63","v":false},200,250,null,null,null,null,"B",199,300]
[null,null,null,null,null,null,null,null,null,null,null,false,100,100,null,null,{"$f":"L78","v":"Se debe escoger por lo menos una línea tematica."},null,"C",199,300]
[null,null,null,null,null,null,"Validacion Lineas",{"$f":"COUNTIF($H$48:$H$55,\"No\")","v":8},null,null,null,true,80,100,null,null,null,null,"R",59,0]
[null,"Cuadro validación de productos por Sigla",null,null,null,null,null,"Max Puntos",null,null,null,false,60,75,null,null,null,null,"NR",39,0]
[null,null,null,null,null,null,null,"Max Puntos",null,null,null,false,40,50,null,null,null,null,"NA",0,0]
[null,null,null,null,null,null,null,null,null,null,null,false,20,25]
[null,null,"Grupo Maximo ",{"$f":"Gp_Max","v":"C"},{"$f":"M61+19 & \" Pts. Maximos\"","v":"99 Pts. Maximos"},null,{"$f":"\"Con : $\"&N61&\"  Millones Max\"","v":"Con : $100  Millones Max"},null,null,null,null,true,0,25,null,null,null,null,"Pts",null,10]
[]
[null,null,"Validación de cumplimiento de productividad por siglas."]
[null,"Puntos ",null,null,null,null,null,null,null,null,null,null,null,"No","Codigo","Grupos Participantes"]
[null,null,null,null,null,null,null,null,null,null,"Clasificacion",{"$f":"IFERROR(VLOOKUP($P73,Dt_GrpClas,2,0),0)","v":"C"},null,null,1,{"$f":"General!L18","v":"COL0026486"},{"$f":"General!C18","v":"Agua y Energía - AyE"}]
[null,null,null,null,null,null,null,null,null,null,null,{"$f":"IFERROR(VLOOKUP($P74,Dt_GrpClas,2,0),0)","v":0},null,null,2,{"$f":"General!L22","v":0},{"$f":"General!D22","v":0}]
[null,null,{"$f":"A33&\"-\"&C33","v":"GNC-Productos Generacion Nuevo Conocimiento (Minimo 3 productos)."},null,{"$f":"H33","v":0},{"$f":"IF(E75>0,0,1)","v":1},{"$f":"IF(F75>0,\"( \"&LEFT(C75,3) &\" ) \",\"\")","v":"( GNC ) "},null,null,null,null,{"$f":"IFERROR(VLOOKUP($P75,Dt_GrpClas,2,0),0)","v":0},null,null,3,{"$f":"General!L26","v":0},{"$f":"General!D26","v":0}]
[null,null,{"$f":"A34&\"-\"&C34","v":"FRH-Productos de creacion artistica, memoria fotografica y/o audiovisual de los objetos de arte desarrollados en el proyecto (opcional)."},null,{"$f":"H34","v":0},{"$f":"IF(AND(V_Max>0,E76=0),1,0)","v":0},{"$f":"IF(F76>0,\"( \"&LEFT(C76,3) &\" ) \",\"\")","v":""}]
[null,null,{"$f":"A35&\"-\"&C35","v":"SAC-Proyectos de normas emanadas del proyecto (opcional)."},null,{"$f":"H35","v":0},{"$f":"IF(AND(V_Max>40,E77=0),1,0)","v":0},{"$f":"IF(F77>0,\"( \"&LEFT(C77,3) &\" ) \",\"\")","v":""},null,null,null,null,"Tabla de Errores ",null,"Validaciones",{"$f":"MAX(O78:O91)","v":4}]
[null,null,{"$f":"A44&\"-\"&C44","v":"-"},null,{"$f":"H44","v":0},null,{"$f":"IF(F78>0,\"( \"&LEFT(C78,3) &\" ) \",\"\")","v":""},{"$f":"IF(F78>0,G78,\"\")","v":""},null,null,null,{"$f":"IFERROR(VLOOKUP($O$77,K79:L89,2,0),\".\")","v":"Se debe escoger por lo menos una línea tematica."}]
[null,null,{"$f":"A45&\"-\"&C45","v":"-Lineas Tematicas asociadas a la presente propuesta."},null,{"$f":"H45","v":0},null,{"$f":"IF(F79>0,C79,\"\")","v":""},{"$f":"IF(F79>0,G79,\"\")","v":""},null,null,null," ","Ok sin Error",null,0]
[null,null,null,null,null,{"$f":"SUM(F75:F79)","v":1},null,null,null,null,0,".",null,null,0,null,{"$f":"COUNTA(C8:C27)","v":0}]
[null,null,null,null,null,null,null,null,null,null,1,{"$f":"\"Pendiente tener en cuenta: \"&C33","v":"Pendiente tener en cuenta: Productos Generacion Nuevo Conocimiento (Minimo 3 productos)."},null,"Validacion  Minimo de productos Item 1",{"$f":"IF(H60<0,1,0)","v":1},null,{"$f":"SUM(F8:F27)","v":20}]
[null,null,null,null,null,null,null,null,null,null,2,{"$f":"\"Pendiente tener en cuenta: \"&C36","v":"Pendiente tener en cuenta: Productos de formacion (Minimo 4 productos)."},null,"Validacion  Minimo de productos Item 2",{"$f":"IF(H61<0,2,0)","v":2}]
[null,null,null,null,null,null,null,null,null,null,3,{"$f":"\"Pendiente tener en cuenta: \"&C40","v":"Pendiente tener en cuenta: Productos de divulgacion de resultados (Minimo 2 productos)."},null,"Validacion  Minimo de productos Item 2",{"$f":"IF(H62<0,3,0)","v":3},null,null,{"$f":"COUNTIF(F8:F27,\">\"&0)","v":20}]
[null,"Hay error de productos si es mayor a 0",null,null,null,null,null,null,null,null,4,{"$f":"\"Se debe escoger por lo menos una línea tematica.\"","v":"Se debe escoger por lo menos una línea tematica."},null,"Validcion por lo menos 1 linea",{"$f":"IF(H65>=8,4,0)","v":4}]
[null,{"$f":"IF(E85>0,\"Error: Debe seleccionar producto(s) de esta(s) categoria(s): \"&F85&\" \",\"OK\")","v":"OK"},null,null,{"$f":"SUM(C81:F81)","v":0},{"$f":"TRIM(C82&D82&E82&F82)","v":""},null,null,null,null,5," "]
[null,"Validacion de Grupos con la mayor categoría",null,null,null,null,null,null,null,null,6," "]
[null,"N",null,null,null,null,null,null,null,null,7," "]
[null,1,"No Grpos General","Clasif","Millo por tope","Ptoy",0,null,null,null,8," "]
[null,2,{"$f":"COUNTIF(Dt!$AR$3:$AR$243,D89)","v":7},"A",null,{"$f":"COUNTIF($L$72:$L$75,D89)","v":0},{"$f":"IF(G88=0,IF(F89>0,D89,0),G88)","v":0},null,null,null,9," "]
[null,3,{"$f":"COUNTIF(Dt!$AR$3:$AR$243,D90)","v":3},"A1",null,0,0,null,null,null,10]
[null,4,{"$f":"COUNTIF(Dt!$AR$3:$AR$243,D91)","v":6},"B",null,0,0]
[null,5,{"$f":"COUNTIF(Dt!$AR$3:$AR$243,D92)","v":42},"C",null,1,"C"]
[null,6,{"$f":"COUNTIF(Dt!$AR$3:$AR$243,D93)","v":6},"R",null,0,"C"]
[null,7,{"$f":"COUNTIF(Dt!$AR$3:$AR$243,D94)","v":9},"NR",null,0,"C"]
[null,null,{"$f":"COUNTIF(Dt!$AR$3:$AR$243,D95)","v":2},"NA",0,0,"C"]
[]
[null,null,null,null,"Mayor  Grupo","Final",{"$f":"G95","v":"C"}]
[]
[]
[]
[]
[]
[]
[null,null,null,null,null,null,null,null,null,null,"GNC"]
[null,null,null,null,null,null,null,null,null,null,"ART"]
[null,null,null,null,null,null,null,null,null,null,"NRM"]
[null,null,null,null,null,null,null,null,null,null,"FRH"]
[null,null,null,null,null,null,null,null,null,null,"TEC"]
[null,null,null,null,null,null,null,null,null,null,"INO"]
[null,null,null,null,null,null,null,null,null,null,"ASC"]
[null,null,null,null,null,null,null,null,null,null,"DIB"]
[null,null,null,null,null,null,null,null,null,null,"OTO"]

{"sheet":"Presupuesto","index":11,"n_rows":184,"n_cols":29,"rows_kept":184,"cut":false,"hidden":false,"merged":[[113,4,113,5],[108,4,108,5],[109,4,109,5],[110,4,110,5],[111,4,111,5],[112,4,112,5],[103,4,103,5],[104,4,104,5],[105,4,105,5],[106,4,106,5],[107,4,107,5],[98,4,98,5],[99,4,99,5],[100,4,100,5],[101,4,101,5],[102,4,102,5],[93,4,93,5],[94,4,94,5],[95,4,95,5],[96,4,96,5],[97,4,97,5],[161,1,163,1],[175,4,176,8],[173,4,173,8],[175,3,176,3],[140,1,142,1],[143,1,145,1],[146,1,148,1],[149,1,151,1],[155,1,157,1],[152,1,154,1],[158,1,160,1],[125,1,127,1],[128,1,130,1],[131,1,133,1],[134,1,136,1],[137,1,139,1],[2,1,3,6],[49,4,49,5],[50,4,50,5],[69,4,69,5],[68,4,68,5],[6,3,6,8],[7,3,7,5],[7,7,7,8],[51,4,51,5],[52,4,52,5],[53,4,53,5],[54,4,54,5],[55,4,55,5],[56,4,56,5],[57,4,57,5],[58,4,58,5],[59,4,59,5],[60,4,60,5],[61,4,61,5],[67,4,67,5],[62,4,62,5],[63,4,63,5],[64,4,64,5],[65,4,65,5],[66,4,66,5],[70,4,70,5],[71,4,71,5],[72,4,72,5],[73,4,73,5],[74,4,74,5],[75,4,75,5],[76,4,76,5],[77,4,77,5],[78,4,78,5],[79,4,79,5],[80,4,80,5],[81,4,81,5],[82,4,82,5],[83,4,83,5],[84,4,84,5],[121,4,121,5],[116,4,116,5],[117,4,117,5],[118,4,118,5],[119,4,119,5],[120,4,120,5]]}
[9,null,null,null,null,null,null,null,null,null,null,null,null,null,null,null,null,"Tabla de Topes"]
[null,null,null,null,null,null,null,null,null,null,null,null,"1.-> Limite presupuestal",{"$f":"IF(MIN(N6:P6)<1, 0,MIN(N6:P6))","v":0},null,null,null,"Clasif",null,null,null,{"$f":"General!I19","v":"C"}]
[null,{"$f":"Integrantes!B3","v":"PRESENTACIÓN DE PROYECTOS \nDE INVESTIGACIÓN"},null,null,null,null,null,{"$f":"General!$H$2","v":"Fecha de Emisión: 2019/03/18"},{"$f":"General!$I$2","v":"IN-IV-F-14"},null,null,null,null,"Limite Grupo","Limite Producto","Limite Convo",null,"A",{"$f":"IF($H$10=\"IMP\",250,100)","v":100},null,null,{"$f":"General!I23","v":""}]
[null,null,null,null,null,null,null,{"$f":"General!$H$3","v":"Revisión N°:\n4"},{"$f":"\"Página \"&$A$1&\" de \"&Dt_TPG","v":"Página 9 de 11"},null,null,null,"Mayor Grupo",{"$f":"Productos!G97","v":"C"},{"$f":"Productos!M61","v":80},{"$f":"IF(H10=\"IMP\",250,100)","v":100},null,"A1",{"$f":"IF($H$10=\"IMP\",250,100)","v":100},null,null,{"$f":"General!I27","v":""}]
[null,null,null,null,null,null,null,null,null,null,null,null,null,null,null,null,null,"B",{"$f":"IF($H$10=\"IMP\",250,100)","v":100}]
[null,null,null,null,null,null,null,null,null,null,null,null,1000000,{"$f":"IF(N7>2,P6,0)","v":70000000},{"$f":"IF(O7=3,P6,0)","v":0},70000000,null,"C",{"$f":"IF($H$10=\"IMP\",250,100)","v":100}]
[null,"T","Título de la Propuesta :",{"$f":"General!B9","v":"Formato: actualizado a 06 Sep 2019"},null,null,null,null,null,null,null,null,null,{"$f":"General!M18","v":20},{"$f":"Productos!F63","v":0},null,null,"R",{"$f":"IF($H$10=\"IMP\",250,50)","v":50}]
[null,"L","Lider responsable",{"$f":"General!C10","v":"Luis Alexander Chirivi"},null,null,"Codigo VICEIN:",{"$f":"CLEAN(General!H7)","v":""},null,null,null,null,null,null,null,null,null,"NR",{"$f":"IF($H$10=\"IMP\",250,25)","v":25}]
[null,null,null,null,null,null,null,null,null,null,null,null,null,null,null,null,null,"NA",0]
["12.-","Presupuesto rubro personal asocidado a la propuesta",null,null,null,null,{"$f":"V_Max","v":0},{"$f":"Cel_TP","v":"PAZ"},{"$f":"Gp_Max","v":"C"}]
[null,null,null,null,null,null,null,null,1.66]
[null,"a.","Personal de planta o ocasional que integra al proyecto de investigación.",null,null,null,null,"Valores de Contrapartida."]
[{"$f":"ROW()","v":13},"N°","Sueldo Neto","Factor ","Tipo de Vinculo UMNG","Numero de meses ","Número Horas / Semanal","Valor Final","Identificación",null,null,"*tabla de consolidacion por año para proyectos IMP"]
[null,{"$f":"ROW()-$A$13","v":1},null,{"$f":"I11","v":1.66},{"$f":"INDIRECT($I$24&\"E\"&$J14+1,1)","v":0},{"$f":"INDIRECT($I$24&\"G\"&$J14,1)","v":12},{"$f":"INDIRECT($I$24&\"H\"&$J14,1)","v":25},{"$f":"INT(((C14*F14)/40)*G14*$I$11)","v":0},{"$f":"INDIRECT($I$24&\"C\"&$J14,1)","v":0},9,null,0,"Tipo Vinculo UMNG","Año1","Año2",null,"Validación Presupuestal"]
[null,{"$f":"ROW()-$A$13","v":2},null,{"$f":"D14","v":1.66},0,0,0,0,"Contribuciones",{"$f":"J14+3","v":12},null,1,"Doc. Carrera TC",{"$f":"(SUMIF($E$14:$E$23,$M15,$H$14:$H$23)/2)","v":0},{"$f":"N15","v":0},null,{"$f":"\"Validación de \"&M36","v":"Validación de (Au.) -Auxiliar Pregrado"},null,"Ajustado por adenda no 2"]
[null,3,null,{"$f":"D15","v":1.66},0,0,0,0,"CvLac:",{"$f":"J15+3","v":15},null,2,"Doc. Carrera MT",{"$f":"(SUMIF($E$14:$E$23,$M16,$H$14:$H$23)/2)","v":0},{"$f":"N16","v":0},null,"Parte","Cntidad","por uno solo","Debe ser","Error de Asistente"]
[null,4,null,1.66,0,0,0,0,"Funcion :",18,null,3,"Doc. Ocasional",{"$f":"SUMIF($E$14:$E$23,$M17,$H$14:$H$23)","v":0},0,null,"No de AU Preg",{"$f":"COUNTIF($E$29:$E$44,$M$36)","v":0},null,1,0,null,null,25,0.1,null,0.05]
[null,5,null,1.66,"Investigador Externo",12,0,0,0,21,null,1,"Contrapartida Facultad  IMP:",{"$f":"SUM(N15:N17)","v":0},{"$f":"SUM(O15:O17)","v":0},null,"No Horas",{"$f":"SUMIF($E$29:$E$43,$M$36,G29:G43)","v":0},{"$f":"IFERROR(R18/R17,0)","v":0},20,{"$f":"IF(S18<=T18,0,1)","v":0},null,null,50,0.1,null,0.1]
[null,6,null,1.66,0,0,0,0,"Contribuciones",24,null,2,"Contrapartida Facultad  INV:",{"$f":"SUM(N15:O17)","v":0},null,null,"No Meses",{"$f":"SUMIF($E$29:$E$43,$M$36,F29:F43)","v":0},{"$f":"IFERROR(R19/R17,0)","v":0},6,{"$f":"IF(S19=T19,0,1)","v":1},null,null,75,0.1,null,0.15]
[null,7,null,1.66,0,0,0,0,"CvLac:",27,null,null,null,null,null,null,null,null,null,"Si  es Mas de 1 tiene problema en Auxiliar de pregrado --->>",{"$f":"SUM(U17:U19)","v":1},null,null,100,0.1,null,0.15]
[null,8,null,1.66,0,0,0,0,"Funcion :",30,null,null,null,null,null,null,"Estiimulo a estudiantes",null,{"$f":"INT(N2/1000000)","v":0},{"$f":"SUM(R36:R38)","v":0},{"$f":"T21/N2","v":{"$error":"#DIV/0!"}},null,null,250,0.1,null,0.15]
[null,9,null,1.66,0,12,0,0,0,33,null,null,null,null,null,null,"Limite inferior de estimulo a estudiantes",null,null,{"$f":"(S21*1000000)*U22","v":0},0.09]
[null,10,null,1.66,0,0,0,0,"Contribuciones",36,null,null,null,null,null,null,null,null,null,{"$f":"ABS(T22-T21)","v":0}]
[null,null,"Sumatoria del calculo de personal de planta \"Valor contrapartida Facultades\":Diligenciado VICEIN",null,null,null,null,{"$f":"INT(SUBTOTAL(109,H14:H23))","v":0},"Integrantes!",null,null,null,"Incremento al salario"]
[null,null,null,null,null,null,null,null,null,null,null,null,0,null,null,{"$f":"(J26/6)/6","v":0}]
[null,"b. ","Asistentes externos o temporales contratados OPS y Estimulo Estudiantes.",null,null,null,null,null,null,null,{"$f":"VLOOKUP(E30,M29:O38,3,0)","v":{"$error":"#N/A"}},null,"Valor SMLV","Max Mes"]
[null,">","Salario  Minimo Legal Vigente (SMIV) : ",null,null,828116,null,null,null,null,null,null,{"$f":"F27*(1+M25)","v":828116},12]
[]
[{"$f":"ROW()","v":29},"No","Valor mensual","Factor Salarial","Tipo de vinculación",{"$f":"\"Numero de meses\"","v":"Numero de meses"},"Número Horas / Semanal","Valor total","Valores  de entidades externas","Máximos","(Au.) ","No","Tipo","Valor total del contrato (10 mes)","SMMLV por 10 Meses","Valor mes contrato","Hay","Hay en $",null,null,null,"Valor mes contrato",null,"Va desde hasta","Salarios Minimos",null,"Figuras","arranca desde","Maximo Factor"]
[null,{"$f":"ROW()-$A$29","v":1},{"$f":"IFERROR(H30/F30,0)","v":0},0,null,1,0,{"$f":"INT(($F$27*D30*F30)/IF($E30=$M$36,10,1)*IF(COUNTIF($M$30:$M$35,$E30)=1,G30/40,1))","v":0},null,{"$f":"IF($E30=$M$36,K30,IFERROR(VLOOKUP($E30,$M$29:$O$38,2,0),0)*IF($H$10=\"IMP\",2,1))","v":0},{"$f":"IFERROR(IF(FIND($K$29,$E30,1)=1,VLOOKUP($E30,$M$38:$AC$40,2,0),0),0)/IF($E30=$M$36,10,1)","v":0},1,"(A.I.) -Técnico",{"$f":"$M$27*O30","v":16562320},20,{"$f":"N30/10","v":1656232},{"$f":"COUNTIF($E$29:$E$44,$M30)","v":0},{"$f":"SUMIF($E$30:$E$44,$M30,$H$30:$H$44)","v":0},null,null,null,1475434,null,{"$f":"\"Y\"&ROW()","v":"Y30"},6,null,{"$f":"E30","v":0},{"$f":"IFERROR(VLOOKUP($AA30,$M$29:$S$38,7,0)/10,0)","v":0},{"$f":"IFERROR(VLOOKUP($AA30,$M$29:$R$38,3,0)/IF($AA30=$M$36,6,10),0)","v":0}]
[null,{"$f":"ROW()-$A$29","v":2},{"$f":"IFERROR(H31/F31,0)","v":0},0,null,0,0,0,null,0,0,2,"(A.I.) -Profesional",28984060,35,2898406,0,0,null,null,null,2582009.5,null,{"$f":"\"Y\"&ROW()","v":"Y31"},{"$f":"Y30-0.5","v":5.5},null,{"$f":"E31","v":0},0,0]
[null,3,0,0,null,0,0,0,null,0,0,3,"(A.I.) -Profesional especilizado",33124640,40,3312464,0,0,null,null,null,2950868,null,"Y32",{"$f":"Y31-0.5","v":5},null,0,0,0]
[null,4,0,0,null,0,0,0,null,0,0,4,"(A.I.) -Profesional magister",37265220,45,3726522,0,0,null,null,null,3319726.5,null,"Y33",4.5,null,0,0,0]
[null,5,0,0,null,0,0,0,null,0,0,5,"(A.I.) -Profesional doctorado",45546380,55,4554638,0,0,null,null,null,4057443.5,null,"Y34",4,null,0,0,0]
[null,6,0,0,null,0,0,0,null,0,0,6,"(J.I)  -Joven investigador",28984060,35,2898406,0,0,null,null,null,2582009.5,null,"Y35",3.5,null,0,0,0]
[null,7,0,0,null,0,0,0,null,0,0,7,"(Au.) -Auxiliar Pregrado",24843480,30,{"$f":"F27*3","v":2484348},0,0,null,null,null,"NA",null,"Y36",3,null,0,0,0]
[null,8,0,0,null,0,0,0,null,0,0,8,"(Au.) -Auxiliar Postgrado Mg.",16562320,20,{"$f":"N37/5","v":3312464},0,0,null,null,null,"NA",null,"Y37",2.5,null,0,0,0]
[null,9,0,0,null,0,0,0,null,0,0,9,"(Au.) -Auxiliar Postgrado Dr.",24843480,30,{"$f":"N38/5","v":4968696},0,0,null,null,null,"NA",null,"Y38",2,null,0,0,0]
[null,10,0,0,null,0,0,0,null,0,0,10,"(A.G) -Asistente graduado Mg.",{"$f":"$M$27*O39","v":0},{"$f":"45*0","v":0},{"$f":"N39/10","v":0},{"$f":"COUNTIF($E$29:$E$44,$M39)","v":0},{"$f":"SUMIF($E$30:$E$44,$M39,$H$30:$H$44)","v":0},null,null,null,3688585,null,"Y39",1.5,null,{"$f":"E39","v":0},0,0]
[null,11,0,0,null,0,0,0,null,0,0,11,"(A.G) -Asistente graduado Dr.",{"$f":"$M$27*O40","v":0},{"$f":"60*0","v":0},{"$f":"N40/10","v":0},{"$f":"COUNTIF($E$29:$E$44,$M40)","v":0},{"$f":"SUMIF($E$30:$E$44,$M40,$H$30:$H$44)","v":0},null,null,null,5164019,null,"Y40",1,null,{"$f":"E40","v":0},0,0]
[null,12,0,0,null,0,0,0,null,0,0,null,null,"Salario 12 meses",null,null,null,null,"Validacion de estimulo a estudiantes",null,null,{"$f":"G10","v":0},null,"Y41",0.5,null,{"$f":"E41","v":0},0,0]
[null,13,0,0,null,0,0,0,null,0,0,null,null,null,null,null,null,null,null,null,"%",null,null,null,null,null,{"$f":"E42","v":0},0,0]
[null,14,0,0,null,0,0,0,null,0,0,null,"Joven investigador Colciencias",{"$f":"M27*3*12","v":29812176},null,null,null,null,true,"Estudiantes Min",{"$f":"IFERROR(VLOOKUP($S$43,$S$44:$V$48,3,0),0)","v":0},{"$f":"IFERROR(VLOOKUP($S$43,$S$44:$V$48,4,0),0)","v":0},null,null,null,null,{"$f":"E43","v":0},0,0]
[null,{"$f":"14-COUNTIF(E30:E43,\"\")","v":0},"Sumatoria del calculo de OPS  \"Valor financiado Vicein\" en rubro de (Personal):",null,null,null,{"$f":"IF(H44>N2,\"Esta superando el total de presupuesto\",\"\")","v":""},{"$f":"IFERROR(INT(SUM(H30:H43)),0)","v":0},0,{"$f":"IFERROR(VLOOKUP($E44,$M$29:$O$38,2,0),0)*IF($H$10=\"IMP\",2,1)","v":0},null,null,null,null,null,null,null,null,{"$f":"T44<$V$41","v":false},100,0.09,{"$f":"(T44*U44)*1000000","v":9000000}]
[null,null,null,null,null,null,null,null,null,4,null,"Instrucción  ver Comentario… OJO VER EN ESTO IMP",null,null,null,null,null,null,{"$f":"T45<$V$41","v":false},80,0.09,{"$f":"((T45-5)*U45)*1000000","v":6750000}]
["13.-","Presupuesto detalle de Plan de compras general   .- La siguiente tabla debe diligenciarse manualmente ya que no arrastra informacion de  otros campos",null,null,null,null,null,null,null,null,null,1,"Para IMP - Contrapartida Facultad Año 1 es : ",null,{"$f":"N18","v":0},{"$f":"SUMIF($C$51:$C$86,$C$51,$H$51:$H$86)","v":0},null,null,{"$f":"T46<$V$41","v":false},60,0.09,{"$f":"((15+T46)*U46)*1000000","v":6750000}]
[null,null,null,null,null,null,null,null,null,null,null,2,"Para IMP - Contrapartida Facultad Año 2 es : ",null,{"$f":"O18","v":0},null,null,null,{"$f":"T47<$V$41","v":false},40,0.09,{"$f":"((10+T47)*U47)*1000000","v":4500000}]
[null,{"$f":"IFERROR(\"Nota : \"&VLOOKUP(I10,Dt_Limite,3,0),\" \")","v":"Nota : Puede aplicar al maximo de presupuesto dependiendo los puntos comprometidos"},null,null,null,null,null,null,null,null,null,3,"Para Presupuesto $ VICEIN la mitad de OPS es :",null,{"$f":"H44/2","v":0},null,null,null,{"$f":"T48<$V$41","v":false},20,0.09,{"$f":"((5+T48)*U48)*1000000","v":2250000}]
[null,null,null,null,null,null,null,null,null,null,null,"Consulte sobre los items"]
[{"$f":"ROW()","v":50},"No","Rubro / Destino","Año de Vigencia","Descripción (Entidad- Rubro)",null,"Finaciación Vicein $ SUE",{"$f":"G125&\" UMNG\"","v":"$ Contrapartida Facultad UMNG"},"Totales",null,null,"No","Nombre Rubro","Rubro","Limite%",{"$f":"N2","v":0},"Solicitado $Vicein","Limites de topes",null,null,null,null,null,"Ok OPS y Extimulo"]
[null,{"$f":"ROW()-$A$50","v":1},"Personal",1,"Horas de descarga academica UMNG",null,0,{"$f":"IF(H10=\"INV\",N19,N18)","v":0},{"$f":"SUM(G51:H51)","v":0},null,null,{"$f":"ROW()-50","v":1},"Honorarios",611401,1,{"$f":"SUMIF($C$50:$C$86,$M51,$G$50:$G$86)","v":0},{"$f":"IFERROR(P51/$P$50,0)","v":0},{"$f":"($P$50/100)*O51*100","v":0},"Personal",{"$f":"SUM(R30:R35)","v":0},{"$f":"SUMIF($C$51:$C$86,$S51,$G$51:$G$86)","v":0},{"$f":"U51-T51","v":0},null,{"$f":"IF(T51=U51,0,1)","v":0}]
[null,{"$f":"ROW()-$A$50","v":2},null,1,null,null,null,null,{"$f":"SUM(G52:H52)","v":0},null,null,{"$f":"ROW()-50","v":2},"Materiales",612101,1,0,{"$f":"IFERROR(P52/$P$50,0)","v":0},0,{"$f":"M56","v":"Estímulo a estudiantes Pregrado"},{"$f":"SUM(R35)","v":0},{"$f":"SUMIF($C$51:$C$86,$S52,$G$51:$G$86)","v":0},{"$f":"U52-T52","v":0}]
[null,3,null,1,null,null,null,null,0,null,null,3,"Salidas de Campo",612104,1,0,0,0,{"$f":"M57","v":"Estímulo a estudiantes Posgrado"},{"$f":"SUM(R36)","v":0},{"$f":"SUMIF($C$51:$C$86,$S53,$G$51:$G$86)","v":0},{"$f":"U53-T53","v":0},null,{"$f":"IF(T53=U53,0,1)","v":0}]
[null,4,null,1,null,null,null,null,0,null,null,4,"Servicios Técnicos",612103,1,0,0,0,{"$f":"M61","v":0},{"$f":"SUM(R39:R40,R37:R38)","v":0},{"$f":"SUMIF($C$51:$C$86,$S54,$G$51:$G$86)","v":0},{"$f":"U54-T54","v":0},null,{"$f":"IF(T54=U54,0,1)","v":0}]
[null,5,null,1,null,null,null,null,0,null,null,5,"Recursos Biblograficos",633,1,0,0,0,null,null,null,{"$f":"SUM(V51:V54)","v":0},null,{"$f":"SUM(X51:X54)","v":0}]
[null,6,null,1,null,null,null,null,0,null,null,6,"Estímulo a estudiantes Pregrado","Pendiente",0.2,0,0,0]
[null,7,null,1,null,null,null,null,0,null,null,7,"Estímulo a estudiantes Posgrado","Pendiente",0.2,0,0,0,null,"Validación","Plan ","OPS Catedra"]
[null,8,null,1,null,null,null,null,0,null,null,8,"Movilidad",635020,1,0,0,0,null,{"$f":"M51","v":"Honorarios"},{"$f":"COUNTIF($C$51:$C$70,T58)","v":0},{"$f":"SUM(Q30:Q35)","v":0},{"$f":"IF(U58<=V58,1,0)","v":1}]
[null,9,null,1,null,null,null,null,0,null,null,9,"Capacitacion",null,1,0,0,0,null,{"$f":"M60","v":"Otros gastos"},{"$f":"COUNTIF($C$51:$C$70,T59)","v":0},{"$f":"SUM(Q36:Q38)-Q36","v":0},{"$f":"IF(U59<V59,1,0)","v":0}]
[null,10,null,1,null,null,null,null,0,null,null,10,"Otros gastos",null,1,0,0,0,null,"Diferencias ",null,{"$f":"IF(V55=0,0,1)","v":0},{"$f":"SUM(W58:W59)+V60","v":1}]
[null,11,null,1,null,null,null,null,0,null,null,11,null,null,null,0,0,0]
[null,12,null,1,null,null,null,null,0,null,null,12,null,null,null,0,0,0,{"$f":"V43","v":0},null,null,null,null,null,null,null,25000000,0.09,{"$f":"AA62*AB62","v":2250000}]
[null,13,null,1,null,null,null,null,0,null,null,13,null,null,null,0,0,0,null,null,null,null,null,null,null,null,{"$f":"AA62+AA62","v":50000000},0.09,{"$f":"AA63*AB63","v":4500000}]
[null,14,null,1,null,null,null,null,0,null,null,14,null,null,null,null,0,null,null,null,null,null,null,null,null,null,{"$f":"AA63+AA62","v":75000000},0.09,{"$f":"AA64*AB64","v":6750000}]
[null,15,null,1,null,null,null,null,0,null,null,15,null,null,null,null,0,null,null,null,null,null,null,null,null,null,{"$f":"AA64+AA62","v":100000000},0.09,{"$f":"AA65*AB65","v":9000000}]
[null,16,null,1,null,null,null,null,0,null,null,16,null,null,null,null,0]
[null,17,null,1,null,null,null,null,0,null,null,17,null,null,null,null,0]
[null,18,null,1,null,null,null,null,0,null,null,18,null,null,null,null,0]
[null,19,null,1,null,null,null,null,0]
[null,20,null,1,null,null,null,null,0]
[null,21,null,1,null,null,null,null,0]
[null,22,null,1,null,null,null,null,0,null,null,564564]
[null,23,null,1,null,null,null,null,0]
[null,24,null,1,null,null,null,null,0]
[null,25,null,1,null,null,null,null,0]
[null,26,null,1,null,null,null,null,0]
[null,27,null,1,null,null,null,null,0]
[null,28,null,1,null,null,null,null,0,null,null,"No ","Texto","Condicion",null,null,null,"Validacion"]
[null,29,null,1,null,null,null,null,0]
[null,30,null,1,null,null,null,null,0,null,null,null,"Tabla de errores posibles"]
[null,31,null,1,null,null,null,null,0,null,null,null,{"$f":"IFERROR(VLOOKUP($R$81,$L$81:$M$136,2,0),\".\")","v":" "},null,"Verificacion de condiciones ",null,null,{"$f":"IFERROR(MAX(R82:R133),0)","v":0}]
[null,32,null,1,null,null,null,null,0,null,null,0," "]
[null,33,null,1,null,null,null,null,0,null,null,{"$f":"L82+1","v":1},{"$f":"\"Error esta superando el máximo de presupuesto VICEIN UMNG en: \"&TEXT(G90,\"$ #.##0\")","v":"Error esta superando el máximo de presupuesto VICEIN UMNG en: $ 0"},"Validacion máximo de presupuesto",null,null,null,{"$f":"IF(G90<0,1,0)","v":0}]
[null,34,null,1,null,null,null,null,0,null,null,{"$f":"L83+1","v":2},{"$f":" \"Error: Hay diferencia en presupuesto VICEIN en: \"&TEXT(F180,\"$ #.##0\")&\" Verificar.\"","v":"Error: Hay diferencia en presupuesto VICEIN en: $ 0 Verificar."},"Validacion que todo presupuesto VICEIN  Este en el cuadro consolidado",null,null,null,{"$f":"IF(F180=0,0,2)","v":0}]
[null,35,null,1,null,null,null,null,0,null,null,3,{"$f":"\"Error \"&M56&\" Supera el máximo permitido: \"&TEXT(ABS(R56),\"$ #.##0\")","v":"Error Estímulo a estudiantes Pregrado Supera el máximo permitido: $ 0"},{"$f":"\"Validacion de \"&M56","v":"Validacion de Estímulo a estudiantes Pregrado"},null,null,null,{"$f":"IF(P56>R56,3,0)","v":0}]
[null,null,null,null,null,null,null,null,null,null,null,4,{"$f":"\"Error \"&M57&\" Supera el máximo permitido: \"&TEXT(R57,\"$ #.##0\")","v":"Error Estímulo a estudiantes Posgrado Supera el máximo permitido: $ 0"},{"$f":"\"Validacion de \"&M57","v":"Validacion de Estímulo a estudiantes Posgrado"},null,null,null,{"$f":"IF(P57>R57,4,0)","v":0}]
[null,null,"Sumatoria general de plan de compras :",null,null,{"$f":"SUM(G87:I87)","v":0},{"$f":"SUM(G88:G89)","v":0},{"$f":"SUM(H88:H89)","v":0},{"$f":"SUM(I88:I89)","v":0},null,null,5,{"$f":" \"Error: Hay diferencia en presupuesto Contrapartida en: \"&TEXT(G180,\"$ #.##0\")&\" Verificar.\"","v":"Error: Hay diferencia en presupuesto Contrapartida en: $ 0 Verificar."},"Validacion que todo presupuesto Contrapartida Este en el cuadro consolidado",null,null,null,{"$f":"IF(G180=0,0,5)","v":0}]
[null,null,null,1,{"$f":"\"Total Presupuesto Año 1 \"&IF(H10=\"IMP\",\"IMP\",\"\")&\":\"","v":"Total Presupuesto Año 1 :"},null,{"$f":"IF(Cel_TP=\"IMP\",SUMIF($D$51:$D$86,$D88,G$51:G$86),SUM(G$51:G$86))","v":0},{"$f":"SUMIF($D$51:$D$86,$D88,H$51:H$86)","v":0},{"$f":"SUMIF($D$51:$D$86,$D88,I$51:I$86)","v":0},null,null,6,{"$f":" \"Error: Hay diferencia en presupuesto contrapartida Externos en: \"&TEXT(H180,\"$ #.##0\")&\" Verificar.\"","v":"Error: Hay diferencia en presupuesto contrapartida Externos en: $ 0 Verificar."},"Validacion que todo presupuesto Contrapartida Este en el cuadro consolidado",null,null,null,{"$f":"IF(H180=0,0,6)","v":0}]
[null,null,null,2,"Total Presupuesto Año 2 (IMP) :",null,{"$f":"IF(H10=\"INV\",0,SUMIF($D$51:$D$86,$D89,G$51:G$86))","v":0},{"$f":"IF(H10=\"INV\",0,SUMIF($D$51:$D$86,$D89,H$51:H$86))","v":0},{"$f":"IF(H10=\"INV\",0,SUMIF($D$51:$D$86,$D89,I$51:I$86))","v":0},null,null,7]
[null,null,"Firma :_______________",null,{"$f":"IF(G90>0,\"Presupuesto por definir.\",\" Error  - Supero el presupuesto en : \")","v":" Error  - Supero el presupuesto en : "},null,{"$f":"E172-G87","v":0},null,null,null,null,8]
[null,null,null,{"$f":"IF(H10=\"INV\",1,2)","v":2},"Limite de presupuesto VICEIN por año :",null,{"$f":"IFERROR(IF($H$10=\"IMP\",$P$6/2,$N$2),\"0\")","v":0}]
[]
[null,null,"Plan de compras entidades extenas  SUE"]
[94,"No","Rubro","año","Entidad Externa",null,"Finaciación Vicein $ SUE","Contrapartida","Totales"]
[null,{"$f":"ROW()-$A$94","v":1},null,1,null,null,0,{"$f":"IF(H54=\"INV\",N63,N62)","v":0},{"$f":"SUM(G95:H95)","v":0},null,{"$f":"General!N82","v":0}]
[null,{"$f":"ROW()-$A$94","v":2},null,1,null,null,null,null,{"$f":"SUM(G96:H96)","v":0},null,{"$f":"General!N83","v":""}]
[null,{"$f":"ROW()-$A$94","v":3},null,1,null,null,null,null,0,null,{"$f":"General!N84","v":""}]
[null,4,null,1,null,null,null,null,0,null,{"$f":"General!N85","v":""}]
[null,5,null,1,null,null,null,null,0,null,{"$f":"General!N86","v":""}]
[null,6,null,1,null,null,null,null,0]
[null,7,null,1,null,null,null,null,0]
[null,8,null,1,null,null,null,null,0,null,{"$f":"\"K\"&K105&\".K\"&MAX(K105:K110)","v":"K0.K0"}]
[null,9,null,1,null,null,null,null,0]
[null,10,null,1,null,null,null,null,0]
[null,11,null,1,null,null,null,null,0,null,{"$f":"IF(LEN(K95)>2,ROW()-10,0)","v":0}]
[null,12,null,1,null,null,null,null,0,null,{"$f":"IF(LEN(K96)>2,ROW()-10,0)","v":0}]
[null,13,null,1,null,null,null,null,0,null,0]
[null,14,null,1,null,null,null,null,0,null,0]
[null,15,null,1,null,null,null,null,0,null,0]
[null,16,null,1,null,null,null,null,0]
[null,17,null,1,null,null,null,null,0]
[null,18,null,1,null,null,null,null,0]
[null,19,null,1,null,null,null,null,0]
[null,20,null,1,null,null,null,null,0]
[null,null,null,null,null,null,null,null,0]
[]
[null,null,"Universidad  y/o Entidad  ",null,null,null,{"$f":"G94","v":"Finaciación Vicein $ SUE"},{"$f":"H94","v":"Contrapartida"},"Totales"]
[null,1,{"$f":"IF(LEN(K95)>3,K95,\" \")","v":" "},null,null,null,{"$f":"SUMIF($E$94:$F$115,$C118,G$94:G$115)","v":0},{"$f":"SUMIF($E$94:$F$115,$C118,H$94:H$115)","v":0},{"$f":"SUM(G118:H118)","v":0}]
[null,2,{"$f":"IF(LEN(K96)>3,K96,\" \")","v":" "},null,null,null,{"$f":"SUMIF($E$94:$F$115,$C119,G$94:G$115)","v":0},0,{"$f":"SUM(G119:H119)","v":0}]
[null,3," ",null,null,null,0,0,0]
[null,4," ",null,null,null,0,0,0]
[null,5," ",null,null,null,0,0,0]
[null,"TT","Totales generales",null,null,null,{"$f":"SUM(G118:G122)","v":0},{"$f":"SUM(H118:H122)","v":0},0]
[]
[null,"No","Rubro","%","Porcentaje","$ Financiación solicitada a VICEIN","$ Contrapartida Facultad","$ Contrapartida Externa","$ Total Rubro",0]
[null,1,{"$f":"C128","v":"Honorarios"},{"$f":"IFERROR(F126/F128,0)","v":0},{"$f":"D126","v":0},{"$f":"SUMIFS(G$50:G$86,$C$50:$C$86,$C126,$D$50:$D$86,$J126)","v":0},0,null,{"$f":"SUM(F126:H126)","v":0},1,{"$f":"IFERROR(VLOOKUP($B124,$L$50:$Q$68,4,0),0)","v":0}]
[null,1,{"$f":"C128","v":"Honorarios"},{"$f":"IFERROR(F126/F128,0)","v":0},0,0,0,null,0,2]
[null,1,{"$f":"M51","v":"Honorarios"},{"$f":"IFERROR(VLOOKUP($B128,Dt_TblaPresu,6,0),0)","v":0},0,{"$f":"SUM(F126:F127)","v":0},{"$f":"SUM(G126:G127)","v":0},null,0,3,{"$f":"IFERROR(VLOOKUP($B126,$L$50:$Q$68,4,0),0)","v":1}]
[null,{"$f":"B126+1","v":2},{"$f":"C131","v":"Materiales"},{"$f":"IFERROR(F129/F131,0)","v":0},0,{"$f":"SUMIFS(G$50:G$86,$C$50:$C$86,$C129,$D$50:$D$86,$J129)","v":0},0,null,0,{"$f":"J126","v":1},{"$f":"IFERROR(VLOOKUP($B127,$L$50:$Q$68,4,0),0)","v":1}]
[null,{"$f":"B127+1","v":2},{"$f":"C131","v":"Materiales"},{"$f":"IFERROR(F129/F131,0)","v":0},0,0,0,null,0,{"$f":"J127","v":2},1]
[null,2,{"$f":"M52","v":"Materiales"},{"$f":"IFERROR(VLOOKUP($B131,$L$50:$Q$68,6,0),0)","v":0},0,{"$f":"SUM(F129:F130)","v":0},{"$f":"SUM(G129:G130)","v":0},null,0,{"$f":"J128","v":3},1]
[null,3,{"$f":"C134","v":"Salidas de Campo"},{"$f":"IFERROR(F132/F134,0)","v":0},0,{"$f":"SUMIFS(G$50:G$86,$C$50:$C$86,$C132,$D$50:$D$86,$J132)","v":0},0,null,0,1,1]
[null,3,{"$f":"C134","v":"Salidas de Campo"},{"$f":"IFERROR(F132/F134,0)","v":0},0,0,0,null,0,2,1]
[null,3,{"$f":"M53","v":"Salidas de Campo"},{"$f":"IFERROR(VLOOKUP($B134,$L$50:$Q$68,6,0),0)","v":0},0,{"$f":"SUM(F132:F133)","v":0},{"$f":"SUM(G132:G133)","v":0},null,0,3,1]
[null,4,{"$f":"C137","v":"Servicios Técnicos"},{"$f":"IFERROR(F135/F137,0)","v":0},0,{"$f":"SUMIFS(G$50:G$86,$C$50:$C$86,$C135,$D$50:$D$86,$J135)","v":0},0,null,0,1,1]
[null,4,{"$f":"C137","v":"Servicios Técnicos"},{"$f":"IFERROR(F135/F137,0)","v":0},0,0,0,null,0,2,1]
[null,4,{"$f":"M54","v":"Servicios Técnicos"},{"$f":"IFERROR(VLOOKUP($B137,$L$50:$Q$68,6,0),0)","v":0},0,{"$f":"SUM(F135:F136)","v":0},{"$f":"SUM(G135:G136)","v":0},null,0,3,1]
[null,5,{"$f":"C140","v":"Recursos Biblograficos"},{"$f":"IFERROR(F138/F140,0)","v":0},0,{"$f":"SUMIFS(G$50:G$86,$C$50:$C$86,$C138,$D$50:$D$86,$J138)","v":0},0,null,0,1,1]
[null,5,{"$f":"C140","v":"Recursos Biblograficos"},{"$f":"IFERROR(F138/F140,0)","v":0},0,0,0,null,0,2,1]
[null,5,{"$f":"M55","v":"Recursos Biblograficos"},{"$f":"IFERROR(VLOOKUP($B140,$L$50:$Q$68,6,0),0)","v":0},0,{"$f":"SUM(F138:F139)","v":0},{"$f":"SUM(G138:G139)","v":0},null,0,3,1]
[null,6,{"$f":"C143","v":"Estímulo a estudiantes Pregrado"},{"$f":"IFERROR(F141/F143,0)","v":0},0,{"$f":"SUMIFS(G$50:G$86,$C$50:$C$86,$C141,$D$50:$D$86,$J141)","v":0},0,null,0,1,1]
[null,6,{"$f":"C143","v":"Estímulo a estudiantes Pregrado"},{"$f":"IFERROR(F141/F143,0)","v":0},0,0,0,null,0,2,1]
[null,6,{"$f":"M56","v":"Estímulo a estudiantes Pregrado"},{"$f":"IFERROR(VLOOKUP($B143,$L$50:$Q$68,6,0),0)","v":0},0,{"$f":"SUM(F141:F142)","v":0},{"$f":"SUM(G141:G142)","v":0},null,0,3,0.2]
[null,7,{"$f":"C146","v":"Estímulo a estudiantes Posgrado"},{"$f":"IFERROR(F144/F146,0)","v":0},0,{"$f":"SUMIFS(G$50:G$86,$C$50:$C$86,$C144,$D$50:$D$86,$J144)","v":0},0,null,0,1,0.2]
[null,7,{"$f":"C146","v":"Estímulo a estudiantes Posgrado"},{"$f":"IFERROR(F144/F146,0)","v":0},0,0,0,null,0,2,0.2]
[null,7,{"$f":"M57","v":"Estímulo a estudiantes Posgrado"},{"$f":"IFERROR(VLOOKUP($B146,$L$50:$Q$68,6,0),0)","v":0},0,{"$f":"SUM(F144:F145)","v":0},{"$f":"SUM(G144:G145)","v":0},null,0,3,0.2]
[null,8,{"$f":"C149","v":"Movilidad"},{"$f":"IFERROR(F147/F149,0)","v":0},0,{"$f":"SUMIFS(G$50:G$86,$C$50:$C$86,$C147,$D$50:$D$86,$J147)","v":0},0,null,0,1,0.2]
[null,8,{"$f":"C149","v":"Movilidad"},{"$f":"IFERROR(F147/F149,0)","v":0},0,0,0,null,0,2,0.2,null,"La siguiente tabla de plan de compras debe diligenciarse manualmente ya que no arrastra informacion de otros campos exceptuando la parte de contrapartida"]
[null,8,{"$f":"M58","v":"Movilidad"},{"$f":"IFERROR(VLOOKUP($B149,$L$50:$Q$68,6,0),0)","v":0},0,{"$f":"SUM(F147:F148)","v":0},{"$f":"SUM(G147:G148)","v":0},null,0,3,1]
[null,9,{"$f":"C152","v":"Capacitacion"},{"$f":"IFERROR(F150/F152,0)","v":0},0,{"$f":"SUMIFS(G$50:G$86,$C$50:$C$86,$C150,$D$50:$D$86,$J150)","v":0},0,null,0,1,1]
[null,9,{"$f":"C152","v":"Capacitacion"},{"$f":"IFERROR(F150/F152,0)","v":0},0,0,0,null,0,2,1]
[null,9,{"$f":"M59","v":"Capacitacion"},{"$f":"IFERROR(VLOOKUP($B152,$L$50:$Q$68,6,0),0)","v":0},0,{"$f":"SUM(F150:F151)","v":0},{"$f":"SUM(G150:G151)","v":0},null,0,3,1]
[null,10,{"$f":"C155","v":"Otros gastos"},{"$f":"IFERROR(F153/F155,0)","v":0},{"$f":"D153","v":0},{"$f":"SUMIFS(G$50:G$86,$C$50:$C$86,$C153,$D$50:$D$86,$J153)","v":0},0,null,{"$f":"SUM(F153:H153)","v":0},{"$f":"J150","v":1},1]
[null,10,{"$f":"C155","v":"Otros gastos"},{"$f":"IFERROR(F153/F155,0)","v":0},0,0,0,null,{"$f":"SUM(F154:H154)","v":0},2,1]
[null,10,{"$f":"M60","v":"Otros gastos"},{"$f":"IFERROR(VLOOKUP($B153,$L$50:$Q$68,6,0),0)","v":0},{"$f":"D155","v":0},{"$f":"SUM(F153:F154)","v":0},{"$f":"SUM(G153:G154)","v":0},null,{"$f":"SUM(F155:H155)","v":0},3,1]
[null,11,{"$f":"C158","v":"Extenos"},{"$f":"IFERROR(F156/F158,0)","v":0},0,{"$f":"SUMIFS(G$50:G$86,$C$50:$C$86,$C156,$D$50:$D$86,$J156)","v":0},0,{"$f":"SUM(G123:H123)","v":0},0,1,1]
[null,11,{"$f":"C158","v":"Extenos"},{"$f":"IFERROR(F156/F158,0)","v":0},0,0,0,null,0,2,1]
[null,11,{"$f":"\"Extenos\"","v":"Extenos"},{"$f":"IFERROR(VLOOKUP($B156,$L$50:$Q$68,6,0),0)","v":0},{"$f":"D158","v":0},{"$f":"SUM(F156:F157)","v":0},{"$f":"SUM(G156:G157)","v":0},0,0,3,0]
[null,12,{"$f":"C161","v":0},{"$f":"IFERROR(VLOOKUP($B157,$L$50:$Q$68,6,0),0)","v":0},0,{"$f":"SUMIFS(G$50:G$86,$C$50:$C$86,$C159,$D$50:$D$86,$J159)","v":0},0,null,{"$f":"SUM(F159:H159)","v":0},{"$f":"J150","v":1},0]
[null,11,{"$f":"C161","v":0},0,0,0,0,null,{"$f":"SUM(F160:H160)","v":0},2,0]
[null,11,{"$f":"M62","v":0},0,{"$f":"D161","v":0},{"$f":"SUM(F159:F160)","v":0},{"$f":"SUM(G159:G160)","v":0},null,{"$f":"SUM(F161:H161)","v":0},3,0]
[null,13,{"$f":"C164","v":0},0,0,{"$f":"SUMIFS(G$50:G$86,$C$50:$C$86,$C162,$D$50:$D$86,$J162)","v":0},0,null,0,1,0]
[null,12,{"$f":"C164","v":0},0,0,0,0,null,0,2,0]
[null,12,{"$f":"M63","v":0},0,0,{"$f":"SUM(F162:F163)","v":0},{"$f":"SUM(G162:G163)","v":0},null,0,3,0]
[null,13,"Viajes",null,null,{"$f":"SUMIFS(G$50:G$86,$C$50:$C$86,$C165,$D$50:$D$86,$J165)","v":0},{"$f":"SUMIFS(H$50:H$86,$C$50:$C$86,$C165)","v":0},null,0,{"$f":"J164","v":3}]
[null,14,"Mantenimiento",null,null,{"$f":"SUMIFS(G$50:G$86,$C$50:$C$86,$C166,$D$50:$D$86,$J166)","v":0},{"$f":"SUMIFS(H$50:H$86,$C$50:$C$86,$C166)","v":0},null,0,{"$f":"J165","v":3}]
[null,15,"Administración",null,null,{"$f":"SUMIFS(G$50:G$86,$C$50:$C$86,$C167,$D$50:$D$86,$J167)","v":0},0,null,0,{"$f":"J166","v":3}]
[null,16,"Construcciones",null,null,{"$f":"SUMIFS(G$50:G$86,$C$50:$C$86,$C168,$D$50:$D$86,$J168)","v":0},0,null,0,{"$f":"J167","v":3}]
[null,17,"Otros Gastos",null,null,{"$f":"SUMIFS(G$50:G$86,$C$50:$C$86,$C169,$D$50:$D$86,$J169)","v":0},0,null,0,{"$f":"J168","v":3}]
[null,"T1","$ Total General (Año 1)",null,null,{"$f":"SUMIFS(F$126:F$169,$J$126:$J$169,$J170)","v":0},{"$f":"SUMIFS(G$126:G$169,$J$126:$J$169,$J170)+SUM(G165:G169)","v":0},{"$f":"SUMIFS(H$126:H$169,$J$126:$J$169,$J170)+SUM(H165:H169)","v":0},0,1]
[null,"T2","$ Total General (Año 2)",null,null,{"$f":"SUMIFS(F$126:F$169,$J$126:$J$169,$J171)","v":0},{"$f":"SUMIFS(G$126:G$169,$J$126:$J$169,$J171)","v":0},{"$f":"SUMIFS(H$126:H$169,$J$126:$J$169,$J171)","v":0},0,2]
[null,"T3",{"$f":"\"TotalesPlan compras  -  (máximo):\"","v":"TotalesPlan compras  -  (máximo):"},null,{"$f":"N2","v":0},{"$f":"SUMIFS(F$126:F$169,$J$126:$J$169,$J172)","v":0},{"$f":"SUMIFS(G$126:G$169,$J$126:$J$169,$J172)","v":0},{"$f":"SUMIFS(H$126:H$169,$J$126:$J$169,$J172)","v":0},0,3]
[]
[null,"Nombre Institución Externa :",null,null,{"$f":"IF(General!I30>0,CLEAN(K174),\" \")","v":"No tiene."},null,null,null,null,{"$f":"General!I30","v":2},{"$f":"IF(General!N89=M174,\"No tiene.\",General!N89)","v":"No tiene."},null,"0;;;;"]
[]
[null,null,null,"Propuesta:",{"$f":"D7","v":"Formato: actualizado a 06 Sep 2019"}]
[]
[null,null,"Firma de responsable"]
[]
[null,null,null,null,"Diferencias En plan compras ",{"$f":"G87-F170","v":0},{"$f":"H87-G170","v":0},{"$f":"I123-H170","v":0}]
[]
[]
[null,null,"*Pueden  Ocultar las Filas que no se utilicen ( Favor no eliminar filas)."]
[null,null,"** en el caso de necesitar mas filas en el plan de compras (Comunicarse con la VICEIN para que se pueda realizar el ajuste)"]

{"sheet":"Impactos","index":12,"n_rows":41,"n_cols":14,"rows_kept":41,"cut":false,"hidden":false,"merged":[[17,2,17,6],[18,2,18,6],[8,5,8,6],[22,2,22,6],[19,2,19,6],[20,2,20,6],[15,2,15,6],[16,2,16,6],[21,2,21,6],[1,2,2,4],[13,2,13,3],[13,4,13,6],[12,2,12,3],[12,4,12,6],[7,5,7,6],[11,2,11,6],[9,2,9,6]]}
[10,null,null,null,null,null,null,null,"*Pueden  Ocultar las Filas que no se utilicen."]
[null,null,{"$f":"General!B2","v":"PRESENTACIÓN DE PROYECTOS \nDE INVESTIGACIÓN"},null,null,{"$f":"General!$H$2","v":"Fecha de Emisión: 2019/03/18"},{"$f":"General!$I$2","v":"IN-IV-F-14"},null,null,"Palabras Minimas",null,null,2000]
[null,null,null,null,null,{"$f":"General!$H$3","v":"Revisión N°:\n4"},{"$f":"\"Página \"&$A$1&\" de \"&Dt_TPG","v":"Página 10 de 11"},null,{"$f":"SUM(I7:I3502)","v":82},"<== Total de palabras",null,null,"Tipo de Impacto (Objetivos de Desarrollo Sostenible): Link Presione"]
[]
["14.-","#","Impactos asociados a la propuesta.",null,null,null,null,null,"Largo"]
[null,null,null,null,null,null,null,null,null,null,null,null,"Esplicaciones"]
[null,"N°","Describa  en detalle el impacto a desarrollar en el proyecto",null,null,null,null,null,{"$f":"IF(C7=\"\",0,LEN(TRIM(C7))-LEN(SUBSTITUTE(TRIM(C7),\" \",\"\"))+1)","v":10}]
[null,{"$f":"ROW()-7","v":1},"Impacto principal","Ambiental","Principal objetivo de desarrollo sostenible:","Paz, justicia e instituciones sólidas",null,null,{"$f":"IF(C8=\"\",0,LEN(TRIM(C8))-LEN(SUBSTITUTE(TRIM(C8),\" \",\"\"))+1)","v":2},null,null,null,"Transferencia e intercambio de conocimiento","Promover el desarrollo de iniciativas de extensión y transferencia del conocimiento científico y tecnológico que permitan su efectiva integración a contextos locales y sociales específicos, contribuyendo a su desarrollo."]
[null,{"$f":"ROW()-7","v":2},"Alcance","Nacional","Lineas de apropiación social","Participación ciudadana en CTeI",null,null,{"$f":"IF(E9=\"\",0,LEN(TRIM(E9))-LEN(SUBSTITUTE(TRIM(E9),\" \",\"\"))+1)","v":4},null,null,null,"Gestión del conocimiento para la apropiación","Incentivar el desarrollo de mecanismos de formación y medición para construir conocimiento acerca de las diversas formas en que el conocimiento científico tecnológico es apropiado en la sociedad colombiana, por los diversos grupos e individuos que la componen"]
[null,{"$f":"ROW()-7","v":3},{"$f":"M13","v":"Tener en cuenta :Fomentar la participación ciudadana en la construcción de política pública en CTI, fortaleciendo las capacidades de la sociedad para tomar decisiones que contribuyan a la resolución de conflictos que involucran conocimientos científico-tecnológicos."},null,null,null,null,null,{"$f":"IF(C10=\"\",0,LEN(TRIM(C10))-LEN(SUBSTITUTE(TRIM(C10),\" \",\"\"))+1)","v":35},null,null,null,"Participación ciudadana en CTeI","Fomentar la participación ciudadana en la construcción de política pública en CTI, fortaleciendo las capacidades de la sociedad para tomar decisiones que contribuyan a la resolución de conflictos que involucran conocimientos científico-tecnológicos."]
[null,null,null,null,null,null,null,null,null,null,null,null,"Comunicación del conocimiento","Favorecer el desarrollo de proyectos de comunicación reflexivos y contextualizados para la comprensión, el diálogo y la formación de opinión sobre las relaciones ciencia, tecnología, innovación y sociedad."]
[null,".","Evolución del nivel de madurez social del impacto SRL (Societal Readiness Levels )"]
[null,{"$f":"ROW()-9","v":4},"Estado actual del SRL",null,"SRL 0 – Identificación del problema.",null,null,null,{"$f":"IF(C13=\"\",0,LEN(TRIM(C13))-LEN(SUBSTITUTE(TRIM(C13),\" \",\"\"))+1)","v":4},null,{"$f":"IFERROR(ABS(RIGHT(LEFT(E13,6),2)),-1)","v":0},null,{"$f":"\"Tener en cuenta :\"& VLOOKUP($F$9,M6:P11,2,0)","v":"Tener en cuenta :Fomentar la participación ciudadana en la construcción de política pública en CTI, fortaleciendo las capacidades de la sociedad para tomar decisiones que contribuyan a la resolución de conflictos que involucran conocimientos científico-tecnológicos."}]
[null,{"$f":"ROW()-9","v":5},"SRL Comprometido al finalizar el proyecto",null,"SRL 6 – Soluciones demostradas en un entorno relevante, en cooperación con las partes interasadas relevantes para obtener retroalimentación inicial subre impactos potenciales",null,null,null,{"$f":"IF(C14=\"\",0,LEN(TRIM(C14))-LEN(SUBSTITUTE(TRIM(C14),\" \",\"\"))+1)","v":6},null,{"$f":"IFERROR(ABS(RIGHT(LEFT(E14,6),2)),0)","v":6}]
[null,null,null,null,null,null,null,null,{"$f":"IF(C15=\"\",0,LEN(TRIM(C15))-LEN(SUBSTITUTE(TRIM(C15),\" \",\"\"))+1)","v":0},null,{"$f":"IFERROR(IF(K13<K14,\"\",\"No esta  bien definido la selección de los SRL. Por favor confirmar.\"),\"\")","v":""}]
[null,{"$f":"ROW()-8","v":8},"Evolución del impacto alcanzado como resultado de proyectos anteriores",null,null,null,null,null,{"$f":"IF(C16=\"\",0,LEN(TRIM(C16))-LEN(SUBSTITUTE(TRIM(C16),\" \",\"\"))+1)","v":9}]
[null,9,null,null,null,null,null,null,{"$f":"IF(C17=\"\",0,LEN(TRIM(C17))-LEN(SUBSTITUTE(TRIM(C17),\" \",\"\"))+1)","v":0}]
[null,10,"Descripción de los Beneficiario(s) del  impacto del proyecto",null,null,null,null,null,8]
[null,11,null,null,null,null,null,null,0]
[null,12,"Descripción del impacto esperado.",null,null,null,null,null,4]
[null,13,null,null,null,null,null,null,0]
[null,14,null,null,null,null,null,null,0]
[null,15,null,null,null,null,null,null,0]
[null,16,null,null,null,null,null,null,0]
[null,17,null,null,null,null,null,null,0]
[]
[]
[]
[]
[null,null,"*Pueden  Ocultar las Filas que no se utilicen ( Favor no eliminar filas)."]
[]
[]
[]
[]
[]
[]
[]
[]
[]
[]
[null,"*Pueden  Ocultar las Filas que no se utilicen."]

{"sheet":"Bibliografía","index":13,"n_rows":39,"n_cols":8,"rows_kept":39,"cut":false,"hidden":false,"merged":[[34,2,34,4],[23,2,23,4],[24,2,24,4],[25,2,25,4],[26,2,26,4],[27,2,27,4],[28,2,28,4],[29,2,29,4],[30,2,30,4],[31,2,31,4],[32,2,32,4],[33,2,33,4],[22,2,22,4],[11,2,11,4],[12,2,12,4],[13,2,13,4],[14,2,14,4],[15,2,15,4],[16,2,16,4],[17,2,17,4],[18,2,18,4],[19,2,19,4],[20,2,20,4],[21,2,21,4],[10,2,10,4],[1,2,2,2],[6,2,6,4],[7,2,7,4],[8,2,8,4],[9,2,9,4]]}
[11,null,null,null,null,null,"*Pueden  Ocultar las Filas que no se utilicen."]
[null,null,{"$f":"General!B2","v":"PRESENTACIÓN DE PROYECTOS \nDE INVESTIGACIÓN"},{"$f":"General!$H$2","v":"Fecha de Emisión: 2019/03/18"},{"$f":"General!$I$2","v":"IN-IV-F-14"}]
[null,null,null,{"$f":"General!$H$3","v":"Revisión N°:\n4"},{"$f":"\"Página \"&$A$1&\" de \"&Dt_TPG","v":"Página 11 de 11"},null,{"$f":"SUM(G7:G3500)","v":0},"<== Total de palabras"]
[]
["15.-","#","Bibliografía de la propuesta.",null,null,null,"Largo"]
[]
[null,{"$f":"ROW()-6","v":1},null,null,null,null,{"$f":"IF(C7=\"\",0,LEN(TRIM(C7))-LEN(SUBSTITUTE(TRIM(C7),\" \",\"\"))+1)","v":0}]
[null,{"$f":"ROW()-6","v":2},null,null,null,null,{"$f":"IF(C8=\"\",0,LEN(TRIM(C8))-LEN(SUBSTITUTE(TRIM(C8),\" \",\"\"))+1)","v":0}]
[null,3,null,null,null,null,0]
[null,4,null,null,null,null,0]
[null,5,null,null,null,null,0]
[null,6,null,null,null,null,0]
[null,7,null,null,null,null,0]
[null,8,null,null,null,null,0]
[null,9,null,null,null,null,0]
[null,10,null,null,null,null,0]
[null,11,null,null,null,null,0]
[null,12,null,null,null,null,0]
[null,13,null,null,null,null,0]
[null,14,null,null,null,null,0]
[null,15,null,null,null,null,0]
[null,16,null,null,null,null,0]
[null,17,null,null,null,null,0]
[null,18,null,null,null,null,0]
[null,19,null,null,null,null,0]
[null,20,null,null,null,null,0]
[null,21,null,null,null,null,0]
[null,22,null,null,null,null,0]
[null,23,null,null,null,null,0]
[null,24,null,null,null,null,0]
[null,25,null,null,null,null,0]
[null,26,null,null,null,null,0]
[null,27,null,null,null,null,0]
[null,28,null,null,null,null,0]
[null,29,null,null,null,null,0]
[]
[]
[]
[null,"*Pueden  Ocultar las Filas que no se utilicen ( Favor no eliminar filas)."]